Workbook

Sheet EF (hidden)
A1: Fin | B1: Función | C1: Sub-función | D1: Dimención del indicador | E1: Tipo | F1: Tipo de programa | G1: Frecuencia | H1: Tipo de indicador | I1: Nivel de MIR
A2: 1. Gobierno | B2: 1.1. Legislación | C2: 1.1.1 Legislación | D2: Eficacia | E2: Estatégico | F2: MIR | G2: Mensual | H2: Cantidad | I2: FIN
A3: 1. Gobierno | B3: 1.1. Legislación | C3: 1.1.2 Fiscalización | D3: Eficiencia | E3: Gestión | F3: Indicador de gestión | G3: Bimestral | H3: Porcentaje | I3: PROPÓSITO
A4: 1. Gobierno | B4: 1.2. Justicia | C4: 1.2.1 Impartición de justicia | D4: Econocmía | G4: Trimestral | H4: Tasa | I4: COMPONENTE
A5: 1. Gobierno | B5: 1.2. Justicia | C5: 1.2.2 Procuración de justicia | D5: Calidad | G5: Cuatrimestral | H5: Razón | I5: ACTIVIDAD
A6: 1. Gobierno | B6: 1.2. Justicia | C6: 1.2.3 Reclusión y readaptación social | G6: Semestral | H6: Promedio | I6: INDICADOR DE GESTIÓN
A7: 1. Gobierno | B7: 1.2. Justicia | C7: 1.2.4 Derechos humanos | G7: Anual | H7: Tasa de variación
A8: 1. Gobierno | B8: 1.3. Coordinación política de gobierno | C8: 1.3.1 Presidencia / Gubernatura | G8: Bienal
A9: 1. Gobierno | B9: 1.3. Coordinación política de gobierno | C9: 1.3.2 Política interior
A10: 1. Gobierno | B10: 1.3. Coordinación política de gobierno | C10: 1.3.3 Preservación y cuidado del patrimonio público
A11: 1. Gobierno | B11: 1.3. Coordinación política de gobierno | C11: 1.3.4 Función pública
A12: 1. Gobierno | B12: 1.3. Coordinación política de gobierno | C12: 1.3.5 Asuntos jurídicos
A13: 1. Gobierno | B13: 1.3. Coordinación política de gobierno | C13: 1.3.6 Organización de procesos electorales
A14: 1. Gobierno | B14: 1.3. Coordinación política de gobierno | C14: 1.3.7 Población
A15: 1. Gobierno | B15: 1.3. Coordinación política de gobierno | C15: 1.3.8 Territorio
A16: 1. Gobierno | B16: 1.3. Coordinación política de gobierno | C16: 1.3.9 Otros
A17: 1. Gobierno | B17: 1.4. Relaciones exteriores | C17: 1.4.1 Relaciones exteriores
A18: 1. Gobierno | B18: 1.5. Asuntos financieros y hacendarios | C18: 1.5.1 Asuntos financieros
A19: 1. Gobierno | B19: 1.5. Asuntos financieros y hacendarios | C19: 1.5.2 Asuntos hacendarios
A20: 1. Gobierno | B20: 1.6 Seguridad nacional | C20: 1.6.1 Defensa
A21: 1. Gobierno | B21: 1.6 Seguridad nacional | C21: 1.6.2 Marina
A22: 1. Gobierno | B22: 1.6 Seguridad nacional | C22: 1.6.3 Inteligencia para la preservación de la seguridad nacional
A23: 1. Gobierno | B23: 1.7. Asuntos de orden público y seguridad interior | C23: 1.7.1 Policía
A24: 1. Gobierno | B24: 1.7. Asuntos de orden público y seguridad interior | C24: 1.7.2 Protección civil
A25: 1. Gobierno | B25: 1.7. Asuntos de orden público y seguridad interior | C25: 1.7.3 Otros asuntos de orden público y seguridad
A26: 1. Gobierno | B26: 1.7. Asuntos de orden público y seguridad interior | C26: 1.7.4 Sistema nacional de seguridad pública
A27: 1. Gobierno | B27: 1.8. Otros servicios generales | C27: 1.8.1 Servicios registrales, administrativos y patrimoniales
A28: 1. Gobierno | B28: 1.8. Otros servicios generales | C28: 1.8.2 Servicios estadísticos
A29: 1. Gobierno | B29: 1.8. Otros servicios generales | C29: 1.8.3 Servicios de comunicación y medios
A30: 1. Gobierno | B30: 1.8. Otros servicios generales | C30: 1.8.4 Acceso a la información pública gubernamental
A31: 1. Gobierno | B31: 1.8. Otros servicios generales | C31: 1.8.5 Otros
A32: 2. Desarrollo social | B32: 2.1. Protección ambiental | C32: 2.1.1 Ordenación de desechos
A33: 2. Desarrollo social | B33: 2.1. Protección ambiental | C33: 2.1.2 Administración del agua
A34: 2. Desarrollo social | B34: 2.1. Protección ambiental | C34: 2.1.3 Ordenación de aguas residuales, drenaje y alcantarillado
A35: 2. Desarrollo social | B35: 2.1. Protección ambiental | C35: 2.1.4 Reducción de la contaminación
A36: 2. Desarrollo social | B36: 2.1. Protección ambiental | C36: 2.1.5 Protección de la diversidad biológica y del paisaje
A37: 2. Desarrollo social | B37: 2.1. Protección ambiental | C37: 2.1.6 Otros de protección ambiental
A38: 2. Desarrollo social | B38: 2.2. Vivienda y servicios a la comunidad | C38: 2.2.1 Urbanización
A39: 2. Desarrollo social | B39: 2.2. Vivienda y servicios a la comunidad | C39: 2.2.2 Desarrollo comunitario
A40: 2. Desarrollo social | B40: 2.2. Vivienda y servicios a la comunidad | C40: 2.2.3 Abastecimiento de agua
A41: 2. Desarrollo social | B41: 2.2. Vivienda y servicios a la comunidad | C41: 2.2.4 Alumbrado público
A42: 2. Desarrollo social | B42: 2.2. Vivienda y servicios a la comunidad | C42: 2.2.5 Vivienda
A43: 2. Desarrollo social | B43: 2.2. Vivienda y servicios a la comunidad | C43: 2.2.6 Servicios comunales
A44: 2. Desarrollo social | B44: 2.2. Vivienda y servicios a la comunidad | C44: 2.2.7 Desarrollo regional
A45: 2. Desarrollo social | B45: 2.3. Salud | C45: 2.3.1 Prestación de servicios de aalud a la comunidad
A46: 2. Desarrollo social | B46: 2.3. Salud | C46: 2.3.2 Prestación de servicios de salud a la persona
A47: 2. Desarrollo social | B47: 2.3. Salud | C47: 2.3.3 Generación de recursos para la salud
A48: 2. Desarrollo social | B48: 2.3. Salud | C48: 2.3.4 Rectoría del sistema de salud
A49: 2. Desarrollo social | B49: 2.3. Salud | C49: 2.3.5 Protección social en salud
A50: 2. Desarrollo social | B50: 2.4. Recreación cultura y otras manifestaciones sociales | C50: 2.4.1 Deporte y recreación
A51: 2. Desarrollo social | B51: 2.4. Recreación cultura y otras manifestaciones sociales | C51: 2.4.2 Cultura
A52: 2. Desarrollo social | B52: 2.4. Recreación cultura y otras manifestaciones sociales | C52: 2.4.3 Radio, televisión y editoriales
A53: 2. Desarrollo social | B53: 2.4. Recreación cultura y otras manifestaciones sociales | C53: 2.4.4 Asuntos religiosos y otras manifestaciones sociales
A54: 2. Desarrollo social | B54: 2.5. Educación | C54: 2.5.1 Educación básica
A55: 2. Desarrollo social | B55: 2.5. Educación | C55: 2.5.2 Educación media superior
A56: 2. Desarrollo social | B56: 2.5. Educación | C56: 2.5.3 Educación superior
A57: 2. Desarrollo social | B57: 2.5. Educación | C57: 2.5.4 Posgrado
A58: 2. Desarrollo social | B58: 2.5. Educación | C58: 2.5.5 Educación para adultos
A59: 2. Desarrollo social | B59: 2.5. Educación | C59: 2.5.6 Otros servicios educativos y actividades inherentes
A60: 2. Desarrollo social | B60: 2.6. Protección social | C60: 2.6.1 Enfermedad e incapacidad
A61: 2. Desarrollo social | B61: 2.6. Protección social | C61: 2.6.2 Edad avanzada
A62: 2. Desarrollo social | B62: 2.6. Protección social | C62: 2.6.3 Familia e hijos
A63: 2. Desarrollo social | B63: 2.6. Protección social | C63: 2.6.4 Desempleo
A64: 2. Desarrollo social | B64: 2.6. Protección social | C64: 2.6.5 Alimentación y nutrición
A65: 2. Desarrollo social | B65: 2.6. Protección social | C65: 2.6.6 Apoyo social para la vivienda
A66: 2. Desarrollo social | B66: 2.6. Protección social | C66: 2.6.7 Indígenas
A67: 2. Desarrollo social | B67: 2.6. Protección social | C67: 2.6.8 Otros grupos vulnerables
A68: 2. Desarrollo social | B68: 2.6. Protección social | C68: 2.6.9 Otros de seguridad social y asistencia social
A69: 2. Desarrollo social | B69: 2.7. Otros asuntos sociales | C69: 2.7.1 Otros asuntos sociales
A70: 3. Desarrollo económico | B70: 3.1. Asuntos económicos comerciales y laborales generales | C70: 3.1.1 Asuntos económicos y comerciales en general
A71: 3. Desarrollo económico | B71: 3.1. Asuntos económicos comerciales y laborales generales | C71: 3.1.2 Asuntos laborales generales
A72: 3. Desarrollo económico | B72: 3.2. Agropecuaria silvicultura pesca y caza | C72: 3.2.1 Agropecuaria
A73: 3. Desarrollo económico | B73: 3.2. Agropecuaria silvicultura pesca y caza | C73: 3.2.2 Silvicultura
A74: 3. Desarrollo económico | B74: 3.2. Agropecuaria silvicultura pesca y caza | C74: 3.2.3 Acuacultura, pesca y caza
A75: 3. Desarrollo económico | B75: 3.2. Agropecuaria silvicultura pesca y caza | C75: 3.2.4 Agroindustrial
A76: 3. Desarrollo económico | B76: 3.2. Agropecuaria silvicultura pesca y caza | C76: 3.2.5 Hidroagrícola
A77: 3. Desarrollo económico | B77: 3.2. Agropecuaria silvicultura pesca y caza | C77: 3.2.6 Apoyo financiero a la banca y seguro agropecuario
A78: 3. Desarrollo económico | B78: 3.3. Combustibles y energía | C78: 3.3.1 Carbón y otros combustibles minerales sólidos
A79: 3. Desarrollo económico | B79: 3.3. Combustibles y energía | C79: 3.3.2 Petróleo y gas natural (Hidrocarburos)
A80: 3. Desarrollo económico | B80: 3.3. Combustibles y energía | C80: 3.3.3 Combustibles nucleares
A81: 3. Desarrollo económico | B81: 3.3. Combustibles y energía | C81: 3.3.4 Otros combustibles
A82: 3. Desarrollo económico | B82: 3.3. Combustibles y energía | C82: 3.3.5 Electricidad
A83: 3. Desarrollo económico | B83: 3.3. Combustibles y energía | C83: 3.3.6 Energía no eléctrica
A84: 3. Desarrollo económico | B84: 3.4. Minería manufacturas y construcción | C84: 3.4.1 Extracción de recursos minerales excepto los combustibles minerales
A85: 3. Desarrollo económico | B85: 3.4. Minería manufacturas y construcción | C85: 3.4.2 Manufacturas
A86: 3. Desarrollo económico | B86: 3.4. Minería manufacturas y construcción | C86: 3.4.3 Construcción
A87: 3. Desarrollo económico | B87: 3.5. Transporte | C87: 3.5.1 Transporte por carretera
A88: 3. Desarrollo económico | B88: 3.5. Transporte | C88: 3.5.2 Transporte por agua y puertos
A89: 3. Desarrollo económico | B89: 3.5. Transporte | C89: 3.5.3 Transporte por ferrocarril
A90: 3. Desarrollo económico | B90: 3.5. Transporte | C90: 3.5.4 Transporte aéreo
A91: 3. Desarrollo económico | B91: 3.5. Transporte | C91: 3.5.5 Transporte por oleoductos y gasoductos y otros sistemas de transporte
A92: 3. Desarrollo económico | B92: 3.5. Transporte | C92: 3.5.6 Otros relacionados con transporte
A93: 3. Desarrollo económico | B93: 3.6. Comunicaciones | C93: 3.6.1 Comunicaciones
A94: 3. Desarrollo económico | B94: 3.7. Turismo | C94: 3.7.1 Turismo
A95: 3. Desarrollo económico | B95: 3.7. Turismo | C95: 3.7.2 Hoteles y restaurantes
A96: 3. Desarrollo económico | B96: 3.8. Ciencia tecnología e innovación | C96: 3.8.1 Investigación científica
A97: 3. Desarrollo económico | B97: 3.8. Ciencia tecnología e innovación | C97: 3.8.2 Desarrollo tecnológico
A98: 3. Desarrollo económico | B98: 3.8. Ciencia tecnología e innovación | C98: 3.8.3 Servicios científicos y tecnológicos
A99: 3. Desarrollo económico | B99: 3.8. Ciencia tecnología e innovación | C99: 3.8.4 Innovación
A100: 3. Desarrollo económico | B100: 3.9. Otras industrias y otros asuntos económicos | C100: 3.9.1 Comercio, distribución, almacenamiento y depósito
A101: 3. Desarrollo económico | B101: 3.9. Otras industrias y otros asuntos económicos | C101: 3.9.2 Otras industrias
A102: 3. Desarrollo económico | B102: 3.9. Otras industrias y otros asuntos económicos | C102: 3.9.3 Otros asuntos económicos
A103: 4. Otros no clasificadas en funciones anteriores | B103: 4.1. Transacciones de la deuda financiera y costo financiero deuda | C103: 4.1.1 Deuda pública interna
A104: 4. Otros no clasificadas en funciones anteriores | B104: 4.1. Transacciones de la deuda financiera y costo financiero deuda | C104: 4.1.2 Deuda pública externa
A105: 4. Otros no clasificadas en funciones anteriores | B105: 4.2. Transferencias, participaciones y aportaciones entre diferentes niveles y ordenes de gobierno | C105: 4.2.1 Transferencias entre diferentes niveles y ordenes de gobierno
A106: 4. Otros no clasificadas en funciones anteriores | B106: 4.2. Transferencias, participaciones y aportaciones entre diferentes niveles y ordenes de gobierno | C106: 4.2.2 Participaciones entre diferentes niveles y ordenes de gobierno
A107: 4. Otros no clasificadas en funciones anteriores | B107: 4.2. Transferencias, participaciones y aportaciones entre diferentes niveles y ordenes de gobierno | C107: 4.2.3 Aportaciones entre diferentes niveles y ordenes de gobierno
A108: 4. Otros no clasificadas en funciones anteriores | B108: 4.3. Saneamiento del sistema financiero | C108: 4.3.1 Saneamiento del sistema financiero
A109: 4. Otros no clasificadas en funciones anteriores | B109: 4.3. Saneamiento del sistema financiero | C109: 4.3.2 Apoyos IPAB
A110: 4. Otros no clasificadas en funciones anteriores | B110: 4.3. Saneamiento del sistema financiero | C110: 4.3.3 Banca de desarrollo
A111: 4. Otros no clasificadas en funciones anteriores | B111: 4.3. Saneamiento del sistema financiero | C111: 4.3.4 Apoyo a los programas de reestructura en unidades de inversión (UDIS)
A112: 4. Otros no clasificadas en funciones anteriores | B112: 4.4. Adeudos de ejercicios fiscales anteriores | C112: 4.4.1 Adeudos de ejercicios fiscales anteriores

Sheet Validacion (hidden)
A1: NOMBRE DEL ENTE PÚBLICO | AG1: ="Versión "&F185&".03" -> Versión 2025.03
A2: Atemajac de Brizuela
A5: INFORMACIÓN
A6: Nombre del presidente municipal o titular de la entidad pública
A7: VICTOR MANUEL VAZQUEZ BEAS
A8: Nombre del encargado de la hacienda pública o finanzas de la entidad pública
A9: JOSUE ARTURO REYNOSO NAVA
A10: Mes o corte a informar
A11: DICIEMBRE, 2do. Informe de Avance de Gestión Financiera y Corte Anual | AM11: =IF(A11="ENERO",1,IF(A11="FEBRERO",2,IF(A11="MARZO",3,IF(A11="ABRIL",4,IF(A11="MAYO",5,IF(A11="JUNIO, 1er. Informe de Avance de Gestión Financiera y Corte Semestral",6,IF(A11="JULIO",7,IF(A11="AGOSTO",8,IF(A11="SEPTIEMBRE",9,IF(A11="OCTUBRE",10,IF(A11="NOVIEMBRE",11,IF(A11="DICIEMBRE, 2do. Informe de Avance de Gestión Financiera y Corte Anual",12,"")))))))))))) -> 12
A12: VERIFICACIÓN DE ESTADOS E INFORMES FINANCIEROS
A13: Estados e informes contables:
A14: =IF(AM14=1,"",IF(ROUND(SUM($A$50:$L$52),2)>0,IF(ROUND(($M$50),2)=ROUND(($M$51+$M$52),2),IF(ROUND($A$50,2)=ROUND(($A$51+$A$52),2),"X",""),""),"")) -> X | B14: Estado de situación financiera (F1A) | AM14: =IF(AND($C$64="", $C$65="", $C$66="",$C$67="",$C$68="",$C$69="",$C$73="", $C$74="", $C$75="",$C$76=""),"",1) -> 
A15: =IF(AM15=1,"",IF(ROUND('F2'!$G$33,2)=0,"","X")) -> X | B15: Estado de variación de la hacienda pública (F2) | AM15: =IF(AND($C$64="", $C$65="", $C$66="",$C$67="",$C$68="",$C$69="",$C$77="", $C$78="", $C$79="",$C$80="",$C$81=""),"",1) -> 
A16: =IF(AM16=1,"",IF(ROUND('F3'!$F$60,2)<>0,"X","")) -> X | B16: Estado de flujo de efectivo (F3) | AM16: =IF(AND($C$64="", $C$65="", $C$66="",$C$67="",$C$68="",$C$69="",$C$101="", $C$102="", $C$103=""),"",1) -> 
A17: =IF(AM17=1,"",IF(ROUND(F4A1!$C$18,2)>0,"X","")) -> X | B17: Conciliación entre los ingresos presupuestarios y contables (F4A1) | AM17: =IF(AND($C$64="", $C$65="", $C$66="",$C$67="",$C$68="",$C$69="",$C$70="", $C$71="", $C$72="",$C$82="",$C$83="",$C$84="",$C$85="",$C$86="",$C$87="", $C$88="", $C$89="",$C$90="",$C$91=""),"",1) -> 
A18: =IF(AM18=1,"",IF(ROUND(F4A2!$C$37,2)>0,"X","")) -> X | B18: Conciliación entre los egresos presupuestarios y los gastos contables (F4A2) | AM18: =IF(AND($C$64="", $C$65="", $C$66="",$C$67="",$C$68="",$C$69="",$C$70="", $C$71="", $C$72="",$C$92="",$C$93="",$C$94="",$C$95="",$C$96=""),"",1) -> 
A19: =IF(AM19=1,"",IF(ROUND('F5'!$H$6,2)>0,"X","")) -> X | B19: Estado analítico del activo (F5) | AM19: =IF(AND($C$64="", $C$65="", $C$66="",$C$67="",$C$68="",$C$69="",$C$104="", $C$105="", $C$106=""),"",1) -> 
A20: =IF(AM20=1,"",IF(ROUND(SUM($A$53:$L$54),2)>0,IF(ROUND(SUM($M$53:$X$54),2)>0,"X",""),"")) -> X | B20: Estado de actividades (F6A) | AM20: =IF(AND($C$64="", $C$65="", $C$66="",$C$67="",$C$68="",$C$69=""),"",1) -> 
A21: =IF(AM21=1,"",IF(ROUND('F16'!$E$4,2)-ROUND('F16'!$F$4,2)=0,IF('F16'!$E$4+'F16'!$F$4>0,"X",""),"")) -> X | B21: Estado de cambios en la situación financiera (F16) | AM21: =IF(AND($C$64="", $C$65="", $C$66="",$C$67="",$C$68="",$C$69="",$C$97="", $C$98="", $C$99="",$C$100=""),"",1) -> 
A22: =IF('F11'!$A$6>0,"X","") -> X | B22: Informe sobre pasivos contingentes (F11)
A23: Estados e informes presupuestarios:
A24: =IF(AM24=1,"",IF(ROUND(SUM('F7'!$E$17:$F$17),2)>0,"X","")) -> X | B24: Estado analítico de ingresos por clasificación por rubro de ingresos/fuente de financiamiento (F7) | AM24: =IF(AND($C$124="", $C$125="", $C$126="", $C$127=""),"",1) -> 
A25: =IF(AM25=1,"",IF(ROUND(SUM('F8'!$E$80:$F$80),2)>0,"X","")) -> X | B25: Estado analítico del ejercicio del presupuesto de egresos por clasificación por objeto del gasto (F8) | AM25: =IF(AND($C$70="", $C$71="", $C$72=""),"",1) -> 
A26: =IF(AM26=1,"",IF(ROUND(SUM('F17'!$E$13:$F$13),2)>0,"X","")) -> X | B26: Estado analítico del ejercicio del presupuesto de egresos por clasificación por tipo de gasto (F17) | AM26: =IF(AND($C$70="", $C$71="", $C$72=""),"",1) -> 
A27: =IF(ROUND(SUM('F18'!$D$58:$E$58),2)>0,"X","") -> X | B27: Estado analítico del ejercicio del presupuesto de egresos por clasificación administrativa (F18)
A28: =IF(ROUND(SUM('F19'!$E$40:$F$40),2)>0,"X","") -> X | B28: Estado analítico del ejercicio del presupuesto de egresos por clasificación funcional (F19)
A29: Estados e informes de la Ley de Disciplina Financiera:
A30: =IF(AM30=1,"",IF(ROUND(SUM($A$50:$L$52),2)>0,IF(ROUND($M$50,2)=ROUND(($M$51+$M$52),2),IF(ROUND($A$50,2)=ROUND(($A$51+$A$52),2),"X",""),""),"")) -> X | B30: Estado de situación financiera detallado - LDF (F1LDF) | AM30: =IF(AND($C$64="", $C$65="", $C$66="",$C$67="",$C$68="",$C$69="",$C$73="", $C$74="", $C$75="",$C$76=""),"",1) -> 
A31: =IF(AM31=1,"",IF('F9-IDP'!$J$3>0,"X","")) -> X | B31: Informe analítico de la deuda pública y otros pasivos (F9-EDP) | AM31: =IF(AND($C$64="", $C$65="", $C$66="",$C$67="",$C$68="",$C$69="",$C$107="", $C$108="", $C$109="",$C$110="",$C$111="",$C$112="",$C$113="",$C$114="",$C$115="", $C$116="", $C$117=""),"",1) -> 
A32: =IF(AM32=1,"",IF('F9-IAO'!$C$12>0,"X","")) -> X | B32: Informe analítico de obligaciones diferentes de financiamiento (F9-IAO) | AM32: =IF(AND($C$64="", $C$65="", $C$66="",$C$67="",$C$68="",$C$69=""),"",1) -> 
A33: =IF(AM33=1,"",IF(ROUND(SUM('F22'!$F$10:$G$10),2)>0,"X","")) -> X | B33: Balance presupuestario - LDF (F22) | AM33: =IF(AND($C$70="", $C$71="", $C$72="",$C$160="",$C$161="",$C$162="",$C$163="", $C$164="", $C$165=""),"",1) -> 
A34: =IF(AM34=1,"",IF(ROUND(SUM(F7B!$E$64:$F$64),2)>0,"X","")) -> X | B34: Estado analítico de ingresos detallados - LDF (F7B) | AM34: =IF(AND($C$70="", $C$71="", $C$72="",$C$124="",$C$125="",$C$126="",$C$127="", $C$128="", $C$129="",$C$130="",$C$131=""),"",1) -> 
A35: =IF(AM35=1,"",IF(ROUND(SUM(F8B!$F$155:$G$155),2)>0,"X","")) -> X | B35: Estado analítico del ejercicio del presupuesto de egresos detallado - LDF por clasificación por objeto del gasto (F8B) | AM35: =IF(AND($C$70="", $C$71="", $C$72="",$C$132="",$C$133="",$C$134="",$C$135=""),"",1) -> 
A36: =IF(AM36=1,"",IF(ROUND(SUM(F18A!$D$62:$E$62),2)>0,"X","")) -> X | B36: Estado analítico del ejercicio del presupuesto de egresos detallado - LDF por clasificación administrativa (F18A) | AM36: =IF(AND($C$148="", $C$149="", $C$150="",$C$151="",$C$152="",$C$153="",$C$154="", $C$155="", $C$156="",$C$157="",$C$158="",$C$159=""),"",1) -> 
A37: =IF(AM37=1,"",IF(ROUND(SUM(F19A!$F$76:$G$76),2)>0,"X","")) -> X | B37: Estado analítico del ejercicio del presupuesto de egresos detallado - LDF por clasificación funcional (F19A) | AM37: =IF(AND($C$136="", $C$137="", $C$138="",$C$139="",$C$140="",$C$141="",$C$142="", $C$143="", $C$144="",$C$145="",$C$146="",$C$147=""),"",1) -> 
A38: =IF(ROUND(SUM('F21'!$F$32:$G$32),2)>0,"X","") -> X | B38: Estado analítico del ejercicio del presupuesto de egresos detallado - LDF por servicios personales por categoría (F21)
A39: Informes complementarios:
A40: =IF(AM40=1,"",IF(ROUND(SUM($A$50:$L$52),2)>0,IF(ROUND(($M$50),2)=ROUND(($M$51+$M$52),2),IF(ROUND($A$50,2)=ROUND(($A$51+$A$52),2),"X",""),""),"")) -> X | B40: Estado analítico de situación financiera (F1) | AM40: =IF(AND($C$64="", $C$65="", $C$66="",$C$67="",$C$68="",$C$69="",$C$73="", $C$74="", $C$75="",$C$76=""),"",1) -> 
A41: =IF(AM41=1,"",IF(ROUND(SUM($A$53:$L$54),2)>0,IF(ROUND($M$53,2)>0,"X",""),"")) -> X | B41: Estado analítico de actividades (F6) | AM41: =IF(AND($C$64="", $C$65="", $C$66="",$C$67="",$C$68="",$C$69=""),"",1) -> 
A42: =IF(AM42=1,"",IF(ROUND(SUM(F7A!$E$76:$F$76),2)>0,"X","")) ->  | B42: Informe analítico del clasificación por rubro de ingresos (F7A) | AM42: =IF(AND($C$70="", $C$71="", $C$72=""),"",1) -> 
A43: =IF('F10'!$B$6>0,"X","") -> X | B43: Informativa de proveedores (F10)
A44: =IF('F23'!$A$9>0,"X","") -> X | B44: Informativa de obra pública (F23)
A45: Informe de Avances de Gestión Financiera
A46: =IF(AM46=1,"",IF(ROUND(SUM('F12'!$E$30:$F$30),2)>0,"X","")) -> X | B46: Flujo contable de ingresos y egresos (F12) | AM46: =IF(AND($C$70="", $C$71="",$C$72="",$C$118="",$C$119="",$C$120="", $C$121="", $C$122="",$C$123=""),"",1) -> 
A47: =IF(AM47=1,"",IF(ROUND(SUM('F13'!$AA$6:$AI$6),2)>0,"X","")) -> X | B47: Avance de programas y/o procesos concluidos (F13) | AM47: =IF(AND($C$70="", $C$71="", $C$72="",$C$166="",$C$167="",$C$168="",$C$169="", $C$170="", $C$171="",$C$172="",$C$173="",$C$174="",$C$175="",$C$176="",$C$177="", $C$178="", $C$179="",$C$180="",$C$181="",$C$182="",$C$183=""),"",1) -> 
A48: INFORMACIÓN FINANCIERA GENERAL
A49: ="EJERCICIO "&F185 -> EJERCICIO 2025 | M49: ="EJERCICIO "&F186 -> EJERCICIO 2024 | Y49: CONCEPTO
A50: =ROUND('F1'!AF106,2) -> 83908284.65 | M50: =ROUND('F1'!AG106,2) -> 68953213.81 | Y50: Activo
A51: =ROUND('F1'!BM80,2) -> 377482.34 | M51: =ROUND('F1'!BN80,2) -> 2480776.88 | Y51: Pasivo
A52: =ROUND('F1'!BM105,2) -> 83530802.31 | M52: =ROUND('F1'!BN105,2) -> 66472436.93 | Y52: Hacienda pública/patrimonio
A53: =ROUND('F6'!AX184,2) -> 86047356.05 | M53: =ROUND('F6'!AY184,2) -> 82172995.85 | Y53: Ingresos
A54: =ROUND('F6'!AX539,2) -> 68988990.67 | M54: =ROUND('F6'!AY539,2) -> 63132299.89 | Y54: Egresos
A55: =ROUND('F6'!AX540,2) -> 17058365.38 | M55: =ROUND('F6'!AY540,2) -> 19040695.96 | Y55: Ahorro/desahorro
A56: F1 | G56: F9-EDP | M56: F1 | S56: F9-EDP | Y56: CONCEPTO
A57: =ROUND('F1'!BM23,2) -> 0 | G57: =ROUND('F9-EDP'!AP12,2) -> 0 | M57: =ROUND('F1'!BN23+'F1'!BN60,2) -> 0 | S57: =ROUND('F9-EDP'!N12,2) -> 0 | Y57: Deuda pública instituciones de crédito C/P
A58: =ROUND('F1'!BM60,2) -> 0 | G58: =ROUND('F9-EDP'!AP16,2) -> 0 | S58: =ROUND('F9-EDP'!N16,2) -> 0 | Y58: Deuda pública instituciones de crédito L/P
A59: =ROUND('F1'!BM27,2) -> 0 | G59: =ROUND('F9-EDP'!AP13,2) -> 0 | M59: =ROUND('F1'!BN27+'F1'!BN58,2) -> 0 | S59: =ROUND('F9-EDP'!N13,2) -> 0 | Y59: Deuda pública títulos y valores C/P
A60: =ROUND('F1'!BM58,2) -> 0 | G60: =ROUND('F9-EDP'!AP17,2) -> 0 | S60: =ROUND('F9-EDP'!N17,2) -> 0 | Y60: Deuda pública títulos y valores L/P
A61: =ROUND('F1'!BM25,2) -> 0 | G61: =ROUND('F9-EDP'!AP14,2) -> 0 | M61: =ROUND('F1'!BN25+'F1'!BN62,2) -> 0 | S61: =ROUND('F9-EDP'!N14,2) -> 0 | Y61: Deuda pública arrendamiento financiero C/P
A62: =ROUND('F1'!BM62,2) -> 0 | G62: =ROUND('F9-EDP'!AP18,2) -> 0 | S62: =ROUND('F9-EDP'!N18,2) -> 0 | Y62: Deuda pública arrendamiento financiero L/P
A63: INCONSISTENCIAS
A64: 1. Validación a la balanza de comprobación (contable) | C64: =IF(ROUND(Balanza!$C$754,2)=ROUND(Balanza!$D$754,2),"","1.1. BALANZA DE COMPROBACIÓN (contable) descuadrada en el SALDO INICIAL.") -> 
C65: =IF(ROUND(Balanza!$E$754,2)=ROUND(Balanza!$F$754,2),"","1.2. BALANZA DE COMPROBACIÓN (contable) descuadrada en los MOVIMIENTOS DE CARGO y ABONO.") -> 
C66: =IF(ROUND(Balanza!$G$754,2)=ROUND(Balanza!$H$754,2),"","1.3. BALANZA DE COMPROBACIÓN (contable) descuadrada en el SALDO FINAL.") -> 
A67: 2. Validación a la balanza de comprobación (orden género 7) | C67: =IF(ROUND(Balanza!$C$793,2)=ROUND(Balanza!$D$793,2),"","2.1. BALANZA DE COMPROBACIÓN (cuentas de orden) descuadrada en el SALDO INICIAL.") -> 
C68: =IF(ROUND(Balanza!$E$793,2)=ROUND(Balanza!$F$793,2),"","2.2. BALANZA DE COMPROBACIÓN (cuentas de orden) descuadrada en los MOVIMIENTOS DE CARGO y ABONO.") -> 
C69: =IF(ROUND(Balanza!$G$793,2)=ROUND(Balanza!$H$793,2),"","2.3. BALANZA DE COMPRBACIÓN (cuentas de orden) descuadrada en el SALDO FINAL.") -> 
A70: 3. Validación a la balanza de comprobación (orden presupuestal) | C70: =IF(ROUND(Balanza!$C$2223,2)=ROUND(Balanza!$D$2223,2),"","3.1. BALANZA DE COMPROBACIÓN (cuentas de orden presupuestal) descuadrada en el SALDO INICIAL.") -> 
C71: =IF(ROUND(Balanza!$E$2223,2)=ROUND(Balanza!$F$2223,2),"","3.2. BALANZA DE COMPROBACIÓN (cuentas de orden presupuestal) descuadrada en los MOVIMIENTOS DE CARGO y ABONO.") -> 
C72: =IF(ROUND(Balanza!$G$2223,2)=ROUND(Balanza!$H$2223,2),"","3.3. BALANZA DE COMPROBACIÓN (cuentas de orden presupuestal) descuadrada en el SALDO FINAL.") -> 
A73: 4. Validación al estado de situación financiera (F1, F1A y F1LDF) | C73: =IF(ROUND($M$50,2)=ROUND(($M$51+$M$52),2),"","4.1. En el ESTADO DE SITUACIÓN FINANCIERA (FI, F1A, F1LDF) columna ejercicio "&F186&", no es igual el TOTAL DEL ACTIVO y el TOTAL DEL PASIVO MÁS LA HACIENDA PÚBLICA/PATRIMONIO.") -> 
C74: =IF(ROUND($A$50,2)=ROUND(($A$51+$A$52),2),"","4.2. En el ESTADO DE SITUACIÓN FINANCIERA (F1, F1A, F1LDF) columna ejercicio "&F185&", no es igual el TOTAL DEL ACTIVO y el TOTAL DEL PASIVO MÁS LA HACIENDA PÚBLICA/PATRIMONIO.") -> 
C75: =IF(ROUND('F6'!$AY$540,2)=ROUND('F1'!$BN$87,2),"","4.3. El RESULTADO DEL EJERCICIO (AHORRO/DESAHORRO) del ESTADO DE ACTIVIDADES (F6, F6A) no es igual al RESULTADO DEL EJERCICIO del ESTADO DE SITUACIÓN FINANCIERA (F1, F1A, F1LDF) ejercicio "&F186&".") -> 
C76: =IF(ROUND('F6'!$AX$540,2)=ROUND('F1'!$BM$87,2),"","4.4. El RESULTADO DEL EJERCICIO (AHORRO/DESAHORRO) del ESTADO DE ACTIVIDADES (F6, F6A) no es igual al RESULTADO DEL EJERCICIO del ESTADO DE SITUACIÓN FINANCIERA (F1, F1A, F1LDF) ejercicio "&F185&".") -> 
A77: 5. Validación al estado de variación en la hacienda pública (F2) | C77: =IF(ROUND('F2'!C6,2)=ROUND(F1A!BN27,2),"","5.1. El saldo de la HACIENDA PÚBLICA/PATRIMONIO CONTRIBUIDO NETO de "&F186&" en el ESTADO DE VARIACIÓN EN LA HACIENDA PÚBLICA (F2), no es igual a la HACIENDA PÚBLICA/PATRIMONIO CONTRIBUIDO del ESTADO DE SITUACIÓN FINANCIERA (F1A) en la columna ejercicio "&F186&".") -> 
C78: =IF(ROUND('F2'!G10,2)=ROUND(F1A!BN31,2),"","5.2. El saldo de la HACIENDA PÚBLICA/PATRIMONIO GENERADO NETO del "&F186&" de la columna total en el ESTADO DE VARIACIÓN EN LA HACIENDA PÚBLICA (F2), no es igual a la HACIENDA PÚBLICA/PATRIMONIO GENERADO "&"del ESTADO DE SITUACIÓN FINANCIERA (F1A) en la columna ejercicio "&F186&".") -> 
C79: =IF(ROUND('F2'!G16,2)=ROUND(F1A!BN37,2),"","5.3. El saldo del EXCESO O INSUFICIENCIA EN LA ACTUALIZACIÓN EN LA HACIENDA PÚBLICA/PATRIMONIO NETO de "&F186&" de la columna TOTAL en el ESTADO DE VARIACIÓN EN LA HACIENDA PÚBLICA (F2),"&" no es igual al EXCESO O INSUFICIENCIA EN LA ACTUALIZACIÓN DE LA HACIENDA PÚBLICA/PATRIMONIO del ESTADO DE SITUACIÓN FINANCIERA (F1A) en la columna ejercicio "&F186&".") -> 
C80: =IF(ROUND('F2'!G19,2)=ROUND(F1A!BN40,2),"","5.4. El saldo de la HACIENDA PÚBLICA/PATRIMONIO NETO FINAL DE "&F186&" de la columna TOTAL en el ESTADO DE VARIACIÓN EN LA HACIENDA PÚBLICA (F2),"&" no es igual al TOTAL DE LA HACIENDA PÚBLICA/PATRIMONIO del ESTADO DE SITUACIÓN FINANCIERA (F1A) en la columna ejercicio "&F186&".") -> 
C81: =IF(ROUND('F2'!G33,2)=ROUND(F1A!BM40,2),"","5.5. El saldo de la HACIENDA PÚBLICA/PATRIMONIO NETO FINAL DE "&F185&" de la columna TOTAL en el ESTADO DE VARIACIÓN EN LA HACIENDA PÚBLICA (F2),"&" no es igual al TOTAL DE LA HACIENDA PÚBLICA/PATRIMONIO del ESTADO DE SITUACIÓN FINANCIERA (F1A) en la columna ejercicio "&F185&".") -> 
A82: 6A. Validación de conciliaciones prespu. vs conta. (F4A1) | C82: =IF(ROUND(F4A1!C18,2)=ROUND(F6A!AX24,2),"","6A.1. El TOTAL DE INGRESO CONTABLES de la CONCILIACIÓN ENTRE LOS INGRESOS PRESUPUESTAL Y CONTABLE (F4A1),"&" no es igual al TOTAL DE INGRESOS del ESTADO DE ACTIVIDADES (F6A) en la columna ejercicio "&F185&".") -> 
C83: =IF(ROUND('F7'!$F$7,2)=ROUND(F6A!$AX$8,2),"","6A.2. El total de IMPUESTOS en su momento devengado del ESTADO ANALÍTICO DE INGRESOS (F7),"&" no es igual a los IMPUESTOS del ESTADO DE ACTIVIDADES (F6A) en la columna ejercicio "&F185&".") -> 
C84: =IF(ROUND('F7'!$F$8,2)=ROUND(F6A!$AX$9,2),"","6A.3. El total de CUOTAS Y APORTACIONES DE SEGURIDAD SOCIAL en su momento devengado del ESTADO ANALÍTICO DE INGRESOS (F7),"&" no es igual a las CUOTAS Y APORTACIONES DE SEGURIDAD SOCIAL del ESTADO DE ACTIVIDADES (F6A) en la columna ejercicio "&F185&".") -> 
C85: =IF(ROUND('F7'!$F$9,2)=ROUND(F6A!$AX$10,2),"","6A.4. El total de CONTRIBUCIONES DE MEJORAS en su momento devengado del ESTADO ANALÍTICO DE INGRESOS (F7),"&" no es igual a las CONTRIBUCIONES DE MEJORAS del ESTADO DE ACTIVIDADES (F6A) en la columna ejercicio "&F185&".") -> 
C86: =IF(ROUND('F7'!$F$10,2)=ROUND(F6A!$AX$11,2),"","6A.5. El total de DERECHOS en su momento devengado del ESTADO ANALÍTICO DE INGRESOS (F7),"&" no es igual a los DERECHOS del ESTADO DE ACTIVIDADES (F6A) en la columna ejercicio "&F185&".") -> 
C87: =IF(ROUND('F7'!$F$11,2)=ROUND(F6A!$AX$12,2),"","6A.6. El total de PRODUCTOS en su momento devengado del ESTADO ANALÍTICO DE INGRESOS (F7),"&" no es igual a los PRODUCTOS del ESTADO DE ACTIVIDADES (F6A) en la columna ejercicio "&F185&".") -> 
C88: =IF(ROUND('F7'!$F$12,2)=ROUND(F6A!$AX$13+F4A1!$C$15+F4A1!C17,2),"","6A.7. El total de APROVECHAMIENTOS en su momento devengado del ESTADO ANALÍTICO DE INGRESOS (F7),"&" no es igual a los APROVECHAMIENTOS del ESTADO DE ACTIVIDADES (F6A) en la columna ejercicio "&F185&".") -> 
C89: =IF(ROUND('F7'!$F$13,2)=ROUND(F6A!$AX$14,2),"","6A.8. El total de INGRESOS POR VENTA DE BIENES Y PRESTACIÓN DE SERVICIOS en su momento devengado del ESTADO ANALÍTICO DE INGRESOS (F7),"&" no es igual a los INGRESOS POR VENTA DE BIENES Y PRESTACIÓN DE SERVICIOS del ESTADO DE ACTIVIDADES (F6A) en la columna ejercicio "&F185&".") -> 
C90: =IF(ROUND('F7'!$F$14,2)=ROUND(F6A!$AX$16,2),"","6A.9. El total de PARTICIPACIONES, APORTACIONES, CONVENIOS, INCENTIVOS DERIVADOS DE LA COLABORACIÓN FISCAL, FONDOS DISTINTOS DE APORTACIONES en su momento devengado del ESTADO ANALÍTICO DE INGRESOS (F7),"&" no es igual a las PARTICIPACIONES, APORTACIONES, CONVENIOS, INCENTIVOS DERIVADOS DE LA COLABORACIÓN FISCAL, FONDOS DISTINTOS DE APORTACIONES del ESTADO DE ACTIVIDADES (F6A) en la columna ejercicio "&F185&".") -> 
C91: =IF(ROUND('F7'!$F$15,2)=ROUND(F6A!$AX$17,2),"","6A.10. El total de TRANSFERENCIAS, ASIGNACIONES, SUBSIDIOS Y SUBVENCIONES, PENSIONES Y JUBILACIONES en su momento devengado del ESTADO ANALÍTICO DE INGRESOS (F7),"&" no es igual a las TRANSFERENCIAS, ASIGNACIONES, SUBSIDIOS Y SUBVENCIONES, PENSIONES Y JUBILACIONES del ESTADO DE ACTIVIDADES (F6A) en la columna ejercicio "&F185&".") -> 
A92: 6B. Validación de conciliaciones prespu. vs conta. (F4A2) | C92: =IF(ROUND(F4A2!$C$37,2)=ROUND(F6A!$AX$57,2),"","6B.1. El TOTAL DE GASTOS CONTABLES de la CONCILIACIÓN ENTRE LOS EGRESOS PRESUPUESTARIOS Y LOS GASTOS CONTABLES (F4A2),"&" no es igual al TOTAL DE GASTOS Y OTRAS PERDIDAS del ESTADO DE ACTIVIDADES (F6A) en la columna ejercicio "&F185&".") -> 
C93: =IF(ROUND('F8'!$F$8,2)=ROUND(F6A!$AX$27,2),"","6B.2. El total de SERVICIOS PERSONALES en su momento devengado del ESTADO ANALÍTICO DEL EJERCICIO DEL PRESUPUESTO DE EGRESOS (F8),"&" no es igual en SERVICIOS PERSONALES del ESTADO DE ACTIVIDADES (F6A) en la columna ejercicio "&F185&".") -> 
C94: =IF(ROUND('F8'!$F$16,2)=ROUND(F6A!$AX$28,2),"","6B.3. El total de MATERIALES Y SUMINISTROS en su momento devengado del ESTADO ANALÍTICO DEL EJERCICIO DEL PRESUPUESTO DE EGRESOS (F8),"&" no es igual en MATERIALES Y SUMINISTROS del ESTADO DE ACTIVIDADES (F6A) en la columna ejercicio "&F185&".") -> 
C95: =IF(ROUND('F8'!$F$26,2)=ROUND(F6A!$AX$29,2),"","6B.4. El total de SERVICIOS GENERALES en su momento devengado del ESTADO ANALÍTICO DEL EJERCICIO DEL PRESUPUESTO DE EGRESOS (F8),"&" no es igual en SERVICIOS GENERALES del ESTADO DE ACTIVIDADES (F6A) en la columna ejercicio "&F185&".") -> 
C96: =IF(ROUND('F8'!$F$36,2)=ROUND(F6A!$AX$30,2),"","6B.5. El total de TRANSFERENCIAS, ASIGNACIONES, SUBSIDIOS Y OTRAS AYUDAS en su momento devengado del ESTADO ANALÍTICO DEL EJERCICIO DEL PRESUPUESTO DE EGRESOS (F8),"&" no es igual en TRANSFERENCIAS, ASIGNACIONES, SUBSIDIOS Y OTRAS AYUDAS del ESTADO DE ACTIVIDADES (F6A) en la columna ejercicio "&F185&".") -> 
A97: 7. Validación al estado de cambios de la situación financiera (F16) | C97: =IF(ROUND(ABS('F16'!E43-'F16'!F43),2)=ROUND(ABS('F2'!C20),2),"","7.1. El saldo de la HACIENDA PÚBLICA/PATRIMONIO CONTRIBUIDO NETO DEL "&F186&" del ESTADO DE VARIACIÓN EN LA HACIENDA PÚBLICA (F2), "&"es diferente a la HACIENDA PÚBLICA/PATRIMONIO CONTRIBUIDO del ESTADO DE CAMBIOS DE LA SITUACIÓN FINANCIERA (F16) en la columna ejercicio "&F185&".") -> 
C98: =IF(ROUND(ABS(SUM('F16'!E50:E52)-SUM('F16'!F50:F52)),2)=ROUND(ABS(SUM('F2'!E27:E29)),2),"","7.2. La suma de las filas de REVALÚOS, RESERVAS Y RECLASIFICACIONES DE RESULTADOS DE EJERCICIOS ANTERIORES "&F186&", del ESTADO DE VARIACIÓN EN LA HACIENDA PÚBLICA (F2), "&"es diferente a la que se muestra en estos rubros del ESTADO DE CAMBIOS DE LA SITUACIÓN FINANCIERA (F16) en la columna ejercicio "&F185&".") -> 
C99: =IF(ROUND(ABS('F16'!E49+'F16'!F49),2)=ROUND(ABS('F2'!D24),2),"","7.3. El saldo del RESULTADO DE EJERCICIOS ANTERIORES del apartado VARIACIONES DE LA HACIENDA PÚBLICA/PATRIMONIO CONTRIBUIDO NETO DE "&F185&" del ESTADO DE VARIACIÓN EN LA HACIENDA PÚBLICA (F2), "&"es diferente al apartado de EJERCICIOS ANTERIORES del ESTADO DE CAMBIOS DE LA SITUACIÓN FINANCIERA (F16) en la columna ejercicio "&F185&".") -> 
C100: =IF(ROUND(ABS('F16'!E53-'F16'!F53),2)=ROUND(ABS('F2'!F30),2),"","7.4. El saldo del EXCESO O INSUFICIENCIA EN LA ACTUALIZACIÓN DE LA HACIENDA PÚBLICA/PATRIMONIO NETO "&F185&", del ESTADO DE VARIACIÓN EN LA HACIENDA PÚBLICA (F2), "&"es diferente al apartado del EXCESO O INSUFICIENCIA EN LA ACTUALIZACIÓN DE LA HACIENDA PÚBLICA/PATRIMONIO del ESTADO DE CAMBIOS DE LA SITUACIÓN FINANCIERA (F16) en la columna ejercicio "&F185&".") -> 
A101: 8. Validación al estado de flujo de efectivo (F3) | C101: =IF(ROUND(ABS('F3'!F58),2)=ROUND(ABS('F16'!E8+'F16'!F8),2),"","8.1. El INCREMENTO/DISMINUCIÓN NETA EN EL EFECTIVO Y EQUIVALENTES del FLUJO DE EFECTIVO (F3) de la columna "&F185&", no es igual al que se muestra en el ESTADO DE "&"CAMBIOS EN LA SITUACIÓN FINANCIERA (F16) en la fila de EFECTIVO Y EQUIVALENTES de la columna de origen o aplicación.") -> 
C102: =IF(ROUND('F3'!G60,2)=ROUND(F1A!AG8,2),"","8.2. El EFECTIVO Y EQUIVALENTES AL EFECTIVO AL FINAL DEL EJERCICIO columna "&F186&", del ESTADO DE FLUJO DE EFECTIVO (F3), es diferente al saldo del"&" rubro de EFECTIVO Y EQUIVALENTES de la columna "&F185&" del ESTADO DE SITUACIÓN FINANCIERA (F1A).") -> 
C103: =IF(ROUND('F3'!F60,2)=ROUND(F1A!AF8,2),"","8.3. El EFECTIVO Y EQUIVALENTES AL EFECTIVO AL FINAL DEL EJERCICIO columna "&F185&", del ESTADO DE FLUJO DE EFECTIVO (F3), es diferente al saldo del"&" rubro de EFECTIVO Y EQUIVALENTES de la columna "&F185&" del ESTADO DE SITUACIÓN FINANCIERA (F1A).") -> 
A104: 9. Validación al estado analítico del activo (F5) | C104: =IF(ROUND('F5'!E6,2)=ROUND(F1A!AG27,2),"","9.1. El TOTAL DEL ACTIVO del ESTADO ANALÍTICO DEL ACTIVO (F5) en la columna de SALDO INICIAL, es diferente al TOTAL DEL ACTIVO en el ESTADO DE SITUACIÓN FINANCIERA (F1A), en la columna correspondiente al ejercicio "&F186) -> 
C105: =IF(ROUND('F5'!H6,2)=ROUND(F1A!AF27,2),"","9.2. El TOTAL DEL ACTIVO del ESTADO ANALÍTICO DEL ACTIVO (F5) en la columna de SALDO FINAL, es diferente al TOTAL DEL ACTIVO en el ESTADO DE SITUACIÓN FINANCIERA (F1A), en la columna correspondiente al ejercicio "&F185) -> 
C106: =IF(ROUND(ABS('F5'!I6),2)=ROUND(ABS('F16'!E6-'F16'!F6),2),"","9.3. La cifra de la fila del rubro de ACTIVO de la columna de VARIACIÓN DEL PERIODO del ESTADO ANALÍTICO DEL ACTIVO (F5), es diferente a los rubros del ACTIVO en las columnas de ORIGEN O APLICACIÓN del ESTADO DE CAMBIOS EN LA SITUACIÓN FINANCIERA (F16)") -> 
A107: 10. Validación al estado analítico de la deuda y otros pasivos (F9) | C107: =IF(ROUND((S57+S58),2)=ROUND(M57,2),"","10.1. El SALDO AL 1° DE ENERO DE "&F185&" con INSTITUCIONES DE CRÉDITO a corto y largo plazo del ESTADO E INFORME ANALÍTICO DE LA DEUDA PÚBLICA Y "&"OTROS PASIVOS (F9-EDP), no es igual a la suma de los rubros 2131 y 2233 de la DEUDA PÚBLICA INTERNA POR PAGAR a corto y largo plazo columna ejercicio "&F186&" del ESTADO ANALÍTICO DE SITUACIÓN FINANCIERA (F1).") -> 
C108: =IF(ROUND((S59+S60),2)=ROUND(M59,2),"","10.2. El SALDO AL 1° DE ENERO DE "&F185&" en TÍTULOS Y VALORES de corto y largo plazo, del ESTADO E INFORME ANALÍTICO DE LA DEUDA PÚBLICA Y OTROS "&"PASIVOS (F9-EDP), no es igual a la suma de los rubro 2141 y 2231 TÍTULOS Y VALORES por pagar a corto y largo plazo columna ejercicio "&F185&" del ESTADO ANALÍTICO DE SITUACIÓN FINANCIERA (F1).") -> 
C109: =IF(ROUND((S61+S62),2)=ROUND(M61,2),"","10.3. El SALDO AL 1° DE ENERO DE "&F185&" en ARRENDAMIENTO FINANCIERO de corto y largo plazo, del ESTADO E INFORME ANALÍTICO DE LA DEUDA PÚBLICA Y "&"OTROS PASIVOS (F9-EDP), no es igual a los rubro de2133 Y 2235 ARRENDAMIENTO FINANCIERO por pagar a corto y largo plazo columna ejercicio "&F186&" del ESTADO ANALÍTICO DE SITUACIÓN FINANCIERA (F1).") -> 
C110: =IF(ROUND(A57,2)=ROUND(G57,2),"","10.4. El SALDO DEL PERIODO con INSTITUCIONES DE CRÉDITO a corto plazo, del ESTADO E INFORME ANALÍTICO DE LA DEUDA PÚBLICA Y OTROS PASIVOS (F9-EDP), "&"no es igual al rubro 2131 PORCIÓN DE LA DEUDA PÚBLICA INTERNA POR PAGAR A CORTO PLAZO columna ejercicio "&F185&" del ESTADO ANALÍTICO DE SITUACIÓN FINANCIERA (F1).") -> 
C111: =IF(ROUND(A58,2)=ROUND(G58,2),"","10.5. El SALDO DEL PERIODO con INSTITUCIONES DE CRÉDITO a largo plazo, del ESTADO ANALÍTICO DE LA DEUDA PÚBLICA Y OTROS PASIVOS (F9-EDP), "&"no es igual al rubro 2233 de PRÉSTAMOS DE LA DEUDA PÚBLICA INTERNA POR PAGAR A LARGO PLAZO columna ejercicio "&F185&" del ESTADO ANALÍTICO DE SITUACIÓN FINANCIERA (F1).") -> 
C112: =IF(ROUND(A59,2)=ROUND(G59,2),"","10.6. El SALDO DEL PERIODO en TÍTULOS Y VALORES a corto plazo, del ESTADO E INFORME ANALÍTICO DE LA DEUDA PÚBLICA Y OTROS PASIVOS (F9-EDP), no es "&"igual al rubro 2141 de TÍTULOS Y VALORES DE LA EUDA PÚBLICA INTERNA POR PAGAR A CORTO PLAZO columna ejercicio "&F185&" del ESTADO ANALÍTICO DE SITUACIÓN FINANCIERA (F1).") -> 
C113: =IF(ROUND(A60,2)=ROUND(G60,2),"","10.7. El SALDO DEL PERIODO en TÍTULOS Y VALORES a largo plazo, del ESTADO E INFORME ANALÍTICO DE LA DEUDA PÚBLICA Y OTROS PASIVOS (F9-EDP), no es "&"igual al rubro 2231 de TÍTULOS Y VALORES DE LA DEUDA PÚBLICA INTERNA POR PAGAR A LARGO PLAZO columna ejercicio "&F185&" del ESTADO ANALÍTICO DE SITUACIÓN FINANCIERA (F1).") -> 
C114: =IF(ROUND(A61,2)=ROUND(G61,2),"","10.8. El SALDO DEL PERIODO en ARRENDAMIENTO FINANCIERO a corto plazo, del ESTADO E INFORME ANALÍTICO DE LA DEUDA PÚBLICA Y OTROS PASIVOS"&" (F9-EDP), no es igual al rubro 2133 de la PORCIÓN DE ARRENDAMIENTO FINANCIERO DE LA DEUDA PÚBLICA INTERGA POR PAGAR A CORTO PLAZO columna ejercicio "&F185&" del ESTADO ANALÍTICO DE SITUACIÓN FINANCIERA (F1).") -> 
C115: =IF(ROUND(A62,2)=ROUND(G62,2),"","10.9. El SALDO DEL PERIODO en ARRENDAMIENTO FINANCIERO A LARGO PLAZO del ESTADO E INFORME ANALÍTICO DE LA DEUDA PÚBLICA Y OTROS PASIVOS (F9-EDP), "&"no es igual al rubro 2235 de ARRENDAMIENTO FINANCIERO DE LA DEUDA PÚBLICA INTERNA POR PAGAR A LARGO PLAZO columna ejercicio "&F185&" del ESTADO DE SITUACIÓN FINANCIERA (F1).") -> 
C116: =IF(ROUND('F9-EDP'!N20,2)=ROUND('F1'!BN80,2),"","10.10. El TOTAL DE LA DEUDA PÚBLICA Y OTROS PASIVOS al inicio del ejercicio "&F185&" del ESTADO E INFORME ANALÍTICO DE LA DEUDA PÚBLICA Y OTROS PASIVOS (F9-EDP), "&"no es igua al TOTAL DEL PASIVO columna del ejercicio "&F186&" del ESTADO DE SITUACIÓN FINANCIERA (F1).") -> 
C117: =IF(ROUND('F9-EDP'!AP20,2)=ROUND('F1'!BM80,2),"","10.11. El TOTAL DE LA DEUDA PÚBLICA Y OTROS PASIVOS del ejercicio "&F185&" del ESTADO E INFORME ANALÍTICO DE LA DEUDA PÚLICA Y OTROS PASIVOS (F9-EDP), no es igua al TOTAL DEL PASIVO columna del ejercicio "&F185&" en el ESTADO DE SITUACIÓN FINANCIERA (F1).") -> 
A118: 11. Validación flujo contable de ingresos y egresos (F12) | C118: =IF(ROUND('F7'!C17,2)=ROUND('F12'!C17,2),"","11.1. El TOTAL DE INGRESOS momento ESTIMADO del ESTADO ANALÍTICO DE INGRESOS (F7),"&" no es igual al TOTAL INGRESOS del FLUJO CONTABLE DE INGRESOS Y EGRESOS (F12) columna ESTIMADO.") -> 
C119: =IF(ROUND('F7'!D17,2)=ROUND('F12'!D17,2),"","11.2. El TOTAL DE INGRESOS de la AMPLIACIONES Y REDUCCIONES del ESTADO ANALÍTICO DE INGRESOS (F7),"&" no es igual al TOTAL INGRESOS del FLUJO CONTABLE DE INGRESOS Y EGRESOS (F12) columna AMPLIACIÓN Y REDUCCIÓN.") -> 
C120: =IF(ROUND('F7'!F17,2)=ROUND('F12'!F17,2),"","11.3. El TOTAL DE INGRESOS del momento DEVENGADO del ESTADO ANALÍTICO DE INGRESOS (F7),"&" no es igual al TOTAL INGRESOS del FLUJO CONTABLE DE INGRESOS Y EGRESOS (F12) columna DEVENGADO.") -> 
C121: =IF(ROUND('F8'!C80,2)=ROUND('F12'!C30,2),"","11.4. El TOTAL DE EGRESOS del momento APROBADO del ESTADO ANALÍTICO DEL EJERCICIO DEL PRESUPUESTO DE EGRESOS (F8),"&" no es igual al TOTAL DE EGRESOS del FLUJO CONTABLE DE INGRESOS Y EGRESOS (F12) columna APROBADO.") -> 
C122: =IF(ROUND('F8'!D80,2)=ROUND('F12'!D30,2),"","11.5. El TOTAL DE EGRESOS de las AMPLIACIONES Y REDUCCIONES del ESTADO ANALÍTICO DEL EJERCICIO DEL PRESUPUESTO DE EGRESOS (F8),"&" no es igual al TOTAL EGRESOS del FLUJO CONTABLE DE INGRESOS Y EGRESOS (F12) columna AMPLIACIÓN Y REDUCCIÓN.") -> 
C123: =IF(ROUND('F8'!F80,2)=ROUND('F12'!F30,2),"","11.6. El TOTAL DE EGRESOS del momento DEVENGADO del ESTADO ANALÍTICO DEL EJERCICIO DEL PRESUPUESTO DE EGRESOS (F8),"&" no es igual al TOTAL EGRESOS del FLUJO CONTABLE DE INGRESOS Y EGRESOS (F12) columna DEVENGADO.") -> 
A124: 12. Validación Estado Analítico del Ingreso - LDF (F7B) | C124: =IF(ROUND('F7'!C17,2)=ROUND(F7B!C64,2),"","12.1. El TOTAL DE INGRESOS del momento ESTIMADO del ESTADO ANALÍTICO DE INGRESOS DETALLADO - LDF (F7B),"&" no es igual al ESTADO ANALÍTICO DE INGRESOS (F7) columna ESTIMADO.") -> 
C125: =IF(ROUND('F7'!D17,2)=ROUND(F7B!D64,2),"","12.2. El TOTAL DE INGRESOS del momento MODIFICADO del ESTADO ANALÍTICO DE INGRESOS DETALLADO - LDF (F7B),"&" no es igual al ESTADO ANALÍTICO DE INGRESOS (F7) columna MODIFICADO.") -> 
C126: =IF(ROUND('F7'!F17,2)=ROUND(F7B!F64,2),"","12.3. El TOTAL DE INGRESOS del momento DEVENGADO del ESTADO ANALÍTICO DE INGRESOS DETALLADO - LDF (F7B),"&" no es igual al ESTADO ANALÍTICO DE INGRESOS (F7) columna DEVENGADO.") -> 
C127: =IF(ROUND('F7'!G17,2)=ROUND(F7B!G64,2),"","12.4. El TOTAL DE INGRESOS del momento RECAUDADO del ESTADO ANALÍTICO DE INGRESOS DETALLADO - LDF (F7B),"&" no es igual al ESTADO ANALÍTICO DE INGRESOS (F7) columna RECAUDADO.") -> 
C128: =IF(ROUND(F7B!C39,2)+ROUND(F7B!C68,2)=ROUND(F8B!D7,2),"","12.5. No existe equilibro entre los ingresos ESTIMADO de recursos no etiquetados del ESTADO ANALÍTICO DE INGRESOS DETALLADO - LDF (F7B),"&" y el ESTADO ANALÍTICO DEL EJERCICIO DEL PRESUPUESTO DE EGRESOS DETALLADO - LDF (F8B) columna APROBADO de recurso no etiquetado.") -> 
C129: =IF(ROUND(F7B!C61,2)=ROUND(F8B!D81,2),"","12.6. No existe equilibrio entre los ingresos ESTIMADO de recursos etiquetados del ESTADO ANALÍTICO DE INGRESOS DETALLADO - LDF (F7B),"&" y el ESTADO ANALÍTICO DEL EJERCICIO DEL PRESUPUESTO DE EGRESOS DETALLADO - LDF (F8B) columna APROBADO de recurso etiquetado.") -> 
C130: =IF(ROUND(F7B!F39,2)>0,IF(ROUND(F8B!G7,2)>0,"","12.7. Se tiene ingresos DEVENGADO de recursos no etiquetados en el ESTADO ANALÍTICO DE INGRESOS DETALLADO - LDF (F7B),"&" y en el ESTADO ANALÍTICO DEL EJERCICIO DEL PRESUPUESTO DE EGRESOS DETALLADO - LDF (F8B) columna DEVENGADO no existen erogaciones con recursos no etiquetados."),"") -> 
C131: =IF(ROUND(F7B!F61,2)>0,IF(ROUND(F8B!G81,2)>0,"","12.8. Se tiene ingresos DEVENGADO de recursos etiquetados en el ESTADO ANALÍTICO DE INGRESOS DETALLADO - LDF (F7B),"&" y en el ESTADO ANALÍTICO DEL EJERCICIO DEL PRESUPUESTO DE EGRESOS DETALLADO - LDF (F8B) columna DEVENGADO no existe erogaciones con recursos etiquetados."),"") -> 
A132: 13. Validación Estado Analítico del Egreso (COG) - LDF (F8B) | C132: =IF(ROUND(F8B!D155,2)=ROUND('F8'!C80,2),"","13.1. El TOTAL DEL GASTO en lo correspondiente al APROBADO del ESTADO ANALÍTICO DEL EJERCICIO DEL PRESUPUESTO DE EGRESOS DETALLADO - LDF (F8B),"&" no es igual al ESTADO ANALÍTICO DEL EJERCICIO DEL PRESUPUESTO DE EGRESOS (F8) columna APROBADO.") -> 
C133: =IF(ROUND(F8B!F155,2)=ROUND('F8'!E80,2),"","13.2. El TOTAL DEL GASTO en lo correspondiente al MODIFICADO del ESTADO ANALÍTICO DEL EJERCICIO DEL PRESUPUESTO DE EGRESOS DETALLADO - LDF (F8B),"&" no es igual al ESTADO ANALÍTICO DEL EJERCICIO DEL PRESUPUESTO DE EGRESOS (F8) columna MODIFICADO.") -> 
C134: =IF(ROUND(F8B!G155,2)=ROUND('F8'!F80,2),"","13.3. El TOTAL DEL GASTO en lo correspondiente al DEVENGADO del ESTADO ANALÍTICO DEL EJERCICIO DEL PRESUPUESTO DE EGRESOS DETALLADO - LDF (F8B),"&" no es igual al ESTADO ANALÍTICO DEL EJERCICIO DEL PRESUPUESTO DE EGRESOS (F8) columna DEVENGADO.") -> 
C135: =IF(ROUND(F8B!H155,2)=ROUND('F8'!G80,2),"","13.4. El TOTAL DEL GASTO en lo correspondiente al PAGADO del ESTADO ANALÍTICO DEL EJERCICIO DEL PRESPUESTO DE EGRESOS DETALLADO - LDF (F8B),"&" no es igual al ESTADO ANALÍTICO DEL EJERCICIO DEL PRESPUESTO DE EGRESOS (F8) columna PAGADO.") -> 
A136: 14. Validación Estado Analítico del Egreso (CF) - (F19A) | C136: =IF(ROUND(F19A!D76,2)=ROUND('F19'!C40,2),"","14.1. El TOTAL DEL GASTO en lo correspondiente al APROBADO del ESTADO ANALÍTICO DEL EJERCICIO DEL PRESUPUESTO DE EGRESOS DETALLADO - LDF (F19A),"&" no es igual al ESTADO ANALÍTICO DEL EJERCICIO DEL PRESUPUESTO DE EGRESOS (F19) columna APROBADO.") -> 
C137: =IF(ROUND(F19A!F76,2)=ROUND('F19'!E40,2),"","14.2. El TOTAL DEL GASTO en lo correspondiente al MODIFICADO del ESTADO ANALÍTICO DEL EJERCICIO DEL PRESUPUESTO DE EGRESOS DETALLADO - LDF (F19A),"&" no es igual al ESTADO ANALÍTICO DEL EJERCICIO DEL PRESUPUESTO DE EGRESOS (F19) columna MODIFICADO.") -> 
C138: =IF(ROUND(F19A!G76,2)=ROUND('F19'!F40,2),"","14.3. El TOTAL DEL GASTO en lo correspondiente al DEVENGADO del ESTADO ANALÍTICO DEL EJERCICIO DEL PRESUPUESTO DE EGRESOS DETALLADO - LDF (F19A),"&" no es igual al ESTADO ANALÍTICO DEL EJERCICIO DEL PRESUPUESTO DE EGRESOS (F19) columna DEVENGADO.") -> 
C139: =IF(ROUND(F19A!H76,2)=ROUND('F19'!G40,2),"","14.4. El TOTAL DEL GASTO en lo correspondiente al PAGADO del ESTADO ANALÍTICO DEL EJERCICIO DEL PRESUPUESTO DE EGRESO DETALLADO - LDF (F19A),"&" no es igual al ESTADO ANALÍTICO DEL EJERCICIO DEL PRESUPUESTO DE EGRESOS (F19) columna PAGADO.") -> 
C140: =IF(ROUND(F19A!$D$8,2)=ROUND(F8B!$D$7,2),"","14.5. El TOTAL DEL GASTO NO ETIQUETADO en lo correspondiente al APROBADO del ESTADO ANALÍTICO DEL EJERCICIO DEL PRESUPUESTO DE EGRESO DETALLADO - LDF (F19A),"&" no es igual al TOTAL DEL GASTO NO ETIQUETADO en el momento APROBADO del ESTADO ANALÍTICO DEL EJERCICIO DEL PRESUPUESTO DE EGRESOS (F8B).") -> 
C141: =IF(ROUND(F19A!$F$8,2)=ROUND(F8B!$F$7,2),"","14.6. El TOTAL DEL GASTO NO ETIQUETADO en lo correspondiente al MODIFICADO del ESTADO ANALÍTICO DEL EJERCICIO DEL PRESUPUESTO DE EGRESO DETALLADO - LDF (F19A),"&" no es igual al TOTAL DEL GASTO NO ETIQUETADO en el momento MODIFICADO del ESTADO ANALÍTICO DEL EJERCICIO DEL PRESUPUESTO DE EGRESOS (F8B).") -> 
C142: =IF(ROUND(F19A!$G$8,2)=ROUND(F8B!$G$7,2),"","14.7. El TOTAL DEL GASTO NO ETIQUETADO en lo correspondiente al DEVENGADO del ESTADO ANALÍTICO DEL EJERCICIO DEL PRESUPUESTO DE EGRESO DETALLADO - LDF (F19A),"&" no es igual al TOTAL DEL GASTO NO ETIQUETADO en el momento DEVENGADO del ESTADO ANALÍTICO DEL EJERCICIO DEL PRESUPUESTO DE EGRESOS (F8B).") -> 
C143: =IF(ROUND(F19A!$H$8,2)=ROUND(F8B!$H$7,2),"","14.8. El TOTAL DEL GASTO NO ETIQUETADO en lo correspondiente al PAGADO del ESTADO ANALÍTICO DEL EJERCICIO DEL PRESUPUESTO DE EGRESO DETALLADO - LDF (F19A),"&" no es igual al TOTAL DEL GASTO NO ETIQUETADO en el momento PAGADO del ESTADO ANALÍTICO DEL EJERCICIO DEL PRESUPUESTO DE EGRESOS (F8B).") -> 
C144: =IF(ROUND(F19A!$D$42,2)=ROUND(F8B!$D$81,2),"","14.9. El TOTAL DEL GASTO ETIQUETADO en lo correspondiente al APROBADO del ESTADO ANALÍTICO DEL EJERCICIO DEL PRESUPUESTO DE EGRESO DETALLADO - LDF (F19A),"&" no es igual al TOTAL DEL GASTO ETIQUETADO en el momento APROBADO del ESTADO ANALÍTICO DEL EJERCICIO DEL PRESUPUESTO DE EGRESOS (F8B).") -> 
C145: =IF(ROUND(F19A!$F$42,2)=ROUND(F8B!$F$81,2),"","14.10. El TOTAL DEL GASTO ETIQUETADO en lo correspondiente al MODIFICADO del ESTADO ANALÍTICO DEL EJERCICIO DEL PRESUPUESTO DE EGRESO DETALLADO - LDF (F19A),"&" no es igual al TOTAL DEL GASTO ETIQUETADO en el momento MODIFICADO del ESTADO ANALÍTICO DEL EJERCICIO DEL PRESUPUESTO DE EGRESOS (F8B).") -> 
C146: =IF(ROUND(F19A!$G$42,2)=ROUND(F8B!$G$81,2),"","14.11. El TOTAL DEL GASTO ETIQUETADO en lo correspondiente al DEVENGADO del ESTADO ANALÍTICO DEL EJERCICIO DEL PRESUPUESTO DE EGRESO DETALLADO - LDF (F19A),"&" no es igual al TOTAL DEL GASTO ETIQUETADO en el momento DEVENGADO del ESTADO ANALÍTICO DEL EJERCICIO DEL PRESUPUESTO DE EGRESOS (F8B).") -> 
C147: =IF(ROUND(F19A!$H$42,2)=ROUND(F8B!$H$81,2),"","14.12. El TOTAL DEL GASTO ETIQUETADO en lo correspondiente al PAGADO del ESTADO ANALÍTICO DEL EJERCICIO DEL PRESUPUESTO DE EGRESO DETALLADO - LDF (F19A),"&" no es igual al TOTAL DEL GASTO ETIQUETADO en el momento PAGADO del ESTADO ANALÍTICO DEL EJERCICIO DEL PRESUPUESTO DE EGRESOS (F8B).") -> 
A148: 15. Validación Estado Analítico del Egreso (CA) - LDF (F18A) | C148: =IF(ROUND(F18A!B62,2)=ROUND('F18'!B58,2),"","15.1. El TOTAL DEL GASTO del momento APROBADO del ESTADO ANALÍTICO DEL EJERCICIO DEL PRESUPUESTO DE EGRESOS DETALLADO - LDF (F18A),"&" no es igual al ESTADO ANALÍTICO DEL EJERCICIO DEL PRESUPUESTO DE EGRESOS (F18) columna APROBADO.") -> 
C149: =IF(ROUND(F18A!C62,2)=ROUND('F18'!C58,2),"","15.2. El TOTAL DEL GASTO del momento MODIFICADO del ESTADO ANALÍTICO DEL EJERCICIO DEL PRESUPUESTO DE EGRESOS DETALLADO - LDF (F18A),"&" no es igual al ESTADO ANALÍTICO DEL EJERCICIO DEL PRESUPUESTO DE EGRESOS (F18) columna MODIFICADO.") -> 
C150: =IF(ROUND(F18A!E62,2)=ROUND('F18'!E58,2),"","15.3. El TOTAL DEL GASTO del momento DEVENGADO del ESTADO ANALÍTICO DEL EJERCICIO DEL PRESUPUESTO DE EGRESOS DETALLADO - LDF (F18A),"&" no es igual al ESTADO ANALÍTICO DEL EJERCICIO DEL PRESUPUESTO DE EGRESOS (F18) columna DEVENGADO.") -> 
C151: =IF(ROUND(F18A!F62,2)=ROUND('F18'!F58,2),"","15.4. El TOTAL DEL GASTO del momento PAGADO del ESTADO ANALÍTICO DEL EJERCICIO DEL PRESUPUESTO DE EGRESOS DETALLADO - LDF (F18A),"&" no es igual al ESTADO ANALÍTICO DEL EJERCICIO DEL PRESUPUESTO DE EGRESOS (F18) columna PAGADO.") -> 
C152: =IF(ROUND(F18A!$B$8,2)=ROUND(F8B!$D$7,2),"","15.5. El TOTAL DEL GASTO NO ETIQUETADO en lo correspondiente al APROBADO del ESTADO ANALÍTICO DEL EJERCICIO DEL PRESUPUESTO DE EGRESO DETALLADO - LDF (F18A),"&" no es igual al TOTAL DEL GASTO NO ETIQUETADO en el momento APROBADO del ESTADO ANALÍTICO DEL EJERCICIO DEL PRESUPUESTO DE EGRESOS (F8B).") -> 
C153: =IF(ROUND(F18A!$D$8,2)=ROUND(F8B!$F$7,2),"","15.6. El TOTAL DEL GASTO NO ETIQUETADO en lo correspondiente al MODIFICADO del ESTADO ANALÍTICO DEL EJERCICIO DEL PRESUPUESTO DE EGRESO DETALLADO - LDF (F18A),"&" no es igual al TOTAL DEL GASTO NO ETIQUETADO en el momento MODIFICADO del ESTADO ANALÍTICO DEL EJERCICIO DEL PRESUPUESTO DE EGRESOS (F8B).") -> 
C154: =IF(ROUND(F18A!$E$8,2)=ROUND(F8B!$G$7,2),"","15.7. El TOTAL DEL GASTO NO ETIQUETADO en lo correspondiente al DEVENGADO del ESTADO ANALÍTICO DEL EJERCICIO DEL PRESUPUESTO DE EGRESO DETALLADO - LDF (F18A),"&" no es igual al TOTAL DEL GASTO NO ETIQUETADO en el momento DEVENGADO del ESTADO ANALÍTICO DEL EJERCICIO DEL PRESUPUESTO DE EGRESOS (F8B).") -> 
C155: =IF(ROUND(F18A!$F8,2)=ROUND(F8B!$H$7,2),"","15.8. El TOTAL DEL GASTO NO ETIQUETADO en lo correspondiente al PAGADO del ESTADO ANALÍTICO DEL EJERCICIO DEL PRESUPUESTO DE EGRESO DETALLADO - LDF (F18A),"&" no es igual al TOTAL DEL GASTO NO ETIQUETADO en el momento PAGADO del ESTADO ANALÍTICO DEL EJERCICIO DEL PRESUPUESTO DE EGRESOS (F8B).") -> 
C156: =IF(ROUND(F18A!$B$35,2)=ROUND(F8B!$D$81,2),"","15.9. El TOTAL DEL GASTO ETIQUETADO en lo correspondiente al APROBADO del ESTADO ANALÍTICO DEL EJERCICIO DEL PRESUPUESTO DE EGRESO DETALLADO - LDF (F18A),"&" no es igual al TOTAL DEL GASTO ETIQUETADO en el momento APROBADO del ESTADO ANALÍTICO DEL EJERCICIO DEL PRESUPUESTO DE EGRESOS (F8B).") -> 
C157: =IF(ROUND(F18A!$D$35,2)=ROUND(F8B!$F$81,2),"","15.10. El TOTAL DEL GASTO ETIQUETADO en lo correspondiente al MODIFICADO del ESTADO ANALÍTICO DEL EJERCICIO DEL PRESUPUESTO DE EGRESO DETALLADO - LDF (F18A),"&" no es igual al TOTAL DEL GASTO ETIQUETADO en el momento MODIFICADO del ESTADO ANALÍTICO DEL EJERCICIO DEL PRESUPUESTO DE EGRESOS (F8B).") -> 
C158: =IF(ROUND(F18A!$E$35,2)=ROUND(F8B!$G$81,2),"","15.11. El TOTAL DEL GASTO ETIQUETADO en lo correspondiente al DEVENGADO del ESTADO ANALÍTICO DEL EJERCICIO DEL PRESUPUESTO DE EGRESO DETALLADO - LDF (F18A),"&" no es igual al TOTAL DEL GASTO ETIQUETADO en el momento DEVENGADO del ESTADO ANALÍTICO DEL EJERCICIO DEL PRESUPUESTO DE EGRESOS (F8B).") -> 
C159: =IF(ROUND(F18A!$F$35,2)=ROUND(F8B!$H$81,2),"","15.12. El TOTAL DEL GASTO ETIQUETADO en lo correspondiente al PAGADO del ESTADO ANALÍTICO DEL EJERCICIO DEL PRESUPUESTO DE EGRESO DETALLADO - LDF (F18A),"&" no es igual al TOTAL DEL GASTO ETIQUETADO en el momento PAGADO del ESTADO ANALÍTICO DEL EJERCICIO DEL PRESUPUESTO DE EGRESOS (F8B).") -> 
A160: 16. Validación Balance Presupuestario - LDF (F22) | C160: =IF(ROUND(SUM('F22'!E7:E8)+('F22'!E27),2)=ROUND('F7'!C17,2),"","16.1. El importe de INGRESOS TOTALES del momento ESTIMADO del BALANCE PRESUPUESTARIO - LDF (F22),"&" no es igual al ESTADO ANALÍTICO DE INGRESOS (F7) columna ESTIMADO.") -> 
C161: =IF(ROUND(SUM('F22'!F7:F8)+('F22'!F27),2)=ROUND('F7'!F17,2),"","16.2. El importe de INGRESOS TOTALES del momento DEVENGADO del BALANCE PRESUPUESTARIO - LDF (F22),"&" no es igual al ESTADO ANALÍTICO DE INGRESOS (F7) columna DEVENGADO.") -> 
C162: =IF(ROUND(SUM('F22'!G7:G8)+('F22'!G27),2)=ROUND('F7'!G17,2),"","16.3. El importe de INGRESOS TOTALES del momento RECAUDADO del BALANCE PRESUPUESTARIO - LDF (F22),"&" no es igual al ESTADO ANALÍTICO DE INGRESOS (F7) columna RECAUDADO.") -> 
C163: =IF(ROUND(('F22'!E10+'F22'!E30),2)=ROUND('F8'!C80,2),"","16.4. El importe de EGRESOS PRESUPUESTARIOS del momento APROBADO del BALANCE PRESUPUESTARIO - LDF (F22),"&" no es igual al ESTADO ANALÍTICO DEL EJERCICIO DEL PRESUPUESTO DE EGRESOS (F8) columna APROBADO.") -> 
C164: =IF(ROUND(('F22'!F10+'F22'!F30),2)=ROUND('F8'!F80,2),"","16.5. El importe de EGRESOS PRESUPUESTARIOS del momento DEVENGADO del BALANCE PRESUPUESTARIO - LDF (F22),"&" no es igual al ESTADO ANALÍTICO DEL EJERCICIO DEL PRESUPUESTO DE EGRESOS (F8) columna DEVENGADO.") -> 
C165: =IF(ROUND(('F22'!G10+'F22'!G30),2)=ROUND('F8'!G80,2),"","16.6. El importe de EGRESOS PRESUPUESTARIOS del momento PAGADO del BALANCE PRESUPUESTARIO - LDF (F22),"&" no es igual al ESTADO ANALÍTICO DEL EJERCICIO DEL PRESUPUESTO DE EGRESOS (F8) columna PAGADO.") -> 
A166: 17. Validación Avance de programas y/o procesos concluidos (F13) | C166: =IF(ROUND('F13'!$P$6,2)=ROUND('F12'!$E$21,2),"","17.1. El total del CAPÍTULO 1000 del AVANCE DE PROGRAMAS Y/O PROCESOS CONCLUIDOS (F13),"&" no es igual al informado en el FLUJO CONTABLE DE INGRESOS Y EGRESOS (F12) columna MODIFICADO.") -> 
C167: =IF(ROUND('F13'!$Q$6,2)=ROUND('F12'!$E$22,2),"","17.2. El total del CAPÍTULO 2000 del AVANCE DE PROGRAMAS Y/O PROCESOS CONCLUIDOS (F13),"&" no es igual al informado en el FLUJO CONTABLE DE INGRESOS Y EGRESOS (F12) columna MODIFICADO.") -> 
C168: =IF(ROUND('F13'!$R$6,2)=ROUND('F12'!$E$23,2),"","17.3. El total del CAPÍTULO 3000 del AVANCE DE PROGRAMAS Y/O PROCESOS CONCLUIDOS (F13),"&" no es igual al informado en el FLUJO CONTABLE DE INGRESOS Y EGRESOS (F12) columna MODIFICADO.") -> 
C169: =IF(ROUND('F13'!$S$6,2)=ROUND('F12'!$E$24,2),"","17.4. El total del CAPÍTULO 4000 del AVANCE DE PROGRAMAS Y/O PROCESOS CONCLUIDOS (F13),"&" no es igual al informado en el FLUJO CONTABLE DE INGRESOS Y EGRESOS (F12) columna MODIFICADO.") -> 
C170: =IF(ROUND('F13'!$T$6,2)=ROUND('F12'!$E$25,2),"","17.5. El total del CAPÍTULO 5000 del AVANCE DE PROGRAMAS Y/O PROCESOS CONCLUIDOS (F13),"&" no es igual al informado en el FLUJO CONTABLE DE INGRESOS Y EGRESOS (F12) columna MODIFICADO.") -> 
C171: =IF(ROUND('F13'!$U$6,2)=ROUND('F12'!$E$26,2),"","17.6. El total del CAPÍTULO 6000 del AVANCE DE PROGRAMAS Y/O PROCESOS CONCLUIDOS (F13),"&" no es igual al informado en el FLUJO CONTABLE DE INGRESOS Y EGRESOS (F12) columna MODIFICADO.") -> 
C172: =IF(ROUND('F13'!$V$6,2)=ROUND('F12'!$E$27,2),"","17.7. El total del CAPÍTULO 7000 del AVANCE DE PROGRAMAS Y/O PROCESOS CONCLUIDOS (F13),"&" no es igual al informado en el FLUJO CONTABLE DE INGRESOS Y EGRESOS (F12) columna MODIFICADO.") -> 
C173: =IF(ROUND('F13'!$W$6,2)=ROUND('F12'!$E$28,2),"","17.8. El total del CAPÍTULO 8000 del AVANCE DE PROGRAMAS Y/O PROCESOS CONCLUIDOS (F13),"&" no es igual al informado en el FLUJO CONTABLE DE INGRESOS Y EGRESOS (F12) columna MODIFICADO.") -> 
C174: =IF(ROUND('F13'!$X$6,2)=ROUND('F12'!$E$29,2),"","17.9. El total del CAPÍTULO 9000 del AVANCE DE PROGRAMAS Y/O PROCESOS CONCLUIDOS (F13),"&" no es igual al informado en el FLUJO CONTABLE DE INGRESOS Y EGRESOS (F12) columna MODIFICADO.") -> 
C175: =IF(ROUND('F13'!$AA$6,2)=ROUND('F12'!$F$21,2),"","17.10. El total del CAPÍTULO 1000 del AVANCE DE PROGRAMAS Y/O PROCESOS CONCLUIDOS (F13),"&" no es igual al informado en el FLUJO CONTABLE DE INGRESOS Y EGRESOS (F12) columna DEVENGADO.") -> 
C176: =IF(ROUND('F13'!$AB$6,2)=ROUND('F12'!$F$22,2),"","17.11. El total del CAPÍTULO 2000 del AVANCE DE PROGRAMAS Y/O PROCESOS CONCLUIDOS (F13),"&" no es igual al informado en el FLUJO CONTABLE DE INGRESOS Y EGRESOS (F12) columna DEVENGADO.") -> 
C177: =IF(ROUND('F13'!$AC$6,2)=ROUND('F12'!$F$23,2),"","17.12. El total del CAPÍTULO 3000 del AVANCE DE PROGRAMAS Y/O PROCESOS CONCLUIDOS (F13),"&" no es igual al informado en el FLUJO CONTABLE DE INGRESOS Y EGRESOS (F12) columna DEVENGADO.") -> 
C178: =IF(ROUND('F13'!$AD$6,2)=ROUND('F12'!$F$24,2),"","17.13. El total del CAPÍTULO 4000 del AVANCE DE PROGRAMAS Y/O PROCESOS CONCLUIDOS (F13),"&" no es igual al informado en el FLUJO CONTABLE DE INGRESOS Y EGRESOS (F12) columna DEVENGADO.") -> 
C179: =IF(ROUND('F13'!$AE$6,2)=ROUND('F12'!$F$25,2),"","17.14. El total del CAPÍTULO 5000 del AVANCE DE PROGRAMAS Y/O PROCESOS CONCLUIDOS (F13),"&" no es igual al informado en el FLUJO CONTABLE DE INGRESOS Y EGRESOS (F12) columna DEVENGADO.") -> 
C180: =IF(ROUND('F13'!$AF$6,2)=ROUND('F12'!$F$26,2),"","17.15. El total del CAPÍTULO 6000 del AVANCE DE PROGRAMAS Y/O PROCESOS CONCLUIDOS (F13),"&" no es igual al informado en el FLUJO CONTABLE DE INGRESOS Y EGRESOS (F12) columna DEVENGADO.") -> 
C181: =IF(ROUND('F13'!$AG$6,2)=ROUND('F12'!$F$27,2),"","17.16. El total del CAPÍTULO 7000 del AVANCE DE PROGRAMAS Y/O PROCESOS CONCLUIDOS (F13),"&" no es igual al informado en el FLUJO CONTABLE DE INGRESOS Y EGRESOS (F12) columna DEVENGADO.") -> 
C182: =IF(ROUND('F13'!$AH$6,2)=ROUND('F12'!$F$28,2),"","17.17. El total del CAPÍTULO 8000 del AVANCE DE PROGRAMAS Y/O PROCESOS CONCLUIDOS (F13),"&" no es igual al informado en el FLUJO CONTABLE DE INGRESOS Y EGRESOS (F12) columna DEVENGADO.") -> 
C183: =IF(ROUND('F13'!$AI$6,2)=ROUND('F12'!$F$29,2),"","17.18. El total del CAPÍTULO 9000 del AVANCE DE PROGRAMAS Y/O PROCESOS CONCLUIDOS (F13),"&" no es igual al informado en el FLUJO CONTABLE DE INGRESOS Y EGRESOS (F12) columna DEVENGADO.") -> 
B185: Acatic | C185: ENERO | D185: ="31 de Enero de "&F185 -> 31 de Enero de 2025 | E185: ="Del 1° al 31 de Enero de "&F185 -> Del 1° al 31 de Enero de 2025 | F185: 2025 | T185: Indicaciones para actualizar el archivo de importar de cada año:
B186: Acatlán de Juárez | C186: FEBRERO | D186: ="28 de Febrero de "&F185 -> 28 de Febrero de 2025 | E186: ="Del 1° al 28 de Febrero de "&F185 -> Del 1° al 28 de Febrero de 2025 | F186: 2024 | U186: Actualizar el catálogo de entidades
B187: Administración de Estacionómetros para la Asistencia Social del Municipio de Zapotlán el Grande | C187: MARZO | D187: ="31 de Marzo de "&F185 -> 31 de Marzo de 2025 | E187: ="Del 1° al 31 de Marzo de "&F185 -> Del 1° al 31 de Marzo de 2025 | U187: Cambiar conforme a los días de febrero
B188: Agencia Metropolitana de Bosques Urbanos del Área Metropolitana de Guadalajara | C188: ABRIL | D188: ="30 de Abril de "&F185 -> 30 de Abril de 2025 | E188: ="Del 1° al 30 de Abril de "&F185 -> Del 1° al 30 de Abril de 2025 | U188: Corresponde el primero al año de la cuenta y el segundo al anterior
B189: Agencia Metropolitana de Servicios de Infraestructura para la Movilidad del Área Metropolitana de Guadalajara | C189: MAYO | D189: ="31 de Mayo de "&F185 -> 31 de Mayo de 2025 | E189: ="Del 1° al 31 de Mayo de "&F185 -> Del 1° al 31 de Mayo de 2025
B190: Agua y Saneamiento del Municipio de Tepatitlán (ASTEPA) | C190: JUNIO, 1er. Informe de Avance de Gestión Financiera y Corte Semestral | D190: ="30 de Junio de "&F185 -> 30 de Junio de 2025 | E190: ="Del 1° al 30 de Junio de "&F185 -> Del 1° al 30 de Junio de 2025
B191: Ahualulco de Mercado | C191: JULIO | D191: ="31 de Julio de "&F185 -> 31 de Julio de 2025 | E191: ="Del 1° al 31 de Julio de "&F185 -> Del 1° al 31 de Julio de 2025
B192: Albergue Las Cuadritas "Fray Antonio Alcalde" | C192: AGOSTO | D192: ="31 de Agosto de "&F185 -> 31 de Agosto de 2025 | E192: ="Del 1° al 31 de Agosto de "&F185 -> Del 1° al 31 de Agosto de 2025
B193: Amacueca | C193: SEPTIEMBRE | D193: ="30 de Septiembre de "&F185 -> 30 de Septiembre de 2025 | E193: ="Del 1° al 30 de Septiembre de "&F185 -> Del 1° al 30 de Septiembre de 2025
B194: Amatitán | C194: OCTUBRE | D194: ="31 de Octubre de "&F185 -> 31 de Octubre de 2025 | E194: ="Del 1° al 31 de Octubre de "&F185 -> Del 1° al 31 de Octubre de 2025
B195: Ameca | C195: NOVIEMBRE | D195: ="30 de Noviembre de "&F185 -> 30 de Noviembre de 2025 | E195: ="Del 1° al 30 de Noviembre de "&F185 -> Del 1° al 30 de Noviembre de 2025
B196: Arandas | C196: DICIEMBRE, 2do. Informe de Avance de Gestión Financiera y Corte Anual | D196: ="31 de Diciembre de "&F185 -> 31 de Diciembre de 2025 | E196: ="Del 1° al 31 de Diciembre de "&F185 -> Del 1° al 31 de Diciembre de 2025
B197: Asociación Intermunicipal para la Protección del Medio Ambiente y el Desarrollo Sustentable del Lago de Chapala
B198: Atemajac de Brizuela
B199: Atengo
B200: Atenguillo
B201: Atotonilco el Alto
B202: Atoyac
B203: Autlán de Navarro
... 364 more rows

Sheet Balanza (hidden)
A1: No. DE CUENTA | B1: NOMBRE DE LA CUENTA | C1: ="SALDO AL 31 DE DICIEMBRE DE "&Validacion!F186 -> SALDO AL 31 DE DICIEMBRE DE 2024 | E1: MOVIMIENTO | G1: ="SALDO FINAL DEL PERIODO A INFORMAR EJERCICIO "&Validacion!F185 -> SALDO FINAL DEL PERIODO A INFORMAR EJERCICIO 2025
C2: DEUDOR | D2: ACREEDOR | E2: DEUDOR | F2: ACREEDOR | G2: DEUDOR | H2: ACREEDOR
A3: 10000 | B3: ACTIVO | C3: =C4+C43 -> 68953213.81 | E3: =E4+E43 -> 237771009.7 | F3: =F4+F43 -> 222815938.8 | G3: =G4+G43 -> 83908284.65
A4: 11000 | B4: ACTIVO CIRCULANTE | C4: =C5+C13+C21+C27+C33+C35+C38 -> 2353597.53 | E4: =E5+E13+E21+E27+E33+E35+E38 -> 222040639 | F4: =F5+F13+F21+F27+F33+F35+F38 -> 222815938.8 | G4: =G5+G13+G21+G27+G33+G35+G38 -> 1578297.66
A5: 11100 | B5: EFECTIVO Y EQUIVALENTES | C5: =SUM(C6:C12) -> 2353597.53 | E5: =SUM(E6:E12) -> 137507543.4 | F5: =SUM(F6:F12) -> 138337843.3 | G5: =SUM(G6:G12) -> 1523297.66
A6: 11110 | B6: Efectivo | C6: -114.13 | E6: 16744.21 | F6: 81057.67 | G6: =ROUND(C6+E6-F6,2) -> -64427.59
A7: 11120 | B7: Bancos/Tesorería | C7: 2353711.66 | E7: 135283519.2 | F7: 136049496.2 | G7: =ROUND(C7+E7-F7,2) -> 1587734.68
A8: 11130 | B8: Bancos/Dependencias y otros | E8: 2207280 | F8: 2207289.43 | G8: -9.43
A9: 11140 | B9: Inversiones temporales (hasta 3 meses) | G9: 0
A10: 11150 | B10: Fondos con afectación específica | G10: 0
A11: 11160 | B11: Depósitos de fondos de terceros en garantía y/o administración | G11: 0
A12: 11190 | B12: Otros efectivos y equivalentes | G12: 0
A13: 11200 | B13: DERECHOS A RECIBIR EFECTIVO O EQUIVALENTES | C13: =SUM(C14:C20) -> 0 | E13: =SUM(E14:E20) -> 84533095.54 | F13: =SUM(F14:F20) -> 84478095.54 | G13: =SUM(G14:G20) -> 55000
A14: 11210 | B14: Inversiones financieras de corto plazo | G14: =ROUND(C14+E14-F14,2) -> 0
A15: 11220 | B15: Cuentas por cobrar a corto plazo | C15: 0 | E15: 70248864.47 | F15: 70248864.47 | G15: 0
A16: 11230 | B16: Deudores diversos por cobrar a corto plazo | E16: 130000 | F16: 95000 | G16: 35000
A17: 11240 | B17: Ingresos por recuperar a corto plazo | E17: 14134231.07 | F17: 14134231.07 | G17: 0
A18: 11250 | B18: Deudores por anticipos de la tesorería a corto plazo | G18: 0
A19: 11260 | B19: Préstamos otorgados a corto plazo | E19: 20000 | G19: 20000
A20: 11290 | B20: Otros derechos a recibir efectivo o equivalentes a corto plazo | G20: 0
A21: 11300 | B21: DERECHOS A RECIBIR BIENES O SERVICIOS | C21: =SUM(C22:C26) -> 0 | E21: =SUM(E22:E26) -> 0 | F21: =SUM(F22:F26) -> 0 | G21: =SUM(G22:G26) -> 0
A22: 11310 | B22: Anticipo a proveedores por adquisición de bienes y prestación de servicios a corto plazo | G22: =ROUND(C22+E22-F22,2) -> 0
A23: 11320 | B23: Anticipo a proveedores por adquisición de bienes inmuebles y muebles a corto plazo | G23: 0
A24: 11330 | B24: Anticipo a proveedores por adquisición de bienes intangibles a corto plazo | G24: 0
A25: 11340 | B25: Anticipo a contratistas por obras públicas a corto plazo | G25: 0
A26: 11390 | B26: Otros derechos a recibir bienes o servicios a corto plazo | G26: 0
A27: 11400 | B27: INVENTARIOS | C27: =SUM(C28:C32) -> 0 | E27: =SUM(E28:E32) -> 0 | F27: =SUM(F28:F32) -> 0 | G27: =SUM(G28:G32) -> 0
A28: 11410 | B28: Inventario de mercancías para venta
A29: 11420 | B29: Inventario de mercancías terminadas
A30: 11430 | B30: Inventario de mercancías en proceso de elaboración
A31: 11440 | B31: Inventario de materias primas, materiales y suministros para producción
A32: 11450 | B32: Bienes en tránsito
A33: 11500 | B33: ALMACENES | C33: =SUM(C34) -> 0 | E33: =SUM(E34) -> 0 | F33: =SUM(F34) -> 0 | G33: =SUM(G34) -> 0
A34: 11510 | B34: Almacén de materiales y suministros de consumo | G34: =ROUND(C34+E34-F34,2) -> 0
A35: 11600 | B35: ESTIMACIÓN POR PÉRDIDA O DETERIORO DE ACTIVOS CIRCULANTES | C35: =SUM(C36:C37) -> 0 | E35: =SUM(E36:E37) -> 0 | F35: =SUM(F36:F37) -> 0 | G35: =SUM(G36:G37) -> 0
A36: 11610 | B36: Estimaciones para cuentas incobrables por derechos a recibir efectivo o equivalentes | G36: =ROUND(C36+E36-F36,2) -> 0
A37: 11620 | B37: Estimación por deterioro de inventarios | G37: 0
A38: 11900 | B38: OTROS ACTIVOS CIRCULANTES | C38: =SUM(C39:C42) -> 0 | E38: =SUM(E39:E42) -> 0 | F38: =SUM(F39:F42) -> 0 | G38: =SUM(G39:G42) -> 0
A39: 11910 | B39: Valores en garantía | G39: =ROUND(C39+E39-F39,2) -> 0
A40: 11920 | B40: Bienes en garantía (excluye depósitos de fondos) | G40: 0
A41: 11930 | B41: Bienes derivados de embargos, decomisos, aseguramientos y dación en pago | G41: 0
A42: 11940 | B42: Adquisición con fondos de terceros | G42: 0
A43: 12000 | B43: ACTIVO NO CIRCULANTE | C43: =C44+C49+C55+C63+C72+C78+C84+C91+C97-D43 -> 66599616.28 | D43: =D44+D49+D55+D63+D72+D78+D84+D91+D97 -> 0 | E43: =E44+E49+E55+E63+E72+E78+E84+E91+E97 -> 15730370.71 | F43: =F44+F49+F55+F63+F72+F78+F84+F91+F97 -> 0 | G43: =G44+G49+G55+G63+G72+G78+G84+G91+G97-H43 -> 82329986.99 | H43: =H44+H49+H55+H63+H72+H78+H84+H91+H97 -> 0
A44: 12100 | B44: INVERSIONES FINANCIERAS A LARGO PLAZO | C44: =SUM(C45:C48) -> 0 | E44: =SUM(E45:E48) -> 0 | F44: =SUM(F45:F48) -> 0 | G44: =SUM(G45:G48) -> 0
A45: 12110 | B45: Inversiones a largo plazo | G45: =ROUND(C45+E45-F45,2) -> 0
A46: 12120 | B46: Títulos y valores a largo plazo | G46: 0
A47: 12130 | B47: Fideicomisos, mandatos y contratos análogos | G47: 0
A48: 12140 | B48: Participaciones y aportaciones de capital | G48: 0
A49: 12200 | B49: DERECHOS A RECIBIR EFECTIVO O EQUIVALENTES A LARGO PLAZO | C49: =SUM(C50:C54) -> 0 | E49: =SUM(E50:E54) -> 0 | F49: =SUM(F50:F54) -> 0 | G49: =SUM(G50:G54) -> 0
A50: 12210 | B50: Documentos por cobrar a largo plazo | G50: =ROUND(C50+E50-F50,2) -> 0
A51: 12220 | B51: Deudores diversos a largo plazo | G51: 0
A52: 12230 | B52: Ingresos por recuperar a largo plazo | G52: 0
A53: 12240 | B53: Préstamos otorgados a largo plazo | G53: 0
A54: 12290 | B54: Otros derechos a recibir efectivo o equivalentes a largo plazo | G54: 0
A55: 12300 | B55: BIENES INMUEBLES, INFRAESTRUCTURA Y CONSTRUCCIONES EN PROCESO | C55: =SUM(C56:C62) -> 62749951.52 | E55: =SUM(E56:E62) -> 12135380.06 | F55: =SUM(F56:F62) -> 0 | G55: =SUM(G56:G62) -> 74885331.58
A56: 12310 | B56: Terrenos | G56: =ROUND(C56+E56-F56,2) -> 0
A57: 12320 | B57: Viviendas | G57: 0
A58: 12330 | B58: Edificios no habitacionales | G58: 0
A59: 12340 | B59: Infraestructura | C59: 45117376.58 | G59: 45117376.58
A60: 12350 | B60: Construcciones en proceso en bienes de dominio público | C60: 16504215.14 | E60: 12135380.06 | G60: 28639595.2
A61: 12360 | B61: Construcciones en proceso en bienes propios | C61: 1128359.8 | G61: 1128359.8
A62: 12390 | B62: Otros bienes inmuebles | G62: 0
A63: 12400 | B63: BIENES MUEBLES | C63: =SUM(C64:C71) -> 3849664.76 | E63: =SUM(E64:E71) -> 3594990.65 | F63: =SUM(F64:F71) -> 0 | G63: =SUM(G64:G71) -> 7444655.41
A64: 12410 | B64: Mobiliario y equipo de administración | C64: 286232.26 | E64: 277451.08 | G64: =ROUND(C64+E64-F64,2) -> 563683.34
A65: 12420 | B65: Mobiliario y equipo educacional y recreativo | C65: 16436.27 | E65: 130063.8 | G65: 146500.07
A66: 12430 | B66: Equipo e instrumental médico y de laboratorio | G66: 0
A67: 12440 | B67: Vehículos y equipo de transporte | C67: 3546996.23 | E67: 2638900 | G67: 6185896.23
A68: 12450 | B68: Equipo de defensa y seguridad | G68: 0
A69: 12460 | B69: Maquinaria, otros equipos y herramientas | E69: 548575.77 | G69: 548575.77
A70: 12470 | B70: Colecciones, obras de arte y objetos valiosos | G70: 0
A71: 12480 | B71: Activos biológicos | G71: 0
A72: 12500 | B72: ACTIVOS INTANGIBLES | C72: =SUM(C73:C77) -> 0 | E72: =SUM(E73:E77) -> 0 | F72: =SUM(F73:F77) -> 0 | G72: =SUM(G73:G77) -> 0
A73: 12510 | B73: Software | G73: =ROUND(C73+E73-F73,2) -> 0
A74: 12520 | B74: Patentes, marcas y derechos | G74: 0
A75: 12530 | B75: Concesiones y franquicias | G75: 0
A76: 12540 | B76: Licencias | G76: 0
A77: 12590 | B77: Otros activos intangibles | G77: 0
A78: 12600 | B78: DEPRECIACIÓN, DETERIORO Y AMORTIZACIÓN ACUMULADA DE BIENES | D78: =SUM(D79:D83) -> 0 | E78: =SUM(E79:E83) -> 0 | F78: =SUM(F79:F83) -> 0 | H78: =D78+F78-E78 -> 0
A79: 12610 | B79: Depreciación acumulada de bienes inmuebles | H79: =ROUND(D79+F79-E79,2) -> 0
A80: 12620 | B80: Depreciación acumulada de infraestructura | H80: =ROUND(D80+F80-E80,2) -> 0
A81: 12630 | B81: Depreciación acumulada de bienes muebles | H81: 0
A82: 12640 | B82: Deterioro acumulado de bienes | H82: 0
A83: 12650 | B83: Amortización acumulada de activos intangibles | H83: 0
A84: 12700 | B84: ACTIVOS DIFERIDOS | C84: =SUM(C85:C90) -> 0 | E84: =SUM(E85:E90) -> 0 | F84: =SUM(F85:F90) -> 0 | G84: =SUM(G85:G90) -> 0
A85: 12710 | B85: Estudios, formulación y evaluación de proyectos | G85: =ROUND(C85+E85-F85,2) -> 0
A86: 12720 | B86: Derechos sobre bienes en régimen de arrendamiento financiero | G86: 0
A87: 12730 | B87: Gastos pagados por adelantado a largo plazo | G87: 0
A88: 12740 | B88: Anticipos a largo plazo | G88: 0
A89: 12750 | B89: Beneficios al retiro de empleados pagados por adelantado | G89: 0
A90: 12790 | B90: Otros activos diferidos | G90: 0
A91: 12800 | B91: ESTIMACIÓN POR PÉRDIDA O DETERIORO DE ACTIVOS NO CIRCULANTES | D91: =SUM(D92:D96) -> 0 | E91: =SUM(E92:E96) -> 0 | F91: =SUM(F92:F96) -> 0 | H91: =D91+F91-E91 -> 0
A92: 12810 | B92: Estimaciones por pérdida de cuentas incobrables de documentos por cobrar a largo plazo | H92: =ROUND(D92+F92-E92,2) -> 0
A93: 12820 | B93: Estimaciones por pérdida de cuentas incobrables de deudores diversos por cobrar a largo plazo | H93: 0
A94: 12830 | B94: Estimaciones por pérdida de cuentas incobrables de ingresos por cobrar a largo plazo | H94: 0
A95: 12840 | B95: Estimaciones por pérdida de cuentas incobrables de préstamos otorgados a largo plazo | H95: 0
A96: 12890 | B96: Estimaciones por pérdida de otras cuentas incobrables a largo plazo | H96: =ROUND(D96+F96-E96,2) -> 0
A97: 12900 | B97: OTROS ACTIVOS NO CIRCULANTES | C97: =SUM(C98:C100) -> 0 | E97: =SUM(E98:E100) -> 0 | F97: =SUM(F98:F100) -> 0 | G97: =SUM(G98:G100) -> 0
A98: 12910 | B98: Bienes en concesión | G98: =ROUND(C98+E98-F98,2) -> 0
A99: 12920 | B99: Bienes en arrendamiento financiero | G99: 0
A100: 12930 | B100: Bienes en comodato | G100: 0
A101: 20000 | B101: PASIVO | D101: =D102+D143 -> 2480776.88 | E101: =E102+E143 -> 88840379.45 | F101: =F102+F143 -> 86737084.91 | H101: =H102+H143 -> 377482.34
A102: 21000 | B102: PASIVO CIRCULANTE | D102: =D103+D113+D117+D121+D124+D128+D135+D139 -> 2480776.88 | E102: =E103+E113+E117+E121+E124+E128+E135+E139 -> 88840379.45 | F102: =F103+F113+F117+F121+F124+F128+F135+F139 -> 86737084.91 | H102: =H103+H113+H117+H121+H124+H128+H135+H139 -> 377482.34
A103: 21100 | B103: CUENTAS POR PAGAR A CORTO PLAZO | D103: =SUM(D104:D112) -> 2480776.88 | E103: =SUM(E104:E112) -> 86347721.18 | F103: =SUM(F104:F112) -> 84719361.38 | H103: =SUM(H104:H112) -> 852417.08
A104: 21110 | B104: Servicios personales por pagar a corto plazo | E104: 27694994.88 | F104: 27694994.88 | H104: =ROUND(D104+F104-E104,2) -> 0
A105: 21120 | B105: Proveedores por pagar a corto plazo | E105: 38988359.53 | F105: 38988359.53 | H105: 0
A106: 21130 | B106: Contratistas por obras públicas por pagar a corto plazo | D106: 1128359.8 | E106: 13263739.86 | F106: 12135380.06 | H106: 0
A107: 21140 | B107: Participaciones y aportaciones por pagar a corto plazo | H107: 0
A108: 21150 | B108: Transferencias otorgadas por pagar a corto plazo | E108: 5863459.34 | F108: 5863459.34 | H108: 0
A109: 21160 | B109: Intereses, comisiones y otros gastos de la deuda pública por pagar a corto plazo | E109: 37167.57 | F109: 37167.57 | H109: 0
A110: 21170 | B110: Retenciones y contribuciones por pagar a corto plazo | D110: 152417.08 | H110: 152417.08
A111: 21180 | B111: Devoluciones de la ley de ingresos por pagar a corto plazo | H111: 0
A112: 21190 | B112: Otras cuentas por pagar a corto plazo | D112: 1200000 | E112: 500000 | H112: 700000
A113: 21200 | B113: DOCUMENTOS POR PAGAR A CORTO PLAZO | D113: =SUM(D114:D116) -> 0 | E113: =SUM(E114:E116) -> 0 | F113: =SUM(F114:F116) -> 0 | H113: =SUM(H114:H116) -> 0
A114: 21210 | B114: Documentos comerciales por pagar a corto plazo | H114: =ROUND(D114+F114-E114,2) -> 0
A115: 21220 | B115: Documentos con contratistas por obras públicas por pagar a corto plazo | H115: 0
A116: 21290 | B116: Otros documentos por pagar a corto plazo | H116: 0
A117: 21300 | B117: PORCIÓN A CORTO PLAZO DE LA DEUDA PÚBLICA A LARGO PLAZO | D117: =SUM(D118+D120) -> 0 | E117: =SUM(E118+E120) -> 0 | F117: =SUM(F118+F120) -> 0 | H117: =SUM(H118+H120) -> 0
A118: 21310 | B118: Porción a corto plazo de la deuda pública interna | H118: =ROUND(D118+F118-E118,2) -> 0
A119: 21320 | B119: Porción a corto plazo de la deuda pública externa
A120: 21330 | B120: Porción a corto plazo de arrendamiento financiero | H120: =ROUND(D120+F120-E120,2) -> 0
A121: 21400 | B121: TÍTULOS Y VALORES A CORTO PLAZO | D121: =SUM(D122) -> 0 | E121: =SUM(E122) -> 0 | F121: =SUM(F122) -> 0 | H121: =SUM(H122) -> 0
A122: 21410 | B122: Títulos y valores de la deuda pública interna a corto plazo | H122: =ROUND(D122+F122-E122,2) -> 0
A123: 21420 | B123: Títulos y valores de la deuda pública externa a corto plazo
A124: 21500 | B124: PASIVOS DIFERIDOS A CORTO PLAZO | D124: =SUM(D125:D127) -> 0 | E124: =SUM(E125:E127) -> 0 | F124: =SUM(F125:F127) -> 0 | H124: =SUM(H125:H127) -> 0
A125: 21510 | B125: Ingresos cobrados por adelantado a corto plazo | H125: =ROUND(D125+F125-E125,2) -> 0
A126: 21520 | B126: Intereses cobrados por adelantado a corto plazo | H126: 0
A127: 21590 | B127: Otros pasivos diferidos a corto plazo | H127: 0
A128: 21600 | B128: FONDOS Y BIENES DE TERCEROS EN GARANTÍA Y/O ADMINISTRACIÓN A CORTO PLAZO | D128: =SUM(D129:D134) -> 0 | E128: =SUM(E129:E134) -> 0 | F128: =SUM(F129:F134) -> 0 | H128: =SUM(H129:H134) -> 0
A129: 21610 | B129: Fondos en garantía a corto plazo | H129: =ROUND(D129+F129-E129,2) -> 0
A130: 21620 | B130: Fondos en administración a corto plazo | H130: 0
A131: 21630 | B131: Fondos contingentes a corto plazo | H131: 0
A132: 21640 | B132: Fondos de fideicomisos, mandatos y contratos análogos a corto plazo | H132: 0
A133: 21650 | B133: Otros fondos de terceros en garantía y/o administración a corto plazo | H133: 0
A134: 21660 | B134: Valores y bienes en garantía a corto plazo | H134: 0
A135: 21700 | B135: PROVISIONES A CORTO PLAZO | D135: =SUM(D136:D138) -> 0 | E135: =SUM(E136:E138) -> 0 | F135: =SUM(F136:F138) -> 0 | H135: =SUM(H136:H138) -> 0
A136: 21710 | B136: Provisión para demandas y juicios a corto plazo | H136: =ROUND(D136+F136-E136,2) -> 0
A137: 21720 | B137: Provisión para contingencias a corto plazo | H137: 0
A138: 21790 | B138: Otras provisiones a corto plazo | H138: 0
A139: 21900 | B139: OTROS PASIVOS A CORTO PLAZO | D139: =SUM(D140:D142) -> 0 | E139: =SUM(E140:E142) -> 2492658.27 | F139: =SUM(F140:F142) -> 2017723.53 | H139: =SUM(H140:H142) -> -474934.74
A140: 21910 | B140: Ingresos por clasificar | E140: 828397.76 | F140: 353463.02 | H140: =ROUND(D140+F140-E140,2) -> -474934.74
A141: 21920 | B141: Recaudación por participar | E141: 1664260.51 | F141: 1664260.51 | H141: 0
A142: 21990 | B142: Otros pasivos circulantes | H142: 0
A143: 22000 | B143: PASIVO NO CIRCULANTE | D143: =SUM(D144+D147+D151+D157+D161+D168) -> 0 | E143: =SUM(E144+E147+E151+E157+E161+E168) -> 0 | F143: =SUM(F144+F147+F151+F157+F161+F168) -> 0 | H143: =SUM(H144+H147+H151+H157+H161+H168) -> 0
A144: 22100 | B144: CUENTAS POR PAGAR A LARGO PLAZO | D144: =SUM(D145:D146) -> 0 | E144: =SUM(E145:E146) -> 0 | F144: =SUM(F145:F146) -> 0 | H144: =SUM(H145:H146) -> 0
A145: 22110 | B145: Proveedores por pagar a largo plazo | H145: =ROUND(D145+F145-E145,2) -> 0
A146: 22120 | B146: Contratistas por obras públicas por pagar a largo plazo | H146: 0
A147: 22200 | B147: DOCUMENTOS POR PAGAR A LARGO PLAZO | D147: =SUM(D148:D150) -> 0 | E147: =SUM(E148:E150) -> 0 | F147: =SUM(F148:F150) -> 0 | H147: =SUM(H148:H150) -> 0
A148: 22210 | B148: Documentos comerciales por pagar a largo plazo | H148: =ROUND(D148+F148-E148,2) -> 0
A149: 22220 | B149: Documentos con contratistas por obras públicas por pagar a largo plazo | H149: 0
A150: 22290 | B150: Otros documentos por pagar a largo plazo | H150: 0
A151: 22300 | B151: DEUDA PÚBLICA A LARGO PLAZO | D151: =SUM(D152:D156) -> 0 | E151: =SUM(E152:E156) -> 0 | F151: =SUM(F152:F156) -> 0 | H151: =SUM(H152:H156) -> 0
A152: 22310 | B152: Títulos y valores de la deuda pública interna a largo plazo | H152: =ROUND(D152+F152-E152,2) -> 0
A153: 22320 | B153: Títulos y valores de la deuda pública externa a largo plazo
A154: 22330 | B154: Préstamos de la deuda pública interna por pagar a largo plazo | H154: =ROUND(D154+F154-E154,2) -> 0
A155: 22340 | B155: Préstamos de la deuda pública externa por pagar a largo plazo
A156: 22350 | B156: Arrendamiento financiero por pagar a largo plazo | H156: =ROUND(D156+F156-E156,2) -> 0
A157: 22400 | B157: PASIVOS DIFERIDOS A LARGO PLAZO | D157: =SUM(D158:D160) -> 0 | E157: =SUM(E158:E160) -> 0 | F157: =SUM(F158:F160) -> 0 | H157: =SUM(H158:H160) -> 0
A158: 22410 | B158: Créditos diferidos a largo plazo | H158: =ROUND(D158+F158-E158,2) -> 0
A159: 22420 | B159: Intereses cobrados por adelantado a largo plazo | H159: 0
A160: 22490 | B160: Otros pasivos diferidos a largo plazo | H160: 0
A161: 22500 | B161: FONDOS Y BIENES DE TERCEROS EN GARANTÍA Y/O ADMINISTRACIÓN A LARGO PLAZO | D161: =SUM(D162:D167) -> 0 | E161: =SUM(E162:E167) -> 0 | F161: =SUM(F162:F167) -> 0 | H161: =SUM(H162:H167) -> 0
A162: 22510 | B162: Fondos en garantía a largo plazo | H162: =ROUND(D162+F162-E162,2) -> 0
A163: 22520 | B163: Fondos en administración a largo plazo | H163: 0
A164: 22530 | B164: Fondos contingentes a largo plazo | H164: 0
A165: 22540 | B165: Fondos de fideicomisos, mandatos y contratos análogos a largo plazo | H165: 0
A166: 22550 | B166: Otros fondos de terceros en garantía y/o administración a largo plazo | H166: 0
A167: 22560 | B167: Valores y bienes en garantía a largo plazo | H167: 0
A168: 22600 | B168: PROVISIONES A LARGO PLAZO | D168: =SUM(D169:D172) -> 0 | E168: =SUM(E169:E172) -> 0 | F168: =SUM(F169:F172) -> 0 | H168: =SUM(H169:H172) -> 0
A169: 22610 | B169: Provisión para demandas y juicios a largo plazo | H169: =ROUND(D169+F169-E169,2) -> 0
A170: 22620 | B170: Provisión para pensiones a largo plazo | H170: 0
A171: 22630 | B171: Provisión para contingencias a largo plazo | H171: 0
A172: 22690 | B172: Otras provisiones a largo plazo | H172: 0
A173: 30000 | B173: HACIENDA PÚBLICA/PATRIMONIO | D173: =D174+D178+D194 -> 66472436.93 | E173: =E174+E178+E194 -> 0 | F173: =F174+F178+F194 -> 17058365.38 | H173: =H174+H178+H194 -> 83530802.31
A174: 31000 | B174: HACIENDA PÚBLICA/PATRIMONIO CONTRIBUIDO | D174: =SUM(D175:D177) -> 0 | E174: =SUM(E175:E177) -> 0 | F174: =SUM(F175:F177) -> 0 | H174: =SUM(H175:H177) -> 0
A175: 31100 | B175: APORTACIONES | H175: =ROUND(D175+F175-E175,2) -> 0
A176: 31200 | B176: DONACIONES DE CAPITAL | H176: 0
A177: 31300 | B177: ACTUALIZACIÓN DE LA HACIENDA PÚBLICA/PATRIMONIO | H177: 0
A178: 32000 | B178: HACIENDA PÚBLICA/PATRIMONIO GENERADO | D178: =D179+D180+D181+D186+D190 -> 66472436.93 | E178: =E179+E180+E181+E186+E190 -> 0 | F178: =F179+F180+F181+F186+F190 -> 17058365.38 | H178: =H179+H180+H181+H186+H190 -> 83530802.31
A179: 32100 | B179: RESULTADO DEL EJERCICIO (AHORRO/DESAHORRO) | D179: =IF(C752>D753,C752,(D753)*-1) -> 19040695.96 | E179: =F753 -> 0 | F179: =E752 -> 17058365.38 | H179: =ROUND(F179-E179,2) -> 17058365.38
A180: 32200 | B180: RESULTADOS DE EJERCICIOS ANTERIORES | D180: 47431740.97 | H180: =ROUND(D179+D180+F180-E180,2) -> 66472436.93
A181: 32300 | B181: REVALÚOS | D181: =SUM(D182:D185) -> 0 | E181: =SUM(E182:E185) -> 0 | F181: =SUM(F182:F185) -> 0 | H181: =SUM(H182:H185) -> 0
A182: 32310 | B182: Revalúo de bienes inmuebles | H182: =ROUND(D182+F182-E182,2) -> 0
A183: 32320 | B183: Revalúo de bienes muebles | H183: 0
A184: 32330 | B184: Revalúo de bienes intangibles | H184: 0
A185: 32390 | B185: Otros revalúos | H185: 0
A186: 32400 | B186: RESERVAS | D186: =SUM(D187:D189) -> 0 | E186: =SUM(E187:E189) -> 0 | F186: =SUM(F187:F189) -> 0 | H186: =SUM(H187:H189) -> 0
A187: 32410 | B187: Reservas de patrimonio | H187: =ROUND(D187+F187-E187,2) -> 0
A188: 32420 | B188: Reservas territoriales | H188: 0
A189: 32430 | B189: Reservas por contingencias | H189: 0
A190: 32500 | B190: RECTIFICACIONES DE RESULTADOS DE EJERCICIOS ANTERIORES | D190: =SUM(D191:D193) -> 0 | E190: =SUM(E191:E193) -> 0 | F190: =SUM(F191:F193) -> 0 | H190: =SUM(H191:H193) -> 0
A191: 32510 | B191: Cambios en políticas contables | H191: =ROUND(D191+F191-E191,2) -> 0
A192: 32520 | B192: Cambios por errores contables | H192: 0
A193: 32530 | B193: Cambios en estimaciones contables | H193: =ROUND(D193+F193-E193,2) -> 0
A194: 33000 | B194: EXCESO O INSUFICIENCIA EN LA ACTUALIZACIÓN DE LA HACIENDA PÚBLICA/PATRIMONIO | D194: =SUM(D195:D196) -> 0 | E194: =SUM(E195:E196) -> 0 | F194: =SUM(F195:F196) -> 0 | H194: =SUM(H195:H196) -> 0
A195: 33100 | B195: RESULTADO POR POSICIÓN MONETARIA | H195: =ROUND(D195+F195-E195,2) -> 0
A196: 33200 | B196: RESULTADO POR TENENCIA DE ACTIVOS NO MONETARIOS | H196: 0
A197: 40000 | B197: INGRESOS Y OTROS BENEFICIOS | D197: =D198+D308+D356 -> 82172995.85 | E197: =E198+E308+E356 -> 0 | F197: =F198+F308+F356 -> 86047356.05 | H197: =H198+H308+H356 -> 86047356.05
A198: 41000 | B198: INGRESOS DE GESTIÓN | D198: =D199+D220+D226+D231+D263+D272+D293+D305 -> 17958862.29 | E198: =E199+E220+E226+E231+E263+E272+E293+E305 -> 0 | F198: =F199+F220+F226+F231+F263+F272+F293+F305 -> 14134231.07 | H198: =H199+H220+H226+H231+H263+H272+H293+H305 -> 14134231.07
A199: 41100 | B199: IMPUESTOS | D199: =D200+D202+D206+D207+D208+D209+D210+D216+D218 -> 5605373.1 | E199: =E200+E202+E206+E207+E208+E209+E210+E216+E218 -> 0 | F199: =F200+F202+F206+F207+F208+F209+F210+F216+F218 -> 5313248.11 | H199: =H200+H202+H206+H207+H208+H209+H210+H216+H218 -> 5313248.11
A200: 41110 | B200: Impuestos sobre los ingresos | D200: =SUM(D201) -> 0 | E200: =SUM(E201) -> 0 | F200: =SUM(F201) -> 0 | H200: =SUM(H201) -> 0
... 2023 more rows

Sheet F3
A1: CUENTA PÚBLICA - MUNICIPIO ATEMAJAC DE BRIZUELA
A2: Estado de Flujos de Efectivo
A3: DEL 1° DE ENERO AL 31 DE DICIEMBRE DE 2025
A4: (Cifras en pesos)
A5: Concepto | F5: =Validacion!F185 -> 2025 | G5: =Validacion!F186 -> 2024
A6: Flujos de Efectivo de las Actividades de Operación
B7: Origen | F7: =SUM(F9:F17) -> 86047356.05 | G7: =SUM(G8:G17) -> 82172995.85
C8: Impuestos | F8: 5313248.11 | G8: 5605373.1
C9: Cuotas y Aportaciones de Seguridad Social | F9: 5313248.11
C10: Contribuciones de Mejoras
C11: Derechos | F11: 8516911.39 | G11: 11367246.92
C12: Productos | F12: 304071.57 | G12: 947904.86
C13: Aprovechamientos | G13: 38337.41
C14: Ingresos por venta de Bienes y Prestación de Servicios | F14: 32795.62 | G14: 749.55
C15: Participaciones, Aportaciones, Convenios, Incentivos Derivados de la Colaboración Fiscal y Fondos Distintos de Aportaciones | F15: 71880329.36 | G15: 64213384.01
C16: Transferencias, Asignaciones, Subsidios y Subvenciones, y Pensiones y Jubilaciones
C17: Otros Orígenes de Operación
B18: Aplicación | F18: =SUM(F19:F34) -> 71110117.64 | G18: =SUM(G19:G34) -> 64581816.96
C19: Servicios Personales | F19: 27694994.88 | G19: 22022810.45
C20: Materiales y Suministros | F20: 13942079.49 | G20: 19436222.24
C21: Servicios Generales | F21: 21451289.39 | G21: 18373564.36
C22: Transferencias Internas y Asignaciones al Sector Público | F22: 2019431.84 | G22: 407100
C23: Transferencias al Resto del Sector Público | G23: 1422823.86
C24: Subsidios y Subvenciones
C25: Ayudas Sociales | F25: 3844027.5 | G25: 1452756.72
C26: Pensiones y Jubilaciones
C27: Transferencias a Fideicomisos, Mandatos y Contratos Análogos
C28: Transferencias a la Seguridad Social
C29: Donativos
C30: Transferencias al Exterior
C31: Participaciones
C32: Aportaciones
C33: Convenios
C34: Otros Aplicaciones de Operación | F34: 2158294.54 | G34: 1466539.33
A35: Flujos Netos de Efectivo por Actividades de Operación | F35: =F7-F18 -> 14937238.41 | G35: =G7-G18 -> 17591178.89
A36: Flujos de Efectivo de las Actividades de Inversión
B37: Origen | F37: =SUM(F38:F40) -> 0 | G37: =SUM(G38:G40) -> 0
C38: Bienes Inmuebles, Infraestructura y Construcciones en Proceso
C39: Bienes Muebles
C40: Otros Orígenes de Inversión | F40: 0 | G40: 0
B41: Aplicación | F41: =SUM(F42:F44) -> 15730370.71 | G41: =SUM(G42:G44) -> 16828914.14
C42: Bienes Inmuebles, Infraestructura y Construcciones en Proceso | F42: 12135380.06 | G42: 16504215.14
C43: Bienes Muebles | F43: 3594990.65 | G43: 324699
C44: Otras Aplicaciones de Inversión
A45: Flujos Netos de Efectivo por Actividades de Inversión | F45: =F37-F41 -> -15730370.71 | G45: =G37-G41 -> -16828914.14
A46: Flujo de Efectivo de las Actividades de Financiamiento
B47: Origen | F47: =F48+F51 -> 0 | G47: =G48+G51 -> 0
C48: Endeudamiento Neto | F48: =F49+F50 -> 0 | G48: =G49+G50 -> 0
C49: Interno
C50: Externo
C51: Otros Orígenes de Financiamiento
B52: Aplicación | F52: =F53+F56 -> 37167.57 | G52: =G53+G56 -> 0
C53: Servicios de la Deuda | F53: =F54+F55 -> 37167.57 | G53: =G54+G55 -> 0
C54: Interno | F54: 37167.57
C55: Externo
C56: Otras Aplicaciones de Financiamiento
A57: Flujos Netos de Efectivo por Actividades de Financiamiento | F57: =F47-F52 -> -37167.57 | G57: =G47-G52 -> 0
A58: Incremento/Disminución Neta en el Efectivo y Equivalentes al Efectivo | F58: =F35+F45+F57 -> -830299.87 | G58: =G35+G45+G57 -> 762264.75
A59: Efectivo y Equivalentes al Efectivo al Inicio del Ejercicio | F59: =G60 -> 2353597.53 | G59: 1591332.78
A60: Efectivo y Equivalentes al Efectivo al Final del Ejercicio | F60: =F58+F59 -> 1523297.66 | G60: =+G58+G59 -> 2353597.53
A62: Bajo protesta de decir verdad declaramos que los Estados Financieros y sus notas, son razonablemente correctos y son responsabilidad del emisor.
C67: VICTOR MANUEL VAZQUEZ BEAS | E67: JOSUE ARTURO REYNOSO NAVA
C69: PRESIDENTE MUNICIPAL | E69: ENCARGADO DE LAS HACIENDA
C71: ASEJ2025-17-12-06-2026-1

Sheet F7
A1: CUENTA PÚBLICA - MUNICIPIO ATEMAJAC DE BRIZUELA
A2: Estado Analítico de Ingresos
A3: DEL 1° DE ENERO AL 31 DE DICIEMBRE DE 2025
A4: (Cifras en Pesos)
A5: Rubro de Ingresos / Fuente de Financiamiento | C5: Ingreso | H5: Diferencia
C6: Estimado | D6: Ampliaciones/ (Reducciones) | E6: Modificado | F6: Devengado | G6: Recaudado
A7: Impuestos | C7: =C23 -> 5630630 | D7: =D23 -> 0 | E7: =C7+D7 -> 5630630 | F7: =F23 -> 5313248.11 | G7: =G23 -> 5313248.11 | H7: =G7-C7 -> -317381.89
A8: Cuotas y Aportaciones de Seguridad Social | C8: =C24+C32 -> 0 | D8: =D24+D32 -> 0 | E8: 0 | F8: =F24+F32 -> 0 | G8: =G24+G32 -> 0 | H8: 0
A9: Contribuciones de Mejoras | C9: =C25 -> 0 | D9: =D25 -> 0 | E9: 0 | F9: =F25 -> 0 | G9: =G25 -> 0 | H9: 0
A10: Derechos | C10: =C26 -> 7042565 | D10: =D26 -> 0 | E10: 7042565 | F10: =F26 -> 8516911.39 | G10: =G26 -> 8516911.39 | H10: 1474346.39
A11: Productos | C11: =C27+C33 -> 178122 | D11: =D27+D33 -> 0 | E11: 178122 | F11: =F27+F33 -> 304071.57 | G11: =G27+G33 -> 304071.57 | H11: 125949.57
A12: Aprovechamientos | C12: =C28 -> 100000 | D12: =D28 -> 0 | E12: 100000 | F12: =F28 -> 0 | G12: =G28 -> 0 | H12: -100000
A13: Ingresos por Venta de Bienes, Prestación de Servicios y Otros Ingresos | C13: =C34 -> 0 | D13: =D34 -> 0 | E13: 0 | F13: =F34 -> 0 | G13: =G34 -> 0 | H13: 0
A14: Participaciones, Aportaciones, Convenios, Incentivos Derivados de la Colaboración Fiscal y Fondos Distintos de Aportaciones | C14: =C29 -> 64609363 | D14: =D29 -> 0 | E14: 64609363 | F14: =F29 -> 71880329.36 | G14: =G29 -> 71880329.36 | H14: 7270966.36
A15: Transferencias, Asignaciones, Subsidios y Subvenciones, y Pensiones y Jubilaciones | C15: =C30+C35 -> 0 | D15: =D30+D35 -> 0 | E15: 0 | F15: =F30+F35 -> 0 | G15: =G30+G35 -> 0 | H15: 0
A16: Ingresos Derivados de Financiamiento | C16: =C37 -> 0 | D16: =D37 -> 0 | E16: 0 | F16: =F37 -> 32795.62 | G16: =G37 -> 32795.62 | H16: 32795.62
B17: Total | C17: =SUM(C7:C16) -> 77560680 | D17: 0 | E17: 77560680 | F17: 86047356.05 | G17: 86047356.05 | H17: 8486676.05
F18: Ingresos excedentes
A20: Rubro de Ingresos / Fuente de Financiamiento | C20: Ingreso | H20: Diferencia
C21: Estimado | D21: Ampliaciones/ (Reducciones) | E21: Modificado | F21: Devengado | G21: Recaudado
A22: Ingresos del Poder Ejecutivo Federal o Estatal y de los Municipios | C22: =SUM(C23:C30) -> 77560680 | D22: 0 | E22: 77560680 | F22: 86014560.43 | G22: 86014560.43 | H22: 8453880.43 | I22: =H22-D22 -> 8453880.43
B23: Impuestos | C23: =Balanza!G797 -> 5630630 | D23: =Balanza!G985 -> 0 | E23: =C23+D23 -> 5630630 | F23: =Balanza!F1079 -> 5313248.11 | G23: =Balanza!H1173 -> 5313248.11 | H23: =G23-C23 -> -317381.89 | I23: -317381.89
B24: Cuotas y Aportaciones de Seguridad Social | E24: 0 | H24: 0 | I24: 0
B25: Contribuciones de Mejoras | C25: =Balanza!G813 -> 0 | D25: =Balanza!G1001 -> 0 | E25: 0 | F25: =Balanza!F1095 -> 0 | G25: =Balanza!H1189 -> 0 | H25: 0 | I25: 0
B26: Derechos | C26: =Balanza!G816 -> 7042565 | D26: =Balanza!G1004 -> 0 | E26: 7042565 | F26: =Balanza!F1098 -> 8516911.39 | G26: =Balanza!H1192 -> 8516911.39 | H26: 1474346.39 | I26: 1474346.39
B27: Productos | C27: 178122 | E27: 178122 | F27: 304071.57 | G27: 304071.57 | H27: 125949.57 | I27: 125949.57
B28: Aprovechamientos | C28: =Balanza!G827 -> 100000 | D28: =Balanza!G1015 -> 0 | E28: 100000 | F28: =Balanza!F1109 -> 0 | G28: =Balanza!H1203 -> 0 | H28: -100000 | I28: -100000
B29: Participaciones, Aportaciones, Convenios, Incentivos Derivados de la Colaboración Fiscal y Fondos Distintos de Aportaciones | C29: =Balanza!G842 -> 64609363 | D29: =Balanza!G1030 -> 0 | E29: 64609363 | F29: =Balanza!F1124 -> 71880329.36 | G29: =Balanza!H1218 -> 71880329.36 | H29: 7270966.36 | I29: 7270966.36
B30: Transferencias, Asignaciones, Subsidios y Subvenciones, y Pensiones y Jubilaciones | E30: 0 | H30: 0 | I30: 0
A31: Ingresos de los Entes Públicos de los Poderes Legislativo y Judicial, de los Órganos Autónomos y del Sector Paraestatal o Paramunicipal, así como de las Empresas Públicas del Estado | C31: =SUM(C32:C35) -> 0 | D31: 0 | E31: 0 | F31: 0 | G31: 0 | H31: 0 | I31: 0
B32: Cuotas y Aportaciones de Seguridad Social | E32: =C32+D32 -> 0 | H32: =G32-C32 -> 0 | I32: 0
B33: Productos | E33: =C33+D33 -> 0 | H33: =G33-C33 -> 0 | I33: 0
B34: Ingresos por Ventas de Bienes, Prestación de Servicios y Otros Ingresos | C34: =Balanza!G832 -> 0 | D34: =Balanza!G1020 -> 0 | E34: =C34+D34 -> 0 | F34: =Balanza!F1114 -> 0 | G34: =Balanza!H1208 -> 0 | H34: =G34-C34 -> 0 | I34: 0
B35: Transferencias, Asignaciones, Subsidios y Subvenciones, y Pensiones y Jubilaciones | E35: =C35+D35 -> 0 | H35: =G35-C35 -> 0 | I35: 0
A36: Ingresos Derivados de Financiamientos | C36: =C37 -> 0 | D36: 0 | E36: 0 | F36: 32795.62 | G36: 32795.62 | H36: 32795.62 | I36: 32795.62
B37: Ingresos Derivados de Financiamientos | C37: =Balanza!G884 -> 0 | D37: =Balanza!G1072 -> 0 | E37: =C37+D37 -> 0 | F37: =Balanza!F1166 -> 32795.62 | G37: =Balanza!H1260 -> 32795.62 | H37: =G37-C37 -> 32795.62 | I37: 32795.62
B38: Total | C38: =C22+C31+C36 -> 77560680 | D38: 0 | E38: 77560680 | F38: 86047356.05 | G38: 86047356.05 | H38: 8486676.05
F39: Ingresos excedentes
B41: Bajo protesta de decir verdad declaramos que los Estados Financieros y sus notas, son razonablemente correctos y son responsabilidad del emisor.
B46: VICTOR MANUEL VAZQUEZ BEAS | D46: JOSUE ARTURO REYNOSO NAVA
B48: PRESIDENTE MUNICIPAL | D48: ENCARGADO DE LAS HACIENDA
B50: ASEJ2025-17-12-06-2026-1

Sheet F9-IDP
A1: CONCEPTO | J1: No. 1 | AJ1: CONCEPTO | AS1: No. 2 | BS1: CONCEPTO | CB1: No. 3 | DB1: CONCEPTO | DK1: No. 4 | EK1: CONCEPTO | ET1: No. 5 | FT1: CONCEPTO | GC1: No. 6 | HC1: CONCEPTO | HL1: No. 7 | IL1: CONCEPTO | IU1: No. 8 | JU1: CONCEPTO | KD1: No. 9 | LD1: CONCEPTO | LM1: No. 10
A2: TIPO DE OBLIGACIÓN: | J2: =IF(L2="Institución de crédito","1",IF(L2="Títulos y valores","2",IF(L2="Arrendamiento financiero","3",""))) -> 1 | K2: =IF(L2>0,".-","") -> .- | L2: Institución de crédito | AJ2: TIPO DE OBLIGACIÓN: | AS2: =IF(AU2="Institución de crédito","1",IF(AU2="Títulos y valores","2",IF(AU2="Arrendamiento financiero","3",""))) ->  | AT2: =IF(AU2>0,".-","") ->  | BS2: TIPO DE OBLIGACIÓN: | CB2: =IF(CD2="Institución de crédito","1",IF(CD2="Títulos y valores","2",IF(CD2="Arrendamiento financiero","3",""))) ->  | CC2: =IF(CD2>0,".-","") ->  | DB2: TIPO DE OBLIGACIÓN: | DK2: =IF(DM2="Institución de crédito","1",IF(DM2="Títulos y valores","2",IF(DM2="Arrendamiento financiero","3",""))) ->  | DL2: =IF(DM2>0,".-","") ->  | EK2: TIPO DE OBLIGACIÓN: | ET2: =IF(EV2="Institución de crédito","1",IF(EV2="Títulos y valores","2",IF(EV2="Arrendamiento financiero","3",""))) ->  | EU2: =IF(EV2>0,".-","") ->  | FT2: TIPO DE OBLIGACIÓN: | GC2: =IF(GE2="Institución de crédito","1",IF(GE2="Títulos y valores","2",IF(GE2="Arrendamiento financiero","3",""))) ->  | GD2: =IF(GE2>0,".-","") ->  | HC2: TIPO DE OBLIGACIÓN: | HL2: =IF(HN2="Institución de crédito","1",IF(HN2="Títulos y valores","2",IF(HN2="Arrendamiento financiero","3",""))) ->  | HM2: =IF(HN2>0,".-","") ->  | IL2: TIPO DE OBLIGACIÓN: | IU2: =IF(IW2="Institución de crédito","1",IF(IW2="Títulos y valores","2",IF(IW2="Arrendamiento financiero","3",""))) ->  | IV2: =IF(IW2>0,".-","") ->  | JU2: TIPO DE OBLIGACIÓN: | KD2: =IF(KF2="Institución de crédito","1",IF(KF2="Títulos y valores","2",IF(KF2="Arrendamiento financiero","3",""))) ->  | KE2: =IF(KF2>0,".-","") ->  | LD2: TIPO DE OBLIGACIÓN: | LM2: =IF(LO2="Institución de crédito","1",IF(LO2="Títulos y valores","2",IF(LO2="Arrendamiento financiero","3",""))) ->  | LN2: =IF(LO2>0,".-","") -> 
A3: NOMBRE DEL ACREEDOR: | J3: NO SE TIENE | AJ3: NOMBRE DEL ACREEDOR: | BS3: NOMBRE DEL ACREEDOR: | DB3: NOMBRE DEL ACREEDOR: | EK3: NOMBRE DEL ACREEDOR: | FT3: NOMBRE DEL ACREEDOR: | HC3: NOMBRE DEL ACREEDOR: | IL3: NOMBRE DEL ACREEDOR: | JU3: NOMBRE DEL ACREEDOR: | LD3: NOMBRE DEL ACREEDOR:
A4: MONTO DISPUESTO: | J4: 0 | R4: FECHA DE INICIO: | Z4: 2025-01-01 | AJ4: MONTO DISPUESTO: | BA4: FECHA DE INICIO: | BS4: MONTO DISPUESTO: | CJ4: FECHA DE INICIO: | DB4: MONTO DISPUESTO: | DS4: FECHA DE INICIO: | EK4: MONTO DISPUESTO: | FB4: FECHA DE INICIO: | FT4: MONTO DISPUESTO: | GK4: FECHA DE INICIO: | HC4: MONTO DISPUESTO: | HT4: FECHA DE INICIO: | IL4: MONTO DISPUESTO: | JC4: FECHA DE INICIO: | JU4: MONTO DISPUESTO: | KL4: FECHA DE INICIO: | LD4: MONTO DISPUESTO: | LU4: FECHA DE INICIO:
R5: FECHA DE VENCIMIENTO: | Z5: 2025-01-01 | BA5: FECHA DE VENCIMIENTO: | CJ5: FECHA DE VENCIMIENTO: | DS5: FECHA DE VENCIMIENTO: | FB5: FECHA DE VENCIMIENTO: | GK5: FECHA DE VENCIMIENTO: | HT5: FECHA DE VENCIMIENTO: | JC5: FECHA DE VENCIMIENTO: | KL5: FECHA DE VENCIMIENTO: | LU5: FECHA DE VENCIMIENTO:
A6: ="SALDO AL 1° DE ENERO DE "&Validacion!$F$185&" A CORTO PLAZO:" -> SALDO AL 1° DE ENERO DE 2025 A CORTO PLAZO: | AJ6: ="SALDO AL 1° DE ENERO DE "&Validacion!$F$185&" A CORTO PLAZO:" -> SALDO AL 1° DE ENERO DE 2025 A CORTO PLAZO: | BS6: ="SALDO AL 1° DE ENERO DE "&Validacion!$F$185&" A CORTO PLAZO:" -> SALDO AL 1° DE ENERO DE 2025 A CORTO PLAZO: | DB6: ="SALDO AL 1° DE ENERO DE "&Validacion!$F$185&" A CORTO PLAZO:" -> SALDO AL 1° DE ENERO DE 2025 A CORTO PLAZO: | EK6: ="SALDO AL 1° DE ENERO DE "&Validacion!$F$185&" A CORTO PLAZO:" -> SALDO AL 1° DE ENERO DE 2025 A CORTO PLAZO: | FT6: ="SALDO AL 1° DE ENERO DE "&Validacion!$F$185&" A CORTO PLAZO:" -> SALDO AL 1° DE ENERO DE 2025 A CORTO PLAZO: | HC6: ="SALDO AL 1° DE ENERO DE "&Validacion!$F$185&" A CORTO PLAZO:" -> SALDO AL 1° DE ENERO DE 2025 A CORTO PLAZO: | IL6: ="SALDO AL 1° DE ENERO DE "&Validacion!$F$185&" A CORTO PLAZO:" -> SALDO AL 1° DE ENERO DE 2025 A CORTO PLAZO: | JU6: ="SALDO AL 1° DE ENERO DE "&Validacion!$F$185&" A CORTO PLAZO:" -> SALDO AL 1° DE ENERO DE 2025 A CORTO PLAZO: | LD6: ="SALDO AL 1° DE ENERO DE "&Validacion!$F$185&" A CORTO PLAZO:" -> SALDO AL 1° DE ENERO DE 2025 A CORTO PLAZO:
A7: ="SALDO AL 1° DE ENERO DE "&Validacion!$F$185&" A LARGO PLAZO:" -> SALDO AL 1° DE ENERO DE 2025 A LARGO PLAZO: | AJ7: ="SALDO AL 1° DE ENERO DE "&Validacion!$F$185&" A LARGO PLAZO:" -> SALDO AL 1° DE ENERO DE 2025 A LARGO PLAZO: | BS7: ="SALDO AL 1° DE ENERO DE "&Validacion!$F$185&" A LARGO PLAZO:" -> SALDO AL 1° DE ENERO DE 2025 A LARGO PLAZO: | DB7: ="SALDO AL 1° DE ENERO DE "&Validacion!$F$185&" A LARGO PLAZO:" -> SALDO AL 1° DE ENERO DE 2025 A LARGO PLAZO: | EK7: ="SALDO AL 1° DE ENERO DE "&Validacion!$F$185&" A LARGO PLAZO:" -> SALDO AL 1° DE ENERO DE 2025 A LARGO PLAZO: | FT7: ="SALDO AL 1° DE ENERO DE "&Validacion!$F$185&" A LARGO PLAZO:" -> SALDO AL 1° DE ENERO DE 2025 A LARGO PLAZO: | HC7: ="SALDO AL 1° DE ENERO DE "&Validacion!$F$185&" A LARGO PLAZO:" -> SALDO AL 1° DE ENERO DE 2025 A LARGO PLAZO: | IL7: ="SALDO AL 1° DE ENERO DE "&Validacion!$F$185&" A LARGO PLAZO:" -> SALDO AL 1° DE ENERO DE 2025 A LARGO PLAZO: | JU7: ="SALDO AL 1° DE ENERO DE "&Validacion!$F$185&" A LARGO PLAZO:" -> SALDO AL 1° DE ENERO DE 2025 A LARGO PLAZO: | LD7: ="SALDO AL 1° DE ENERO DE "&Validacion!$F$185&" A LARGO PLAZO:" -> SALDO AL 1° DE ENERO DE 2025 A LARGO PLAZO:
A8: OBLIGACIONES A LARGO PLAZO | AJ8: OBLIGACIONES A LARGO PLAZO | BS8: OBLIGACIONES A LARGO PLAZO | DB8: OBLIGACIONES A LARGO PLAZO | EK8: OBLIGACIONES A LARGO PLAZO | FT8: OBLIGACIONES A LARGO PLAZO | HC8: OBLIGACIONES A LARGO PLAZO | IL8: OBLIGACIONES A LARGO PLAZO | JU8: OBLIGACIONES A LARGO PLAZO | LD8: OBLIGACIONES A LARGO PLAZO
A9: CONCEPTO | E9: DISPOSICIÓN | K9: AMORTIZACIÓN | Q9: REVALUACIONES | W9: INTERÉS | AC9: COMISIONES | AJ9: CONCEPTO | AN9: DISPOSICIÓN | AT9: AMORTIZACIÓN | AZ9: REVALUACIONES | BF9: INTERÉS | BL9: COMISIONES | BS9: CONCEPTO | BW9: DISPOSICIÓN | CC9: AMORTIZACIÓN | CI9: REVALUACIONES | CO9: INTERÉS | CU9: COMISIONES | DB9: CONCEPTO | DF9: DISPOSICIÓN | DL9: AMORTIZACIÓN | DR9: REVALUACIONES | DX9: INTERÉS | ED9: COMISIONES | EK9: CONCEPTO | EO9: DISPOSICIÓN | EU9: AMORTIZACIÓN | FA9: REVALUACIONES | FG9: INTERÉS | FM9: COMISIONES | FT9: CONCEPTO | FX9: DISPOSICIÓN | GD9: AMORTIZACIÓN | GJ9: REVALUACIONES | GP9: INTERÉS | GV9: COMISIONES | HC9: CONCEPTO | HG9: DISPOSICIÓN | HM9: AMORTIZACIÓN | HS9: REVALUACIONES | HY9: INTERÉS | IE9: COMISIONES | IL9: CONCEPTO | IP9: DISPOSICIÓN | IV9: AMORTIZACIÓN | JB9: REVALUACIONES | JH9: INTERÉS | JN9: COMISIONES | JU9: CONCEPTO | JY9: DISPOSICIÓN | KE9: AMORTIZACIÓN | KK9: REVALUACIONES | KQ9: INTERÉS | KW9: COMISIONES | LD9: CONCEPTO | LH9: DISPOSICIÓN | LN9: AMORTIZACIÓN | LT9: REVALUACIONES | LZ9: INTERÉS | MF9: COMISIONES
A10: Largo Plazo | AJ10: Largo Plazo | BS10: Largo Plazo | DB10: Largo Plazo | EK10: Largo Plazo | FT10: Largo Plazo | HC10: Largo Plazo | IL10: Largo Plazo | JU10: Largo Plazo | LD10: Largo Plazo
A11: OBLIGACIONES A CORTO PLAZO | AJ11: OBLIGACIONES A CORTO PLAZO | BS11: OBLIGACIONES A CORTO PLAZO | DB11: OBLIGACIONES A CORTO PLAZO | EK11: OBLIGACIONES A CORTO PLAZO | FT11: OBLIGACIONES A CORTO PLAZO | HC11: OBLIGACIONES A CORTO PLAZO | IL11: OBLIGACIONES A CORTO PLAZO | JU11: OBLIGACIONES A CORTO PLAZO | LD11: OBLIGACIONES A CORTO PLAZO
A12: MES | E12: DISPOSICIÓN | K12: AMORTIZACIÓN | Q12: REVALUACIONES | W12: INTERÉS | AC12: COMISIONES | AJ12: MES | AN12: DISPOSICIÓN | AT12: AMORTIZACIÓN | AZ12: REVALUACIONES | BF12: INTERÉS | BL12: COMISIONES | BS12: MES | BW12: DISPOSICIÓN | CC12: AMORTIZACIÓN | CI12: REVALUACIONES | CO12: INTERÉS | CU12: COMISIONES | DB12: MES | DF12: DISPOSICIÓN | DL12: AMORTIZACIÓN | DR12: REVALUACIONES | DX12: INTERÉS | ED12: COMISIONES | EK12: MES | EO12: DISPOSICIÓN | EU12: AMORTIZACIÓN | FA12: REVALUACIONES | FG12: INTERÉS | FM12: COMISIONES | FT12: MES | FX12: DISPOSICIÓN | GD12: AMORTIZACIÓN | GJ12: REVALUACIONES | GP12: INTERÉS | GV12: COMISIONES | HC12: MES | HG12: DISPOSICIÓN | HM12: AMORTIZACIÓN | HS12: REVALUACIONES | HY12: INTERÉS | IE12: COMISIONES | IL12: MES | IP12: DISPOSICIÓN | IV12: AMORTIZACIÓN | JB12: REVALUACIONES | JH12: INTERÉS | JN12: COMISIONES | JU12: MES | JY12: DISPOSICIÓN | KE12: AMORTIZACIÓN | KK12: REVALUACIONES | KQ12: INTERÉS | KW12: COMISIONES | LD12: MES | LH12: DISPOSICIÓN | LN12: AMORTIZACIÓN | LT12: REVALUACIONES | LZ12: INTERÉS | MF12: COMISIONES
A13: ENE | AJ13: ENE | BS13: ENE | DB13: ENE | EK13: ENE | FT13: ENE | HC13: ENE | IL13: ENE | JU13: ENE | LD13: ENE
A14: FEB | AJ14: FEB | BS14: FEB | DB14: FEB | EK14: FEB | FT14: FEB | HC14: FEB | IL14: FEB | JU14: FEB | LD14: FEB
A15: MAR | AJ15: MAR | BS15: MAR | DB15: MAR | EK15: MAR | FT15: MAR | HC15: MAR | IL15: MAR | JU15: MAR | LD15: MAR
A16: ABR | AJ16: ABR | BS16: ABR | DB16: ABR | EK16: ABR | FT16: ABR | HC16: ABR | IL16: ABR | JU16: ABR | LD16: ABR
A17: MAY | AJ17: MAY | BS17: MAY | DB17: MAY | EK17: MAY | FT17: MAY | HC17: MAY | IL17: MAY | JU17: MAY | LD17: MAY
A18: JUN | AJ18: JUN | BS18: JUN | DB18: JUN | EK18: JUN | FT18: JUN | HC18: JUN | IL18: JUN | JU18: JUN | LD18: JUN
A19: JUL | AJ19: JUL | BS19: JUL | DB19: JUL | EK19: JUL | FT19: JUL | HC19: JUL | IL19: JUL | JU19: JUL | LD19: JUL
A20: AGO | AJ20: AGO | BS20: AGO | DB20: AGO | EK20: AGO | FT20: AGO | HC20: AGO | IL20: AGO | JU20: AGO | LD20: AGO
A21: SEP | AJ21: SEP | BS21: SEP | DB21: SEP | EK21: SEP | FT21: SEP | HC21: SEP | IL21: SEP | JU21: SEP | LD21: SEP
A22: OCT | AJ22: OCT | BS22: OCT | DB22: OCT | EK22: OCT | FT22: OCT | HC22: OCT | IL22: OCT | JU22: OCT | LD22: OCT
A23: NOV | AJ23: NOV | BS23: NOV | DB23: NOV | EK23: NOV | FT23: NOV | HC23: NOV | IL23: NOV | JU23: NOV | LD23: NOV
A24: DIC | E24: 0 | K24: 0 | Q24: 0 | W24: 0 | AC24: 0 | AJ24: DIC | BS24: DIC | DB24: DIC | EK24: DIC | FT24: DIC | HC24: DIC | IL24: DIC | JU24: DIC | LD24: DIC
A25: SUMA | E25: =SUM(E13:J24) -> 0 | K25: =SUM(K13:P24) -> 0 | Q25: =SUM(Q13:V24) -> 0 | W25: =SUM(W13:AB24) -> 0 | AC25: =SUM(AC13:AH24) -> 0 | AJ25: SUMA | AN25: =SUM(AN13:AS24) -> 0 | AT25: =SUM(AT13:AY24) -> 0 | AZ25: =SUM(AZ13:BE24) -> 0 | BF25: =SUM(BF13:BK24) -> 0 | BL25: =SUM(BL13:BQ24) -> 0 | BS25: SUMA | BW25: =SUM(BW13:CB24) -> 0 | CC25: =SUM(CC13:CH24) -> 0 | CI25: =SUM(CI13:CN24) -> 0 | CO25: =SUM(CO13:CT24) -> 0 | CU25: =SUM(CU13:CZ24) -> 0 | DB25: SUMA | DF25: =SUM(DF13:DK24) -> 0 | DL25: =SUM(DL13:DQ24) -> 0 | DR25: =SUM(DR13:DW24) -> 0 | DX25: =SUM(DX13:EC24) -> 0 | ED25: =SUM(ED13:EI24) -> 0 | EK25: SUMA | EO25: =SUM(EO13:ET24) -> 0 | EU25: =SUM(EU13:EZ24) -> 0 | FA25: =SUM(FA13:FF24) -> 0 | FG25: =SUM(FG13:FL24) -> 0 | FM25: =SUM(FM13:FR24) -> 0 | FT25: SUMA | FX25: =SUM(FX13:GC24) -> 0 | GD25: =SUM(GD13:GI24) -> 0 | GJ25: =SUM(GJ13:GO24) -> 0 | GP25: =SUM(GP13:GU24) -> 0 | GV25: =SUM(GV13:HA24) -> 0 | HC25: SUMA | HG25: =SUM(HG13:HL24) -> 0 | HM25: =SUM(HM13:HR24) -> 0 | HS25: =SUM(HS13:HX24) -> 0 | HY25: =SUM(HY13:ID24) -> 0 | IE25: =SUM(IE13:IJ24) -> 0 | IL25: SUMA | IP25: =SUM(IP13:IU24) -> 0 | IV25: =SUM(IV13:JA24) -> 0 | JB25: =SUM(JB13:JG24) -> 0 | JH25: =SUM(JH13:JM24) -> 0 | JN25: =SUM(JN13:JS24) -> 0 | JU25: SUMA | JY25: =SUM(JY13:KD24) -> 0 | KE25: =SUM(KE13:KJ24) -> 0 | KK25: =SUM(KK13:KP24) -> 0 | KQ25: =SUM(KQ13:KV24) -> 0 | KW25: =SUM(KW13:LB24) -> 0 | LD25: SUMA | LH25: =SUM(LH13:LM24) -> 0 | LN25: =SUM(LN13:LS24) -> 0 | LT25: =SUM(LT13:LY24) -> 0 | LZ25: =SUM(LZ13:ME24) -> 0 | MF25: =SUM(MF13:MK24) -> 0

Sheet F9-EDP
A1: CUENTA PÚBLICA - MUNICIPIO ATEMAJAC DE BRIZUELA
A2: Informe Analítico de la Deuda Pública y Otros Pasivos - LDF
A3: DEL 1° DE ENERO AL 31 DE DICIEMBRE DE 2025
A4: (PESOS)
A5: Denominación de la Deuda Pública y Otros Pasivos | N5: ="Saldo al 31 de diciembre de "&Validacion!F186 -> Saldo al 31 de diciembre de 2024 | U5: Disposiciones del Periodo | AB5: Amortizaciones del Periodo | AI5: Revaluaciones, Reclasificaciones y Otros Ajustes | AP5: Saldo Final del Periodo | AW5: Pago de Intereses del Periodo | BD5: Pago de Comisiones y demás costos asociados durante el Periodo
A10: 1. Deuda Pública
B11: A. Corto Plazo | N11: =SUM(N12:T14) -> 0 | U11: =SUM(U12:AA14) -> 0 | AB11: =SUM(AB12:AH14) -> 0 | AI11: =SUM(AI12:AO14) -> 0 | AP11: =SUM(AP12:AV14) -> 0 | AW11: =SUM(AW12:BC14) -> 0 | BD11: =SUM(BD12:BJ14) -> 0
C12: a1) Instituciones de Crédito | N12: =IF('F9-IDP'!$J$2="1",'F9-IDP'!$R$6,0)+IF('F9-IDP'!$AS$2="1",'F9-IDP'!$BA$6,0)+IF('F9-IDP'!$CB$2="1",'F9-IDP'!$CJ$6,0)+IF('F9-IDP'!$DK$2="1",'F9-IDP'!$DS$6,0)+IF('F9-IDP'!$ET$2="1",'F9-IDP'!$FB$6,0)+IF('F9-IDP'!$GC$2="1",'F9-IDP'!$GK$6,0)+IF('F9-IDP'!$HL$2="1",'F9-IDP'!$HT$6,0)+IF('F9-IDP'!$IU$2="1",'F9-IDP'!$JC$6,0)+IF('F9-IDP'!$KD$2="1",'F9-IDP'!$KL$6,0)+IF('F9-IDP'!$LM$2="1",'F9-IDP'!$LU$6,0) -> 0 | U12: =IF('F9-IDP'!$J$2="1",'F9-IDP'!$E$25,0)+IF('F9-IDP'!$AS$2="1",'F9-IDP'!$AN$25,0)+IF('F9-IDP'!$CB$2="1",'F9-IDP'!$BW$25,0)+IF('F9-IDP'!$DK$2="1",'F9-IDP'!$DF$25,0)+IF('F9-IDP'!$ET$2="1",'F9-IDP'!$EO$25,0)+IF('F9-IDP'!$GC$2="1",'F9-IDP'!$FX$25,0)+IF('F9-IDP'!$HL$2="1",'F9-IDP'!$HG$25,0)+IF('F9-IDP'!$IU$2="1",'F9-IDP'!$IP$25,0)+IF('F9-IDP'!$KD$2="1",'F9-IDP'!$JY$25,0)+IF('F9-IDP'!$LM$2="1",'F9-IDP'!$LH$25,0) -> 0 | AB12: =IF('F9-IDP'!$J$2="1",'F9-IDP'!$K$25,0)+IF('F9-IDP'!$AS$2="1",'F9-IDP'!$AT$25,0)+IF('F9-IDP'!$CB$2="1",'F9-IDP'!$CC$25,0)+IF('F9-IDP'!$DK$2="1",'F9-IDP'!$DL$25,0)+IF('F9-IDP'!$ET$2="1",'F9-IDP'!$EU$25,0)+IF('F9-IDP'!$GC$2="1",'F9-IDP'!$GD$25,0)+IF('F9-IDP'!$HL$2="1",'F9-IDP'!$HM$25,0)+IF('F9-IDP'!$IU$2="1",'F9-IDP'!$IV$25,0)+IF('F9-IDP'!$KD$2="1",'F9-IDP'!$KE$25,0)+IF('F9-IDP'!$LM$2="1",'F9-IDP'!$LN$25,0) -> 0 | AI12: =IF('F9-IDP'!$J$2="1",'F9-IDP'!$Q$25,0)+IF('F9-IDP'!$AS$2="1",'F9-IDP'!$AZ$25,0)+IF('F9-IDP'!$CB$2="1",'F9-IDP'!$CI$25,0)+IF('F9-IDP'!$DK$2="1",'F9-IDP'!$DR$25,0)+IF('F9-IDP'!$ET$2="1",'F9-IDP'!$FA$25,0)+IF('F9-IDP'!$GC$2="1",'F9-IDP'!$GJ$25,0)+IF('F9-IDP'!$HL$2="1",'F9-IDP'!$HS$25,0)+IF('F9-IDP'!$IU$2="1",'F9-IDP'!$JB$25,0)+IF('F9-IDP'!$KD$2="1",'F9-IDP'!$KK$25,0)+IF('F9-IDP'!$LM$2="1",'F9-IDP'!$LT$25,0) -> 0 | AP12: =N12+U12-AB12+AI12 -> 0 | AW12: =IF('F9-IDP'!$J$2="1",'F9-IDP'!$W$25,0)+IF('F9-IDP'!$AS$2="1",'F9-IDP'!$BF$25,0)+IF('F9-IDP'!$CB$2="1",'F9-IDP'!$CO$25,0)+IF('F9-IDP'!$DK$2="1",'F9-IDP'!$DX$25,0)+IF('F9-IDP'!$ET$2="1",'F9-IDP'!$FG$25,0)+IF('F9-IDP'!$GC$2="1",'F9-IDP'!$GP$25,0)+IF('F9-IDP'!$HL$2="1",'F9-IDP'!$HY$25,0)+IF('F9-IDP'!$IU$2="1",'F9-IDP'!$JH$25,0)+IF('F9-IDP'!$KD$2="1",'F9-IDP'!$KQ$25,0)+IF('F9-IDP'!$LM$2="1",'F9-IDP'!$LZ$25,0) -> 0 | BD12: =IF('F9-IDP'!$J$2="1",'F9-IDP'!$AC$25,0)+IF('F9-IDP'!$AS$2="1",'F9-IDP'!$BL$25,0)+IF('F9-IDP'!$CB$2="1",'F9-IDP'!$CU$25,0)+IF('F9-IDP'!$DK$2="1",'F9-IDP'!$ED$25,0)+IF('F9-IDP'!$ET$2="1",'F9-IDP'!$FM$25,0)+IF('F9-IDP'!$GC$2="1",'F9-IDP'!$GV$25,0)+IF('F9-IDP'!$HL$2="1",'F9-IDP'!$IE$25,0)+IF('F9-IDP'!$IU$2="1",'F9-IDP'!$JN$25,0)+IF('F9-IDP'!$KD$2="1",'F9-IDP'!$KW$25,0)+IF('F9-IDP'!$LM$2="1",'F9-IDP'!$MF$25,0) -> 0
C13: a2) Títulos y Valores | N13: =IF('F9-IDP'!$J$2="2",'F9-IDP'!$R$6,0)+IF('F9-IDP'!$AS$2="2",'F9-IDP'!$BA$6,0)+IF('F9-IDP'!$CB$2="2",'F9-IDP'!$CJ$6,0)+IF('F9-IDP'!$DK$2="2",'F9-IDP'!$DS$6,0)+IF('F9-IDP'!$ET$2="2",'F9-IDP'!$FB$6,0)+IF('F9-IDP'!$GC$2="2",'F9-IDP'!$GK$6,0)+IF('F9-IDP'!$HL$2="2",'F9-IDP'!$HT$6,0)+IF('F9-IDP'!$IU$2="2",'F9-IDP'!$JC$6,0)+IF('F9-IDP'!$KD$2="2",'F9-IDP'!$KL$6,0)+IF('F9-IDP'!$LM$2="2",'F9-IDP'!$LU$6,0) -> 0 | U13: =IF('F9-IDP'!$J$2="2",'F9-IDP'!$E$25,0)+IF('F9-IDP'!$AS$2="2",'F9-IDP'!$AN$25,0)+IF('F9-IDP'!$CB$2="2",'F9-IDP'!$BW$25,0)+IF('F9-IDP'!$DK$2="2",'F9-IDP'!$DF$25,0)+IF('F9-IDP'!$ET$2="2",'F9-IDP'!$EO$25,0)+IF('F9-IDP'!$GC$2="2",'F9-IDP'!$FX$25,0)+IF('F9-IDP'!$HL$2="2",'F9-IDP'!$HG$25,0)+IF('F9-IDP'!$IU$2="2",'F9-IDP'!$IP$25,0)+IF('F9-IDP'!$KD$2="2",'F9-IDP'!$JY$25,0)+IF('F9-IDP'!$LM$2="2",'F9-IDP'!$LH$25,0) -> 0 | AB13: =IF('F9-IDP'!$J$2="2",'F9-IDP'!$K$25,0)+IF('F9-IDP'!$AS$2="2",'F9-IDP'!$AT$25,0)+IF('F9-IDP'!$CB$2="2",'F9-IDP'!$CC$25,0)+IF('F9-IDP'!$DK$2="2",'F9-IDP'!$DL$25,0)+IF('F9-IDP'!$ET$2="2",'F9-IDP'!$EU$25,0)+IF('F9-IDP'!$GC$2="2",'F9-IDP'!$GD$25,0)+IF('F9-IDP'!$HL$2="2",'F9-IDP'!$HM$25,0)+IF('F9-IDP'!$IU$2="2",'F9-IDP'!$IV$25,0)+IF('F9-IDP'!$KD$2="2",'F9-IDP'!$KE$25,0)+IF('F9-IDP'!$LM$2="2",'F9-IDP'!$LN$25,0) -> 0 | AI13: =IF('F9-IDP'!$J$2="2",'F9-IDP'!$Q$25,0)+IF('F9-IDP'!$AS$2="2",'F9-IDP'!$AZ$25,0)+IF('F9-IDP'!$CB$2="2",'F9-IDP'!$CI$25,0)+IF('F9-IDP'!$DK$2="2",'F9-IDP'!$DR$25,0)+IF('F9-IDP'!$ET$2="2",'F9-IDP'!$FA$25,0)+IF('F9-IDP'!$GC$2="2",'F9-IDP'!$GJ$25,0)+IF('F9-IDP'!$HL$2="2",'F9-IDP'!$HS$25,0)+IF('F9-IDP'!$IU$2="2",'F9-IDP'!$JB$25,0)+IF('F9-IDP'!$KD$2="2",'F9-IDP'!$KK$25,0)+IF('F9-IDP'!$LM$2="2",'F9-IDP'!$LT$25,0) -> 0 | AP13: =N13+U13-AB13+AI13 -> 0 | AW13: =IF('F9-IDP'!$J$2="2",'F9-IDP'!$W$25,0)+IF('F9-IDP'!$AS$2="2",'F9-IDP'!$BF$25,0)+IF('F9-IDP'!$CB$2="2",'F9-IDP'!$CO$25,0)+IF('F9-IDP'!$DK$2="2",'F9-IDP'!$DX$25,0)+IF('F9-IDP'!$ET$2="2",'F9-IDP'!$FG$25,0)+IF('F9-IDP'!$GC$2="2",'F9-IDP'!$GP$25,0)+IF('F9-IDP'!$HL$2="2",'F9-IDP'!$HY$25,0)+IF('F9-IDP'!$IU$2="2",'F9-IDP'!$JH$25,0)+IF('F9-IDP'!$KD$2="2",'F9-IDP'!$KQ$25,0)+IF('F9-IDP'!$LM$2="2",'F9-IDP'!$LZ$25,0) -> 0 | BD13: =IF('F9-IDP'!$J$2="2",'F9-IDP'!$AC$25,0)+IF('F9-IDP'!$AS$2="2",'F9-IDP'!$BL$25,0)+IF('F9-IDP'!$CB$2="2",'F9-IDP'!$CU$25,0)+IF('F9-IDP'!$DK$2="2",'F9-IDP'!$ED$25,0)+IF('F9-IDP'!$ET$2="2",'F9-IDP'!$FM$25,0)+IF('F9-IDP'!$GC$2="2",'F9-IDP'!$GV$25,0)+IF('F9-IDP'!$HL$2="2",'F9-IDP'!$IE$25,0)+IF('F9-IDP'!$IU$2="2",'F9-IDP'!$JN$25,0)+IF('F9-IDP'!$KD$2="2",'F9-IDP'!$KW$25,0)+IF('F9-IDP'!$LM$2="2",'F9-IDP'!$MF$25,0) -> 0
C14: a3) Arrendamientos Financieros | N14: =IF('F9-IDP'!$J$2="3",'F9-IDP'!$R$6,0)+IF('F9-IDP'!$AS$2="3",'F9-IDP'!$BA$6,0)+IF('F9-IDP'!$CB$2="3",'F9-IDP'!$CJ$6,0)+IF('F9-IDP'!$DK$2="3",'F9-IDP'!$DS$6,0)+IF('F9-IDP'!$ET$2="3",'F9-IDP'!$FB$6,0)+IF('F9-IDP'!$GC$2="3",'F9-IDP'!$GK$6,0)+IF('F9-IDP'!$HL$2="3",'F9-IDP'!$HT$6,0)+IF('F9-IDP'!$IU$2="3",'F9-IDP'!$JC$6,0)+IF('F9-IDP'!$KD$2="3",'F9-IDP'!$KL$6,0)+IF('F9-IDP'!$LM$2="3",'F9-IDP'!$LU$6,0) -> 0 | U14: =IF('F9-IDP'!$J$2="3",'F9-IDP'!$E$25,0)+IF('F9-IDP'!$AS$2="3",'F9-IDP'!$AN$25,0)+IF('F9-IDP'!$CB$2="3",'F9-IDP'!$BW$25,0)+IF('F9-IDP'!$DK$2="3",'F9-IDP'!$DF$25,0)+IF('F9-IDP'!$ET$2="3",'F9-IDP'!$EO$25,0)+IF('F9-IDP'!$GC$2="3",'F9-IDP'!$FX$25,0)+IF('F9-IDP'!$HL$2="3",'F9-IDP'!$HG$25,0)+IF('F9-IDP'!$IU$2="3",'F9-IDP'!$IP$25,0)+IF('F9-IDP'!$KD$2="3",'F9-IDP'!$JY$25,0)+IF('F9-IDP'!$LM$2="3",'F9-IDP'!$LH$25,0) -> 0 | AB14: =IF('F9-IDP'!$J$2="3",'F9-IDP'!$K$25,0)+IF('F9-IDP'!$AS$2="3",'F9-IDP'!$AT$25,0)+IF('F9-IDP'!$CB$2="3",'F9-IDP'!$CC$25,0)+IF('F9-IDP'!$DK$2="3",'F9-IDP'!$DL$25,0)+IF('F9-IDP'!$ET$2="3",'F9-IDP'!$EU$25,0)+IF('F9-IDP'!$GC$2="3",'F9-IDP'!$GD$25,0)+IF('F9-IDP'!$HL$2="3",'F9-IDP'!$HM$25,0)+IF('F9-IDP'!$IU$2="3",'F9-IDP'!$IV$25,0)+IF('F9-IDP'!$KD$2="3",'F9-IDP'!$KE$25,0)+IF('F9-IDP'!$LM$2="3",'F9-IDP'!$LN$25,0) -> 0 | AI14: =IF('F9-IDP'!$J$2="3",'F9-IDP'!$Q$25,0)+IF('F9-IDP'!$AS$2="3",'F9-IDP'!$AZ$25,0)+IF('F9-IDP'!$CB$2="3",'F9-IDP'!$CI$25,0)+IF('F9-IDP'!$DK$2="3",'F9-IDP'!$DR$25,0)+IF('F9-IDP'!$ET$2="3",'F9-IDP'!$FA$25,0)+IF('F9-IDP'!$GC$2="3",'F9-IDP'!$GJ$25,0)+IF('F9-IDP'!$HL$2="3",'F9-IDP'!$HS$25,0)+IF('F9-IDP'!$IU$2="3",'F9-IDP'!$JB$25,0)+IF('F9-IDP'!$KD$2="3",'F9-IDP'!$KK$25,0)+IF('F9-IDP'!$LM$2="3",'F9-IDP'!$LT$25,0) -> 0 | AP14: =N14+U14-AB14+AI14 -> 0 | AW14: =IF('F9-IDP'!$J$2="3",'F9-IDP'!$W$25,0)+IF('F9-IDP'!$AS$2="3",'F9-IDP'!$BF$25,0)+IF('F9-IDP'!$CB$2="3",'F9-IDP'!$CO$25,0)+IF('F9-IDP'!$DK$2="3",'F9-IDP'!$DX$25,0)+IF('F9-IDP'!$ET$2="3",'F9-IDP'!$FG$25,0)+IF('F9-IDP'!$GC$2="3",'F9-IDP'!$GP$25,0)+IF('F9-IDP'!$HL$2="3",'F9-IDP'!$HY$25,0)+IF('F9-IDP'!$IU$2="3",'F9-IDP'!$JH$25,0)+IF('F9-IDP'!$KD$2="3",'F9-IDP'!$KQ$25,0)+IF('F9-IDP'!$LM$2="3",'F9-IDP'!$LZ$25,0) -> 0 | BD14: =IF('F9-IDP'!$J$2="3",'F9-IDP'!$AC$25,0)+IF('F9-IDP'!$AS$2="3",'F9-IDP'!$BL$25,0)+IF('F9-IDP'!$CB$2="3",'F9-IDP'!$CU$25,0)+IF('F9-IDP'!$DK$2="3",'F9-IDP'!$ED$25,0)+IF('F9-IDP'!$ET$2="3",'F9-IDP'!$FM$25,0)+IF('F9-IDP'!$GC$2="3",'F9-IDP'!$GV$25,0)+IF('F9-IDP'!$HL$2="3",'F9-IDP'!$IE$25,0)+IF('F9-IDP'!$IU$2="3",'F9-IDP'!$JN$25,0)+IF('F9-IDP'!$KD$2="3",'F9-IDP'!$KW$25,0)+IF('F9-IDP'!$LM$2="3",'F9-IDP'!$MF$25,0) -> 0
B15: B. Largo Plazo | N15: =SUM(N16:T18) -> 0 | U15: =SUM(U16:AA18) -> 0 | AB15: =SUM(AB16:AH18) -> 0 | AI15: =SUM(AI16:AO18) -> 0 | AP15: =SUM(AP16:AV18) -> 0 | AW15: =SUM(AW16:BC18) -> 0 | BD15: =SUM(BD16:BJ18) -> 0
C16: b1) Instituciones de Crédito | N16: =IF('F9-IDP'!$J$2="1",'F9-IDP'!$R$7,0)+IF('F9-IDP'!$AS$2="1",'F9-IDP'!$BA$7,0)+IF('F9-IDP'!$CB$2="1",'F9-IDP'!$CJ$7,0)+IF('F9-IDP'!$DK$2="1",'F9-IDP'!$DS$7,0)+IF('F9-IDP'!$ET$2="1",'F9-IDP'!$FB$7,0)+IF('F9-IDP'!$GC$2="1",'F9-IDP'!$GK$7,0)+IF('F9-IDP'!$HL$2="1",'F9-IDP'!$HT$7,0)+IF('F9-IDP'!$IU$2="1",'F9-IDP'!$JC$7,0)+IF('F9-IDP'!$KD$2="1",'F9-IDP'!$KL$7,0)+IF('F9-IDP'!$LM$2="1",'F9-IDP'!$LU$7,0) -> 0 | U16: =IF('F9-IDP'!$J$2="1",'F9-IDP'!$E$10,0)+IF('F9-IDP'!$AS$2="1",'F9-IDP'!$AN$10,0)+IF('F9-IDP'!$CB$2="1",'F9-IDP'!$BW$10,0)+IF('F9-IDP'!$DK$2="1",'F9-IDP'!$DF$10,0)+IF('F9-IDP'!$ET$2="1",'F9-IDP'!$EO$10,0)+IF('F9-IDP'!$GC$2="1",'F9-IDP'!$FX$10,0)+IF('F9-IDP'!$HL$2="1",'F9-IDP'!$HG$10,0)+IF('F9-IDP'!$IU$2="1",'F9-IDP'!$IP$10,0)+IF('F9-IDP'!$KD$2="1",'F9-IDP'!$JY$10,0)+IF('F9-IDP'!$LM$2="1",'F9-IDP'!$LH$10,0) -> 0 | AB16: =IF('F9-IDP'!$J$2="1",'F9-IDP'!$K$10,0)+IF('F9-IDP'!$AS$2="1",'F9-IDP'!$AT$10,0)+IF('F9-IDP'!$CB$2="1",'F9-IDP'!$CC$10,0)+IF('F9-IDP'!$DK$2="1",'F9-IDP'!$DL$10,0)+IF('F9-IDP'!$ET$2="1",'F9-IDP'!$EU$10,0)+IF('F9-IDP'!$GC$2="1",'F9-IDP'!$GD$10,0)+IF('F9-IDP'!$HL$2="1",'F9-IDP'!$HM$10,0)+IF('F9-IDP'!$IU$2="1",'F9-IDP'!$IV$10,0)+IF('F9-IDP'!$KD$2="1",'F9-IDP'!$KE$10,0)+IF('F9-IDP'!$LM$2="1",'F9-IDP'!$LN$10,0) -> 0 | AI16: =IF('F9-IDP'!$J$2="1",'F9-IDP'!$Q$10,0)+IF('F9-IDP'!$AS$2="1",'F9-IDP'!$AZ$10,0)+IF('F9-IDP'!$CB$2="1",'F9-IDP'!$CI$10,0)+IF('F9-IDP'!$DK$2="1",'F9-IDP'!$DR$10,0)+IF('F9-IDP'!$ET$2="1",'F9-IDP'!$FA$10,0)+IF('F9-IDP'!$GC$2="1",'F9-IDP'!$GJ$10,0)+IF('F9-IDP'!$HL$2="1",'F9-IDP'!$HS$10,0)+IF('F9-IDP'!$IU$2="1",'F9-IDP'!$JB$10,0)+IF('F9-IDP'!$KD$2="1",'F9-IDP'!$KK$10,0)+IF('F9-IDP'!$LM$2="1",'F9-IDP'!$LT$10,0) -> 0 | AP16: =N16+U16-AB16+AI16 -> 0 | AW16: =IF('F9-IDP'!$J$2="1",'F9-IDP'!$W$10,0)+IF('F9-IDP'!$AS$2="1",'F9-IDP'!$BF$10,0)+IF('F9-IDP'!$CB$2="1",'F9-IDP'!$CO$10,0)+IF('F9-IDP'!$DK$2="1",'F9-IDP'!$DX$10,0)+IF('F9-IDP'!$ET$2="1",'F9-IDP'!$FG$10,0)+IF('F9-IDP'!$GC$2="1",'F9-IDP'!$GP$10,0)+IF('F9-IDP'!$HL$2="1",'F9-IDP'!$HY$10,0)+IF('F9-IDP'!$IU$2="1",'F9-IDP'!$JH$10,0)+IF('F9-IDP'!$KD$2="1",'F9-IDP'!$KQ$10,0)+IF('F9-IDP'!$LM$2="1",'F9-IDP'!$LZ$10,0) -> 0 | BD16: =IF('F9-IDP'!$J$2="1",'F9-IDP'!$AC$10,0)+IF('F9-IDP'!$AS$2="1",'F9-IDP'!$BL$10,0)+IF('F9-IDP'!$CB$2="1",'F9-IDP'!$CU$10,0)+IF('F9-IDP'!$DK$2="1",'F9-IDP'!$ED$10,0)+IF('F9-IDP'!$ET$2="1",'F9-IDP'!$FM$10,0)+IF('F9-IDP'!$GC$2="1",'F9-IDP'!$GV$10,0)+IF('F9-IDP'!$HL$2="1",'F9-IDP'!$IE$10,0)+IF('F9-IDP'!$IU$2="1",'F9-IDP'!$JN$10,0)+IF('F9-IDP'!$KD$2="1",'F9-IDP'!$KW$10,0)+IF('F9-IDP'!$LM$2="1",'F9-IDP'!$MF$10,0) -> 0
C17: b2) Títulos y Valores | N17: =IF('F9-IDP'!$J$2="2",'F9-IDP'!$R$7,0)+IF('F9-IDP'!$AS$2="2",'F9-IDP'!$BA$7,0)+IF('F9-IDP'!$CB$2="2",'F9-IDP'!$CJ$7,0)+IF('F9-IDP'!$DK$2="2",'F9-IDP'!$DS$7,0)+IF('F9-IDP'!$ET$2="2",'F9-IDP'!$FB$7,0)+IF('F9-IDP'!$GC$2="2",'F9-IDP'!$GK$7,0)+IF('F9-IDP'!$HL$2="2",'F9-IDP'!$HT$7,0)+IF('F9-IDP'!$IU$2="2",'F9-IDP'!$JC$7,0)+IF('F9-IDP'!$KD$2="2",'F9-IDP'!$KL$7,0)+IF('F9-IDP'!$LM$2="2",'F9-IDP'!$LU$7,0) -> 0 | U17: =IF('F9-IDP'!$J$2="2",'F9-IDP'!$E$10,0)+IF('F9-IDP'!$AS$2="2",'F9-IDP'!$AN$10,0)+IF('F9-IDP'!$CB$2="2",'F9-IDP'!$BW$10,0)+IF('F9-IDP'!$DK$2="2",'F9-IDP'!$DF$10,0)+IF('F9-IDP'!$ET$2="2",'F9-IDP'!$EO$10,0)+IF('F9-IDP'!$GC$2="2",'F9-IDP'!$FX$10,0)+IF('F9-IDP'!$HL$2="2",'F9-IDP'!$HG$10,0)+IF('F9-IDP'!$IU$2="2",'F9-IDP'!$IP$10,0)+IF('F9-IDP'!$KD$2="2",'F9-IDP'!$JY$10,0)+IF('F9-IDP'!$LM$2="2",'F9-IDP'!$LH$10,0) -> 0 | AB17: =IF('F9-IDP'!$J$2="2",'F9-IDP'!$K$10,0)+IF('F9-IDP'!$AS$2="2",'F9-IDP'!$AT$10,0)+IF('F9-IDP'!$CB$2="2",'F9-IDP'!$CC$10,0)+IF('F9-IDP'!$DK$2="2",'F9-IDP'!$DL$10,0)+IF('F9-IDP'!$ET$2="2",'F9-IDP'!$EU$10,0)+IF('F9-IDP'!$GC$2="2",'F9-IDP'!$GD$10,0)+IF('F9-IDP'!$HL$2="2",'F9-IDP'!$HM$10,0)+IF('F9-IDP'!$IU$2="2",'F9-IDP'!$IV$10,0)+IF('F9-IDP'!$KD$2="2",'F9-IDP'!$KE$10,0)+IF('F9-IDP'!$LM$2="2",'F9-IDP'!$LN$10,0) -> 0 | AI17: =IF('F9-IDP'!$J$2="2",'F9-IDP'!$Q$10,0)+IF('F9-IDP'!$AS$2="2",'F9-IDP'!$AZ$10,0)+IF('F9-IDP'!$CB$2="2",'F9-IDP'!$CI$10,0)+IF('F9-IDP'!$DK$2="2",'F9-IDP'!$DR$10,0)+IF('F9-IDP'!$ET$2="2",'F9-IDP'!$FA$10,0)+IF('F9-IDP'!$GC$2="2",'F9-IDP'!$GJ$10,0)+IF('F9-IDP'!$HL$2="2",'F9-IDP'!$HS$10,0)+IF('F9-IDP'!$IU$2="2",'F9-IDP'!$JB$10,0)+IF('F9-IDP'!$KD$2="2",'F9-IDP'!$KK$10,0)+IF('F9-IDP'!$LM$2="2",'F9-IDP'!$LT$10,0) -> 0 | AP17: =N17+U17-AB17+AI17 -> 0 | AW17: =IF('F9-IDP'!$J$2="2",'F9-IDP'!$W$10,0)+IF('F9-IDP'!$AS$2="2",'F9-IDP'!$BF$10,0)+IF('F9-IDP'!$CB$2="2",'F9-IDP'!$CO$10,0)+IF('F9-IDP'!$DK$2="2",'F9-IDP'!$DX$10,0)+IF('F9-IDP'!$ET$2="2",'F9-IDP'!$FG$10,0)+IF('F9-IDP'!$GC$2="2",'F9-IDP'!$GP$10,0)+IF('F9-IDP'!$HL$2="2",'F9-IDP'!$HY$10,0)+IF('F9-IDP'!$IU$2="2",'F9-IDP'!$JH$10,0)+IF('F9-IDP'!$KD$2="2",'F9-IDP'!$KQ$10,0)+IF('F9-IDP'!$LM$2="2",'F9-IDP'!$LZ$10,0) -> 0 | BD17: =IF('F9-IDP'!$J$2="2",'F9-IDP'!$AC$10,0)+IF('F9-IDP'!$AS$2="2",'F9-IDP'!$BL$10,0)+IF('F9-IDP'!$CB$2="2",'F9-IDP'!$CU$10,0)+IF('F9-IDP'!$DK$2="2",'F9-IDP'!$ED$10,0)+IF('F9-IDP'!$ET$2="2",'F9-IDP'!$FM$10,0)+IF('F9-IDP'!$GC$2="2",'F9-IDP'!$GV$10,0)+IF('F9-IDP'!$HL$2="2",'F9-IDP'!$IE$10,0)+IF('F9-IDP'!$IU$2="2",'F9-IDP'!$JN$10,0)+IF('F9-IDP'!$KD$2="2",'F9-IDP'!$KW$10,0)+IF('F9-IDP'!$LM$2="2",'F9-IDP'!$MF$10,0) -> 0
C18: b3) Arrendamientos Financieros | N18: =IF('F9-IDP'!$J$2="3",'F9-IDP'!$R$7,0)+IF('F9-IDP'!$AS$2="3",'F9-IDP'!$BA$7,0)+IF('F9-IDP'!$CB$2="3",'F9-IDP'!$CJ$7,0)+IF('F9-IDP'!$DK$2="3",'F9-IDP'!$DS$7,0)+IF('F9-IDP'!$ET$2="3",'F9-IDP'!$FB$7,0)+IF('F9-IDP'!$GC$2="3",'F9-IDP'!$GK$7,0)+IF('F9-IDP'!$HL$2="3",'F9-IDP'!$HT$7,0)+IF('F9-IDP'!$IU$2="3",'F9-IDP'!$JC$7,0)+IF('F9-IDP'!$KD$2="3",'F9-IDP'!$KL$7,0)+IF('F9-IDP'!$LM$2="3",'F9-IDP'!$LU$7,0) -> 0 | U18: =IF('F9-IDP'!$J$2="3",'F9-IDP'!$E$10,0)+IF('F9-IDP'!$AS$2="3",'F9-IDP'!$AN$10,0)+IF('F9-IDP'!$CB$2="3",'F9-IDP'!$BW$10,0)+IF('F9-IDP'!$DK$2="3",'F9-IDP'!$DF$10,0)+IF('F9-IDP'!$ET$2="3",'F9-IDP'!$EO$10,0)+IF('F9-IDP'!$GC$2="3",'F9-IDP'!$FX$10,0)+IF('F9-IDP'!$HL$2="3",'F9-IDP'!$HG$10,0)+IF('F9-IDP'!$IU$2="3",'F9-IDP'!$IP$10,0)+IF('F9-IDP'!$KD$2="3",'F9-IDP'!$JY$10,0)+IF('F9-IDP'!$LM$2="3",'F9-IDP'!$LH$10,0) -> 0 | AB18: =IF('F9-IDP'!$J$2="3",'F9-IDP'!$K$10,0)+IF('F9-IDP'!$AS$2="3",'F9-IDP'!$AT$10,0)+IF('F9-IDP'!$CB$2="3",'F9-IDP'!$CC$10,0)+IF('F9-IDP'!$DK$2="3",'F9-IDP'!$DL$10,0)+IF('F9-IDP'!$ET$2="3",'F9-IDP'!$EU$10,0)+IF('F9-IDP'!$GC$2="3",'F9-IDP'!$GD$10,0)+IF('F9-IDP'!$HL$2="3",'F9-IDP'!$HM$10,0)+IF('F9-IDP'!$IU$2="3",'F9-IDP'!$IV$10,0)+IF('F9-IDP'!$KD$2="3",'F9-IDP'!$KE$10,0)+IF('F9-IDP'!$LM$2="3",'F9-IDP'!$LN$10,0) -> 0 | AI18: =IF('F9-IDP'!$J$2="3",'F9-IDP'!$Q$10,0)+IF('F9-IDP'!$AS$2="3",'F9-IDP'!$AZ$10,0)+IF('F9-IDP'!$CB$2="3",'F9-IDP'!$CI$10,0)+IF('F9-IDP'!$DK$2="3",'F9-IDP'!$DR$10,0)+IF('F9-IDP'!$ET$2="3",'F9-IDP'!$FA$10,0)+IF('F9-IDP'!$GC$2="3",'F9-IDP'!$GJ$10,0)+IF('F9-IDP'!$HL$2="3",'F9-IDP'!$HS$10,0)+IF('F9-IDP'!$IU$2="3",'F9-IDP'!$JB$10,0)+IF('F9-IDP'!$KD$2="3",'F9-IDP'!$KK$10,0)+IF('F9-IDP'!$LM$2="3",'F9-IDP'!$LT$10,0) -> 0 | AP18: =N18+U18-AB18+AI18 -> 0 | AW18: =IF('F9-IDP'!$J$2="3",'F9-IDP'!$W$10,0)+IF('F9-IDP'!$AS$2="3",'F9-IDP'!$BF$10,0)+IF('F9-IDP'!$CB$2="3",'F9-IDP'!$CO$10,0)+IF('F9-IDP'!$DK$2="3",'F9-IDP'!$DX$10,0)+IF('F9-IDP'!$ET$2="3",'F9-IDP'!$FG$10,0)+IF('F9-IDP'!$GC$2="3",'F9-IDP'!$GP$10,0)+IF('F9-IDP'!$HL$2="3",'F9-IDP'!$HY$10,0)+IF('F9-IDP'!$IU$2="3",'F9-IDP'!$JH$10,0)+IF('F9-IDP'!$KD$2="3",'F9-IDP'!$KQ$10,0)+IF('F9-IDP'!$LM$2="3",'F9-IDP'!$LZ$10,0) -> 0 | BD18: =IF('F9-IDP'!$J$2="3",'F9-IDP'!$AC$10,0)+IF('F9-IDP'!$AS$2="3",'F9-IDP'!$BL$10,0)+IF('F9-IDP'!$CB$2="3",'F9-IDP'!$CU$10,0)+IF('F9-IDP'!$DK$2="3",'F9-IDP'!$ED$10,0)+IF('F9-IDP'!$ET$2="3",'F9-IDP'!$FM$10,0)+IF('F9-IDP'!$GC$2="3",'F9-IDP'!$GV$10,0)+IF('F9-IDP'!$HL$2="3",'F9-IDP'!$IE$10,0)+IF('F9-IDP'!$IU$2="3",'F9-IDP'!$JN$10,0)+IF('F9-IDP'!$KD$2="3",'F9-IDP'!$KW$10,0)+IF('F9-IDP'!$LM$2="3",'F9-IDP'!$MF$10,0) -> 0
A19: 2. Otros Pasivos | N19: =Balanza!D101-'F9-EDP'!N11:T11-'F9-EDP'!N15:T15 -> 2480776.88 | AP19: =Balanza!H101-'F9-EDP'!AP11:AV11-'F9-EDP'!AP15:AV15 -> 377482.34
A20: 3. Total de la Deuda Pública y Otros Pasivos | N20: =N11+N19+N15 -> 2480776.88 | U20: =U11+U19+U15 -> 0 | AB20: =AB11+AB19+AB15 -> 0 | AI20: =AI11+AI19+AI15 -> 0 | AP20: =AP11+AP19+AP15 -> 377482.34 | AW20: =AW11+AW19+AW15 -> 0 | BD20: =BD11+BD19+BD15 -> 0
A22: 4. Deuda Contingente (informativo)
A23: A. | B23: NO APLICA | N23: 0 | U23: 0 | AB23: 0 | AI23: 0 | AP23: =N23+U23-AB23+AI23 -> 0 | AW23: 0 | BD23: 0
A24: B. | AP24: =N24+U24-AB24+AI24 -> 0
A25: C. | AP25: =N25+U25-AB25+AI25 -> 0
A27: 5. Valor de Instrumentos Bonos Cupón Cero (Informativo)
A28: A. | B28: NO APLICA | N28: 0 | U28: 0 | AB28: 0 | AI28: 0 | AP28: =N28+U28-AB28+AI28 -> 0 | AW28: 0 | BD28: 0
A29: B. | AP29: =N29+U29-AB29+AI29 -> 0
A30: C. | AP30: =N30+U30-AB30+AI30 -> 0
A32: Obligaciones a Corto Plazo | N32: Monto Contratado | X32: Plazo Pactado | AH32: Tasa de Interés | AR32: Comisiones y Costos Relacionados | BB32: Tasa Efectiva
A34: 6. Obligaciones a Corto Plazo (Informativo)
A35: A. | B35: NO APLICA | N35: 0 | X35: 55 | AH35: 12 | AR35: 0 | BB35: 12
A36: B.
A37: C.
C51: Bajo protesta de decir verdad declaramos que los Estados Financieros y sus notas, son razonablemente correctos y responsabilidad del emisor.
F56: VICTOR MANUEL VAZQUEZ BEAS | AG56: JOSUE ARTURO REYNOSO NAVA
F57: PRESIDENTE MUNICIPAL | AG57: ENCARGADO DE LAS HACIENDA
V58: ASEJ2025-17-12-06-2026-1

Sheet F9-IAO
A1: CUENTA PÚBLICA - MUNICIPIO ATEMAJAC DE BRIZUELA
A2: Informe Analítico de Obligaciones Diferentes de Financiamiento - LDF
A3: DEL 1° DE ENERO AL 31 DE DICIEMBRE DE 2025
A4: (PESOS)
A5: Denominación de las Obligaciones Diferentes de Financiamiento | N5: Fecha del Contrato | S5: Fecha de inicio de operaciones del proyecto | X5: Fecha de vencimiento | AC5: Monto de la inversión pactado | AI5: Plazo pactado | AN5: Monto promedio mensual del pago de la contraprestación | AT5: Monto promedio mensual del pago de la contraprestación correspondiente al pago de inversión | AZ5: ="Monto pagado de la inversión al "&INDEX(Validacion!D185:D196,MATCH(Validacion!A11,Validacion!C185:C196,0)) -> Monto pagado de la inversión al 31 de Diciembre de 2025 | BF5: ="Monto pagado de la inversión actualizado al "&INDEX(Validacion!D185:D196,MATCH(Validacion!A11,Validacion!C185:C196,0)) -> Monto pagado de la inversión actualizado al 31 de Diciembre de 2025 | BL5: ="Saldo pendiente por pagar de la inversión al "&INDEX(Validacion!D185:D196,MATCH(Validacion!A11,Validacion!C185:C196,0)) -> Saldo pendiente por pagar de la inversión al 31 de Diciembre de 2025
A11: A. Asociaciones Público Privadas (APP´s) | AC11: =SUM(AC12:AH15) -> 0 | AN11: =SUM(AN12:AS15) -> 0 | AT11: =SUM(AT12:AY15) -> 0 | AZ11: =SUM(AZ12:BE15) -> 0 | BF11: =SUM(BF12:BK15) -> 0 | BL11: =SUM(BL12:BQ15) -> 0
B12: a) | C12: NO APLICA | N12: 0 | S12: 0 | X12: 0 | AC12: 0 | AI12: 0 | AN12: 0 | AT12: 0 | AZ12: 0 | BF12: 0 | BL12: =AC12-BF12 -> 0
B13: b) | BL13: =AC13-BF13 -> 0
B14: c) | BL14: =AC14-BF14 -> 0
B15: d) | BL15: =AC15-BF15 -> 0
A16: B. Otros Instrumentos | AC16: =SUM(AC17:AH20) -> 0 | AN16: =SUM(AN17:AS20) -> 0 | AT16: =SUM(AT17:AY20) -> 0 | AZ16: =SUM(AZ17:BE20) -> 0 | BF16: =SUM(BF17:BK20) -> 0 | BL16: =SUM(BL17:BQ20) -> 0
B17: a) | C17: NO APLICA | N17: 0 | S17: 0 | X17: 0 | AC17: 0 | AI17: 0 | AN17: 0 | AT17: 0 | AZ17: 0 | BF17: 0 | BL17: =AC17-BF17 -> 0
B18: b) | BL18: =AC18-BF18 -> 0
B19: c) | BL19: =AC19-BF19 -> 0
B20: d) | BL20: =AC20-BF20 -> 0
A21: C. Total de Obligaciones Diferentes de Financiamiento | AC21: =AC11+AC16 -> 0 | AN21: =AN11+AN16 -> 0 | AT21: =AT11+AT16 -> 0 | AZ21: =AZ11+AZ16 -> 0 | BF21: =BF11+BF16 -> 0 | BL21: =BL11+BL16 -> 0
C24: Bajo protesta de decir verdad declaramos que los Estados Financieros y sus notas, son razonablemente correctos y responsabilidad del emisor.
F29: VICTOR MANUEL VAZQUEZ BEAS | AP29: JOSUE ARTURO REYNOSO NAVA
F30: PRESIDENTE MUNICIPAL | AP30: ENCARGADO DE LAS HACIENDA
W31: ASEJ2025-17-12-06-2026-1

Sheet F10
A1: CUENTA PÚBLICA - MUNICIPIO ATEMAJAC DE BRIZUELA
A2: INFORMATIVA DE PROVEEDORES
A3: DEL 1° AL 31 DE DICIEMBRE DE 2025
A4: (Cifras en pesos)
A5: N° | B5: PROVEEDOR Y/O PRESTADOR | C5: R.F.C. | D5: DOMICILIO | E5: CIUDAD | F5: CODIGO POSTAL | G5: FUENTE DE FINANCIAMIENTO | H5: ORIGEN DEL RECURSO POR CUENTA BANCARIA | I5: FORMA DE PAGO | J5: DESCRIPCIÓN DEL GASTO | K5: IMPORTE | L5: FECHA DE LA FACTURA | M5: FOLIO DE FACTURA
A6: 1 | B6: ESTHER ARREGUIN CAMACHO | C6: AECE561128SY5 | D6: MARIA URIBE N0- 154 | E6: GUADALAJARA | F6: 44820 | G6: 101 | H6: 101 | I6: TRANSFERENCIA | J6: PAGO DE GASTOS DE MATERIAL AREA AGUA POTABLE | K6: 23556.12 | L6: 2025-12-10 | M6: 1018
A7: 2 | B7: COMBU EXPRESS SA DE CV | C7: CEX9809213U5 | D7: CARRETERA ATEMAJAC-TAPALPA | E7: ATEMAJAC DE BRIZUELA | F7: 45790 | G7: 101 | H7: 101 | I7: TRANSFERENCIA | J7: PAGO DE COMBUSTIBLE | K7: 4876.41 | L7: 2025-12-05 | M7: 217
A8: 3 | B8: SERGUIO DEL CASTILLO CRUZ | C8: CACS8801113RA | D8: CARRETERA ATEMAJAC-TAPALPA KM 10.5 | E8: TAPALPA | F8: 49340 | G8: 101 | H8: 101 | I8: TRANSFERENCIA | J8: PAGO DE GASTOS DE REFRACCIONES DE VEHICULOS | K8: 53233 | L8: 2025-12-09 | M8: 1207
A9: 4 | B9: GOBPAY SA DE CV | C9: GOB2202015T5 | D9: S/N | E9: GUADALAJARA | F9: 44500 | G9: 101 | H9: 101 | I9: TRANSFERENCIA | J9: PAGO LICENCIA GOBPAY | K9: 32016 | L9: 2025-12-09 | M9: 2515
A10: 5 | B10: ALEJANDRO LOPEZ LEON | C10: LOLA9112188C3 | D10: COLONIA CENTRO S/N | E10: ATEMAJAC DE BRIZUELA | F10: 45790 | G10: 101 | H10: 101 | I10: TRANSFERENCIA | J10: PAGO DE ALIMENTOS | K10: 3650 | L10: 2025-12-05 | M10: 11EC
A11: 6 | B11: CFE SUMINISTRO DE SERVICIOS BACICOS | C11: CFE370814QI0 | D11: VALLARTA N0 15 CENTRO | E11: SAYULA JALISCO | F11: 49300 | G11: 101 | H11: 101 | I11: TRANSFERENCIA | J11: PAGO DE ENERGIA ELECTRICA DE CABECERA MUNICIPAL | K11: 59589 | L11: 2025-12-05 | M11: 114
A12: 7 | B12: JOSEFINA DE LA CRUZ TORRES | C12: CUTJ660319CR8 | D12: AVILA CAMACHO N0 26 | E12: ATEMAJAC DE BRIZUELA | F12: 45790 | G12: 101 | H12: 101 | I12: TRANSFERENCIA | J12: PAGO DE PAPELERIA PARA TODAS LAS AREAS DE AYUNTAMIENTO | K12: 21368 | L12: 2025-12-17 | M12: BA1D
A13: 8 | B13: SISTEMA INTERMUNICIPAL DE MANEJO DE RESIDUOS | C13: SIM13052314A | D13: S/N | E13: AMACUECA JALISCO | F13: 49370 | G13: 101 | H13: 101 | I13: TRANSFERENCIA | J13: PAGO POR TONELADAS DE RESIDUOS | K13: 64890.73 | L13: 2025-12-09 | M13: 9612
A18: Bajo protesta de decir verdad declaramos que los Estados Financieros y sus Notas son razonablemente correctos y responsabilidad del emisor.
C24: VICTOR MANUEL VAZQUEZ BEAS PRESIDENTE MUNICIPAL | F24: JOSUE ARTURO REYNOSO NAVA ENCARGADO DE LAS HACIENDA | J24: ASEJ2025-17-12-06-2026-1

Sheet F11
A1: CUENTA PÚBLICA - MUNICIPIO ATEMAJAC DE BRIZUELA
A2: INFORME SOBRE PASIVOS CONTINGENTES
A3: AL 31 DE DICIEMBRE DE 2025
A4: (Cifras en pesos)
A5: DESCRIPCIÓN | AE5: IMPORTE
A6: NO APLICA | AE6: 0
A10: SUMA TOTAL | AE10: =SUM(AE6:AE9) -> 0
A14: Bajo protesta de decir verdad declaramos que los Estados Financieros y sus Notas son razonablemente correctos y responsabilidad del emisor.
A22: VICTOR MANUEL VAZQUEZ BEAS PRESIDENTE MUNICIPAL
A30: JOSUE ARTURO REYNOSO NAVA ENCARGADO DE LAS HACIENDA
A34: ASEJ2025-17-12-06-2026-1

Sheet F13 (hidden)
A1: ='F9-EDP'!A1:BJ1 -> CUENTA PÚBLICA - MUNICIPIO ATEMAJAC DE BRIZUELA
A2: AVANCE DE PROGRAMAS Y/O PROCESOS CONCLUIDOS
A3: ='F9-EDP'!A3:BJ3 -> DEL 1° DE ENERO AL 31 DE DICIEMBRE DE 2025
A4: (Cifras en pesos)
A5: ID | B5: Denominación del programa | C5: Tipo de programa | D5: Finalidad | E5: Función | F5: Sub-función | G5: Nivel MIR | H5: Código del nivel MIR | I5: Resumen Narrativo (objetivos) | J5: Nombre del indicador | K5: Método de cálculo del indicador | L5: Valor meta programado 1 (Numerador) | M5: Valor meta programado 2 (Denominador) | N5: Frecuencia de medición del indicador | O5: Tipo de indicador | P5: Capítulo 1000 (Modificado) | Q5: Capítulo 2000 (Modificado) | R5: Capítulo 3000 (Modificado) | S5: Capítulo 4000 (Modificado) | T5: Capítulo 5000 (Modificado) | U5: Capítulo 6000 (Modificado) | V5: Capítulo 7000 (Modificado) | W5: Capítulo 8000 (Modificado) | X5: Capítulo 9000 (Modificado) | Y5: Avance del Valor programado 1 (Numerador) | Z5: Avance del Valor programado 2 (Denominador) | AA5: Avance del Capítulo 1000 (Devengado) | AB5: Avance del Capítulo 2000 (Devengado) | AC5: Avance del Capítulo 3000 (Devengado) | AD5: Avance del Capítulo 4000 (Devengado) | AE5: Avance del Capítulo 5000 (Devengado) | AF5: Avance del Capítulo 6000 (Devengado) | AG5: Avance del Capítulo 7000 (Devengado) | AH5: Avance del Capítulo 8000 (Devengado) | AI5: Avance del Capítulo 9000 (Devengado)
P6: =SUM(P7:P1006) -> 20052888 | Q6: 12934825 | R6: 13616000 | S6: 2804400 | T6: 105000 | U6: 28047567 | V6: 0 | W6: 0 | X6: 0 | AA6: =SUM(AA7:AA1006) -> 27694994.88 | AB6: 13942079.49 | AC6: 21451289.39 | AD6: 5863459.34 | AE6: 3594990.65 | AF6: 12135380.06 | AG6: 0 | AH6: 0 | AI6: 37167.57
A7: =IF(B7>0,1,"") -> 1 | B7: ATENCION CIUDADANA POR IGUAL | C7: Indicador de Gestión | D7: =IF(F7="","",INDEX(EF!$A$2:$A$112,MATCH(F7,EF!$C$2:$C$112,0))) -> 1. Gobierno | E7: =IF(F7="","",INDEX(EF!$B$2:$B$112,MATCH(F7,EF!$C$2:$C$112,0))) -> 1.3. Coordinación política de gobierno | F7: 1.3.1 Presidencia / Gubernatura | H7: 1001 | I7: ATENCION CIUDADNA A TODOS POR IGUAL | J7: MALAS ATENCIONES | K7: DENUNCIAS DEL EJERCICIO ANTERIOR ENTRE DENUNCIAS DEL EJERCICIO ACTUAL | L7: 60 | M7: 20 | N7: Anual | O7: Porcentaje | P7: 20052888 | Q7: 12934825 | R7: 13616000 | S7: 2804400 | T7: 105000 | U7: 28047567 | AA7: 27694994.88 | AB7: 13942079.49 | AC7: 21451289.39 | AD7: 5863459.34 | AE7: 3594990.65 | AF7: 12135380.06 | AI7: 37167.57
A8: =IF(B8>0,A7+1,"") ->  | D8: =IF(F8="","",INDEX(EF!$A$2:$A$112,MATCH(F8,EF!$C$2:$C$112,0))) ->  | E8: =IF(F8="","",INDEX(EF!$B$2:$B$112,MATCH(F8,EF!$C$2:$C$112,0))) -> 
A9: =IF(B9>0,A8+1,"") ->  | D9: =IF(F9="","",INDEX(EF!$A$2:$A$112,MATCH(F9,EF!$C$2:$C$112,0))) ->  | E9: =IF(F9="","",INDEX(EF!$B$2:$B$112,MATCH(F9,EF!$C$2:$C$112,0))) -> 
D10: =IF(F10="","",INDEX(EF!$A$2:$A$112,MATCH(F10,EF!$C$2:$C$112,0))) ->  | E10: =IF(F10="","",INDEX(EF!$B$2:$B$112,MATCH(F10,EF!$C$2:$C$112,0))) -> 
D11: =IF(F11="","",INDEX(EF!$A$2:$A$112,MATCH(F11,EF!$C$2:$C$112,0))) ->  | E11: =IF(F11="","",INDEX(EF!$B$2:$B$112,MATCH(F11,EF!$C$2:$C$112,0))) -> 
D12: =IF(F12="","",INDEX(EF!$A$2:$A$112,MATCH(F12,EF!$C$2:$C$112,0))) ->  | E12: =IF(F12="","",INDEX(EF!$B$2:$B$112,MATCH(F12,EF!$C$2:$C$112,0))) -> 
D13: =IF(F13="","",INDEX(EF!$A$2:$A$112,MATCH(F13,EF!$C$2:$C$112,0))) ->  | E13: =IF(F13="","",INDEX(EF!$B$2:$B$112,MATCH(F13,EF!$C$2:$C$112,0))) -> 
D14: =IF(F14="","",INDEX(EF!$A$2:$A$112,MATCH(F14,EF!$C$2:$C$112,0))) ->  | E14: =IF(F14="","",INDEX(EF!$B$2:$B$112,MATCH(F14,EF!$C$2:$C$112,0))) -> 
D15: =IF(F15="","",INDEX(EF!$A$2:$A$112,MATCH(F15,EF!$C$2:$C$112,0))) ->  | E15: =IF(F15="","",INDEX(EF!$B$2:$B$112,MATCH(F15,EF!$C$2:$C$112,0))) -> 
D16: =IF(F16="","",INDEX(EF!$A$2:$A$112,MATCH(F16,EF!$C$2:$C$112,0))) ->  | E16: =IF(F16="","",INDEX(EF!$B$2:$B$112,MATCH(F16,EF!$C$2:$C$112,0))) -> 
D17: =IF(F17="","",INDEX(EF!$A$2:$A$112,MATCH(F17,EF!$C$2:$C$112,0))) ->  | E17: =IF(F17="","",INDEX(EF!$B$2:$B$112,MATCH(F17,EF!$C$2:$C$112,0))) -> 
D18: =IF(F18="","",INDEX(EF!$A$2:$A$112,MATCH(F18,EF!$C$2:$C$112,0))) ->  | E18: =IF(F18="","",INDEX(EF!$B$2:$B$112,MATCH(F18,EF!$C$2:$C$112,0))) -> 
D19: =IF(F19="","",INDEX(EF!$A$2:$A$112,MATCH(F19,EF!$C$2:$C$112,0))) ->  | E19: =IF(F19="","",INDEX(EF!$B$2:$B$112,MATCH(F19,EF!$C$2:$C$112,0))) -> 
D20: =IF(F20="","",INDEX(EF!$A$2:$A$112,MATCH(F20,EF!$C$2:$C$112,0))) ->  | E20: =IF(F20="","",INDEX(EF!$B$2:$B$112,MATCH(F20,EF!$C$2:$C$112,0))) -> 
D21: =IF(F21="","",INDEX(EF!$A$2:$A$112,MATCH(F21,EF!$C$2:$C$112,0))) ->  | E21: =IF(F21="","",INDEX(EF!$B$2:$B$112,MATCH(F21,EF!$C$2:$C$112,0))) -> 
D22: =IF(F22="","",INDEX(EF!$A$2:$A$112,MATCH(F22,EF!$C$2:$C$112,0))) ->  | E22: =IF(F22="","",INDEX(EF!$B$2:$B$112,MATCH(F22,EF!$C$2:$C$112,0))) -> 
D23: =IF(F23="","",INDEX(EF!$A$2:$A$112,MATCH(F23,EF!$C$2:$C$112,0))) ->  | E23: =IF(F23="","",INDEX(EF!$B$2:$B$112,MATCH(F23,EF!$C$2:$C$112,0))) -> 
D24: =IF(F24="","",INDEX(EF!$A$2:$A$112,MATCH(F24,EF!$C$2:$C$112,0))) ->  | E24: =IF(F24="","",INDEX(EF!$B$2:$B$112,MATCH(F24,EF!$C$2:$C$112,0))) -> 
D25: =IF(F25="","",INDEX(EF!$A$2:$A$112,MATCH(F25,EF!$C$2:$C$112,0))) ->  | E25: =IF(F25="","",INDEX(EF!$B$2:$B$112,MATCH(F25,EF!$C$2:$C$112,0))) -> 
D26: =IF(F26="","",INDEX(EF!$A$2:$A$112,MATCH(F26,EF!$C$2:$C$112,0))) ->  | E26: =IF(F26="","",INDEX(EF!$B$2:$B$112,MATCH(F26,EF!$C$2:$C$112,0))) -> 
D27: =IF(F27="","",INDEX(EF!$A$2:$A$112,MATCH(F27,EF!$C$2:$C$112,0))) ->  | E27: =IF(F27="","",INDEX(EF!$B$2:$B$112,MATCH(F27,EF!$C$2:$C$112,0))) -> 
D28: =IF(F28="","",INDEX(EF!$A$2:$A$112,MATCH(F28,EF!$C$2:$C$112,0))) ->  | E28: =IF(F28="","",INDEX(EF!$B$2:$B$112,MATCH(F28,EF!$C$2:$C$112,0))) -> 
D29: =IF(F29="","",INDEX(EF!$A$2:$A$112,MATCH(F29,EF!$C$2:$C$112,0))) ->  | E29: =IF(F29="","",INDEX(EF!$B$2:$B$112,MATCH(F29,EF!$C$2:$C$112,0))) -> 
D30: =IF(F30="","",INDEX(EF!$A$2:$A$112,MATCH(F30,EF!$C$2:$C$112,0))) ->  | E30: =IF(F30="","",INDEX(EF!$B$2:$B$112,MATCH(F30,EF!$C$2:$C$112,0))) -> 
D31: =IF(F31="","",INDEX(EF!$A$2:$A$112,MATCH(F31,EF!$C$2:$C$112,0))) ->  | E31: =IF(F31="","",INDEX(EF!$B$2:$B$112,MATCH(F31,EF!$C$2:$C$112,0))) -> 
D32: =IF(F32="","",INDEX(EF!$A$2:$A$112,MATCH(F32,EF!$C$2:$C$112,0))) ->  | E32: =IF(F32="","",INDEX(EF!$B$2:$B$112,MATCH(F32,EF!$C$2:$C$112,0))) -> 
D33: =IF(F33="","",INDEX(EF!$A$2:$A$112,MATCH(F33,EF!$C$2:$C$112,0))) ->  | E33: =IF(F33="","",INDEX(EF!$B$2:$B$112,MATCH(F33,EF!$C$2:$C$112,0))) -> 
D34: =IF(F34="","",INDEX(EF!$A$2:$A$112,MATCH(F34,EF!$C$2:$C$112,0))) ->  | E34: =IF(F34="","",INDEX(EF!$B$2:$B$112,MATCH(F34,EF!$C$2:$C$112,0))) -> 
D35: =IF(F35="","",INDEX(EF!$A$2:$A$112,MATCH(F35,EF!$C$2:$C$112,0))) ->  | E35: =IF(F35="","",INDEX(EF!$B$2:$B$112,MATCH(F35,EF!$C$2:$C$112,0))) -> 
D36: =IF(F36="","",INDEX(EF!$A$2:$A$112,MATCH(F36,EF!$C$2:$C$112,0))) ->  | E36: =IF(F36="","",INDEX(EF!$B$2:$B$112,MATCH(F36,EF!$C$2:$C$112,0))) -> 
D37: =IF(F37="","",INDEX(EF!$A$2:$A$112,MATCH(F37,EF!$C$2:$C$112,0))) ->  | E37: =IF(F37="","",INDEX(EF!$B$2:$B$112,MATCH(F37,EF!$C$2:$C$112,0))) -> 
D38: =IF(F38="","",INDEX(EF!$A$2:$A$112,MATCH(F38,EF!$C$2:$C$112,0))) ->  | E38: =IF(F38="","",INDEX(EF!$B$2:$B$112,MATCH(F38,EF!$C$2:$C$112,0))) -> 
D39: =IF(F39="","",INDEX(EF!$A$2:$A$112,MATCH(F39,EF!$C$2:$C$112,0))) ->  | E39: =IF(F39="","",INDEX(EF!$B$2:$B$112,MATCH(F39,EF!$C$2:$C$112,0))) -> 
D40: =IF(F40="","",INDEX(EF!$A$2:$A$112,MATCH(F40,EF!$C$2:$C$112,0))) ->  | E40: =IF(F40="","",INDEX(EF!$B$2:$B$112,MATCH(F40,EF!$C$2:$C$112,0))) -> 
D41: =IF(F41="","",INDEX(EF!$A$2:$A$112,MATCH(F41,EF!$C$2:$C$112,0))) ->  | E41: =IF(F41="","",INDEX(EF!$B$2:$B$112,MATCH(F41,EF!$C$2:$C$112,0))) -> 
D42: =IF(F42="","",INDEX(EF!$A$2:$A$112,MATCH(F42,EF!$C$2:$C$112,0))) ->  | E42: =IF(F42="","",INDEX(EF!$B$2:$B$112,MATCH(F42,EF!$C$2:$C$112,0))) -> 
D43: =IF(F43="","",INDEX(EF!$A$2:$A$112,MATCH(F43,EF!$C$2:$C$112,0))) ->  | E43: =IF(F43="","",INDEX(EF!$B$2:$B$112,MATCH(F43,EF!$C$2:$C$112,0))) -> 
D44: =IF(F44="","",INDEX(EF!$A$2:$A$112,MATCH(F44,EF!$C$2:$C$112,0))) ->  | E44: =IF(F44="","",INDEX(EF!$B$2:$B$112,MATCH(F44,EF!$C$2:$C$112,0))) -> 
D45: =IF(F45="","",INDEX(EF!$A$2:$A$112,MATCH(F45,EF!$C$2:$C$112,0))) ->  | E45: =IF(F45="","",INDEX(EF!$B$2:$B$112,MATCH(F45,EF!$C$2:$C$112,0))) -> 
D46: =IF(F46="","",INDEX(EF!$A$2:$A$112,MATCH(F46,EF!$C$2:$C$112,0))) ->  | E46: =IF(F46="","",INDEX(EF!$B$2:$B$112,MATCH(F46,EF!$C$2:$C$112,0))) -> 
D47: =IF(F47="","",INDEX(EF!$A$2:$A$112,MATCH(F47,EF!$C$2:$C$112,0))) ->  | E47: =IF(F47="","",INDEX(EF!$B$2:$B$112,MATCH(F47,EF!$C$2:$C$112,0))) -> 
D48: =IF(F48="","",INDEX(EF!$A$2:$A$112,MATCH(F48,EF!$C$2:$C$112,0))) ->  | E48: =IF(F48="","",INDEX(EF!$B$2:$B$112,MATCH(F48,EF!$C$2:$C$112,0))) -> 
D49: =IF(F49="","",INDEX(EF!$A$2:$A$112,MATCH(F49,EF!$C$2:$C$112,0))) ->  | E49: =IF(F49="","",INDEX(EF!$B$2:$B$112,MATCH(F49,EF!$C$2:$C$112,0))) -> 
D50: =IF(F50="","",INDEX(EF!$A$2:$A$112,MATCH(F50,EF!$C$2:$C$112,0))) ->  | E50: =IF(F50="","",INDEX(EF!$B$2:$B$112,MATCH(F50,EF!$C$2:$C$112,0))) -> 
D51: =IF(F51="","",INDEX(EF!$A$2:$A$112,MATCH(F51,EF!$C$2:$C$112,0))) ->  | E51: =IF(F51="","",INDEX(EF!$B$2:$B$112,MATCH(F51,EF!$C$2:$C$112,0))) -> 
D52: =IF(F52="","",INDEX(EF!$A$2:$A$112,MATCH(F52,EF!$C$2:$C$112,0))) ->  | E52: =IF(F52="","",INDEX(EF!$B$2:$B$112,MATCH(F52,EF!$C$2:$C$112,0))) -> 
D53: =IF(F53="","",INDEX(EF!$A$2:$A$112,MATCH(F53,EF!$C$2:$C$112,0))) ->  | E53: =IF(F53="","",INDEX(EF!$B$2:$B$112,MATCH(F53,EF!$C$2:$C$112,0))) -> 
D54: =IF(F54="","",INDEX(EF!$A$2:$A$112,MATCH(F54,EF!$C$2:$C$112,0))) ->  | E54: =IF(F54="","",INDEX(EF!$B$2:$B$112,MATCH(F54,EF!$C$2:$C$112,0))) -> 
D55: =IF(F55="","",INDEX(EF!$A$2:$A$112,MATCH(F55,EF!$C$2:$C$112,0))) ->  | E55: =IF(F55="","",INDEX(EF!$B$2:$B$112,MATCH(F55,EF!$C$2:$C$112,0))) -> 
D56: =IF(F56="","",INDEX(EF!$A$2:$A$112,MATCH(F56,EF!$C$2:$C$112,0))) ->  | E56: =IF(F56="","",INDEX(EF!$B$2:$B$112,MATCH(F56,EF!$C$2:$C$112,0))) -> 
D57: =IF(F57="","",INDEX(EF!$A$2:$A$112,MATCH(F57,EF!$C$2:$C$112,0))) ->  | E57: =IF(F57="","",INDEX(EF!$B$2:$B$112,MATCH(F57,EF!$C$2:$C$112,0))) -> 
D58: =IF(F58="","",INDEX(EF!$A$2:$A$112,MATCH(F58,EF!$C$2:$C$112,0))) ->  | E58: =IF(F58="","",INDEX(EF!$B$2:$B$112,MATCH(F58,EF!$C$2:$C$112,0))) -> 
D59: =IF(F59="","",INDEX(EF!$A$2:$A$112,MATCH(F59,EF!$C$2:$C$112,0))) ->  | E59: =IF(F59="","",INDEX(EF!$B$2:$B$112,MATCH(F59,EF!$C$2:$C$112,0))) -> 
D60: =IF(F60="","",INDEX(EF!$A$2:$A$112,MATCH(F60,EF!$C$2:$C$112,0))) ->  | E60: =IF(F60="","",INDEX(EF!$B$2:$B$112,MATCH(F60,EF!$C$2:$C$112,0))) -> 
D61: =IF(F61="","",INDEX(EF!$A$2:$A$112,MATCH(F61,EF!$C$2:$C$112,0))) ->  | E61: =IF(F61="","",INDEX(EF!$B$2:$B$112,MATCH(F61,EF!$C$2:$C$112,0))) -> 
D62: =IF(F62="","",INDEX(EF!$A$2:$A$112,MATCH(F62,EF!$C$2:$C$112,0))) ->  | E62: =IF(F62="","",INDEX(EF!$B$2:$B$112,MATCH(F62,EF!$C$2:$C$112,0))) -> 
D63: =IF(F63="","",INDEX(EF!$A$2:$A$112,MATCH(F63,EF!$C$2:$C$112,0))) ->  | E63: =IF(F63="","",INDEX(EF!$B$2:$B$112,MATCH(F63,EF!$C$2:$C$112,0))) -> 
D64: =IF(F64="","",INDEX(EF!$A$2:$A$112,MATCH(F64,EF!$C$2:$C$112,0))) ->  | E64: =IF(F64="","",INDEX(EF!$B$2:$B$112,MATCH(F64,EF!$C$2:$C$112,0))) -> 
D65: =IF(F65="","",INDEX(EF!$A$2:$A$112,MATCH(F65,EF!$C$2:$C$112,0))) ->  | E65: =IF(F65="","",INDEX(EF!$B$2:$B$112,MATCH(F65,EF!$C$2:$C$112,0))) -> 
D66: =IF(F66="","",INDEX(EF!$A$2:$A$112,MATCH(F66,EF!$C$2:$C$112,0))) ->  | E66: =IF(F66="","",INDEX(EF!$B$2:$B$112,MATCH(F66,EF!$C$2:$C$112,0))) -> 
D67: =IF(F67="","",INDEX(EF!$A$2:$A$112,MATCH(F67,EF!$C$2:$C$112,0))) ->  | E67: =IF(F67="","",INDEX(EF!$B$2:$B$112,MATCH(F67,EF!$C$2:$C$112,0))) -> 
D68: =IF(F68="","",INDEX(EF!$A$2:$A$112,MATCH(F68,EF!$C$2:$C$112,0))) ->  | E68: =IF(F68="","",INDEX(EF!$B$2:$B$112,MATCH(F68,EF!$C$2:$C$112,0))) -> 
D69: =IF(F69="","",INDEX(EF!$A$2:$A$112,MATCH(F69,EF!$C$2:$C$112,0))) ->  | E69: =IF(F69="","",INDEX(EF!$B$2:$B$112,MATCH(F69,EF!$C$2:$C$112,0))) -> 
D70: =IF(F70="","",INDEX(EF!$A$2:$A$112,MATCH(F70,EF!$C$2:$C$112,0))) ->  | E70: =IF(F70="","",INDEX(EF!$B$2:$B$112,MATCH(F70,EF!$C$2:$C$112,0))) -> 
D71: =IF(F71="","",INDEX(EF!$A$2:$A$112,MATCH(F71,EF!$C$2:$C$112,0))) ->  | E71: =IF(F71="","",INDEX(EF!$B$2:$B$112,MATCH(F71,EF!$C$2:$C$112,0))) -> 
D72: =IF(F72="","",INDEX(EF!$A$2:$A$112,MATCH(F72,EF!$C$2:$C$112,0))) ->  | E72: =IF(F72="","",INDEX(EF!$B$2:$B$112,MATCH(F72,EF!$C$2:$C$112,0))) -> 
A73: =IF(B73>0,A72+1,"") ->  | D73: =IF(F73="","",INDEX(EF!$A$2:$A$112,MATCH(F73,EF!$C$2:$C$112,0))) ->  | E73: =IF(F73="","",INDEX(EF!$B$2:$B$112,MATCH(F73,EF!$C$2:$C$112,0))) -> 
D74: =IF(F74="","",INDEX(EF!$A$2:$A$112,MATCH(F74,EF!$C$2:$C$112,0))) ->  | E74: =IF(F74="","",INDEX(EF!$B$2:$B$112,MATCH(F74,EF!$C$2:$C$112,0))) -> 
D75: =IF(F75="","",INDEX(EF!$A$2:$A$112,MATCH(F75,EF!$C$2:$C$112,0))) ->  | E75: =IF(F75="","",INDEX(EF!$B$2:$B$112,MATCH(F75,EF!$C$2:$C$112,0))) -> 
D76: =IF(F76="","",INDEX(EF!$A$2:$A$112,MATCH(F76,EF!$C$2:$C$112,0))) ->  | E76: =IF(F76="","",INDEX(EF!$B$2:$B$112,MATCH(F76,EF!$C$2:$C$112,0))) -> 
D77: =IF(F77="","",INDEX(EF!$A$2:$A$112,MATCH(F77,EF!$C$2:$C$112,0))) ->  | E77: =IF(F77="","",INDEX(EF!$B$2:$B$112,MATCH(F77,EF!$C$2:$C$112,0))) -> 
D78: =IF(F78="","",INDEX(EF!$A$2:$A$112,MATCH(F78,EF!$C$2:$C$112,0))) ->  | E78: =IF(F78="","",INDEX(EF!$B$2:$B$112,MATCH(F78,EF!$C$2:$C$112,0))) -> 
D79: =IF(F79="","",INDEX(EF!$A$2:$A$112,MATCH(F79,EF!$C$2:$C$112,0))) ->  | E79: =IF(F79="","",INDEX(EF!$B$2:$B$112,MATCH(F79,EF!$C$2:$C$112,0))) -> 
D80: =IF(F80="","",INDEX(EF!$A$2:$A$112,MATCH(F80,EF!$C$2:$C$112,0))) ->  | E80: =IF(F80="","",INDEX(EF!$B$2:$B$112,MATCH(F80,EF!$C$2:$C$112,0))) -> 
D81: =IF(F81="","",INDEX(EF!$A$2:$A$112,MATCH(F81,EF!$C$2:$C$112,0))) ->  | E81: =IF(F81="","",INDEX(EF!$B$2:$B$112,MATCH(F81,EF!$C$2:$C$112,0))) -> 
D82: =IF(F82="","",INDEX(EF!$A$2:$A$112,MATCH(F82,EF!$C$2:$C$112,0))) ->  | E82: =IF(F82="","",INDEX(EF!$B$2:$B$112,MATCH(F82,EF!$C$2:$C$112,0))) -> 
D83: =IF(F83="","",INDEX(EF!$A$2:$A$112,MATCH(F83,EF!$C$2:$C$112,0))) ->  | E83: =IF(F83="","",INDEX(EF!$B$2:$B$112,MATCH(F83,EF!$C$2:$C$112,0))) -> 
D84: =IF(F84="","",INDEX(EF!$A$2:$A$112,MATCH(F84,EF!$C$2:$C$112,0))) ->  | E84: =IF(F84="","",INDEX(EF!$B$2:$B$112,MATCH(F84,EF!$C$2:$C$112,0))) -> 
D85: =IF(F85="","",INDEX(EF!$A$2:$A$112,MATCH(F85,EF!$C$2:$C$112,0))) ->  | E85: =IF(F85="","",INDEX(EF!$B$2:$B$112,MATCH(F85,EF!$C$2:$C$112,0))) -> 
D86: =IF(F86="","",INDEX(EF!$A$2:$A$112,MATCH(F86,EF!$C$2:$C$112,0))) ->  | E86: =IF(F86="","",INDEX(EF!$B$2:$B$112,MATCH(F86,EF!$C$2:$C$112,0))) -> 
D87: =IF(F87="","",INDEX(EF!$A$2:$A$112,MATCH(F87,EF!$C$2:$C$112,0))) ->  | E87: =IF(F87="","",INDEX(EF!$B$2:$B$112,MATCH(F87,EF!$C$2:$C$112,0))) -> 
D88: =IF(F88="","",INDEX(EF!$A$2:$A$112,MATCH(F88,EF!$C$2:$C$112,0))) ->  | E88: =IF(F88="","",INDEX(EF!$B$2:$B$112,MATCH(F88,EF!$C$2:$C$112,0))) -> 
D89: =IF(F89="","",INDEX(EF!$A$2:$A$112,MATCH(F89,EF!$C$2:$C$112,0))) ->  | E89: =IF(F89="","",INDEX(EF!$B$2:$B$112,MATCH(F89,EF!$C$2:$C$112,0))) -> 
D90: =IF(F90="","",INDEX(EF!$A$2:$A$112,MATCH(F90,EF!$C$2:$C$112,0))) ->  | E90: =IF(F90="","",INDEX(EF!$B$2:$B$112,MATCH(F90,EF!$C$2:$C$112,0))) -> 
D91: =IF(F91="","",INDEX(EF!$A$2:$A$112,MATCH(F91,EF!$C$2:$C$112,0))) ->  | E91: =IF(F91="","",INDEX(EF!$B$2:$B$112,MATCH(F91,EF!$C$2:$C$112,0))) -> 
D92: =IF(F92="","",INDEX(EF!$A$2:$A$112,MATCH(F92,EF!$C$2:$C$112,0))) ->  | E92: =IF(F92="","",INDEX(EF!$B$2:$B$112,MATCH(F92,EF!$C$2:$C$112,0))) -> 
D93: =IF(F93="","",INDEX(EF!$A$2:$A$112,MATCH(F93,EF!$C$2:$C$112,0))) ->  | E93: =IF(F93="","",INDEX(EF!$B$2:$B$112,MATCH(F93,EF!$C$2:$C$112,0))) -> 
D94: =IF(F94="","",INDEX(EF!$A$2:$A$112,MATCH(F94,EF!$C$2:$C$112,0))) ->  | E94: =IF(F94="","",INDEX(EF!$B$2:$B$112,MATCH(F94,EF!$C$2:$C$112,0))) -> 
D95: =IF(F95="","",INDEX(EF!$A$2:$A$112,MATCH(F95,EF!$C$2:$C$112,0))) ->  | E95: =IF(F95="","",INDEX(EF!$B$2:$B$112,MATCH(F95,EF!$C$2:$C$112,0))) -> 
D96: =IF(F96="","",INDEX(EF!$A$2:$A$112,MATCH(F96,EF!$C$2:$C$112,0))) ->  | E96: =IF(F96="","",INDEX(EF!$B$2:$B$112,MATCH(F96,EF!$C$2:$C$112,0))) -> 
D97: =IF(F97="","",INDEX(EF!$A$2:$A$112,MATCH(F97,EF!$C$2:$C$112,0))) ->  | E97: =IF(F97="","",INDEX(EF!$B$2:$B$112,MATCH(F97,EF!$C$2:$C$112,0))) -> 
D98: =IF(F98="","",INDEX(EF!$A$2:$A$112,MATCH(F98,EF!$C$2:$C$112,0))) ->  | E98: =IF(F98="","",INDEX(EF!$B$2:$B$112,MATCH(F98,EF!$C$2:$C$112,0))) -> 
D99: =IF(F99="","",INDEX(EF!$A$2:$A$112,MATCH(F99,EF!$C$2:$C$112,0))) ->  | E99: =IF(F99="","",INDEX(EF!$B$2:$B$112,MATCH(F99,EF!$C$2:$C$112,0))) -> 
D100: =IF(F100="","",INDEX(EF!$A$2:$A$112,MATCH(F100,EF!$C$2:$C$112,0))) ->  | E100: =IF(F100="","",INDEX(EF!$B$2:$B$112,MATCH(F100,EF!$C$2:$C$112,0))) -> 
D101: =IF(F101="","",INDEX(EF!$A$2:$A$112,MATCH(F101,EF!$C$2:$C$112,0))) ->  | E101: =IF(F101="","",INDEX(EF!$B$2:$B$112,MATCH(F101,EF!$C$2:$C$112,0))) -> 
D102: =IF(F102="","",INDEX(EF!$A$2:$A$112,MATCH(F102,EF!$C$2:$C$112,0))) ->  | E102: =IF(F102="","",INDEX(EF!$B$2:$B$112,MATCH(F102,EF!$C$2:$C$112,0))) -> 
D103: =IF(F103="","",INDEX(EF!$A$2:$A$112,MATCH(F103,EF!$C$2:$C$112,0))) ->  | E103: =IF(F103="","",INDEX(EF!$B$2:$B$112,MATCH(F103,EF!$C$2:$C$112,0))) -> 
D104: =IF(F104="","",INDEX(EF!$A$2:$A$112,MATCH(F104,EF!$C$2:$C$112,0))) ->  | E104: =IF(F104="","",INDEX(EF!$B$2:$B$112,MATCH(F104,EF!$C$2:$C$112,0))) -> 
D105: =IF(F105="","",INDEX(EF!$A$2:$A$112,MATCH(F105,EF!$C$2:$C$112,0))) ->  | E105: =IF(F105="","",INDEX(EF!$B$2:$B$112,MATCH(F105,EF!$C$2:$C$112,0))) -> 
D106: =IF(F106="","",INDEX(EF!$A$2:$A$112,MATCH(F106,EF!$C$2:$C$112,0))) ->  | E106: =IF(F106="","",INDEX(EF!$B$2:$B$112,MATCH(F106,EF!$C$2:$C$112,0))) -> 
D107: =IF(F107="","",INDEX(EF!$A$2:$A$112,MATCH(F107,EF!$C$2:$C$112,0))) ->  | E107: =IF(F107="","",INDEX(EF!$B$2:$B$112,MATCH(F107,EF!$C$2:$C$112,0))) -> 
D108: =IF(F108="","",INDEX(EF!$A$2:$A$112,MATCH(F108,EF!$C$2:$C$112,0))) ->  | E108: =IF(F108="","",INDEX(EF!$B$2:$B$112,MATCH(F108,EF!$C$2:$C$112,0))) -> 
D109: =IF(F109="","",INDEX(EF!$A$2:$A$112,MATCH(F109,EF!$C$2:$C$112,0))) ->  | E109: =IF(F109="","",INDEX(EF!$B$2:$B$112,MATCH(F109,EF!$C$2:$C$112,0))) -> 
D110: =IF(F110="","",INDEX(EF!$A$2:$A$112,MATCH(F110,EF!$C$2:$C$112,0))) ->  | E110: =IF(F110="","",INDEX(EF!$B$2:$B$112,MATCH(F110,EF!$C$2:$C$112,0))) -> 
D111: =IF(F111="","",INDEX(EF!$A$2:$A$112,MATCH(F111,EF!$C$2:$C$112,0))) ->  | E111: =IF(F111="","",INDEX(EF!$B$2:$B$112,MATCH(F111,EF!$C$2:$C$112,0))) -> 
D112: =IF(F112="","",INDEX(EF!$A$2:$A$112,MATCH(F112,EF!$C$2:$C$112,0))) ->  | E112: =IF(F112="","",INDEX(EF!$B$2:$B$112,MATCH(F112,EF!$C$2:$C$112,0))) -> 
D113: =IF(F113="","",INDEX(EF!$A$2:$A$112,MATCH(F113,EF!$C$2:$C$112,0))) ->  | E113: =IF(F113="","",INDEX(EF!$B$2:$B$112,MATCH(F113,EF!$C$2:$C$112,0))) -> 
D114: =IF(F114="","",INDEX(EF!$A$2:$A$112,MATCH(F114,EF!$C$2:$C$112,0))) ->  | E114: =IF(F114="","",INDEX(EF!$B$2:$B$112,MATCH(F114,EF!$C$2:$C$112,0))) -> 
D115: =IF(F115="","",INDEX(EF!$A$2:$A$112,MATCH(F115,EF!$C$2:$C$112,0))) ->  | E115: =IF(F115="","",INDEX(EF!$B$2:$B$112,MATCH(F115,EF!$C$2:$C$112,0))) -> 
D116: =IF(F116="","",INDEX(EF!$A$2:$A$112,MATCH(F116,EF!$C$2:$C$112,0))) ->  | E116: =IF(F116="","",INDEX(EF!$B$2:$B$112,MATCH(F116,EF!$C$2:$C$112,0))) -> 
D117: =IF(F117="","",INDEX(EF!$A$2:$A$112,MATCH(F117,EF!$C$2:$C$112,0))) ->  | E117: =IF(F117="","",INDEX(EF!$B$2:$B$112,MATCH(F117,EF!$C$2:$C$112,0))) -> 
D118: =IF(F118="","",INDEX(EF!$A$2:$A$112,MATCH(F118,EF!$C$2:$C$112,0))) ->  | E118: =IF(F118="","",INDEX(EF!$B$2:$B$112,MATCH(F118,EF!$C$2:$C$112,0))) -> 
D119: =IF(F119="","",INDEX(EF!$A$2:$A$112,MATCH(F119,EF!$C$2:$C$112,0))) ->  | E119: =IF(F119="","",INDEX(EF!$B$2:$B$112,MATCH(F119,EF!$C$2:$C$112,0))) -> 
D120: =IF(F120="","",INDEX(EF!$A$2:$A$112,MATCH(F120,EF!$C$2:$C$112,0))) ->  | E120: =IF(F120="","",INDEX(EF!$B$2:$B$112,MATCH(F120,EF!$C$2:$C$112,0))) -> 
D121: =IF(F121="","",INDEX(EF!$A$2:$A$112,MATCH(F121,EF!$C$2:$C$112,0))) ->  | E121: =IF(F121="","",INDEX(EF!$B$2:$B$112,MATCH(F121,EF!$C$2:$C$112,0))) -> 
D122: =IF(F122="","",INDEX(EF!$A$2:$A$112,MATCH(F122,EF!$C$2:$C$112,0))) ->  | E122: =IF(F122="","",INDEX(EF!$B$2:$B$112,MATCH(F122,EF!$C$2:$C$112,0))) -> 
D123: =IF(F123="","",INDEX(EF!$A$2:$A$112,MATCH(F123,EF!$C$2:$C$112,0))) ->  | E123: =IF(F123="","",INDEX(EF!$B$2:$B$112,MATCH(F123,EF!$C$2:$C$112,0))) -> 
D124: =IF(F124="","",INDEX(EF!$A$2:$A$112,MATCH(F124,EF!$C$2:$C$112,0))) ->  | E124: =IF(F124="","",INDEX(EF!$B$2:$B$112,MATCH(F124,EF!$C$2:$C$112,0))) -> 
D125: =IF(F125="","",INDEX(EF!$A$2:$A$112,MATCH(F125,EF!$C$2:$C$112,0))) ->  | E125: =IF(F125="","",INDEX(EF!$B$2:$B$112,MATCH(F125,EF!$C$2:$C$112,0))) -> 
D126: =IF(F126="","",INDEX(EF!$A$2:$A$112,MATCH(F126,EF!$C$2:$C$112,0))) ->  | E126: =IF(F126="","",INDEX(EF!$B$2:$B$112,MATCH(F126,EF!$C$2:$C$112,0))) -> 
D127: =IF(F127="","",INDEX(EF!$A$2:$A$112,MATCH(F127,EF!$C$2:$C$112,0))) ->  | E127: =IF(F127="","",INDEX(EF!$B$2:$B$112,MATCH(F127,EF!$C$2:$C$112,0))) -> 
D128: =IF(F128="","",INDEX(EF!$A$2:$A$112,MATCH(F128,EF!$C$2:$C$112,0))) ->  | E128: =IF(F128="","",INDEX(EF!$B$2:$B$112,MATCH(F128,EF!$C$2:$C$112,0))) -> 
D129: =IF(F129="","",INDEX(EF!$A$2:$A$112,MATCH(F129,EF!$C$2:$C$112,0))) ->  | E129: =IF(F129="","",INDEX(EF!$B$2:$B$112,MATCH(F129,EF!$C$2:$C$112,0))) -> 
D130: =IF(F130="","",INDEX(EF!$A$2:$A$112,MATCH(F130,EF!$C$2:$C$112,0))) ->  | E130: =IF(F130="","",INDEX(EF!$B$2:$B$112,MATCH(F130,EF!$C$2:$C$112,0))) -> 
D131: =IF(F131="","",INDEX(EF!$A$2:$A$112,MATCH(F131,EF!$C$2:$C$112,0))) ->  | E131: =IF(F131="","",INDEX(EF!$B$2:$B$112,MATCH(F131,EF!$C$2:$C$112,0))) -> 
D132: =IF(F132="","",INDEX(EF!$A$2:$A$112,MATCH(F132,EF!$C$2:$C$112,0))) ->  | E132: =IF(F132="","",INDEX(EF!$B$2:$B$112,MATCH(F132,EF!$C$2:$C$112,0))) -> 
D133: =IF(F133="","",INDEX(EF!$A$2:$A$112,MATCH(F133,EF!$C$2:$C$112,0))) ->  | E133: =IF(F133="","",INDEX(EF!$B$2:$B$112,MATCH(F133,EF!$C$2:$C$112,0))) -> 
D134: =IF(F134="","",INDEX(EF!$A$2:$A$112,MATCH(F134,EF!$C$2:$C$112,0))) ->  | E134: =IF(F134="","",INDEX(EF!$B$2:$B$112,MATCH(F134,EF!$C$2:$C$112,0))) -> 
D135: =IF(F135="","",INDEX(EF!$A$2:$A$112,MATCH(F135,EF!$C$2:$C$112,0))) ->  | E135: =IF(F135="","",INDEX(EF!$B$2:$B$112,MATCH(F135,EF!$C$2:$C$112,0))) -> 
D136: =IF(F136="","",INDEX(EF!$A$2:$A$112,MATCH(F136,EF!$C$2:$C$112,0))) ->  | E136: =IF(F136="","",INDEX(EF!$B$2:$B$112,MATCH(F136,EF!$C$2:$C$112,0))) -> 
A137: =IF(B137>0,A136+1,"") ->  | D137: =IF(F137="","",INDEX(EF!$A$2:$A$112,MATCH(F137,EF!$C$2:$C$112,0))) ->  | E137: =IF(F137="","",INDEX(EF!$B$2:$B$112,MATCH(F137,EF!$C$2:$C$112,0))) -> 
D138: =IF(F138="","",INDEX(EF!$A$2:$A$112,MATCH(F138,EF!$C$2:$C$112,0))) ->  | E138: =IF(F138="","",INDEX(EF!$B$2:$B$112,MATCH(F138,EF!$C$2:$C$112,0))) -> 
D139: =IF(F139="","",INDEX(EF!$A$2:$A$112,MATCH(F139,EF!$C$2:$C$112,0))) ->  | E139: =IF(F139="","",INDEX(EF!$B$2:$B$112,MATCH(F139,EF!$C$2:$C$112,0))) -> 
D140: =IF(F140="","",INDEX(EF!$A$2:$A$112,MATCH(F140,EF!$C$2:$C$112,0))) ->  | E140: =IF(F140="","",INDEX(EF!$B$2:$B$112,MATCH(F140,EF!$C$2:$C$112,0))) -> 
D141: =IF(F141="","",INDEX(EF!$A$2:$A$112,MATCH(F141,EF!$C$2:$C$112,0))) ->  | E141: =IF(F141="","",INDEX(EF!$B$2:$B$112,MATCH(F141,EF!$C$2:$C$112,0))) -> 
D142: =IF(F142="","",INDEX(EF!$A$2:$A$112,MATCH(F142,EF!$C$2:$C$112,0))) ->  | E142: =IF(F142="","",INDEX(EF!$B$2:$B$112,MATCH(F142,EF!$C$2:$C$112,0))) -> 
D143: =IF(F143="","",INDEX(EF!$A$2:$A$112,MATCH(F143,EF!$C$2:$C$112,0))) ->  | E143: =IF(F143="","",INDEX(EF!$B$2:$B$112,MATCH(F143,EF!$C$2:$C$112,0))) -> 
D144: =IF(F144="","",INDEX(EF!$A$2:$A$112,MATCH(F144,EF!$C$2:$C$112,0))) ->  | E144: =IF(F144="","",INDEX(EF!$B$2:$B$112,MATCH(F144,EF!$C$2:$C$112,0))) -> 
D145: =IF(F145="","",INDEX(EF!$A$2:$A$112,MATCH(F145,EF!$C$2:$C$112,0))) ->  | E145: =IF(F145="","",INDEX(EF!$B$2:$B$112,MATCH(F145,EF!$C$2:$C$112,0))) -> 
D146: =IF(F146="","",INDEX(EF!$A$2:$A$112,MATCH(F146,EF!$C$2:$C$112,0))) ->  | E146: =IF(F146="","",INDEX(EF!$B$2:$B$112,MATCH(F146,EF!$C$2:$C$112,0))) -> 
D147: =IF(F147="","",INDEX(EF!$A$2:$A$112,MATCH(F147,EF!$C$2:$C$112,0))) ->  | E147: =IF(F147="","",INDEX(EF!$B$2:$B$112,MATCH(F147,EF!$C$2:$C$112,0))) -> 
D148: =IF(F148="","",INDEX(EF!$A$2:$A$112,MATCH(F148,EF!$C$2:$C$112,0))) ->  | E148: =IF(F148="","",INDEX(EF!$B$2:$B$112,MATCH(F148,EF!$C$2:$C$112,0))) -> 
D149: =IF(F149="","",INDEX(EF!$A$2:$A$112,MATCH(F149,EF!$C$2:$C$112,0))) ->  | E149: =IF(F149="","",INDEX(EF!$B$2:$B$112,MATCH(F149,EF!$C$2:$C$112,0))) -> 
D150: =IF(F150="","",INDEX(EF!$A$2:$A$112,MATCH(F150,EF!$C$2:$C$112,0))) ->  | E150: =IF(F150="","",INDEX(EF!$B$2:$B$112,MATCH(F150,EF!$C$2:$C$112,0))) -> 
D151: =IF(F151="","",INDEX(EF!$A$2:$A$112,MATCH(F151,EF!$C$2:$C$112,0))) ->  | E151: =IF(F151="","",INDEX(EF!$B$2:$B$112,MATCH(F151,EF!$C$2:$C$112,0))) -> 
D152: =IF(F152="","",INDEX(EF!$A$2:$A$112,MATCH(F152,EF!$C$2:$C$112,0))) ->  | E152: =IF(F152="","",INDEX(EF!$B$2:$B$112,MATCH(F152,EF!$C$2:$C$112,0))) -> 
D153: =IF(F153="","",INDEX(EF!$A$2:$A$112,MATCH(F153,EF!$C$2:$C$112,0))) ->  | E153: =IF(F153="","",INDEX(EF!$B$2:$B$112,MATCH(F153,EF!$C$2:$C$112,0))) -> 
D154: =IF(F154="","",INDEX(EF!$A$2:$A$112,MATCH(F154,EF!$C$2:$C$112,0))) ->  | E154: =IF(F154="","",INDEX(EF!$B$2:$B$112,MATCH(F154,EF!$C$2:$C$112,0))) -> 
D155: =IF(F155="","",INDEX(EF!$A$2:$A$112,MATCH(F155,EF!$C$2:$C$112,0))) ->  | E155: =IF(F155="","",INDEX(EF!$B$2:$B$112,MATCH(F155,EF!$C$2:$C$112,0))) -> 
D156: =IF(F156="","",INDEX(EF!$A$2:$A$112,MATCH(F156,EF!$C$2:$C$112,0))) ->  | E156: =IF(F156="","",INDEX(EF!$B$2:$B$112,MATCH(F156,EF!$C$2:$C$112,0))) -> 
D157: =IF(F157="","",INDEX(EF!$A$2:$A$112,MATCH(F157,EF!$C$2:$C$112,0))) ->  | E157: =IF(F157="","",INDEX(EF!$B$2:$B$112,MATCH(F157,EF!$C$2:$C$112,0))) -> 
D158: =IF(F158="","",INDEX(EF!$A$2:$A$112,MATCH(F158,EF!$C$2:$C$112,0))) ->  | E158: =IF(F158="","",INDEX(EF!$B$2:$B$112,MATCH(F158,EF!$C$2:$C$112,0))) -> 
D159: =IF(F159="","",INDEX(EF!$A$2:$A$112,MATCH(F159,EF!$C$2:$C$112,0))) ->  | E159: =IF(F159="","",INDEX(EF!$B$2:$B$112,MATCH(F159,EF!$C$2:$C$112,0))) -> 
D160: =IF(F160="","",INDEX(EF!$A$2:$A$112,MATCH(F160,EF!$C$2:$C$112,0))) ->  | E160: =IF(F160="","",INDEX(EF!$B$2:$B$112,MATCH(F160,EF!$C$2:$C$112,0))) -> 
D161: =IF(F161="","",INDEX(EF!$A$2:$A$112,MATCH(F161,EF!$C$2:$C$112,0))) ->  | E161: =IF(F161="","",INDEX(EF!$B$2:$B$112,MATCH(F161,EF!$C$2:$C$112,0))) -> 
D162: =IF(F162="","",INDEX(EF!$A$2:$A$112,MATCH(F162,EF!$C$2:$C$112,0))) ->  | E162: =IF(F162="","",INDEX(EF!$B$2:$B$112,MATCH(F162,EF!$C$2:$C$112,0))) -> 
D163: =IF(F163="","",INDEX(EF!$A$2:$A$112,MATCH(F163,EF!$C$2:$C$112,0))) ->  | E163: =IF(F163="","",INDEX(EF!$B$2:$B$112,MATCH(F163,EF!$C$2:$C$112,0))) -> 
D164: =IF(F164="","",INDEX(EF!$A$2:$A$112,MATCH(F164,EF!$C$2:$C$112,0))) ->  | E164: =IF(F164="","",INDEX(EF!$B$2:$B$112,MATCH(F164,EF!$C$2:$C$112,0))) -> 
D165: =IF(F165="","",INDEX(EF!$A$2:$A$112,MATCH(F165,EF!$C$2:$C$112,0))) ->  | E165: =IF(F165="","",INDEX(EF!$B$2:$B$112,MATCH(F165,EF!$C$2:$C$112,0))) -> 
D166: =IF(F166="","",INDEX(EF!$A$2:$A$112,MATCH(F166,EF!$C$2:$C$112,0))) ->  | E166: =IF(F166="","",INDEX(EF!$B$2:$B$112,MATCH(F166,EF!$C$2:$C$112,0))) -> 
D167: =IF(F167="","",INDEX(EF!$A$2:$A$112,MATCH(F167,EF!$C$2:$C$112,0))) ->  | E167: =IF(F167="","",INDEX(EF!$B$2:$B$112,MATCH(F167,EF!$C$2:$C$112,0))) -> 
D168: =IF(F168="","",INDEX(EF!$A$2:$A$112,MATCH(F168,EF!$C$2:$C$112,0))) ->  | E168: =IF(F168="","",INDEX(EF!$B$2:$B$112,MATCH(F168,EF!$C$2:$C$112,0))) -> 
D169: =IF(F169="","",INDEX(EF!$A$2:$A$112,MATCH(F169,EF!$C$2:$C$112,0))) ->  | E169: =IF(F169="","",INDEX(EF!$B$2:$B$112,MATCH(F169,EF!$C$2:$C$112,0))) -> 
D170: =IF(F170="","",INDEX(EF!$A$2:$A$112,MATCH(F170,EF!$C$2:$C$112,0))) ->  | E170: =IF(F170="","",INDEX(EF!$B$2:$B$112,MATCH(F170,EF!$C$2:$C$112,0))) -> 
D171: =IF(F171="","",INDEX(EF!$A$2:$A$112,MATCH(F171,EF!$C$2:$C$112,0))) ->  | E171: =IF(F171="","",INDEX(EF!$B$2:$B$112,MATCH(F171,EF!$C$2:$C$112,0))) -> 
D172: =IF(F172="","",INDEX(EF!$A$2:$A$112,MATCH(F172,EF!$C$2:$C$112,0))) ->  | E172: =IF(F172="","",INDEX(EF!$B$2:$B$112,MATCH(F172,EF!$C$2:$C$112,0))) -> 
D173: =IF(F173="","",INDEX(EF!$A$2:$A$112,MATCH(F173,EF!$C$2:$C$112,0))) ->  | E173: =IF(F173="","",INDEX(EF!$B$2:$B$112,MATCH(F173,EF!$C$2:$C$112,0))) -> 
D174: =IF(F174="","",INDEX(EF!$A$2:$A$112,MATCH(F174,EF!$C$2:$C$112,0))) ->  | E174: =IF(F174="","",INDEX(EF!$B$2:$B$112,MATCH(F174,EF!$C$2:$C$112,0))) -> 
D175: =IF(F175="","",INDEX(EF!$A$2:$A$112,MATCH(F175,EF!$C$2:$C$112,0))) ->  | E175: =IF(F175="","",INDEX(EF!$B$2:$B$112,MATCH(F175,EF!$C$2:$C$112,0))) -> 
D176: =IF(F176="","",INDEX(EF!$A$2:$A$112,MATCH(F176,EF!$C$2:$C$112,0))) ->  | E176: =IF(F176="","",INDEX(EF!$B$2:$B$112,MATCH(F176,EF!$C$2:$C$112,0))) -> 
D177: =IF(F177="","",INDEX(EF!$A$2:$A$112,MATCH(F177,EF!$C$2:$C$112,0))) ->  | E177: =IF(F177="","",INDEX(EF!$B$2:$B$112,MATCH(F177,EF!$C$2:$C$112,0))) -> 
D178: =IF(F178="","",INDEX(EF!$A$2:$A$112,MATCH(F178,EF!$C$2:$C$112,0))) ->  | E178: =IF(F178="","",INDEX(EF!$B$2:$B$112,MATCH(F178,EF!$C$2:$C$112,0))) -> 
D179: =IF(F179="","",INDEX(EF!$A$2:$A$112,MATCH(F179,EF!$C$2:$C$112,0))) ->  | E179: =IF(F179="","",INDEX(EF!$B$2:$B$112,MATCH(F179,EF!$C$2:$C$112,0))) -> 
D180: =IF(F180="","",INDEX(EF!$A$2:$A$112,MATCH(F180,EF!$C$2:$C$112,0))) ->  | E180: =IF(F180="","",INDEX(EF!$B$2:$B$112,MATCH(F180,EF!$C$2:$C$112,0))) -> 
D181: =IF(F181="","",INDEX(EF!$A$2:$A$112,MATCH(F181,EF!$C$2:$C$112,0))) ->  | E181: =IF(F181="","",INDEX(EF!$B$2:$B$112,MATCH(F181,EF!$C$2:$C$112,0))) -> 
D182: =IF(F182="","",INDEX(EF!$A$2:$A$112,MATCH(F182,EF!$C$2:$C$112,0))) ->  | E182: =IF(F182="","",INDEX(EF!$B$2:$B$112,MATCH(F182,EF!$C$2:$C$112,0))) -> 
D183: =IF(F183="","",INDEX(EF!$A$2:$A$112,MATCH(F183,EF!$C$2:$C$112,0))) ->  | E183: =IF(F183="","",INDEX(EF!$B$2:$B$112,MATCH(F183,EF!$C$2:$C$112,0))) -> 
D184: =IF(F184="","",INDEX(EF!$A$2:$A$112,MATCH(F184,EF!$C$2:$C$112,0))) ->  | E184: =IF(F184="","",INDEX(EF!$B$2:$B$112,MATCH(F184,EF!$C$2:$C$112,0))) -> 
D185: =IF(F185="","",INDEX(EF!$A$2:$A$112,MATCH(F185,EF!$C$2:$C$112,0))) ->  | E185: =IF(F185="","",INDEX(EF!$B$2:$B$112,MATCH(F185,EF!$C$2:$C$112,0))) -> 
D186: =IF(F186="","",INDEX(EF!$A$2:$A$112,MATCH(F186,EF!$C$2:$C$112,0))) ->  | E186: =IF(F186="","",INDEX(EF!$B$2:$B$112,MATCH(F186,EF!$C$2:$C$112,0))) -> 
D187: =IF(F187="","",INDEX(EF!$A$2:$A$112,MATCH(F187,EF!$C$2:$C$112,0))) ->  | E187: =IF(F187="","",INDEX(EF!$B$2:$B$112,MATCH(F187,EF!$C$2:$C$112,0))) -> 
D188: =IF(F188="","",INDEX(EF!$A$2:$A$112,MATCH(F188,EF!$C$2:$C$112,0))) ->  | E188: =IF(F188="","",INDEX(EF!$B$2:$B$112,MATCH(F188,EF!$C$2:$C$112,0))) -> 
D189: =IF(F189="","",INDEX(EF!$A$2:$A$112,MATCH(F189,EF!$C$2:$C$112,0))) ->  | E189: =IF(F189="","",INDEX(EF!$B$2:$B$112,MATCH(F189,EF!$C$2:$C$112,0))) -> 
D190: =IF(F190="","",INDEX(EF!$A$2:$A$112,MATCH(F190,EF!$C$2:$C$112,0))) ->  | E190: =IF(F190="","",INDEX(EF!$B$2:$B$112,MATCH(F190,EF!$C$2:$C$112,0))) -> 
D191: =IF(F191="","",INDEX(EF!$A$2:$A$112,MATCH(F191,EF!$C$2:$C$112,0))) ->  | E191: =IF(F191="","",INDEX(EF!$B$2:$B$112,MATCH(F191,EF!$C$2:$C$112,0))) -> 
D192: =IF(F192="","",INDEX(EF!$A$2:$A$112,MATCH(F192,EF!$C$2:$C$112,0))) ->  | E192: =IF(F192="","",INDEX(EF!$B$2:$B$112,MATCH(F192,EF!$C$2:$C$112,0))) -> 
D193: =IF(F193="","",INDEX(EF!$A$2:$A$112,MATCH(F193,EF!$C$2:$C$112,0))) ->  | E193: =IF(F193="","",INDEX(EF!$B$2:$B$112,MATCH(F193,EF!$C$2:$C$112,0))) -> 
D194: =IF(F194="","",INDEX(EF!$A$2:$A$112,MATCH(F194,EF!$C$2:$C$112,0))) ->  | E194: =IF(F194="","",INDEX(EF!$B$2:$B$112,MATCH(F194,EF!$C$2:$C$112,0))) -> 
D195: =IF(F195="","",INDEX(EF!$A$2:$A$112,MATCH(F195,EF!$C$2:$C$112,0))) ->  | E195: =IF(F195="","",INDEX(EF!$B$2:$B$112,MATCH(F195,EF!$C$2:$C$112,0))) -> 
D196: =IF(F196="","",INDEX(EF!$A$2:$A$112,MATCH(F196,EF!$C$2:$C$112,0))) ->  | E196: =IF(F196="","",INDEX(EF!$B$2:$B$112,MATCH(F196,EF!$C$2:$C$112,0))) -> 
D197: =IF(F197="","",INDEX(EF!$A$2:$A$112,MATCH(F197,EF!$C$2:$C$112,0))) ->  | E197: =IF(F197="","",INDEX(EF!$B$2:$B$112,MATCH(F197,EF!$C$2:$C$112,0))) -> 
D198: =IF(F198="","",INDEX(EF!$A$2:$A$112,MATCH(F198,EF!$C$2:$C$112,0))) ->  | E198: =IF(F198="","",INDEX(EF!$B$2:$B$112,MATCH(F198,EF!$C$2:$C$112,0))) -> 
D199: =IF(F199="","",INDEX(EF!$A$2:$A$112,MATCH(F199,EF!$C$2:$C$112,0))) ->  | E199: =IF(F199="","",INDEX(EF!$B$2:$B$112,MATCH(F199,EF!$C$2:$C$112,0))) -> 
D200: =IF(F200="","",INDEX(EF!$A$2:$A$112,MATCH(F200,EF!$C$2:$C$112,0))) ->  | E200: =IF(F200="","",INDEX(EF!$B$2:$B$112,MATCH(F200,EF!$C$2:$C$112,0))) -> 
... 806 more rows

Sheet F18
A1: CUENTA PÚBLICA - MUNICIPIO ATEMAJAC DE BRIZUELA
A2: Estado Analítico del Ejercicio del Presupuesto de Egresos
A3: Clasificación Administrativa
A4: DEL 1° DE ENERO AL 31 DE DICIEMBRE DE 2025
A5: (Cifras en Pesos)
A6: Concepto | B6: Egresos | G6: Subejercicio
B7: Aprobado | C7: Ampliaciones/ (Reducciones) | D7: Modificado | E7: Devengado | F7: Pagado | M7: =IF(AND(F18A!$A9=0),"",F18A!$A9) -> PRESIDENCIA | N7: =IF(AND(F18A!$A10=0),"",F18A!$A10) ->  | O7: =IF(AND(F18A!$A11=0),"",F18A!$A11) ->  | P7: =IF(AND(F18A!$A12=0),"",F18A!$A12) ->  | Q7: =IF(AND(F18A!$A13=0),"",F18A!$A13) ->  | R7: =IF(AND(F18A!$A14=0),"",F18A!$A14) ->  | S7: =IF(AND(F18A!$A15=0),"",F18A!$A15) ->  | T7: =IF(AND(F18A!$A16=0),"",F18A!$A16) ->  | U7: =IF(AND(F18A!$A17=0),"",F18A!$A17) ->  | V7: =IF(AND(F18A!$A18=0),"",F18A!$A18) ->  | W7: =IF(AND(F18A!$A19=0),"",F18A!$A19) ->  | X7: =IF(AND(F18A!$A20=0),"",F18A!$A20) ->  | Y7: =IF(AND(F18A!$A21=0),"",F18A!$A21) ->  | Z7: =IF(AND(F18A!$A22=0),"",F18A!$A22) ->  | AA7: =IF(AND(F18A!$A23=0),"",F18A!$A23) ->  | AB7: =IF(AND(F18A!$A24=0),"",F18A!$A24) ->  | AC7: =IF(AND(F18A!$A25=0),"",F18A!$A25) ->  | AD7: =IF(AND(F18A!$A26=0),"",F18A!$A26) ->  | AE7: =IF(AND(F18A!$A27=0),"",F18A!$A27) ->  | AF7: =IF(AND(F18A!$A28=0),"",F18A!$A28) ->  | AG7: =IF(AND(F18A!$A29=0),"",F18A!$A29) ->  | AH7: =IF(AND(F18A!$A30=0),"",F18A!$A30) ->  | AI7: =IF(AND(F18A!$A31=0),"",F18A!$A31) ->  | AJ7: =IF(AND(F18A!$A32=0),"",F18A!$A32) ->  | AK7: =IF(AND(F18A!$A33=0),"",F18A!$A33) -> 
A8: =IFERROR(AR8,"") -> PRESIDENCIA | B8: =SUMIF(F18A!$A$9:$A$60,'F18'!A8,F18A!$B$9:$B$60) -> 77560680 | C8: =SUMIF(F18A!$A$9:$A$60,'F18'!A8,F18A!$C$9:$C$60) -> 0 | D8: =B8+C8 -> 77560680 | E8: =SUMIF(F18A!$A$9:$A$60,'F18'!A8,F18A!$E$9:$E$60) -> 84719361.38 | F8: =SUMIF(F18A!$A$9:$A$60,'F18'!A8,F18A!$F$9:$F$60) -> 84719361.38 | G8: =D8-E8 -> -7158681.38 | K8: =IF(SUM(M8:AK8)=25,L8,"") ->  | L8: =IF(AND(F18A!A36=0),"",F18A!A36) -> PRESIDENCIA | M8: =IF(AND(M7<>L8),1,"") ->  | N8: =IF(AND(N7<>L8),1,"") -> 1 | O8: =IF(AND(O7<>L8),1,"") -> 1 | P8: =IF(AND(P7<>L8),1,"") -> 1 | Q8: =IF(AND(Q7<>L8),1,"") -> 1 | R8: =IF(AND(R7<>L8),1,"") -> 1 | S8: =IF(AND(S7<>L8),1,"") -> 1 | T8: =IF(AND(T7<>L8),1,"") -> 1 | U8: =IF(AND(U7<>L8),1,"") -> 1 | V8: =IF(AND(V7<>L8),1,"") -> 1 | W8: =IF(AND(W7<>L8),1,"") -> 1 | X8: =IF(AND(X7<>L8),1,"") -> 1 | Y8: =IF(AND(Y7<>L8),1,"") -> 1 | Z8: =IF(AND(Z7<>L8),1,"") -> 1 | AA8: =IF(AND(AA7<>L8),1,"") -> 1 | AB8: =IF(AND(AB7<>L8),1,"") -> 1 | AC8: =IF(AND(AC7<>L8),1,"") -> 1 | AD8: =IF(AND(AD7<>L8),1,"") -> 1 | AE8: =IF(AND(AE7<>L8),1,"") -> 1 | AF8: =IF(AND(AF7<>L8),1,"") -> 1 | AG8: =IF(AND(AG7<>L8),1,"") -> 1 | AH8: =IF(AND(AH7<>L8),1,"") -> 1 | AI8: =IF(AND(AI7<>L8),1,"") -> 1 | AJ8: =IF(AND(AJ7<>L8),1,"") -> 1 | AK8: =IF(AND(AK7<>L8),1,"") -> 1 | AN8: =M$7 -> PRESIDENCIA | AO8: =IF(AN$8:AN$57<>"",ROW(AN8:AN57)) -> 8 | AP8: 1 | AQ8: =SMALL(AO$8:AO$57,AP8) -> 8 | AR8: =INDEX(AN:AN,AQ$8:AQ$57) -> PRESIDENCIA
B9: =SUMIF(F18A!$A$9:$A$60,'F18'!A9,F18A!$B$9:$B$60) -> 0 | C9: =SUMIF(F18A!$A$9:$A$60,'F18'!A9,F18A!$C$9:$C$60) -> 0 | D9: =B9+C9 -> 0 | E9: =SUMIF(F18A!$A$9:$A$60,'F18'!A9,F18A!$E$9:$E$60) -> 0 | F9: =SUMIF(F18A!$A$9:$A$60,'F18'!A9,F18A!$F$9:$F$60) -> 0 | G9: =D9-E9 -> 0 | K9: =IF(SUM(M9:AK9)=25,L9,"") ->  | L9: =IF(AND(F18A!A37=0),"",F18A!A37) ->  | M9: =IF(AND(M7<>L9),1,"") -> 1 | N9: =IF(AND(N7<>L9),1,"") ->  | O9: =IF(AND(O7<>L9),1,"") ->  | P9: =IF(AND(P7<>L9),1,"") ->  | Q9: =IF(AND(Q7<>L9),1,"") ->  | R9: =IF(AND(R7<>L9),1,"") ->  | S9: =IF(AND(S7<>L9),1,"") ->  | T9: =IF(AND(T7<>L9),1,"") ->  | U9: =IF(AND(U7<>L9),1,"") ->  | V9: =IF(AND(V7<>L9),1,"") ->  | W9: =IF(AND(W7<>L9),1,"") ->  | X9: =IF(AND(X7<>L9),1,"") ->  | Y9: =IF(AND(Y7<>L9),1,"") ->  | Z9: =IF(AND(Z7<>L9),1,"") ->  | AA9: =IF(AND(AA7<>L9),1,"") ->  | AB9: =IF(AND(AB7<>L9),1,"") ->  | AC9: =IF(AND(AC7<>L9),1,"") ->  | AD9: =IF(AND(AD7<>L9),1,"") ->  | AE9: =IF(AND(AE7<>L9),1,"") ->  | AF9: =IF(AND(AF7<>L9),1,"") ->  | AG9: =IF(AND(AG7<>L9),1,"") ->  | AH9: =IF(AND(AH7<>L9),1,"") ->  | AI9: =IF(AND(AI7<>L9),1,"") ->  | AJ9: =IF(AND(AJ7<>L9),1,"") ->  | AK9: =IF(AND(AK7<>L9),1,"") ->  | AN9: =N$7 ->  | AO9: FALSE | AP9: 2 | AQ9: =SMALL(AO$8:AO$57,AP9) -> 
B10: =SUMIF(F18A!$A$9:$A$60,'F18'!A10,F18A!$B$9:$B$60) -> 0 | C10: =SUMIF(F18A!$A$9:$A$60,'F18'!A10,F18A!$C$9:$C$60) -> 0 | D10: 0 | E10: =SUMIF(F18A!$A$9:$A$60,'F18'!A10,F18A!$E$9:$E$60) -> 0 | F10: =SUMIF(F18A!$A$9:$A$60,'F18'!A10,F18A!$F$9:$F$60) -> 0 | G10: 0 | L10: =IF(AND(F18A!A38=0),"",F18A!A38) ->  | M10: =IF(AND(M7<>L10),1,"") -> 1 | N10: =IF(AND(N7<>L10),1,"") ->  | O10: =IF(AND(O7<>L10),1,"") ->  | P10: =IF(AND(P7<>L10),1,"") ->  | Q10: =IF(AND(Q7<>L10),1,"") ->  | R10: =IF(AND(R7<>L10),1,"") ->  | S10: =IF(AND(S7<>L10),1,"") ->  | T10: =IF(AND(T7<>L10),1,"") ->  | U10: =IF(AND(U7<>L10),1,"") ->  | V10: =IF(AND(V7<>L10),1,"") ->  | W10: =IF(AND(W7<>L10),1,"") ->  | X10: =IF(AND(X7<>L10),1,"") ->  | Y10: =IF(AND(Y7<>L10),1,"") ->  | Z10: =IF(AND(Z7<>L10),1,"") ->  | AA10: =IF(AND(AA7<>L10),1,"") ->  | AB10: =IF(AND(AB7<>L10),1,"") ->  | AC10: =IF(AND(AC7<>L10),1,"") ->  | AD10: =IF(AND(AD7<>L10),1,"") ->  | AE10: =IF(AND(AE7<>L10),1,"") ->  | AF10: =IF(AND(AF7<>L10),1,"") ->  | AG10: =IF(AND(AG7<>L10),1,"") ->  | AH10: =IF(AND(AH7<>L10),1,"") ->  | AI10: =IF(AND(AI7<>L10),1,"") ->  | AJ10: =IF(AND(AJ7<>L10),1,"") ->  | AK10: =IF(AND(AK7<>L10),1,"") ->  | AN10: =O$7 ->  | AO10: FALSE | AP10: 3
B11: =SUMIF(F18A!$A$9:$A$60,'F18'!A11,F18A!$B$9:$B$60) -> 0 | C11: =SUMIF(F18A!$A$9:$A$60,'F18'!A11,F18A!$C$9:$C$60) -> 0 | D11: 0 | E11: =SUMIF(F18A!$A$9:$A$60,'F18'!A11,F18A!$E$9:$E$60) -> 0 | F11: =SUMIF(F18A!$A$9:$A$60,'F18'!A11,F18A!$F$9:$F$60) -> 0 | G11: 0 | L11: =IF(AND(F18A!A39=0),"",F18A!A39) ->  | M11: =IF(AND(M7<>L11),1,"") -> 1 | N11: =IF(AND(N7<>L11),1,"") ->  | O11: =IF(AND(O7<>L11),1,"") ->  | P11: =IF(AND(P7<>L11),1,"") ->  | Q11: =IF(AND(Q7<>L11),1,"") ->  | R11: =IF(AND(R7<>L11),1,"") ->  | S11: =IF(AND(S7<>L11),1,"") ->  | T11: =IF(AND(T7<>L11),1,"") ->  | U11: =IF(AND(U7<>L11),1,"") ->  | V11: =IF(AND(V7<>L11),1,"") ->  | W11: =IF(AND(W7<>L11),1,"") ->  | X11: =IF(AND(X7<>L11),1,"") ->  | Y11: =IF(AND(Y7<>L11),1,"") ->  | Z11: =IF(AND(Z7<>L11),1,"") ->  | AA11: =IF(AND(AA7<>L11),1,"") ->  | AB11: =IF(AND(AB7<>L11),1,"") ->  | AC11: =IF(AND(AC7<>L11),1,"") ->  | AD11: =IF(AND(AD7<>L11),1,"") ->  | AE11: =IF(AND(AE7<>L11),1,"") ->  | AF11: =IF(AND(AF7<>L11),1,"") ->  | AG11: =IF(AND(AG7<>L11),1,"") ->  | AH11: =IF(AND(AH7<>L11),1,"") ->  | AI11: =IF(AND(AI7<>L11),1,"") ->  | AJ11: =IF(AND(AJ7<>L11),1,"") ->  | AK11: =IF(AND(AK7<>L11),1,"") ->  | AN11: =P$7 ->  | AO11: FALSE | AP11: 4
B12: =SUMIF(F18A!$A$9:$A$60,'F18'!A12,F18A!$B$9:$B$60) -> 0 | C12: =SUMIF(F18A!$A$9:$A$60,'F18'!A12,F18A!$C$9:$C$60) -> 0 | D12: 0 | E12: =SUMIF(F18A!$A$9:$A$60,'F18'!A12,F18A!$E$9:$E$60) -> 0 | F12: =SUMIF(F18A!$A$9:$A$60,'F18'!A12,F18A!$F$9:$F$60) -> 0 | G12: 0 | L12: =IF(AND(F18A!A40=0),"",F18A!A40) ->  | M12: =IF(AND(M7<>L12),1,"") -> 1 | N12: =IF(AND(N7<>L12),1,"") ->  | O12: =IF(AND(O7<>L12),1,"") ->  | P12: =IF(AND(P7<>L12),1,"") ->  | Q12: =IF(AND(Q7<>L12),1,"") ->  | R12: =IF(AND(R7<>L12),1,"") ->  | S12: =IF(AND(S7<>L12),1,"") ->  | T12: =IF(AND(T7<>L12),1,"") ->  | U12: =IF(AND(U7<>L12),1,"") ->  | V12: =IF(AND(V7<>L12),1,"") ->  | W12: =IF(AND(W7<>L12),1,"") ->  | X12: =IF(AND(X7<>L12),1,"") ->  | Y12: =IF(AND(Y7<>L12),1,"") ->  | Z12: =IF(AND(Z7<>L12),1,"") ->  | AA12: =IF(AND(AA7<>L12),1,"") ->  | AB12: =IF(AND(AB7<>L12),1,"") ->  | AC12: =IF(AND(AC7<>L12),1,"") ->  | AD12: =IF(AND(AD7<>L12),1,"") ->  | AE12: =IF(AND(AE7<>L12),1,"") ->  | AF12: =IF(AND(AF7<>L12),1,"") ->  | AG12: =IF(AND(AG7<>L12),1,"") ->  | AH12: =IF(AND(AH7<>L12),1,"") ->  | AI12: =IF(AND(AI7<>L12),1,"") ->  | AJ12: =IF(AND(AJ7<>L12),1,"") ->  | AK12: =IF(AND(AK7<>L12),1,"") ->  | AN12: =Q$7 ->  | AO12: FALSE | AP12: 5
B13: =SUMIF(F18A!$A$9:$A$60,'F18'!A13,F18A!$B$9:$B$60) -> 0 | C13: =SUMIF(F18A!$A$9:$A$60,'F18'!A13,F18A!$C$9:$C$60) -> 0 | D13: 0 | E13: =SUMIF(F18A!$A$9:$A$60,'F18'!A13,F18A!$E$9:$E$60) -> 0 | F13: =SUMIF(F18A!$A$9:$A$60,'F18'!A13,F18A!$F$9:$F$60) -> 0 | G13: 0 | L13: =IF(AND(F18A!A41=0),"",F18A!A41) ->  | M13: =IF(AND(M7<>L13),1,"") -> 1 | N13: =IF(AND(N7<>L13),1,"") ->  | O13: =IF(AND(O7<>L13),1,"") ->  | P13: =IF(AND(P7<>L13),1,"") ->  | Q13: =IF(AND(Q7<>L13),1,"") ->  | R13: =IF(AND(R7<>L13),1,"") ->  | S13: =IF(AND(S7<>L13),1,"") ->  | T13: =IF(AND(T7<>L13),1,"") ->  | U13: =IF(AND(U7<>L13),1,"") ->  | V13: =IF(AND(V7<>L13),1,"") ->  | W13: =IF(AND(W7<>L13),1,"") ->  | X13: =IF(AND(X7<>L13),1,"") ->  | Y13: =IF(AND(Y7<>L13),1,"") ->  | Z13: =IF(AND(Z7<>L13),1,"") ->  | AA13: =IF(AND(AA7<>L13),1,"") ->  | AB13: =IF(AND(AB7<>L13),1,"") ->  | AC13: =IF(AND(AC7<>L13),1,"") ->  | AD13: =IF(AND(AD7<>L13),1,"") ->  | AE13: =IF(AND(AE7<>L13),1,"") ->  | AF13: =IF(AND(AF7<>L13),1,"") ->  | AG13: =IF(AND(AG7<>L13),1,"") ->  | AH13: =IF(AND(AH7<>L13),1,"") ->  | AI13: =IF(AND(AI7<>L13),1,"") ->  | AJ13: =IF(AND(AJ7<>L13),1,"") ->  | AK13: =IF(AND(AK7<>L13),1,"") ->  | AN13: =R$7 ->  | AO13: FALSE | AP13: 6
B14: =SUMIF(F18A!$A$9:$A$60,'F18'!A14,F18A!$B$9:$B$60) -> 0 | C14: =SUMIF(F18A!$A$9:$A$60,'F18'!A14,F18A!$C$9:$C$60) -> 0 | D14: 0 | E14: =SUMIF(F18A!$A$9:$A$60,'F18'!A14,F18A!$E$9:$E$60) -> 0 | F14: =SUMIF(F18A!$A$9:$A$60,'F18'!A14,F18A!$F$9:$F$60) -> 0 | G14: 0 | L14: =IF(AND(F18A!A42=0),"",F18A!A42) ->  | M14: =IF(AND(M7<>L14),1,"") -> 1 | N14: =IF(AND(N7<>L14),1,"") ->  | O14: =IF(AND(O7<>L14),1,"") ->  | P14: =IF(AND(P7<>L14),1,"") ->  | Q14: =IF(AND(Q7<>L14),1,"") ->  | R14: =IF(AND(R7<>L14),1,"") ->  | S14: =IF(AND(S7<>L14),1,"") ->  | T14: =IF(AND(T7<>L14),1,"") ->  | U14: =IF(AND(U7<>L14),1,"") ->  | V14: =IF(AND(V7<>L14),1,"") ->  | W14: =IF(AND(W7<>L14),1,"") ->  | X14: =IF(AND(X7<>L14),1,"") ->  | Y14: =IF(AND(Y7<>L14),1,"") ->  | Z14: =IF(AND(Z7<>L14),1,"") ->  | AA14: =IF(AND(AA7<>L14),1,"") ->  | AB14: =IF(AND(AB7<>L14),1,"") ->  | AC14: =IF(AND(AC7<>L14),1,"") ->  | AD14: =IF(AND(AD7<>L14),1,"") ->  | AE14: =IF(AND(AE7<>L14),1,"") ->  | AF14: =IF(AND(AF7<>L14),1,"") ->  | AG14: =IF(AND(AG7<>L14),1,"") ->  | AH14: =IF(AND(AH7<>L14),1,"") ->  | AI14: =IF(AND(AI7<>L14),1,"") ->  | AJ14: =IF(AND(AJ7<>L14),1,"") ->  | AK14: =IF(AND(AK7<>L14),1,"") ->  | AN14: =S$7 ->  | AO14: =IF(AN$8:AN$57<>"",ROW(AN14:AN62)) -> FALSE | AP14: 7
B15: =SUMIF(F18A!$A$9:$A$60,'F18'!A15,F18A!$B$9:$B$60) -> 0 | C15: =SUMIF(F18A!$A$9:$A$60,'F18'!A15,F18A!$C$9:$C$60) -> 0 | D15: 0 | E15: =SUMIF(F18A!$A$9:$A$60,'F18'!A15,F18A!$E$9:$E$60) -> 0 | F15: =SUMIF(F18A!$A$9:$A$60,'F18'!A15,F18A!$F$9:$F$60) -> 0 | G15: 0 | L15: =IF(AND(F18A!A43=0),"",F18A!A43) ->  | M15: =IF(AND(M7<>L15),1,"") -> 1 | N15: =IF(AND(N7<>L15),1,"") ->  | O15: =IF(AND(O7<>L15),1,"") ->  | P15: =IF(AND(P7<>L15),1,"") ->  | Q15: =IF(AND(Q7<>L15),1,"") ->  | R15: =IF(AND(R7<>L15),1,"") ->  | S15: =IF(AND(S7<>L15),1,"") ->  | T15: =IF(AND(T7<>L15),1,"") ->  | U15: =IF(AND(U7<>L15),1,"") ->  | V15: =IF(AND(V7<>L15),1,"") ->  | W15: =IF(AND(W7<>L15),1,"") ->  | X15: =IF(AND(X7<>L15),1,"") ->  | Y15: =IF(AND(Y7<>L15),1,"") ->  | Z15: =IF(AND(Z7<>L15),1,"") ->  | AA15: =IF(AND(AA7<>L15),1,"") ->  | AB15: =IF(AND(AB7<>L15),1,"") ->  | AC15: =IF(AND(AC7<>L15),1,"") ->  | AD15: =IF(AND(AD7<>L15),1,"") ->  | AE15: =IF(AND(AE7<>L15),1,"") ->  | AF15: =IF(AND(AF7<>L15),1,"") ->  | AG15: =IF(AND(AG7<>L15),1,"") ->  | AH15: =IF(AND(AH7<>L15),1,"") ->  | AI15: =IF(AND(AI7<>L15),1,"") ->  | AJ15: =IF(AND(AJ7<>L15),1,"") ->  | AK15: =IF(AND(AK7<>L15),1,"") ->  | AN15: =T$7 ->  | AO15: =IF(AN$8:AN$57<>"",ROW(AN15:AN62)) -> FALSE | AP15: 8
B16: =SUMIF(F18A!$A$9:$A$60,'F18'!A16,F18A!$B$9:$B$60) -> 0 | C16: =SUMIF(F18A!$A$9:$A$60,'F18'!A16,F18A!$C$9:$C$60) -> 0 | D16: 0 | E16: =SUMIF(F18A!$A$9:$A$60,'F18'!A16,F18A!$E$9:$E$60) -> 0 | F16: =SUMIF(F18A!$A$9:$A$60,'F18'!A16,F18A!$F$9:$F$60) -> 0 | G16: 0 | L16: =IF(AND(F18A!A44=0),"",F18A!A44) ->  | M16: =IF(AND(M7<>L16),1,"") -> 1 | N16: =IF(AND(N7<>L16),1,"") ->  | O16: =IF(AND(O7<>L16),1,"") ->  | P16: =IF(AND(P7<>L16),1,"") ->  | Q16: =IF(AND(Q7<>L16),1,"") ->  | R16: =IF(AND(R7<>L16),1,"") ->  | S16: =IF(AND(S7<>L16),1,"") ->  | T16: =IF(AND(T7<>L16),1,"") ->  | U16: =IF(AND(U7<>L16),1,"") ->  | V16: =IF(AND(V7<>L16),1,"") ->  | W16: =IF(AND(W7<>L16),1,"") ->  | X16: =IF(AND(X7<>L16),1,"") ->  | Y16: =IF(AND(Y7<>L16),1,"") ->  | Z16: =IF(AND(Z7<>L16),1,"") ->  | AA16: =IF(AND(AA7<>L16),1,"") ->  | AB16: =IF(AND(AB7<>L16),1,"") ->  | AC16: =IF(AND(AC7<>L16),1,"") ->  | AD16: =IF(AND(AD7<>L16),1,"") ->  | AE16: =IF(AND(AE7<>L16),1,"") ->  | AF16: =IF(AND(AF7<>L16),1,"") ->  | AG16: =IF(AND(AG7<>L16),1,"") ->  | AH16: =IF(AND(AH7<>L16),1,"") ->  | AI16: =IF(AND(AI7<>L16),1,"") ->  | AJ16: =IF(AND(AJ7<>L16),1,"") ->  | AK16: =IF(AND(AK7<>L16),1,"") ->  | AN16: =U$7 ->  | AO16: =IF(AN$8:AN$57<>"",ROW(AN16:AN62)) -> FALSE | AP16: 9
B17: =SUMIF(F18A!$A$9:$A$60,'F18'!A17,F18A!$B$9:$B$60) -> 0 | C17: =SUMIF(F18A!$A$9:$A$60,'F18'!A17,F18A!$C$9:$C$60) -> 0 | D17: 0 | E17: =SUMIF(F18A!$A$9:$A$60,'F18'!A17,F18A!$E$9:$E$60) -> 0 | F17: =SUMIF(F18A!$A$9:$A$60,'F18'!A17,F18A!$F$9:$F$60) -> 0 | G17: 0 | L17: =IF(AND(F18A!A45=0),"",F18A!A45) ->  | M17: =IF(AND(M7<>L17),1,"") -> 1 | N17: =IF(AND(N7<>L17),1,"") ->  | O17: =IF(AND(O7<>L17),1,"") ->  | P17: =IF(AND(P7<>L17),1,"") ->  | Q17: =IF(AND(Q7<>L17),1,"") ->  | R17: =IF(AND(R7<>L17),1,"") ->  | S17: =IF(AND(S7<>L17),1,"") ->  | T17: =IF(AND(T7<>L17),1,"") ->  | U17: =IF(AND(U7<>L17),1,"") ->  | V17: =IF(AND(V7<>L17),1,"") ->  | W17: =IF(AND(W7<>L17),1,"") ->  | X17: =IF(AND(X7<>L17),1,"") ->  | Y17: =IF(AND(Y7<>L17),1,"") ->  | Z17: =IF(AND(Z7<>L17),1,"") ->  | AA17: =IF(AND(AA7<>L17),1,"") ->  | AB17: =IF(AND(AB7<>L17),1,"") ->  | AC17: =IF(AND(AC7<>L17),1,"") ->  | AD17: =IF(AND(AD7<>L17),1,"") ->  | AE17: =IF(AND(AE7<>L17),1,"") ->  | AF17: =IF(AND(AF7<>L17),1,"") ->  | AG17: =IF(AND(AG7<>L17),1,"") ->  | AH17: =IF(AND(AH7<>L17),1,"") ->  | AI17: =IF(AND(AI7<>L17),1,"") ->  | AJ17: =IF(AND(AJ7<>L17),1,"") ->  | AK17: =IF(AND(AK7<>L17),1,"") ->  | AN17: =V$7 ->  | AO17: =IF(AN$8:AN$57<>"",ROW(AN17:AN62)) -> FALSE | AP17: 10
B18: =SUMIF(F18A!$A$9:$A$60,'F18'!A18,F18A!$B$9:$B$60) -> 0 | C18: =SUMIF(F18A!$A$9:$A$60,'F18'!A18,F18A!$C$9:$C$60) -> 0 | D18: 0 | E18: =SUMIF(F18A!$A$9:$A$60,'F18'!A18,F18A!$E$9:$E$60) -> 0 | F18: =SUMIF(F18A!$A$9:$A$60,'F18'!A18,F18A!$F$9:$F$60) -> 0 | G18: 0 | L18: =IF(AND(F18A!A46=0),"",F18A!A46) ->  | M18: =IF(AND(M7<>L18),1,"") -> 1 | N18: =IF(AND(N7<>L18),1,"") ->  | O18: =IF(AND(O7<>L18),1,"") ->  | P18: =IF(AND(P7<>L18),1,"") ->  | Q18: =IF(AND(Q7<>L18),1,"") ->  | R18: =IF(AND(R7<>L18),1,"") ->  | S18: =IF(AND(S7<>L18),1,"") ->  | T18: =IF(AND(T7<>L18),1,"") ->  | U18: =IF(AND(U7<>L18),1,"") ->  | V18: =IF(AND(V7<>L18),1,"") ->  | W18: =IF(AND(W7<>L18),1,"") ->  | X18: =IF(AND(X7<>L18),1,"") ->  | Y18: =IF(AND(Y7<>L18),1,"") ->  | Z18: =IF(AND(Z7<>L18),1,"") ->  | AA18: =IF(AND(AA7<>L18),1,"") ->  | AB18: =IF(AND(AB7<>L18),1,"") ->  | AC18: =IF(AND(AC7<>L18),1,"") ->  | AD18: =IF(AND(AD7<>L18),1,"") ->  | AE18: =IF(AND(AE7<>L18),1,"") ->  | AF18: =IF(AND(AF7<>L18),1,"") ->  | AG18: =IF(AND(AG7<>L18),1,"") ->  | AH18: =IF(AND(AH7<>L18),1,"") ->  | AI18: =IF(AND(AI7<>L18),1,"") ->  | AJ18: =IF(AND(AJ7<>L18),1,"") ->  | AK18: =IF(AND(AK7<>L18),1,"") ->  | AN18: =W$7 ->  | AO18: =IF(AN$8:AN$57<>"",ROW(AN18:AN62)) -> FALSE | AP18: 11
B19: =SUMIF(F18A!$A$9:$A$60,'F18'!A19,F18A!$B$9:$B$60) -> 0 | C19: =SUMIF(F18A!$A$9:$A$60,'F18'!A19,F18A!$C$9:$C$60) -> 0 | D19: 0 | E19: =SUMIF(F18A!$A$9:$A$60,'F18'!A19,F18A!$E$9:$E$60) -> 0 | F19: =SUMIF(F18A!$A$9:$A$60,'F18'!A19,F18A!$F$9:$F$60) -> 0 | G19: 0 | L19: =IF(AND(F18A!A47=0),"",F18A!A47) ->  | M19: =IF(AND(M7<>L19),1,"") -> 1 | N19: =IF(AND(N7<>L19),1,"") ->  | O19: =IF(AND(O7<>L19),1,"") ->  | P19: =IF(AND(P7<>L19),1,"") ->  | Q19: =IF(AND(Q7<>L19),1,"") ->  | R19: =IF(AND(R7<>L19),1,"") ->  | S19: =IF(AND(S7<>L19),1,"") ->  | T19: =IF(AND(T7<>L19),1,"") ->  | U19: =IF(AND(U7<>L19),1,"") ->  | V19: =IF(AND(V7<>L19),1,"") ->  | W19: =IF(AND(W7<>L19),1,"") ->  | X19: =IF(AND(X7<>L19),1,"") ->  | Y19: =IF(AND(Y7<>L19),1,"") ->  | Z19: =IF(AND(Z7<>L19),1,"") ->  | AA19: =IF(AND(AA7<>L19),1,"") ->  | AB19: =IF(AND(AB7<>L19),1,"") ->  | AC19: =IF(AND(AC7<>L19),1,"") ->  | AD19: =IF(AND(AD7<>L19),1,"") ->  | AE19: =IF(AND(AE7<>L19),1,"") ->  | AF19: =IF(AND(AF7<>L19),1,"") ->  | AG19: =IF(AND(AG7<>L19),1,"") ->  | AH19: =IF(AND(AH7<>L19),1,"") ->  | AI19: =IF(AND(AI7<>L19),1,"") ->  | AJ19: =IF(AND(AJ7<>L19),1,"") ->  | AK19: =IF(AND(AK7<>L19),1,"") ->  | AN19: =X$7 ->  | AO19: =IF(AN$8:AN$57<>"",ROW(AN19:AN62)) -> FALSE | AP19: 12
B20: =SUMIF(F18A!$A$9:$A$60,'F18'!A20,F18A!$B$9:$B$60) -> 0 | C20: =SUMIF(F18A!$A$9:$A$60,'F18'!A20,F18A!$C$9:$C$60) -> 0 | D20: 0 | E20: =SUMIF(F18A!$A$9:$A$60,'F18'!A20,F18A!$E$9:$E$60) -> 0 | F20: =SUMIF(F18A!$A$9:$A$60,'F18'!A20,F18A!$F$9:$F$60) -> 0 | G20: 0 | L20: =IF(AND(F18A!A48=0),"",F18A!A48) ->  | M20: =IF(AND(M7<>L20),1,"") -> 1 | N20: =IF(AND(N7<>L20),1,"") ->  | O20: =IF(AND(O7<>L20),1,"") ->  | P20: =IF(AND(P7<>L20),1,"") ->  | Q20: =IF(AND(Q7<>L20),1,"") ->  | R20: =IF(AND(R7<>L20),1,"") ->  | S20: =IF(AND(S7<>L20),1,"") ->  | T20: =IF(AND(T7<>L20),1,"") ->  | U20: =IF(AND(U7<>L20),1,"") ->  | V20: =IF(AND(V7<>L20),1,"") ->  | W20: =IF(AND(W7<>L20),1,"") ->  | X20: =IF(AND(X7<>L20),1,"") ->  | Y20: =IF(AND(Y7<>L20),1,"") ->  | Z20: =IF(AND(Z7<>L20),1,"") ->  | AA20: =IF(AND(AA7<>L20),1,"") ->  | AB20: =IF(AND(AB7<>L20),1,"") ->  | AC20: =IF(AND(AC7<>L20),1,"") ->  | AD20: =IF(AND(AD7<>L20),1,"") ->  | AE20: =IF(AND(AE7<>L20),1,"") ->  | AF20: =IF(AND(AF7<>L20),1,"") ->  | AG20: =IF(AND(AG7<>L20),1,"") ->  | AH20: =IF(AND(AH7<>L20),1,"") ->  | AI20: =IF(AND(AI7<>L20),1,"") ->  | AJ20: =IF(AND(AJ7<>L20),1,"") ->  | AK20: =IF(AND(AK7<>L20),1,"") ->  | AN20: =Y$7 ->  | AO20: FALSE | AP20: 13
B21: =SUMIF(F18A!$A$9:$A$60,'F18'!A21,F18A!$B$9:$B$60) -> 0 | C21: =SUMIF(F18A!$A$9:$A$60,'F18'!A21,F18A!$C$9:$C$60) -> 0 | D21: 0 | E21: =SUMIF(F18A!$A$9:$A$60,'F18'!A21,F18A!$E$9:$E$60) -> 0 | F21: =SUMIF(F18A!$A$9:$A$60,'F18'!A21,F18A!$F$9:$F$60) -> 0 | G21: 0 | L21: =IF(AND(F18A!A49=0),"",F18A!A49) ->  | M21: =IF(AND(M7<>L21),1,"") -> 1 | N21: =IF(AND(N7<>L21),1,"") ->  | O21: =IF(AND(O7<>L21),1,"") ->  | P21: =IF(AND(P7<>L21),1,"") ->  | Q21: =IF(AND(Q7<>L21),1,"") ->  | R21: =IF(AND(R7<>L21),1,"") ->  | S21: =IF(AND(S7<>L21),1,"") ->  | T21: =IF(AND(T7<>L21),1,"") ->  | U21: =IF(AND(U7<>L21),1,"") ->  | V21: =IF(AND(V7<>L21),1,"") ->  | W21: =IF(AND(W7<>L21),1,"") ->  | X21: =IF(AND(X7<>L21),1,"") ->  | Y21: =IF(AND(Y7<>L21),1,"") ->  | Z21: =IF(AND(Z7<>L21),1,"") ->  | AA21: =IF(AND(AA7<>L21),1,"") ->  | AB21: =IF(AND(AB7<>L21),1,"") ->  | AC21: =IF(AND(AC7<>L21),1,"") ->  | AD21: =IF(AND(AD7<>L21),1,"") ->  | AE21: =IF(AND(AE7<>L21),1,"") ->  | AF21: =IF(AND(AF7<>L21),1,"") ->  | AG21: =IF(AND(AG7<>L21),1,"") ->  | AH21: =IF(AND(AH7<>L21),1,"") ->  | AI21: =IF(AND(AI7<>L21),1,"") ->  | AJ21: =IF(AND(AJ7<>L21),1,"") ->  | AK21: =IF(AND(AK7<>L21),1,"") ->  | AN21: =Z$7 ->  | AO21: FALSE | AP21: 14
B22: =SUMIF(F18A!$A$9:$A$60,'F18'!A22,F18A!$B$9:$B$60) -> 0 | C22: =SUMIF(F18A!$A$9:$A$60,'F18'!A22,F18A!$C$9:$C$60) -> 0 | D22: 0 | E22: =SUMIF(F18A!$A$9:$A$60,'F18'!A22,F18A!$E$9:$E$60) -> 0 | F22: =SUMIF(F18A!$A$9:$A$60,'F18'!A22,F18A!$F$9:$F$60) -> 0 | G22: 0 | L22: =IF(AND(F18A!A50=0),"",F18A!A50) ->  | M22: =IF(AND(M7<>L22),1,"") -> 1 | N22: =IF(AND(N7<>L22),1,"") ->  | O22: =IF(AND(O7<>L22),1,"") ->  | P22: =IF(AND(P7<>L22),1,"") ->  | Q22: =IF(AND(Q7<>L22),1,"") ->  | R22: =IF(AND(R7<>L22),1,"") ->  | S22: =IF(AND(S7<>L22),1,"") ->  | T22: =IF(AND(T7<>L22),1,"") ->  | U22: =IF(AND(U7<>L22),1,"") ->  | V22: =IF(AND(V7<>L22),1,"") ->  | W22: =IF(AND(W7<>L22),1,"") ->  | X22: =IF(AND(X7<>L22),1,"") ->  | Y22: =IF(AND(Y7<>L22),1,"") ->  | Z22: =IF(AND(Z7<>L22),1,"") ->  | AA22: =IF(AND(AA7<>L22),1,"") ->  | AB22: =IF(AND(AB7<>L22),1,"") ->  | AC22: =IF(AND(AC7<>L22),1,"") ->  | AD22: =IF(AND(AD7<>L22),1,"") ->  | AE22: =IF(AND(AE7<>L22),1,"") ->  | AF22: =IF(AND(AF7<>L22),1,"") ->  | AG22: =IF(AND(AG7<>L22),1,"") ->  | AH22: =IF(AND(AH7<>L22),1,"") ->  | AI22: =IF(AND(AI7<>L22),1,"") ->  | AJ22: =IF(AND(AJ7<>L22),1,"") ->  | AK22: =IF(AND(AK7<>L22),1,"") ->  | AN22: =AA$7 ->  | AO22: FALSE | AP22: 15
B23: =SUMIF(F18A!$A$9:$A$60,'F18'!A23,F18A!$B$9:$B$60) -> 0 | C23: =SUMIF(F18A!$A$9:$A$60,'F18'!A23,F18A!$C$9:$C$60) -> 0 | D23: 0 | E23: =SUMIF(F18A!$A$9:$A$60,'F18'!A23,F18A!$E$9:$E$60) -> 0 | F23: =SUMIF(F18A!$A$9:$A$60,'F18'!A23,F18A!$F$9:$F$60) -> 0 | G23: 0 | L23: =IF(AND(F18A!A51=0),"",F18A!A51) ->  | M23: =IF(AND(M7<>L23),1,"") -> 1 | N23: =IF(AND(N7<>L23),1,"") ->  | O23: =IF(AND(O7<>L23),1,"") ->  | P23: =IF(AND(P7<>L23),1,"") ->  | Q23: =IF(AND(Q7<>L23),1,"") ->  | R23: =IF(AND(R7<>L23),1,"") ->  | S23: =IF(AND(S7<>L23),1,"") ->  | T23: =IF(AND(T7<>L23),1,"") ->  | U23: =IF(AND(U7<>L23),1,"") ->  | V23: =IF(AND(V7<>L23),1,"") ->  | W23: =IF(AND(W7<>L23),1,"") ->  | X23: =IF(AND(X7<>L23),1,"") ->  | Y23: =IF(AND(Y7<>L23),1,"") ->  | Z23: =IF(AND(Z7<>L23),1,"") ->  | AA23: =IF(AND(AA7<>L23),1,"") ->  | AB23: =IF(AND(AB7<>L23),1,"") ->  | AC23: =IF(AND(AC7<>L23),1,"") ->  | AD23: =IF(AND(AD7<>L23),1,"") ->  | AE23: =IF(AND(AE7<>L23),1,"") ->  | AF23: =IF(AND(AF7<>L23),1,"") ->  | AG23: =IF(AND(AG7<>L23),1,"") ->  | AH23: =IF(AND(AH7<>L23),1,"") ->  | AI23: =IF(AND(AI7<>L23),1,"") ->  | AJ23: =IF(AND(AJ7<>L23),1,"") ->  | AK23: =IF(AND(AK7<>L23),1,"") ->  | AN23: =AB$7 ->  | AO23: FALSE | AP23: 16
B24: =SUMIF(F18A!$A$9:$A$60,'F18'!A24,F18A!$B$9:$B$60) -> 0 | C24: =SUMIF(F18A!$A$9:$A$60,'F18'!A24,F18A!$C$9:$C$60) -> 0 | D24: 0 | E24: =SUMIF(F18A!$A$9:$A$60,'F18'!A24,F18A!$E$9:$E$60) -> 0 | F24: =SUMIF(F18A!$A$9:$A$60,'F18'!A24,F18A!$F$9:$F$60) -> 0 | G24: 0 | L24: =IF(AND(F18A!A52=0),"",F18A!A52) ->  | M24: =IF(AND(M7<>L24),1,"") -> 1 | N24: =IF(AND(N7<>L24),1,"") ->  | O24: =IF(AND(O7<>L24),1,"") ->  | P24: =IF(AND(P7<>L24),1,"") ->  | Q24: =IF(AND(Q7<>L24),1,"") ->  | R24: =IF(AND(R7<>L24),1,"") ->  | S24: =IF(AND(S7<>L24),1,"") ->  | T24: =IF(AND(T7<>L24),1,"") ->  | U24: =IF(AND(U7<>L24),1,"") ->  | V24: =IF(AND(V7<>L24),1,"") ->  | W24: =IF(AND(W7<>L24),1,"") ->  | X24: =IF(AND(X7<>L24),1,"") ->  | Y24: =IF(AND(Y7<>L24),1,"") ->  | Z24: =IF(AND(Z7<>L24),1,"") ->  | AA24: =IF(AND(AA7<>L24),1,"") ->  | AB24: =IF(AND(AB7<>L24),1,"") ->  | AC24: =IF(AND(AC7<>L24),1,"") ->  | AD24: =IF(AND(AD7<>L24),1,"") ->  | AE24: =IF(AND(AE7<>L24),1,"") ->  | AF24: =IF(AND(AF7<>L24),1,"") ->  | AG24: =IF(AND(AG7<>L24),1,"") ->  | AH24: =IF(AND(AH7<>L24),1,"") ->  | AI24: =IF(AND(AI7<>L24),1,"") ->  | AJ24: =IF(AND(AJ7<>L24),1,"") ->  | AK24: =IF(AND(AK7<>L24),1,"") ->  | AN24: =AC$7 ->  | AO24: FALSE | AP24: 17
B25: =SUMIF(F18A!$A$9:$A$60,'F18'!A25,F18A!$B$9:$B$60) -> 0 | C25: =SUMIF(F18A!$A$9:$A$60,'F18'!A25,F18A!$C$9:$C$60) -> 0 | D25: 0 | E25: =SUMIF(F18A!$A$9:$A$60,'F18'!A25,F18A!$E$9:$E$60) -> 0 | F25: =SUMIF(F18A!$A$9:$A$60,'F18'!A25,F18A!$F$9:$F$60) -> 0 | G25: 0 | L25: =IF(AND(F18A!A53=0),"",F18A!A53) ->  | M25: =IF(AND(M7<>L25),1,"") -> 1 | N25: =IF(AND(N7<>L25),1,"") ->  | O25: =IF(AND(O7<>L25),1,"") ->  | P25: =IF(AND(P7<>L25),1,"") ->  | Q25: =IF(AND(Q7<>L25),1,"") ->  | R25: =IF(AND(R7<>L25),1,"") ->  | S25: =IF(AND(S7<>L25),1,"") ->  | T25: =IF(AND(T7<>L25),1,"") ->  | U25: =IF(AND(U7<>L25),1,"") ->  | V25: =IF(AND(V7<>L25),1,"") ->  | W25: =IF(AND(W7<>L25),1,"") ->  | X25: =IF(AND(X7<>L25),1,"") ->  | Y25: =IF(AND(Y7<>L25),1,"") ->  | Z25: =IF(AND(Z7<>L25),1,"") ->  | AA25: =IF(AND(AA7<>L25),1,"") ->  | AB25: =IF(AND(AB7<>L25),1,"") ->  | AC25: =IF(AND(AC7<>L25),1,"") ->  | AD25: =IF(AND(AD7<>L25),1,"") ->  | AE25: =IF(AND(AE7<>L25),1,"") ->  | AF25: =IF(AND(AF7<>L25),1,"") ->  | AG25: =IF(AND(AG7<>L25),1,"") ->  | AH25: =IF(AND(AH7<>L25),1,"") ->  | AI25: =IF(AND(AI7<>L25),1,"") ->  | AJ25: =IF(AND(AJ7<>L25),1,"") ->  | AK25: =IF(AND(AK7<>L25),1,"") ->  | AN25: =AD$7 ->  | AO25: FALSE | AP25: 18
B26: =SUMIF(F18A!$A$9:$A$60,'F18'!A26,F18A!$B$9:$B$60) -> 0 | C26: =SUMIF(F18A!$A$9:$A$60,'F18'!A26,F18A!$C$9:$C$60) -> 0 | D26: 0 | E26: =SUMIF(F18A!$A$9:$A$60,'F18'!A26,F18A!$E$9:$E$60) -> 0 | F26: =SUMIF(F18A!$A$9:$A$60,'F18'!A26,F18A!$F$9:$F$60) -> 0 | G26: 0 | L26: =IF(AND(F18A!A54=0),"",F18A!A54) ->  | M26: =IF(AND(M7<>L26),1,"") -> 1 | N26: =IF(AND(N7<>L26),1,"") ->  | O26: =IF(AND(O7<>L26),1,"") ->  | P26: =IF(AND(P7<>L26),1,"") ->  | Q26: =IF(AND(Q7<>L26),1,"") ->  | R26: =IF(AND(R7<>L26),1,"") ->  | S26: =IF(AND(S7<>L26),1,"") ->  | T26: =IF(AND(T7<>L26),1,"") ->  | U26: =IF(AND(U7<>L26),1,"") ->  | V26: =IF(AND(V7<>L26),1,"") ->  | W26: =IF(AND(W7<>L26),1,"") ->  | X26: =IF(AND(X7<>L26),1,"") ->  | Y26: =IF(AND(Y7<>L26),1,"") ->  | Z26: =IF(AND(Z7<>L26),1,"") ->  | AA26: =IF(AND(AA7<>L26),1,"") ->  | AB26: =IF(AND(AB7<>L26),1,"") ->  | AC26: =IF(AND(AC7<>L26),1,"") ->  | AD26: =IF(AND(AD7<>L26),1,"") ->  | AE26: =IF(AND(AE7<>L26),1,"") ->  | AF26: =IF(AND(AF7<>L26),1,"") ->  | AG26: =IF(AND(AG7<>L26),1,"") ->  | AH26: =IF(AND(AH7<>L26),1,"") ->  | AI26: =IF(AND(AI7<>L26),1,"") ->  | AJ26: =IF(AND(AJ7<>L26),1,"") ->  | AK26: =IF(AND(AK7<>L26),1,"") ->  | AN26: =AE$7 ->  | AO26: FALSE | AP26: 19
B27: =SUMIF(F18A!$A$9:$A$60,'F18'!A27,F18A!$B$9:$B$60) -> 0 | C27: =SUMIF(F18A!$A$9:$A$60,'F18'!A27,F18A!$C$9:$C$60) -> 0 | D27: 0 | E27: =SUMIF(F18A!$A$9:$A$60,'F18'!A27,F18A!$E$9:$E$60) -> 0 | F27: =SUMIF(F18A!$A$9:$A$60,'F18'!A27,F18A!$F$9:$F$60) -> 0 | G27: 0 | L27: =IF(AND(F18A!A55=0),"",F18A!A55) ->  | M27: =IF(AND(M7<>L27),1,"") -> 1 | N27: =IF(AND(N7<>L27),1,"") ->  | O27: =IF(AND(O7<>L27),1,"") ->  | P27: =IF(AND(P7<>L27),1,"") ->  | Q27: =IF(AND(Q7<>L27),1,"") ->  | R27: =IF(AND(R7<>L27),1,"") ->  | S27: =IF(AND(S7<>L27),1,"") ->  | T27: =IF(AND(T7<>L27),1,"") ->  | U27: =IF(AND(U7<>L27),1,"") ->  | V27: =IF(AND(V7<>L27),1,"") ->  | W27: =IF(AND(W7<>L27),1,"") ->  | X27: =IF(AND(X7<>L27),1,"") ->  | Y27: =IF(AND(Y7<>L27),1,"") ->  | Z27: =IF(AND(Z7<>L27),1,"") ->  | AA27: =IF(AND(AA7<>L27),1,"") ->  | AB27: =IF(AND(AB7<>L27),1,"") ->  | AC27: =IF(AND(AC7<>L27),1,"") ->  | AD27: =IF(AND(AD7<>L27),1,"") ->  | AE27: =IF(AND(AE7<>L27),1,"") ->  | AF27: =IF(AND(AF7<>L27),1,"") ->  | AG27: =IF(AND(AG7<>L27),1,"") ->  | AH27: =IF(AND(AH7<>L27),1,"") ->  | AI27: =IF(AND(AI7<>L27),1,"") ->  | AJ27: =IF(AND(AJ7<>L27),1,"") ->  | AK27: =IF(AND(AK7<>L27),1,"") ->  | AN27: =AF$7 ->  | AO27: FALSE | AP27: 20
B28: =SUMIF(F18A!$A$9:$A$60,'F18'!A28,F18A!$B$9:$B$60) -> 0 | C28: =SUMIF(F18A!$A$9:$A$60,'F18'!A28,F18A!$C$9:$C$60) -> 0 | D28: 0 | E28: =SUMIF(F18A!$A$9:$A$60,'F18'!A28,F18A!$E$9:$E$60) -> 0 | F28: =SUMIF(F18A!$A$9:$A$60,'F18'!A28,F18A!$F$9:$F$60) -> 0 | G28: 0 | L28: =IF(AND(F18A!A56=0),"",F18A!A56) ->  | M28: =IF(AND(M7<>L28),1,"") -> 1 | N28: =IF(AND(N7<>L28),1,"") ->  | O28: =IF(AND(O7<>L28),1,"") ->  | P28: =IF(AND(P7<>L28),1,"") ->  | Q28: =IF(AND(Q7<>L28),1,"") ->  | R28: =IF(AND(R7<>L28),1,"") ->  | S28: =IF(AND(S7<>L28),1,"") ->  | T28: =IF(AND(T7<>L28),1,"") ->  | U28: =IF(AND(U7<>L28),1,"") ->  | V28: =IF(AND(V7<>L28),1,"") ->  | W28: =IF(AND(W7<>L28),1,"") ->  | X28: =IF(AND(X7<>L28),1,"") ->  | Y28: =IF(AND(Y7<>L28),1,"") ->  | Z28: =IF(AND(Z7<>L28),1,"") ->  | AA28: =IF(AND(AA7<>L28),1,"") ->  | AB28: =IF(AND(AB7<>L28),1,"") ->  | AC28: =IF(AND(AC7<>L28),1,"") ->  | AD28: =IF(AND(AD7<>L28),1,"") ->  | AE28: =IF(AND(AE7<>L28),1,"") ->  | AF28: =IF(AND(AF7<>L28),1,"") ->  | AG28: =IF(AND(AG7<>L28),1,"") ->  | AH28: =IF(AND(AH7<>L28),1,"") ->  | AI28: =IF(AND(AI7<>L28),1,"") ->  | AJ28: =IF(AND(AJ7<>L28),1,"") ->  | AK28: =IF(AND(AK7<>L28),1,"") ->  | AN28: =AG$7 ->  | AO28: FALSE | AP28: 21
B29: =SUMIF(F18A!$A$9:$A$60,'F18'!A29,F18A!$B$9:$B$60) -> 0 | C29: =SUMIF(F18A!$A$9:$A$60,'F18'!A29,F18A!$C$9:$C$60) -> 0 | D29: 0 | E29: =SUMIF(F18A!$A$9:$A$60,'F18'!A29,F18A!$E$9:$E$60) -> 0 | F29: =SUMIF(F18A!$A$9:$A$60,'F18'!A29,F18A!$F$9:$F$60) -> 0 | G29: 0 | L29: =IF(AND(F18A!A57=0),"",F18A!A57) ->  | M29: =IF(AND(M7<>L29),1,"") -> 1 | N29: =IF(AND(N7<>L29),1,"") ->  | O29: =IF(AND(O7<>L29),1,"") ->  | P29: =IF(AND(P7<>L29),1,"") ->  | Q29: =IF(AND(Q7<>L29),1,"") ->  | R29: =IF(AND(R7<>L29),1,"") ->  | S29: =IF(AND(S7<>L29),1,"") ->  | T29: =IF(AND(T7<>L29),1,"") ->  | U29: =IF(AND(U7<>L29),1,"") ->  | V29: =IF(AND(V7<>L29),1,"") ->  | W29: =IF(AND(W7<>L29),1,"") ->  | X29: =IF(AND(X7<>L29),1,"") ->  | Y29: =IF(AND(Y7<>L29),1,"") ->  | Z29: =IF(AND(Z7<>L29),1,"") ->  | AA29: =IF(AND(AA7<>L29),1,"") ->  | AB29: =IF(AND(AB7<>L29),1,"") ->  | AC29: =IF(AND(AC7<>L29),1,"") ->  | AD29: =IF(AND(AD7<>L29),1,"") ->  | AE29: =IF(AND(AE7<>L29),1,"") ->  | AF29: =IF(AND(AF7<>L29),1,"") ->  | AG29: =IF(AND(AG7<>L29),1,"") ->  | AH29: =IF(AND(AH7<>L29),1,"") ->  | AI29: =IF(AND(AI7<>L29),1,"") ->  | AJ29: =IF(AND(AJ7<>L29),1,"") ->  | AK29: =IF(AND(AK7<>L29),1,"") ->  | AN29: =AH$7 ->  | AO29: FALSE | AP29: 22
B30: =SUMIF(F18A!$A$9:$A$60,'F18'!A30,F18A!$B$9:$B$60) -> 0 | C30: =SUMIF(F18A!$A$9:$A$60,'F18'!A30,F18A!$C$9:$C$60) -> 0 | D30: 0 | E30: =SUMIF(F18A!$A$9:$A$60,'F18'!A30,F18A!$E$9:$E$60) -> 0 | F30: =SUMIF(F18A!$A$9:$A$60,'F18'!A30,F18A!$F$9:$F$60) -> 0 | G30: 0 | L30: =IF(AND(F18A!A58=0),"",F18A!A58) ->  | M30: =IF(AND(M7<>L30),1,"") -> 1 | N30: =IF(AND(N7<>L30),1,"") ->  | O30: =IF(AND(O7<>L30),1,"") ->  | P30: =IF(AND(P7<>L30),1,"") ->  | Q30: =IF(AND(Q7<>L30),1,"") ->  | R30: =IF(AND(R7<>L30),1,"") ->  | S30: =IF(AND(S7<>L30),1,"") ->  | T30: =IF(AND(T7<>L30),1,"") ->  | U30: =IF(AND(U7<>L30),1,"") ->  | V30: =IF(AND(V7<>L30),1,"") ->  | W30: =IF(AND(W7<>L30),1,"") ->  | X30: =IF(AND(X7<>L30),1,"") ->  | Y30: =IF(AND(Y7<>L30),1,"") ->  | Z30: =IF(AND(Z7<>L30),1,"") ->  | AA30: =IF(AND(AA7<>L30),1,"") ->  | AB30: =IF(AND(AB7<>L30),1,"") ->  | AC30: =IF(AND(AC7<>L30),1,"") ->  | AD30: =IF(AND(AD7<>L30),1,"") ->  | AE30: =IF(AND(AE7<>L30),1,"") ->  | AF30: =IF(AND(AF7<>L30),1,"") ->  | AG30: =IF(AND(AG7<>L30),1,"") ->  | AH30: =IF(AND(AH7<>L30),1,"") ->  | AI30: =IF(AND(AI7<>L30),1,"") ->  | AJ30: =IF(AND(AJ7<>L30),1,"") ->  | AK30: =IF(AND(AK7<>L30),1,"") ->  | AN30: =AI$7 ->  | AO30: FALSE | AP30: 23
B31: =SUMIF(F18A!$A$9:$A$60,'F18'!A31,F18A!$B$9:$B$60) -> 0 | C31: =SUMIF(F18A!$A$9:$A$60,'F18'!A31,F18A!$C$9:$C$60) -> 0 | D31: 0 | E31: =SUMIF(F18A!$A$9:$A$60,'F18'!A31,F18A!$E$9:$E$60) -> 0 | F31: =SUMIF(F18A!$A$9:$A$60,'F18'!A31,F18A!$F$9:$F$60) -> 0 | G31: 0 | L31: =IF(AND(F18A!A59=0),"",F18A!A59) ->  | M31: =IF(AND(M7<>L31),1,"") -> 1 | N31: =IF(AND(N7<>L31),1,"") ->  | O31: =IF(AND(O7<>L31),1,"") ->  | P31: =IF(AND(P7<>L31),1,"") ->  | Q31: =IF(AND(Q7<>L31),1,"") ->  | R31: =IF(AND(R7<>L31),1,"") ->  | S31: =IF(AND(S7<>L31),1,"") ->  | T31: =IF(AND(T7<>L31),1,"") ->  | U31: =IF(AND(U7<>L31),1,"") ->  | V31: =IF(AND(V7<>L31),1,"") ->  | W31: =IF(AND(W7<>L31),1,"") ->  | X31: =IF(AND(X7<>L31),1,"") ->  | Y31: =IF(AND(Y7<>L31),1,"") ->  | Z31: =IF(AND(Z7<>L31),1,"") ->  | AA31: =IF(AND(AA7<>L31),1,"") ->  | AB31: =IF(AND(AB7<>L31),1,"") ->  | AC31: =IF(AND(AC7<>L31),1,"") ->  | AD31: =IF(AND(AD7<>L31),1,"") ->  | AE31: =IF(AND(AE7<>L31),1,"") ->  | AF31: =IF(AND(AF7<>L31),1,"") ->  | AG31: =IF(AND(AG7<>L31),1,"") ->  | AH31: =IF(AND(AH7<>L31),1,"") ->  | AI31: =IF(AND(AI7<>L31),1,"") ->  | AJ31: =IF(AND(AJ7<>L31),1,"") ->  | AK31: =IF(AND(AK7<>L31),1,"") ->  | AN31: =AJ$7 ->  | AO31: FALSE | AP31: 24
B32: =SUMIF(F18A!$A$9:$A$60,'F18'!A32,F18A!$B$9:$B$60) -> 0 | C32: =SUMIF(F18A!$A$9:$A$60,'F18'!A32,F18A!$C$9:$C$60) -> 0 | D32: 0 | E32: =SUMIF(F18A!$A$9:$A$60,'F18'!A32,F18A!$E$9:$E$60) -> 0 | F32: =SUMIF(F18A!$A$9:$A$60,'F18'!A32,F18A!$F$9:$F$60) -> 0 | G32: 0 | L32: =IF(AND(F18A!A60=0),"",F18A!A60) ->  | M32: =IF(AND(M7<>L32),1,"") -> 1 | N32: =IF(AND(N7<>L32),1,"") ->  | O32: =IF(AND(O7<>L32),1,"") ->  | P32: =IF(AND(P7<>L32),1,"") ->  | Q32: =IF(AND(Q7<>L32),1,"") ->  | R32: =IF(AND(R7<>L32),1,"") ->  | S32: =IF(AND(S7<>L32),1,"") ->  | T32: =IF(AND(T7<>L32),1,"") ->  | U32: =IF(AND(U7<>L32),1,"") ->  | V32: =IF(AND(V7<>L32),1,"") ->  | W32: =IF(AND(W7<>L32),1,"") ->  | X32: =IF(AND(X7<>L32),1,"") ->  | Y32: =IF(AND(Y7<>L32),1,"") ->  | Z32: =IF(AND(Z7<>L32),1,"") ->  | AA32: =IF(AND(AA7<>L32),1,"") ->  | AB32: =IF(AND(AB7<>L32),1,"") ->  | AC32: =IF(AND(AC7<>L32),1,"") ->  | AD32: =IF(AND(AD7<>L32),1,"") ->  | AE32: =IF(AND(AE7<>L32),1,"") ->  | AF32: =IF(AND(AF7<>L32),1,"") ->  | AG32: =IF(AND(AG7<>L32),1,"") ->  | AH32: =IF(AND(AH7<>L32),1,"") ->  | AI32: =IF(AND(AI7<>L32),1,"") ->  | AJ32: =IF(AND(AJ7<>L32),1,"") ->  | AK32: =IF(AND(AK7<>L32),1,"") ->  | AN32: =AK$7 ->  | AO32: FALSE | AP32: 25
B33: =SUMIF(F18A!$A$9:$A$60,'F18'!A33,F18A!$B$9:$B$60) -> 0 | C33: =SUMIF(F18A!$A$9:$A$60,'F18'!A33,F18A!$C$9:$C$60) -> 0 | D33: 0 | E33: =SUMIF(F18A!$A$9:$A$60,'F18'!A33,F18A!$E$9:$E$60) -> 0 | F33: =SUMIF(F18A!$A$9:$A$60,'F18'!A33,F18A!$F$9:$F$60) -> 0 | G33: 0 | AN33: =K8 ->  | AO33: FALSE | AP33: 26
B34: =SUMIF(F18A!$A$9:$A$60,'F18'!A34,F18A!$B$9:$B$60) -> 0 | C34: =SUMIF(F18A!$A$9:$A$60,'F18'!A34,F18A!$C$9:$C$60) -> 0 | D34: 0 | E34: =SUMIF(F18A!$A$9:$A$60,'F18'!A34,F18A!$E$9:$E$60) -> 0 | F34: =SUMIF(F18A!$A$9:$A$60,'F18'!A34,F18A!$F$9:$F$60) -> 0 | G34: 0 | AN34: =K9 ->  | AO34: FALSE | AP34: 27
B35: =SUMIF(F18A!$A$9:$A$60,'F18'!A35,F18A!$B$9:$B$60) -> 0 | C35: =SUMIF(F18A!$A$9:$A$60,'F18'!A35,F18A!$C$9:$C$60) -> 0 | D35: 0 | E35: =SUMIF(F18A!$A$9:$A$60,'F18'!A35,F18A!$E$9:$E$60) -> 0 | F35: =SUMIF(F18A!$A$9:$A$60,'F18'!A35,F18A!$F$9:$F$60) -> 0 | G35: 0 | AO35: FALSE | AP35: 28
B36: =SUMIF(F18A!$A$9:$A$60,'F18'!A36,F18A!$B$9:$B$60) -> 0 | C36: =SUMIF(F18A!$A$9:$A$60,'F18'!A36,F18A!$C$9:$C$60) -> 0 | D36: 0 | E36: =SUMIF(F18A!$A$9:$A$60,'F18'!A36,F18A!$E$9:$E$60) -> 0 | F36: =SUMIF(F18A!$A$9:$A$60,'F18'!A36,F18A!$F$9:$F$60) -> 0 | G36: 0 | AO36: FALSE | AP36: 29
B37: =SUMIF(F18A!$A$9:$A$60,'F18'!A37,F18A!$B$9:$B$60) -> 0 | C37: =SUMIF(F18A!$A$9:$A$60,'F18'!A37,F18A!$C$9:$C$60) -> 0 | D37: 0 | E37: =SUMIF(F18A!$A$9:$A$60,'F18'!A37,F18A!$E$9:$E$60) -> 0 | F37: =SUMIF(F18A!$A$9:$A$60,'F18'!A37,F18A!$F$9:$F$60) -> 0 | G37: 0 | AO37: FALSE | AP37: 30
B38: =SUMIF(F18A!$A$9:$A$60,'F18'!A38,F18A!$B$9:$B$60) -> 0 | C38: =SUMIF(F18A!$A$9:$A$60,'F18'!A38,F18A!$C$9:$C$60) -> 0 | D38: 0 | E38: =SUMIF(F18A!$A$9:$A$60,'F18'!A38,F18A!$E$9:$E$60) -> 0 | F38: =SUMIF(F18A!$A$9:$A$60,'F18'!A38,F18A!$F$9:$F$60) -> 0 | G38: 0 | AO38: FALSE | AP38: 31
B39: =SUMIF(F18A!$A$9:$A$60,'F18'!A39,F18A!$B$9:$B$60) -> 0 | C39: =SUMIF(F18A!$A$9:$A$60,'F18'!A39,F18A!$C$9:$C$60) -> 0 | D39: 0 | E39: =SUMIF(F18A!$A$9:$A$60,'F18'!A39,F18A!$E$9:$E$60) -> 0 | F39: =SUMIF(F18A!$A$9:$A$60,'F18'!A39,F18A!$F$9:$F$60) -> 0 | G39: 0 | AO39: FALSE | AP39: 32
B40: =SUMIF(F18A!$A$9:$A$60,'F18'!A40,F18A!$B$9:$B$60) -> 0 | C40: =SUMIF(F18A!$A$9:$A$60,'F18'!A40,F18A!$C$9:$C$60) -> 0 | D40: 0 | E40: =SUMIF(F18A!$A$9:$A$60,'F18'!A40,F18A!$E$9:$E$60) -> 0 | F40: =SUMIF(F18A!$A$9:$A$60,'F18'!A40,F18A!$F$9:$F$60) -> 0 | G40: 0 | AO40: FALSE | AP40: 33
B41: =SUMIF(F18A!$A$9:$A$60,'F18'!A41,F18A!$B$9:$B$60) -> 0 | C41: =SUMIF(F18A!$A$9:$A$60,'F18'!A41,F18A!$C$9:$C$60) -> 0 | D41: 0 | E41: =SUMIF(F18A!$A$9:$A$60,'F18'!A41,F18A!$E$9:$E$60) -> 0 | F41: =SUMIF(F18A!$A$9:$A$60,'F18'!A41,F18A!$F$9:$F$60) -> 0 | G41: 0 | AO41: =IF(AN$8:AN$57<>"",ROW(AN41:AN85)) -> FALSE | AP41: 34
B42: =SUMIF(F18A!$A$9:$A$60,'F18'!A42,F18A!$B$9:$B$60) -> 0 | C42: =SUMIF(F18A!$A$9:$A$60,'F18'!A42,F18A!$C$9:$C$60) -> 0 | D42: 0 | E42: =SUMIF(F18A!$A$9:$A$60,'F18'!A42,F18A!$E$9:$E$60) -> 0 | F42: =SUMIF(F18A!$A$9:$A$60,'F18'!A42,F18A!$F$9:$F$60) -> 0 | G42: 0 | AO42: =IF(AN$8:AN$57<>"",ROW(AN42:AN87)) -> FALSE | AP42: 35
B43: =SUMIF(F18A!$A$9:$A$60,'F18'!A43,F18A!$B$9:$B$60) -> 0 | C43: =SUMIF(F18A!$A$9:$A$60,'F18'!A43,F18A!$C$9:$C$60) -> 0 | D43: 0 | E43: =SUMIF(F18A!$A$9:$A$60,'F18'!A43,F18A!$E$9:$E$60) -> 0 | F43: =SUMIF(F18A!$A$9:$A$60,'F18'!A43,F18A!$F$9:$F$60) -> 0 | G43: 0 | AO43: =IF(AN$8:AN$57<>"",ROW(AN43:AN89)) -> FALSE | AP43: 36
B44: =SUMIF(F18A!$A$9:$A$60,'F18'!A44,F18A!$B$9:$B$60) -> 0 | C44: =SUMIF(F18A!$A$9:$A$60,'F18'!A44,F18A!$C$9:$C$60) -> 0 | D44: 0 | E44: =SUMIF(F18A!$A$9:$A$60,'F18'!A44,F18A!$E$9:$E$60) -> 0 | F44: =SUMIF(F18A!$A$9:$A$60,'F18'!A44,F18A!$F$9:$F$60) -> 0 | G44: 0 | AO44: =IF(AN$8:AN$57<>"",ROW(AN44:AN91)) -> FALSE | AP44: 37
B45: =SUMIF(F18A!$A$9:$A$60,'F18'!A45,F18A!$B$9:$B$60) -> 0 | C45: =SUMIF(F18A!$A$9:$A$60,'F18'!A45,F18A!$C$9:$C$60) -> 0 | D45: 0 | E45: =SUMIF(F18A!$A$9:$A$60,'F18'!A45,F18A!$E$9:$E$60) -> 0 | F45: =SUMIF(F18A!$A$9:$A$60,'F18'!A45,F18A!$F$9:$F$60) -> 0 | G45: 0 | AO45: FALSE | AP45: 38
B46: =SUMIF(F18A!$A$9:$A$60,'F18'!A46,F18A!$B$9:$B$60) -> 0 | C46: =SUMIF(F18A!$A$9:$A$60,'F18'!A46,F18A!$C$9:$C$60) -> 0 | D46: 0 | E46: =SUMIF(F18A!$A$9:$A$60,'F18'!A46,F18A!$E$9:$E$60) -> 0 | F46: =SUMIF(F18A!$A$9:$A$60,'F18'!A46,F18A!$F$9:$F$60) -> 0 | G46: 0 | AO46: FALSE | AP46: 39
B47: =SUMIF(F18A!$A$9:$A$60,'F18'!A47,F18A!$B$9:$B$60) -> 0 | C47: =SUMIF(F18A!$A$9:$A$60,'F18'!A47,F18A!$C$9:$C$60) -> 0 | D47: 0 | E47: =SUMIF(F18A!$A$9:$A$60,'F18'!A47,F18A!$E$9:$E$60) -> 0 | F47: =SUMIF(F18A!$A$9:$A$60,'F18'!A47,F18A!$F$9:$F$60) -> 0 | G47: 0 | AO47: FALSE | AP47: 40
B48: =SUMIF(F18A!$A$9:$A$60,'F18'!A48,F18A!$B$9:$B$60) -> 0 | C48: =SUMIF(F18A!$A$9:$A$60,'F18'!A48,F18A!$C$9:$C$60) -> 0 | D48: 0 | E48: =SUMIF(F18A!$A$9:$A$60,'F18'!A48,F18A!$E$9:$E$60) -> 0 | F48: =SUMIF(F18A!$A$9:$A$60,'F18'!A48,F18A!$F$9:$F$60) -> 0 | G48: 0 | AO48: FALSE | AP48: 41
B49: =SUMIF(F18A!$A$9:$A$60,'F18'!A49,F18A!$B$9:$B$60) -> 0 | C49: =SUMIF(F18A!$A$9:$A$60,'F18'!A49,F18A!$C$9:$C$60) -> 0 | D49: 0 | E49: =SUMIF(F18A!$A$9:$A$60,'F18'!A49,F18A!$E$9:$E$60) -> 0 | F49: =SUMIF(F18A!$A$9:$A$60,'F18'!A49,F18A!$F$9:$F$60) -> 0 | G49: 0 | AO49: FALSE | AP49: 42
B50: =SUMIF(F18A!$A$9:$A$60,'F18'!A50,F18A!$B$9:$B$60) -> 0 | C50: =SUMIF(F18A!$A$9:$A$60,'F18'!A50,F18A!$C$9:$C$60) -> 0 | D50: 0 | E50: =SUMIF(F18A!$A$9:$A$60,'F18'!A50,F18A!$E$9:$E$60) -> 0 | F50: =SUMIF(F18A!$A$9:$A$60,'F18'!A50,F18A!$F$9:$F$60) -> 0 | G50: 0 | AO50: FALSE | AP50: 43
B51: =SUMIF(F18A!$A$9:$A$60,'F18'!A51,F18A!$B$9:$B$60) -> 0 | C51: =SUMIF(F18A!$A$9:$A$60,'F18'!A51,F18A!$C$9:$C$60) -> 0 | D51: 0 | E51: =SUMIF(F18A!$A$9:$A$60,'F18'!A51,F18A!$E$9:$E$60) -> 0 | F51: =SUMIF(F18A!$A$9:$A$60,'F18'!A51,F18A!$F$9:$F$60) -> 0 | G51: 0 | AO51: FALSE | AP51: 44
B52: =SUMIF(F18A!$A$9:$A$60,'F18'!A52,F18A!$B$9:$B$60) -> 0 | C52: =SUMIF(F18A!$A$9:$A$60,'F18'!A52,F18A!$C$9:$C$60) -> 0 | D52: 0 | E52: =SUMIF(F18A!$A$9:$A$60,'F18'!A52,F18A!$E$9:$E$60) -> 0 | F52: =SUMIF(F18A!$A$9:$A$60,'F18'!A52,F18A!$F$9:$F$60) -> 0 | G52: 0 | AO52: FALSE | AP52: 45
B53: =SUMIF(F18A!$A$9:$A$60,'F18'!A53,F18A!$B$9:$B$60) -> 0 | C53: =SUMIF(F18A!$A$9:$A$60,'F18'!A53,F18A!$C$9:$C$60) -> 0 | D53: 0 | E53: =SUMIF(F18A!$A$9:$A$60,'F18'!A53,F18A!$E$9:$E$60) -> 0 | F53: =SUMIF(F18A!$A$9:$A$60,'F18'!A53,F18A!$F$9:$F$60) -> 0 | G53: 0 | AO53: FALSE | AP53: 46
B54: =SUMIF(F18A!$A$9:$A$60,'F18'!A54,F18A!$B$9:$B$60) -> 0 | C54: =SUMIF(F18A!$A$9:$A$60,'F18'!A54,F18A!$C$9:$C$60) -> 0 | D54: 0 | E54: =SUMIF(F18A!$A$9:$A$60,'F18'!A54,F18A!$E$9:$E$60) -> 0 | F54: =SUMIF(F18A!$A$9:$A$60,'F18'!A54,F18A!$F$9:$F$60) -> 0 | G54: 0 | AO54: =IF(AN$8:AN$57<>"",ROW(AN54:AN100)) -> FALSE | AP54: 47
B55: =SUMIF(F18A!$A$9:$A$60,'F18'!A55,F18A!$B$9:$B$60) -> 0 | C55: =SUMIF(F18A!$A$9:$A$60,'F18'!A55,F18A!$C$9:$C$60) -> 0 | D55: 0 | E55: =SUMIF(F18A!$A$9:$A$60,'F18'!A55,F18A!$E$9:$E$60) -> 0 | F55: =SUMIF(F18A!$A$9:$A$60,'F18'!A55,F18A!$F$9:$F$60) -> 0 | G55: 0 | AO55: =IF(AN$8:AN$57<>"",ROW(AN55:AN100)) -> FALSE | AP55: 48
B56: =SUMIF(F18A!$A$9:$A$60,'F18'!A56,F18A!$B$9:$B$60) -> 0 | C56: =SUMIF(F18A!$A$9:$A$60,'F18'!A56,F18A!$C$9:$C$60) -> 0 | D56: 0 | E56: =SUMIF(F18A!$A$9:$A$60,'F18'!A56,F18A!$E$9:$E$60) -> 0 | F56: =SUMIF(F18A!$A$9:$A$60,'F18'!A56,F18A!$F$9:$F$60) -> 0 | G56: 0 | AO56: =IF(AN$8:AN$57<>"",ROW(AN56:AN100)) -> FALSE | AP56: 49
B57: =SUMIF(F18A!$A$9:$A$60,'F18'!A57,F18A!$B$9:$B$60) -> 0 | C57: =SUMIF(F18A!$A$9:$A$60,'F18'!A57,F18A!$C$9:$C$60) -> 0 | D57: 0 | E57: =SUMIF(F18A!$A$9:$A$60,'F18'!A57,F18A!$E$9:$E$60) -> 0 | F57: =SUMIF(F18A!$A$9:$A$60,'F18'!A57,F18A!$F$9:$F$60) -> 0 | G57: 0 | AO57: =IF(AN$8:AN$57<>"",ROW(AN57:AN100)) -> FALSE | AP57: 50
A58: Total del Egreso | B58: =SUM(B8:B57) -> 77560680 | C58: 0 | D58: 77560680 | E58: 84719361.38 | F58: 84719361.38 | G58: -7158681.38
A60: Gobierno (Federal/Estatal/Municipal) de: ATEMAJAC DE BRIZUELA
A61: Estado Analítico del Ejercicio del Presupuesto de Egresos
A62: Clasificación Administrativa
A63: DEL 1° DE ENERO AL 31 DE DICIEMBRE DE 2025
A64: (Cifras en Pesos)
A65: Concepto | B65: Egresos | G65: Subejercicio
B66: Aprobado | C66: Ampliaciones/ (Reducciones) | D66: Modificado | E66: Devengado | F66: Pagado
A68: Poder Ejecutivo | B68: 0 | C68: 0 | D68: =B68+C68 -> 0 | E68: 0 | F68: 0 | G68: =D68-E68 -> 0
A69: Poder Legislativo | B69: 0 | C69: 0 | D69: =B69+C69 -> 0 | E69: 0 | F69: 0 | G69: =D69-E69 -> 0
A70: Poder Judicial | B70: 0 | C70: 0 | D70: =B70+C70 -> 0 | E70: 0 | F70: 0 | G70: =D70-E70 -> 0
A71: Órganos Autónomos | B71: 0 | C71: 0 | D71: =B71+C71 -> 0 | E71: 0 | F71: 0 | G71: =D71-E71 -> 0
A73: Total del Egreso | B73: =SUM(B68:B71) -> 0 | C73: 0 | D73: 0 | E73: 0 | F73: 0 | G73: 0
A75: Sector Paraestatal del Gobierno (Federal/Estatal/Municipal) de: ATEMAJAC DE BRIZUELA
A76: Estado Analítico del Ejercicio del Presupuesto de Egresos
A77: Clasificación Administrativa
A78: DEL 1° DE ENERO AL 31 DE DICIEMBRE DE 2025
A79: (Cifras en Pesos)
A80: Concepto | B80: Egresos | G80: Subejercicio
B81: Aprobado | C81: Ampliaciones/ (Reducciones) | D81: Modificado | E81: Devengado | F81: Pagado
A83: Entidades Paraestatales y Fideicomisos No Empresariales y No Financieros | B83: 0 | C83: 0 | D83: =B83+C83 -> 0 | E83: 0 | F83: 0 | G83: =D83-E83 -> 0
A85: Instituciones Públicas de la Seguridad Social | B85: 0 | C85: 0 | D85: 0 | E85: 0 | F85: 0 | G85: 0
A87: Entidades Paraestatales Empresariales No Financieras con Participación Estatal Mayoritaria | B87: 0 | C87: 0 | D87: 0 | E87: 0 | F87: 0 | G87: 0
A89: Fideicomisos Empresariales No Financieros con Participación Estatal Mayoritaria | B89: 0 | C89: 0 | D89: 0 | E89: 0 | F89: 0 | G89: 0
A91: Entidades Paraestatales Empresariales Financieras Monetarias con Participación Estatal Mayoritaria | B91: 0 | C91: 0 | D91: 0 | E91: 0 | F91: 0 | G91: 0
A93: Entidades Paraestatales Empresariales Financieras No Monetarias con Participación Estatal Mayoritaria | B93: 0 | C93: 0 | D93: 0 | E93: 0 | F93: 0 | G93: 0
A95: Fideicomisos Financieros Públicos con Participación Estatal Mayoritaria | B95: 0 | C95: 0 | D95: 0 | E95: 0 | F95: 0 | G95: 0
A97: Entidades Paramunicipales (en sus diferentes clasificaciones) | D97: 0 | G97: 0
A99: Total del Egreso | B99: =SUM(B83:B97) -> 0 | C99: 0 | D99: 0 | E99: 0 | F99: 0 | G99: 0
A101: Bajo protesta de decir verdad declaramos que los Estados Financieros y sus notas, son razonablemente correctos y son responsabilidad del emisor.
A105: VICTOR MANUEL VAZQUEZ BEAS | D105: JOSUE ARTURO REYNOSO NAVA
A107: PRESIDENTE MUNICIPAL | D107: ENCARGADO DE LAS HACIENDA
B110: ASEJ2025-17-12-06-2026-1

Sheet F18A
A1: CUENTA PÚBLICA - MUNICIPIO ATEMAJAC DE BRIZUELA
A2: Estado Analítico del Ejercicio del Presupuesto de Egresos Detallado - LDF
A3: Clasificación Administrativa
A4: DEL 1° DE ENERO AL 31 DE DICIEMBRE DE 2025
A5: (PESOS)
A6: Concepto | B6: Egresos | G6: Subejercicio
B7: Aprobado | C7: Ampliaciones/ (Reducciones) | D7: Modificado | E7: Devengado | F7: Pagado
A8: I. Gasto No Etiquetado | B8: =SUM(B9:B33) -> 55130045 | C8: =SUM(C9:C33) -> 0 | D8: 55130045 | E8: 66310832.94 | F8: 66310832.94 | G8: -11180787.94
A9: PRESIDENCIA | B9: 55130045 | D9: =B9+C9 -> 55130045 | E9: 66310832.94 | F9: 66310832.94 | G9: =D9-E9 -> -11180787.94
D10: =B10+C10 -> 0 | G10: =D10-E10 -> 0
D11: 0 | G11: 0
D12: 0 | G12: 0
D13: 0 | G13: 0
D14: 0 | G14: 0
D15: 0 | G15: 0
D16: 0 | G16: 0
D17: 0 | G17: 0
D18: 0 | G18: 0
D19: 0 | G19: 0
D20: 0 | G20: 0
D21: 0 | G21: 0
D22: 0 | G22: 0
D23: 0 | G23: 0
D24: 0 | G24: 0
D25: 0 | G25: 0
D26: 0 | G26: 0
D27: 0 | G27: 0
D28: 0 | G28: 0
D29: 0 | G29: 0
D30: 0 | G30: 0
D31: 0 | G31: 0
D32: 0 | G32: 0
D33: 0 | G33: 0
A35: II. Gasto Etiqutado | B35: =SUM(B36:B60) -> 22430635 | C35: =SUM(C36:C60) -> 0 | D35: 22430635 | E35: 18408528.44 | F35: 18408528.44 | G35: 4022106.56
A36: PRESIDENCIA | B36: 22430635 | D36: =B36+C36 -> 22430635 | E36: 18408528.44 | F36: 18408528.44 | G36: =D36-E36 -> 4022106.56
D37: =B37+C37 -> 0 | G37: =D37-E37 -> 0
D38: 0 | G38: 0
D39: 0 | G39: 0
D40: 0 | G40: 0
D41: 0 | G41: 0
D42: 0 | G42: 0
D43: 0 | G43: 0
D44: 0 | G44: 0
D45: 0 | G45: 0
D46: 0 | G46: 0
D47: 0 | G47: 0
D48: 0 | G48: 0
D49: 0 | G49: 0
D50: 0 | G50: 0
D51: 0 | G51: 0
D52: 0 | G52: 0
D53: 0 | G53: 0
D54: 0 | G54: 0
D55: 0 | G55: 0
D56: 0 | G56: 0
D57: 0 | G57: 0
D58: 0 | G58: 0
D59: 0 | G59: 0
D60: 0 | G60: 0
A62: III. Total de Egresos | B62: =B8+B35 -> 77560680 | C62: =C8+C35 -> 0 | D62: 77560680 | E62: 84719361.38 | F62: 84719361.38 | G62: =G8+G35 -> -7158681.38
A64: Bajo protesta de decir verdad declaramos que los Estados Financieros y sus notas, son razonablemente correctos y son responsabilidad del emisor.
A68: VICTOR MANUEL VAZQUEZ BEAS | D68: JOSUE ARTURO REYNOSO NAVA
A70: PRESIDENTE MUNICIPAL | D70: ENCARGADO DE LAS HACIENDA
A73: ASEJ2025-17-12-06-2026-1

Sheet F19A
B1: CUENTA PÚBLICA - MUNICIPIO ATEMAJAC DE BRIZUELA
B2: Estado Analítico del Ejercicio del Presupuesto de Egresos Detallado - LDF
B3: Clasificación Funcional (Finalidad y Función)
C4: DEL 1° DE ENERO AL 31 DE DICIEMBRE DE 2025
C5: (PESOS)
A6: Concepto | D6: Egresos | I6: Subejercicio
D7: Aprobado | E7: Ampliaciones/ (Reducciones) | F7: Modificado | G7: Devengado | H7: Pagado
A8: I. | B8: Gasto No Etiquetado | D8: =D9+D18+D26+D36 -> 55130045 | E8: =E9+E18+E26+E36 -> 0 | F8: 55130045 | G8: 66310832.94 | H8: 66310832.94 | I8: -11180787.94
B9: A Gobierno | D9: =SUM(D10:D17) -> 55130045 | E9: =SUM(E10:E17) -> 0 | F9: =D9+E9 -> 55130045 | G9: =SUM(G10:G17) -> 66310832.94 | H9: 66310832.94 | I9: =F9-G9 -> -11180787.94
C10: a1) Legislación | F10: =D10+E10 -> 0 | I10: =F10-G10 -> 0
C11: a2) Justicia | F11: 0 | I11: 0
C12: a3) Coordinación de la Política de Gobierno | F12: 0 | I12: 0
C13: a4) Relaciones Exteriores | F13: 0 | I13: 0
C14: a5) Asuntos Financieros y Hacendarios | F14: 0 | I14: 0
C15: a6) Seguridad Nacional | F15: 0 | I15: 0
C16: a7) Asuntos de Orden Público y de Seguridad Interior | F16: 0 | I16: 0
C17: a8) Otros Servicios Generales | D17: 55130045 | F17: 55130045 | G17: 66310832.94 | H17: 66310832.94 | I17: -11180787.94
B18: B Desarrollo Social | D18: =SUM(D19:D25) -> 0 | E18: =SUM(E19:E25) -> 0 | F18: 0 | G18: =SUM(G19:G25) -> 0 | H18: 0 | I18: 0
C19: b1) Protección Ambiental | F19: 0 | I19: 0
C20: b2) Vivienda y Servicios a la Comunidad | F20: 0 | I20: 0
C21: b3) Salud | F21: 0 | I21: 0
C22: b4) Recreación, Cultura y Otras Manifestaciones Sociales | F22: 0 | I22: 0
C23: b5) Educación | F23: 0 | I23: 0
C24: b6) Protección Social | F24: 0 | I24: 0
C25: b7) Otros Asuntos Sociales | F25: 0 | I25: 0
B26: C Desarrollo Económico | D26: =SUM(D27:D35) -> 0 | E26: =SUM(E27:E35) -> 0 | F26: 0 | G26: =SUM(G27:G35) -> 0 | H26: 0 | I26: 0
C27: c1) Asuntos Económicos, Comerciales y Laborales en General | F27: 0 | I27: 0
C28: c2) Agropecuaria, Silvicultura, Pesca y Caza | F28: 0 | I28: 0
C29: c3) Combustibles y Energía | F29: 0 | I29: 0
C30: c4) Minería, Manufacturas y Construcción | F30: 0 | I30: 0
C31: c5) Transporte | F31: 0 | I31: 0
C32: c6) Comunicaciones | F32: 0 | I32: 0
C33: c7) Turismo | F33: 0 | I33: 0
C34: c8) Ciencia, Tecnología e Innovación | F34: 0 | I34: 0
C35: c9) Otras Industrias y Otros Asuntos Económicos | F35: 0 | I35: 0
B36: D Otras No Clasificadas en Funciones Anteriores | D36: =SUM(D37:D40) -> 0 | E36: =SUM(E37:E40) -> 0 | F36: 0 | G36: =SUM(G37:G40) -> 0 | H36: =SUM(H37:H40) -> 0 | I36: 0
C37: d1) Transacciones de la Deuda Publica / Costo Financiero de la Deuda | F37: 0 | I37: 0
C38: d2) Transferencias, Participaciones y Aportaciones Entre Diferentes Niveles y Ordenes de Gobierno | F38: 0 | I38: 0
C39: d3) Saneamiento del Sistema Financiero | F39: 0 | I39: 0
C40: d4) Adeudos de Ejercicios Fiscales Anteriores | F40: 0 | I40: 0
A42: II. | B42: Gasto Etiquetado | D42: =D43+D52+D60+D70 -> 22430635 | E42: =E43+E52+E60+E70 -> 0 | F42: 22430635 | G42: 18408528.44 | H42: 18408528.44 | I42: 4022106.56
B43: A Gobierno | D43: =SUM(D44:D51) -> 22430635 | E43: =SUM(E44:E51) -> 0 | F43: =D43+E43 -> 22430635 | G43: =SUM(G44:G51) -> 18408528.44 | H43: 18408528.44 | I43: =F43-G43 -> 4022106.56
C44: a1) Legislación | F44: =D44+E44 -> 0 | I44: =F44-G44 -> 0
C45: a2) Justicia | F45: 0 | I45: 0
C46: a3) Coordinación de la Política de Gobierno | F46: 0 | I46: 0
C47: a4) Relaciones Exteriores | F47: 0 | I47: 0
C48: a5) Asuntos Financieros y Hacendarios | F48: 0 | I48: 0
C49: a6) Seguridad Nacional | F49: 0 | I49: 0
C50: a7) Asuntos de Orden Público y de Seguridad Interior | F50: 0 | I50: 0
C51: a8) Otros Servicios Generales | D51: 22430635 | F51: 22430635 | G51: 18408528.44 | H51: 18408528.44 | I51: 4022106.56
B52: B Desarrollo Social | D52: =SUM(D53:D59) -> 0 | E52: =SUM(E53:E59) -> 0 | F52: 0 | G52: =SUM(G53:G59) -> 0 | H52: 0 | I52: 0
C53: b1) Protección Ambiental | F53: 0 | I53: 0
C54: b2) Vivienda y Servicios a la Comunidad | F54: 0 | I54: 0
C55: b3) Salud | F55: 0 | I55: 0
C56: b4) Recreación, Cultura y Otras Manifestaciones Sociales | F56: 0 | I56: 0
C57: b5) Educación | F57: 0 | I57: 0
C58: b6) Protección Social | F58: 0 | I58: 0
C59: b7) Otros Asuntos Sociales | F59: 0 | I59: 0
B60: C Desarrollo Económico | D60: =SUM(D61:D69) -> 0 | E60: =SUM(E61:E69) -> 0 | F60: 0 | G60: =SUM(G61:G69) -> 0 | H60: 0 | I60: 0
C61: c1) Asuntos Económicos, Comerciales y Laborales en General | F61: 0 | I61: 0
C62: c2) Agropecuaria, Silvicultura, Pesca y Caza | F62: 0 | I62: 0
C63: c3) Combustibles y Energía | F63: 0 | I63: 0
C64: c4) Minería, Manufacturas y Construcción | F64: 0 | I64: 0
C65: c5) Transporte | F65: 0 | I65: 0
C66: c6) Comunicaciones | F66: 0 | I66: 0
C67: c7) Turismo | F67: 0 | I67: 0
C68: c8) Ciencia, Tecnología e Innovación | F68: 0 | I68: 0
C69: c9) Otras Industrias y Otros Asuntos Económicos | F69: 0 | I69: 0
B70: D Otras No Clasificadas en Funciones Anteriores | D70: =SUM(D71:D74) -> 0 | E70: =SUM(E71:E74) -> 0 | F70: 0 | G70: =SUM(G71:G74) -> 0 | H70: =SUM(H71:H74) -> 0 | I70: 0
C71: d1) Transacciones de la Deuda Publica / Costo Financiero de la Deuda | F71: 0 | I71: 0
C72: d2) Transferencias, Participaciones y Aportaciones Entre Diferentes Niveles y Ordenes de Gobierno | F72: 0 | I72: 0
C73: d3) Saneamiento del Sistema Financiero | F73: 0 | I73: 0
C74: d4) Adeudos de Ejercicios Fiscales Anteriores | F74: 0 | I74: 0
B76: III. Total de Egresos | D76: =D8+D42 -> 77560680 | E76: =E8+E42 -> 0 | F76: 77560680 | G76: 84719361.38 | H76: 84719361.38 | I76: =I8+I42 -> -7158681.38
B78: Bajo protesta de decir verdad declaramos que los Estados Financieros y sus notas, son razonablemente correctos y son responsabilidad del emisor.
C81: VICTOR MANUEL VAZQUEZ BEAS | E81: JOSUE ARTURO REYNOSO NAVA
C83: PRESIDENTE MUNICIPAL | E83: ENCARGADO DE LAS HACIENDA
B86: ASEJ2025-17-12-06-2026-1

Sheet F21
A1: CUENTA PÚBLICA - MUNICIPIO ATEMAJAC DE BRIZUELA
A2: Estado Analítico del Ejercicio del Presupuesto de Egresos Detallado - LDF
A3: Clasificación de Servicos Personales por Categoría
A4: DEL 1° DE ENERO AL 31 DE DICIEMBRE DE 2025
A5: (PESOS)
A6: Concepto | D6: Egresos | I6: Subejercicio
D7: Aprobado | E7: Ampliaciones/ (Reducciones) | F7: Modificado | G7: Devengado | H7: Pagado
B8: I. Gasto No Etiquetado | D8: =D9+D10+D11+D14+D15+D18 -> 17552888 | E8: =E9+E10+E11+E14+E15+E18 -> 0 | F8: 17552888 | G8: 24571949.88 | H8: 24571949.88 | I8: -7019061.88
B9: A. Personal Administrativo y de Servicio Público | D9: 17552888 | F9: =D9+E9 -> 17552888 | G9: 24571949.88 | H9: 24571949.88 | I9: =F9-G9 -> -7019061.88
B10: B. Magisterio | F10: =D10+E10 -> 0 | I10: =F10-G10 -> 0
B11: C. Servicios de Salud | D11: =D12+D13 -> 0 | E11: =E12+E13 -> 0 | F11: 0 | G11: =G12+G13 -> 0 | H11: =H12+H13 -> 0 | I11: 0
C12: c1) Personal Administrativo | F12: 0 | I12: 0
C13: c2) Personal Médico, Paramédico y afín | F13: 0 | I13: 0
B14: D. Seguridad Pública | F14: 0 | I14: 0
B15: E. Gastos asociados a la implementación de nuevas leyes federales o reformas a las mismas | D15: =D16+D17 -> 0 | E15: =E16+E17 -> 0 | F15: 0 | G15: =G16+G17 -> 0 | H15: =H16+H17 -> 0 | I15: 0
C16: e1) Nombre del Programa o Ley | F16: 0 | I16: 0
C17: e2) Nombre del Programa o Ley | F17: 0 | I17: 0
B18: F. Sentencias laborales definitivas | F18: 0 | I18: 0
B20: II. Gasto Etiquetado | D20: =D21+D22+D23+D26+D27+D30 -> 2500000 | E20: =E21+E22+E23+E26+E27+E30 -> 0 | F20: 2500000 | G20: 3123045 | H20: 3123045 | I20: -623045
B21: A. Personal Administrativo y de Servicio Público | D21: 2500000 | F21: =D21+E21 -> 2500000 | G21: 3123045 | H21: 3123045 | I21: =F21-G21 -> -623045
B22: B. Magisterio | F22: =D22+E22 -> 0 | I22: 0
B23: C. Servicios de Salud | D23: =D24+D25 -> 0 | E23: =E24+E25 -> 0 | F23: =D23+E23 -> 0 | G23: =G24+G25 -> 0 | H23: 0 | I23: 0
C24: c1) Personal Administrativo | F24: =D24+E24 -> 0 | I24: 0
C25: c2) Personal Médico, Paramédico y afín | F25: 0 | I25: 0
B26: D. Seguridad Pública | F26: =D26+E26 -> 0 | I26: 0
B27: E. Gastos asociados a la implementación de nuevas leyes federales o reformas a las mismas | D27: =D28+D29 -> 0 | E27: =E28+E29 -> 0 | F27: =D27+E27 -> 0 | G27: =G28+G29 -> 0 | H27: 0 | I27: 0
C28: e1) Nombre del Programa o Ley | F28: =D28+E28 -> 0 | I28: 0
C29: e2) Nombre del Programa o Ley | F29: 0 | I29: 0
B30: F. Sentencias laborales definitivas | F30: =D30+E30 -> 0 | I30: 0
B32: III. Total del Gasto en Servicios Personales | D32: =D8+D20 -> 20052888 | E32: =E8+E20 -> 0 | F32: 20052888 | G32: 27694994.88 | H32: 27694994.88 | I32: -7642106.88
A34: Bajo protesta de decir verdad declaramos que los Estados Financieros y sus notas, son razonablemente correctos y son responsabilidad del emisor.
C37: VICTOR MANUEL VAZQUEZ BEAS | F37: JOSUE ARTURO REYNOSO NAVA
C39: PRESIDENTE MUNICIPAL | F39: ENCARGADO DE LAS HACIENDA
C42: ASEJ2025-17-12-06-2026-1

Sheet F22
A1: CUENTA PÚBLICA - MUNICIPIO ATEMAJAC DE BRIZUELA
A2: Balance Presupuestario - LDF
A3: DEL 1° DE ENERO AL 31 DE DICIEMBRE DE 2025
A4: (PESOS)
A5: Concepto | E5: Estimado/ Aprobado | F5: Devengado | G5: Recaudado/ Pagado
B6: A. Ingresos Totales | E6: =SUM(E7:E9) -> 77560680 | F6: =SUM(F7:F9) -> 86047356.05 | G6: 86047356.05
C7: A1. Ingresos de Libre Disposición | E7: =F7B!C39 -> 55130045 | F7: =F7B!F39 -> 67606031.99 | G7: =F7B!G39 -> 67606031.99
C8: A2.Transferencias Federales Etiquetadas | E8: =F7B!C61 -> 22430635 | F8: =F7B!F61 -> 18408528.44 | G8: =F7B!G61 -> 18408528.44
C9: A3. Financiamiento Neto | E9: =E33 -> 0 | F9: =F33 -> 32795.62 | G9: =G33 -> 32795.62
B10: B. Egresos Presupuestarios | E10: =SUM(E11:E12) -> 77560680 | F10: =SUM(F11:F12) -> 84719361.38 | G10: 84719361.38
C11: B1. Gastos No Etiquetado (sin incluir Amortización de la Deuda Pública) | E11: =F8B!D7-E31 -> 55130045 | F11: =F8B!G7-F31 -> 66310832.94 | G11: =F8B!H7-G31 -> 66310832.94
C12: B2. Gasto Etiquetado (sin incluir Amortización de la Deuda Pública) | E12: =F8B!D81-E32 -> 22430635 | F12: =F8B!G81-F32 -> 18408528.44 | G12: =F8B!H81-G32 -> 18408528.44
B13: C. Remanentes del Ejercicio Anterior | F13: =SUM(F14:F15) -> 0 | G13: 0
C14: C1. Remanentes de Ingresos de Libre Disposición aplicados en el periodo
C15: C2. Remanentes de Transferencias Federales Etiquetadas aplicados en el periodo
B16: I. Balance Presupuestario | E16: =E6-E10+E13 -> 0 | F16: =F6-F10+F13 -> 1327994.67 | G16: 1327994.67
B17: II. Balance Presupuestario sin Financiamiento Neto | E17: =E16-E9 -> 0 | F17: =F16-F9 -> 1295199.05 | G17: 1295199.05
B18: III. Balance Presupuestario sin Financiamiento Neto y sin Remanentes del Ejercicio Anterior | E18: =E17-E13 -> 0 | F18: =F17-F13 -> 1295199.05 | G18: 1295199.05
A20: Concepto | E20: Aprobado | F20: Devengado | G20: Pagado
B21: E. Intereses, Comisiones y Gastos de la Deuda | E21: =SUM(E22:E23) -> 0 | F21: =SUM(F22:F23) -> 37167.57 | G21: 37167.57
C22: E1. Intereses, Comisiones y Gastos de la Deuda con Gasto No Etiquetado | E22: =SUM(F8B!D74:D77) -> 0 | F22: =SUM(F8B!G74:G77) -> 37167.57 | G22: =SUM(F8B!H74:H77) -> 37167.57
C23: E2. Intereses, Comisiones y Gastos de la Deuda con Gasto Etiquetado | E23: =SUM(F8B!D148:D151) -> 0 | F23: =SUM(F8B!G148:G151) -> 0 | G23: =SUM(F8B!H148:H151) -> 0
B24: IV. Balance Primario | E24: =E18+E21 -> 0 | F24: =F18+F21 -> 1332366.62 | G24: 1332366.62
A26: Concepto | E26: Estimado/ Aprobado | F26: Devengado | G26: Recaudado/ Pagado
B27: F. Financiamiento | E27: =SUM(E28:E29) -> 0 | F27: =SUM(F28:F29) -> 32795.62 | G27: 32795.62
C28: F1. Financiamiento con Fuente de Pago de Ingresos de Libre Disposición | E28: =F7B!C66 -> 0 | F28: =F7B!F66 -> 32795.62 | G28: =F7B!G66 -> 32795.62
C29: F2. Financiamiento con Fuente de Pago de Transferencias Federales Etiquetadas | E29: =F7B!C67 -> 0 | F29: =F7B!F67 -> 0 | G29: =F7B!G67 -> 0
B30: G. Amortización de la Deuda | E30: =SUM(E31:E32) -> 0 | F30: =SUM(F31:F32) -> 0 | G30: 0
C31: G1. Amortización de la Deuda Pública con Gasto No Etiquetado | E31: =F8B!D73 -> 0 | F31: =F8B!G73 -> 0 | G31: =F8B!H73 -> 0
C32: G2. Amortización de la Deuda Pública con Gasto Etiquetado | E32: =F8B!D147 -> 0 | F32: =F8B!G147 -> 0 | G32: =F8B!H147 -> 0
B33: A3.Financiamiento Neto | E33: =E27-E30 -> 0 | F33: =F27-F30 -> 32795.62 | G33: 32795.62
A35: Concepto | E35: Estimado/ Aprobado | F35: Devengado | G35: Recaudado/ Pagado
B36: A1. Ingresos de Libre Disposición | E36: =E7 -> 55130045 | F36: =F7 -> 67606031.99 | G36: =G7 -> 67606031.99
B37: A3.1 Financiamiento Neto con Fuente de Pago de Ingresos de Libre Disposición | E37: =E38-E39 -> 0 | F37: =F38-F39 -> 32795.62 | G37: =G38-G39 -> 32795.62
C38: F1. Financiamiento con Fuente de Pago de Ingresos de Libre Disposición | E38: =E28 -> 0 | F38: =F28 -> 32795.62 | G38: =G28 -> 32795.62
C39: G1. Amortización de la Deuda Pública con Gasto Etiquetado | E39: =E31 -> 0 | F39: =F31 -> 0 | G39: =G31 -> 0
B40: B1. Gasto No Etiquetado (sin incluir Amortización de la Deuda Pública) | E40: =E11 -> 55130045 | F40: =F11 -> 66310832.94 | G40: =G11 -> 66310832.94
B41: C1. Remanente de ingresos de libre disposición aplicados en el periodo | F41: =F14 -> 0 | G41: =G14 -> 0
B42: V. Balance Presupuestario de Recursos Disponibles | E42: =E36+E37-E40+E41 -> 0 | F42: =F36+F37-F40+F41 -> 1327994.67 | G42: =G36+G37-G40+G41 -> 1327994.67
B43: VI. Balance Presupuestario de Recursos Disponibles sin Financiamiento Neto | E43: =E42-E37 -> 0 | F43: =F42-F37 -> 1295199.05 | G43: =G42-G37 -> 1295199.05
A45: Concepto | E45: Estimado/ Aprobado | F45: Devengado | G45: Recaudado/ Pagado
B46: A2. Transferencias Federales Etiquetadas | E46: =E8 -> 22430635 | F46: =F8 -> 18408528.44 | G46: =G8 -> 18408528.44
B47: A3.2 Financiamiento Neto con Fuente de Pago de Transferencias Federales Etiquetadas | E47: =E48-E49 -> 0 | F47: =F48-F49 -> 0 | G47: 0
C48: F2. Financiamiento con Fuente de Pago de Transferencias Federales Etiquetadas | E48: =E29 -> 0 | F48: =F29 -> 0 | G48: =G29 -> 0
C49: G2. Amortización de la Deuda Pública con Gasto Etiquetado | E49: =E32 -> 0 | F49: =F32 -> 0 | G49: =G32 -> 0
B50: B2. Gasto Etiquetado (sin incluir Amortización de la Deuda Pública) | E50: =E12 -> 22430635 | F50: =F12 -> 18408528.44 | G50: =G12 -> 18408528.44
B51: C2. Remanentes de Transferencias Federales Etiquetadas aplicados en el periodo | F51: =F15 -> 0 | G51: =G15 -> 0
B52: VII. Balance Presupuestario de Recursos Etiquetados | E52: =E46+E47-E50+E51 -> 0 | F52: =F46+F47-F50+F51 -> 0 | G52: =G46+G47-G50+G51 -> 0
B53: VIII. Balance Presupuestario de Recursos Etiquetados sin Financiamiento Neto | E53: =E52-E47 -> 0 | F53: =F52-F47 -> 0 | G53: =G52-G47 -> 0
A55: Bajo protesta de decir verdad declaramos que los Estados Financieros y sus notas, son razonablemente correctos y son responsabilidad del emisor.
C59: VICTOR MANUEL VAZQUEZ BEAS | E59: JOSUE ARTURO REYNOSO NAVA
C61: PRESIDENTE MUNICIPAL | E61: ENCARGADO DE LAS HACIENDA
B64: ASEJ2025-17-12-06-2026-1

Sheet F23
A1: CUENTA PÚBLICA - MUNICIPIO ATEMAJAC DE BRIZUELA
A2: Informativa Anual de Obras
A3: DEL 1° DE ENERO AL 31 DE DICIEMBRE DE 2025
A4: (Cifra en pesos)
A5: NOMBRE DE OBRA O NÚMERO DE ORDEN DE TRABAJO | B5: LOCALIDAD | C5: DESCRIPCIÓN DE LA OBRA U OBJETO DEL CONTRATO | D5: NOMBRE DEL EJECUTOR DE LA OBRA | E5: UBICACIÓN GEOGRÁFICA | G5: MODALIDAD DE EJECUCIÓN | K5: PLAZO DE EJECUCIÓN | N5: PRORROGA Y/O DIFERIMIENTO | P5: ORIGEN DEL RECURSO (MONTO) | T5: IMPORTE TOTAL DEL PAGO | U5: ESTATUS DE LA OBRA | V5: ENTREGA RECEPCIÓN Y/O MINUTA DE TERMINACIÓIN
G7: ADMÓN. DIRECTA | H7: CONTRATO
E8: LATITUD | F8: LONGITUD | H8: ADJ. DIRECTA | I8: CONCURSO SIMPL. | J8: LICITA. PÚBLICA | K8: INICIO | L8: TERMINO | M8: DÍAS NATURALES | N8: SI | O8: NO | P8: PROPIOS | Q8: ESTATAL | R8: FISMDF | S8: CONVENIO FEDERAL | V8: SI | W8: NO
A9: OBRA FINIQUITO EMPEDRADO CORO 1 | B9: ATEMAJAC DE BRIZUELA | C9: OBRA FINIQUITO EMPEDRADO CORO 1 | D9: ATEMAJAC | I9: X | K9: 2025-01-01 | L9: 2025-12-31 | M9: =L9-K9 -> 364 | O9: X | R9: 206116.2 | T9: =SUM(P9:S9) -> 206116.2 | U9: Terminada | V9: X
A10: PAGO DE ESTIMACION OBRA EMPEDRADO CORO 1 | B10: ATEMAJAC DE BRIZUELA | C10: PAGO DE ESTIMACION OBRA EMPEDRADO CORO 1 | D10: ATEMAJAC | I10: X | K10: 2025-01-01 | L10: 2025-12-31 | M10: =L10-K10 -> 364 | O10: X | R10: 412232.4 | T10: =SUM(P10:S10) -> 412232.4 | U10: Terminada | V10: X
A11: ANTICIPO EMPEDRADO CORO1 | B11: ATEMAJAC DE BRIZUELA | C11: ANTICIPO EMPEDRADO CORO1 | D11: ATEMAJAC | I11: X | K11: 2025-01-01 | L11: 2025-12-31 | M11: 364 | O11: X | R11: 206116.2 | T11: 206116.2 | U11: Terminada | V11: X
A12: ESTIMACION DE EMPEDRADO ZAMPEADO EN LA CALLE BRIZUELA | B12: ATEMAJAC DE BRIZUELA | C12: ESTIMACION DE EMPEDRADO ZAMPEADO EN LA CALLE BRIZUELA | D12: ATEMAJAC | I12: X | K12: 2025-01-01 | L12: 2025-12-31 | M12: 364 | O12: X | R12: 433425 | T12: 433425 | U12: Terminada | V12: X
A13: ANTICIPO DE OBRA EMPEDRADOS CALLE BRIZUELA | B13: ATEMAJAC DE BRIZUELA | C13: ANTICIPO DE OBRA EMPEDRADOS CALLE BRIZUELA | D13: ATEMAJAC | I13: X | K13: 2025-01-01 | L13: 2025-12-31 | M13: 364 | O13: X | R13: 256031.38 | T13: 256031.38 | U13: Terminada | V13: X
A14: ESTIMACION 2 DE RED DE HIDROSANITARIA CALLE ALLENDE | B14: ATEMAJAC DE BRIZUELA | C14: ESTIMACION 2 DE RED DE HIDROSANITARIA CALLE ALLENDE | D14: ATEMAJAC | I14: X | K14: 2025-01-01 | L14: 2025-12-31 | M14: 364 | O14: X | R14: 364500 | T14: 364500 | U14: Terminada | V14: X
A15: ESTIMACION 1 REHABILITACION HIDROSANITARIA CALLE ALLENDE | B15: ATEMAJAC DE BRIZUELA | C15: ESTIMACION 1 REHABILITACION HIDROSANITARIA CALLE ALLENDE | D15: ATEMAJAC | I15: X | K15: 2025-01-01 | L15: 2025-12-31 | M15: 364 | O15: X | R15: 502302.07 | T15: 502302.07 | U15: Terminada | V15: X
A16: ANTICIPO REHABILITACION DE REDES HICROSANITARIAS CALLE ALLENDE | B16: ATEMAJAC DE BRIZUELA | C16: ANTICIPO REHABILITACION DE REDES HICROSANITARIAS CALLE ALLENDE | D16: ATEMAJAC | I16: X | K16: 2025-01-01 | L16: 2025-12-31 | M16: 364 | O16: X | R16: 502302.07 | T16: 502302.07 | U16: Terminada | V16: X
A17: 50% ANTICIPO CONSTRUCCION DE BANQUETAS Y COLOCACION DE REGISTROS EN CALLE BRIZUELA | B17: ATEMAJAC DE BRIZUELA | C17: 50% ANTICIPO CONSTRUCCION DE BANQUETAS Y COLOCACION DE REGISTROS EN CALLE BRIZUELA | D17: ATEMAJAC | I17: X | K17: 2025-01-01 | L17: 2025-12-31 | M17: 364 | O17: X | R17: 174916.95 | T17: 174916.95 | U17: Terminada | V17: X
A18: FINIQUITO DE LA OBRA DENOMINADA REHABILITACION DE REDES HIDROSANITARIAS EN CALLE ALLENDE | B18: ATEMAJAC DE BRIZUELA | C18: FINIQUITO DE LA OBRA DENOMINADA REHABILITACION DE REDES HIDROSANITARIAS EN CALLE ALLENDE | D18: ATEMAJAC | I18: X | K18: 2025-01-01 | L18: 2025-12-31 | M18: 364 | O18: X | R18: 229533.14 | T18: 229533.14 | U18: Terminada | V18: X
A19: 3ERA ESTIMACION DE OBRA DENOMINADA REHABILITACION DE REDES HIDROSANITARIAS CALLE ALLENDE | B19: ATEMAJAC DE BRIZUELA | C19: 3ERA ESTIMACION DE OBRA DENOMINADA REHABILITACION DE REDES HIDROSANITARIAS CALLE ALLENDE | D19: ATEMAJAC | I19: X | K19: 2025-01-01 | L19: 2025-12-31 | M19: 364 | O19: X | R19: 410571 | T19: 410571 | U19: Terminada | V19: X
A20: FINIQUITO DE LA OBRA DENOMINADA EMPEDRADO ZAMPIADO CON COMQUETRO CALLE BRIZUELA | B20: ATEMAJAC DE BRIZUELA | C20: FINIQUITO DE LA OBRA DENOMINADA EMPEDRADO ZAMPIADO CON COMQUETRO CALLE BRIZUELA | D20: ATEMAJAC | I20: X | K20: 2025-01-01 | L20: 2025-12-31 | M20: 364 | O20: X | R20: 339453.61 | T20: 339453.61 | U20: Terminada | V20: X
A21: FINIQUITO A BANQUETAS AVENIDA BRIZUELA | B21: ATEMAJAC DE BRIZUELA | C21: FINIQUITO A BANQUETAS AVENIDA BRIZUELA | D21: ATEMAJAC | I21: X | K21: 2025-01-01 | L21: 2025-12-31 | M21: 364 | O21: X | R21: 174916.95 | T21: 174916.95 | U21: Terminada | V21: X
A22: SEGUNDA ESTIMACION DE EMPEDRADO A CALLE ALLENDE | B22: ATEMAJAC DE BRIZUELA | C22: SEGUNDA ESTIMACION DE EMPEDRADO A CALLE ALLENDE | D22: ATEMAJAC | I22: X | K22: 2025-01-01 | L22: 2025-12-31 | M22: 364 | O22: X | R22: 346500 | T22: 346500 | U22: Terminada | V22: X
A23: 3ERA ESTIMACION DE EMPEDRADO A CALLE ALLENDE | B23: ATEMAJAC DE BRIZUELA | C23: 3ERA ESTIMACION DE EMPEDRADO A CALLE ALLENDE | D23: ATEMAJAC | I23: X | K23: 2025-01-01 | L23: 2025-12-31 | M23: 364 | O23: X | R23: 93150 | T23: 93150 | U23: Terminada | V23: X
A24: 2DA ESTIMACION EMPEDRADO CALLE ALLENDE | B24: ATEMAJAC DE BRIZUELA | C24: 2DA ESTIMACION EMPEDRADO CALLE ALLENDE | D24: ATEMAJAC | I24: X | K24: 2025-01-01 | L24: 2025-12-31 | M24: 364 | O24: X | R24: 200000 | T24: 200000 | U24: Terminada | V24: X
A25: ANTICIPO DE OBRA EMPEDRADOS CALLE ALLENDE | B25: ATEMAJAC DE BRIZUELA | C25: ANTICIPO DE OBRA EMPEDRADOS CALLE ALLENDE | D25: ATEMAJAC | I25: X | K25: 2025-01-01 | L25: 2025-12-31 | M25: 364 | O25: X | R25: 678985.42 | T25: 678985.42 | U25: Terminada | V25: X
A26: 6TA ESTIMACION A CALLE ALLENDE | B26: ATEMAJAC DE BRIZUELA | C26: 6TA ESTIMACION A CALLE ALLENDE | D26: ATEMAJAC | I26: X | K26: 2025-01-01 | L26: 2025-12-31 | M26: 364 | O26: X | R26: 400000 | T26: 400000 | U26: Terminada | V26: X
A27: 5TA ESTIMACION DE OBRA EN CALLE ALLENDE | B27: ATEMAJAC DE BRIZUELA | C27: 5TA ESTIMACION DE OBRA EN CALLE ALLENDE | D27: ATEMAJAC | I27: X | K27: 2025-01-01 | L27: 2025-12-31 | M27: 364 | O27: X | R27: 170000 | T27: 170000 | U27: Terminada | V27: X
A28: 4TA ESTIMACION DE OBRA CALLE ALLENDE | B28: ATEMAJAC DE BRIZUELA | C28: 4TA ESTIMACION DE OBRA CALLE ALLENDE | D28: ATEMAJAC | I28: X | K28: 2025-01-01 | L28: 2025-12-31 | M28: 364 | O28: X | R28: 233310 | T28: 233310 | U28: Terminada | V28: X
A29: 7MA ESTIMACION CALLE ALLENDE | B29: ATEMAJAC DE BRIZUELA | C29: 7MA ESTIMACION CALLE ALLENDE | D29: ATEMAJAC | I29: X | K29: 2025-01-01 | L29: 2025-12-31 | M29: 364 | O29: X | R29: 500000 | T29: 500000 | U29: Terminada | V29: X
A30: 7MA ESTIMACION CALLE ALLENDE | B30: ATEMAJAC DE BRIZUELA | C30: 7MA ESTIMACION CALLE ALLENDE | D30: ATEMAJAC | I30: X | K30: 2025-01-01 | L30: 2025-12-31 | M30: 364 | O30: X | Q30: 217453.01 | T30: 217453.01 | U30: Terminada | V30: X
A31: 1ERA ESTIMACION OBRA PORFIRIO DIAZ | B31: ATEMAJAC DE BRIZUELA | C31: 1ERA ESTIMACION OBRA PORFIRIO DIAZ | D31: ATEMAJAC | I31: X | K31: 2025-01-01 | L31: 2025-12-31 | M31: 364 | O31: X | Q31: 154912.07 | T31: 154912.07 | U31: Terminada | V31: X
A32: 2DA ESTIMACION OBRA PORFIRIO DIAZ | B32: ATEMAJAC DE BRIZUELA | C32: 2DA ESTIMACION OBRA PORFIRIO DIAZ | D32: ATEMAJAC | I32: X | K32: 2025-01-01 | L32: 2025-12-31 | M32: 364 | O32: X | Q32: 126543 | T32: 126543 | U32: Terminada | V32: X
A33: 25% DE ANTICIPO DE LA OBRA CALLE PORFIRIO DIAZ | B33: ATEMAJAC DE BRIZUELA | C33: 25% DE ANTICIPO DE LA OBRA CALLE PORFIRIO DIAZ | D33: ATEMAJAC | I33: X | K33: 2025-01-01 | L33: 2025-12-31 | M33: 364 | O33: X | Q33: 500000 | T33: 500000 | U33: Terminada | V33: X
A34: FINIQUITO OBRA CANAL PLUVIAL CALLE PORFIRIO DIAZ | B34: ATEMAJAC DE BRIZUELA | C34: FINIQUITO OBRA CANAL PLUVIAL CALLE PORFIRIO DIAZ | D34: ATEMAJAC | I34: X | K34: 2025-01-01 | L34: 2025-12-31 | M34: 364 | O34: X | S34: 219689.84 | T34: 219689.84 | U34: Terminada | V34: X
A35: 4TA ESTIMACION DE OBRA CALLE PORFIRIO DIAZ | B35: ATEMAJAC DE BRIZUELA | C35: 4TA ESTIMACION DE OBRA CALLE PORFIRIO DIAZ | D35: ATEMAJAC | I35: X | K35: 2025-01-01 | L35: 2025-12-31 | M35: 364 | O35: X | Q35: 591600 | T35: 591600 | U35: Terminada | V35: X
A36: FINIQUITO OBRA ACOPIO DE BASURA | B36: ATEMAJAC DE BRIZUELA | C36: FINIQUITO OBRA ACOPIO DE BASURA | D36: ATEMAJAC | I36: X | K36: 2025-01-01 | L36: 2025-12-31 | M36: 364 | O36: X | R36: 266056.43 | T36: 266056.43 | U36: Terminada | V36: X
A37: 2DA ESTIMACION DE BANQUETAS CALLE CONSTITUCION | B37: ATEMAJAC DE BRIZUELA | C37: 2DA ESTIMACION DE BANQUETAS CALLE CONSTITUCION | D37: ATEMAJAC | I37: X | K37: 2025-01-01 | L37: 2025-12-31 | M37: 364 | O37: X | R37: 152500 | T37: 152500 | U37: Terminada | V37: X
A38: 1ERA ESTIMACION OBRA BANQUETAS CALLE CONSTITUCION | B38: ATEMAJAC DE BRIZUELA | C38: 1ERA ESTIMACION OBRA BANQUETAS CALLE CONSTITUCION | D38: ATEMAJAC | I38: X | K38: 2025-01-01 | L38: 2025-12-31 | M38: 364 | O38: X | R38: 130558 | T38: 130558 | U38: Terminada | V38: X
A39: FINIQUITO EMPEDRADOS CALLE ALLENDE | B39: ATEMAJAC DE BRIZUELA | C39: FINIQUITO EMPEDRADOS CALLE ALLENDE | D39: ATEMAJAC | I39: X | K39: 2025-01-01 | L39: 2025-12-31 | M39: 364 | O39: X | R39: 93996.49 | T39: 93996.49 | U39: Terminada | V39: X
A40: 25% BANQUETAS CALLE CONSTITUCION | B40: ATEMAJAC DE BRIZUELA | C40: 25% BANQUETAS CALLE CONSTITUCION | D40: ATEMAJAC | I40: X | K40: 2025-01-01 | L40: 2025-12-31 | M40: 364 | O40: X | R40: 213533.88 | T40: 213533.88 | U40: Terminada | V40: X
A41: 1ERA ESTIMACION 2DO PROYECTO EN CALLE PORFIRIO DIAZ | B41: ATEMAJAC DE BRIZUELA | C41: 1ERA ESTIMACION 2DO PROYECTO EN CALLE PORFIRIO DIAZ | D41: ATEMAJAC | I41: X | K41: 2025-01-01 | L41: 2025-12-31 | M41: 364 | O41: X | R41: 295188 | T41: 295188 | U41: Terminada | V41: X
A42: ANTICIPO 2DO PROYECTOS EN PORFIRIO DIAZ | B42: ATEMAJAC DE BRIZUELA | C42: ANTICIPO 2DO PROYECTOS EN PORFIRIO DIAZ | D42: ATEMAJAC | I42: X | K42: 2025-01-01 | L42: 2025-12-31 | M42: 364 | O42: X | R42: 373556.19 | T42: 373556.19 | U42: Terminada | V42: X
A43: FINIQUITO BANQUETAS CALLE CONSTITUCION | B43: ATEMAJAC DE BRIZUELA | C43: FINIQUITO BANQUETAS CALLE CONSTITUCION | D43: ATEMAJAC | I43: X | K43: 2025-01-01 | L43: 2025-12-31 | M43: 364 | O43: X | R43: 210943.66 | T43: 210943.66 | U43: Terminada | V43: X
A44: 3ERA ESTIMACION BANQUETAS CALLE CONSTITUCION | B44: ATEMAJAC DE BRIZUELA | C44: 3ERA ESTIMACION BANQUETAS CALLE CONSTITUCION | D44: ATEMAJAC | I44: X | K44: 2025-01-01 | L44: 2025-12-31 | M44: 364 | O44: X | R44: 146600 | T44: 146600 | U44: Terminada | V44: X
A45: 1ERA ESTIMACION 2DO PROYECTO CALLE PORFIRIO DIAZ | B45: ATEMAJAC DE BRIZUELA | C45: 1ERA ESTIMACION 2DO PROYECTO CALLE PORFIRIO DIAZ | D45: ATEMAJAC | I45: X | K45: 2025-01-01 | L45: 2025-12-31 | M45: 364 | O45: X | S45: 256752 | T45: 256752 | U45: Terminada | V45: X
A46: MUESTRA DE CONCRETO CALLE PORFIRIO DIAZ | B46: ATEMAJAC DE BRIZUELA | C46: MUESTRA DE CONCRETO CALLE PORFIRIO DIAZ | D46: ATEMAJAC | I46: X | K46: 2025-01-01 | L46: 2025-12-31 | M46: 364 | O46: X | S46: 59160 | T46: 59160 | U46: Terminada | V46: X
A47: FINIQUITO OBRA 2DO PROYECTO CALLE PORFIRIO DIAZ | B47: ATEMAJAC DE BRIZUELA | C47: FINIQUITO OBRA 2DO PROYECTO CALLE PORFIRIO DIAZ | D47: ATEMAJAC | I47: X | K47: 2025-01-01 | L47: 2025-12-31 | M47: 364 | O47: X | S47: 279885.52 | T47: 279885.52 | U47: Terminada | V47: X
A48: 3ERA ESTIMACION CALLE PORFIRIO DIAZ | B48: ATEMAJAC DE BRIZUELA | C48: 3ERA ESTIMACION CALLE PORFIRIO DIAZ | D48: ATEMAJAC | I48: X | K48: 2025-01-01 | L48: 2025-12-31 | M48: 364 | O48: X | S48: 136520 | T48: 136520 | U48: Terminada | V48: X
A49: 2DA ESTIMACION 2DO PROYECTO PORFIRIO DIAZ | B49: ATEMAJAC DE BRIZUELA | C49: 2DA ESTIMACION 2DO PROYECTO PORFIRIO DIAZ | D49: ATEMAJAC | I49: X | K49: 2025-01-01 | L49: 2025-12-31 | M49: 364 | O49: X | S49: 152350 | T49: 152350 | U49: Terminada | V49: X
A50: 5TA ESTIMACION CALLE PORFIRIO DIAZ | B50: ATEMAJAC DE BRIZUELA | C50: 5TA ESTIMACION CALLE PORFIRIO DIAZ | D50: ATEMAJAC | I50: X | K50: 2025-01-01 | L50: 2025-12-31 | M50: 364 | O50: X | Q50: 370000 | T50: 370000 | U50: Terminada | V50: X
A51: FINIQUITO OBRA DENOMINADA PAVIMENTACION CON EMPEDRADO CALLE PORFIRIO DIAZ | B51: ATEMAJAC DE BRIZUELA | C51: FINIQUITO OBRA DENOMINADA PAVIMENTACION CON EMPEDRADO CALLE PORFIRIO DIAZ | D51: ATEMAJAC | I51: X | K51: 2025-01-01 | L51: 2025-12-31 | M51: 364 | O51: X | Q51: 39498.68 | T51: 39498.68 | U51: Terminada | V51: X
A52: LINEA DE AGUA AL POZO NUEVO | B52: ATEMAJAC DE BRIZUELA | C52: LINEA DE AGUA AL POZO NUEVO | D52: ATEMAJAC | I52: X | K52: 2025-01-01 | L52: 2025-12-31 | M52: 364 | O52: X | P52: 313960.9 | T52: 313960.9 | U52: Terminada | V52: X
A56: Bajo protesta de decir verdad declaramos que los Estados Financieros y sus Notas son razonablemente correctos y responsabilidad del emisor.
I60: ASEJ2025-17-12-06-2026-1
C70: VICTOR MANUEL VAZQUEZ BEAS PRESIDENTE MUNICIPAL | R70: JOSUE ARTURO REYNOSO NAVA ENCARGADO DE LAS HACIENDA

Sheet F1
B1: CUENTA PÚBLICA - MUNICIPIO ATEMAJAC DE BRIZUELA
B2: Estado Analítico de Situación Financiera
B3: AL 31 DE DICIEMBRE DE 2025
B4: (Cifra en pesos)
A5: CTA | B5: Concepto | AF5: =Validacion!F185 -> 2025 | AG5: =Validacion!F186 -> 2024 | AH5: CTA | AI5: Concepto | BM5: =Validacion!F185 -> 2025 | BN5: =Validacion!F186 -> 2024
A6: 10000 | B6: ACTIVO | AH6: 20000 | AI6: PASIVO
A7: 11000 | B7: ACTIVO CIRCULANTE | AH7: 21000 | AI7: PASIVO CIRCULANTE
A8: 11100 | B8: EFECTIVO Y EQUIVALENTES | AF8: =SUM(AF9:AF15) -> 1523297.66 | AG8: =SUM(AG9:AG15) -> 2353597.53 | AH8: 21100 | AI8: CUENTAS POR PAGAR A CORTO PLAZO | BM8: =SUM(BM9:BM17) -> 852417.08 | BN8: =SUM(BN9:BN17) -> 2480776.88
A9: 11110 | B9: Efectivo | AF9: =Balanza!G6 -> -64427.59 | AG9: =Balanza!C6 -> -114.13 | AH9: 21110 | AI9: Servicios personales por pagar a corto plazo | BM9: =Balanza!H104 -> 0 | BN9: =Balanza!D104 -> 0
A10: 11120 | B10: Bancos/Tesorería | AF10: =Balanza!G7 -> 1587734.68 | AG10: =Balanza!C7 -> 2353711.66 | AH10: 21120 | AI10: Proveedores por pagar a corto plazo | BM10: =Balanza!H105 -> 0 | BN10: =Balanza!D105 -> 0
A11: 11130 | B11: Bancos/Dependencias y otros | AF11: =Balanza!G8 -> -9.43 | AG11: =Balanza!C8 -> 0 | AH11: 21130 | AI11: Contratistas por obras públicas por pagar a corto plazo | BM11: =Balanza!H106 -> 0 | BN11: =Balanza!D106 -> 1128359.8
A12: 11140 | B12: Inversiones temporales (hasta 3 meses) | AF12: =Balanza!G9 -> 0 | AG12: =Balanza!C9 -> 0 | AH12: 21140 | AI12: Participaciones y aportaciones por pagar a corto plazo | BM12: =Balanza!H107 -> 0 | BN12: =Balanza!D107 -> 0
A13: 11150 | B13: Fondos con afectación específica | AF13: =Balanza!G10 -> 0 | AG13: =Balanza!C10 -> 0 | AH13: 21150 | AI13: Transferencias otorgadas por pagar a corto plazo | BM13: =Balanza!H108 -> 0 | BN13: =Balanza!D108 -> 0
A14: 11160 | B14: Depósitos de fondos de terceros en garantía y/o administración | AF14: =Balanza!G11 -> 0 | AG14: =Balanza!C11 -> 0 | AH14: 21160 | AI14: Intereses, comisiones y otros gastos de la deuda pública por pagar a corto plazo | BM14: =Balanza!H109 -> 0 | BN14: =Balanza!D109 -> 0
A15: 11190 | B15: Otros efectivos y equivalentes | AF15: =Balanza!G12 -> 0 | AG15: =Balanza!C12 -> 0 | AH15: 21170 | AI15: Retenciones y contribuciones por pagar a corto plazo | BM15: =Balanza!H110 -> 152417.08 | BN15: =Balanza!D110 -> 152417.08
A16: 11200 | B16: DERECHOS A RECIBIR EFECTIVO O EQUIVALENTES | AF16: =SUM(AF17:AF23) -> 55000 | AG16: =SUM(AG17:AG23) -> 0 | AH16: 21180 | AI16: Devoluciones de la ley de ingresos por pagar a corto plazo | BM16: =Balanza!H111 -> 0 | BN16: =Balanza!D111 -> 0
A17: 11210 | B17: Inversiones financieras de corto plazo | AF17: =Balanza!G14 -> 0 | AG17: =Balanza!C14 -> 0 | AH17: 21190 | AI17: Otras cuentas por pagar a corto plazo | BM17: =Balanza!H112 -> 700000 | BN17: =Balanza!D112 -> 1200000
A18: 11220 | B18: Cuentas por cobrar a corto plazo | AF18: =Balanza!G15 -> 0 | AG18: =Balanza!C15 -> 0 | AH18: 21200 | AI18: DOCUMENTOS POR PAGAR A CORTO PLAZO | BM18: =SUM(BM19:BM21) -> 0 | BN18: =SUM(BN19:BN21) -> 0
A19: 11230 | B19: Deudores diversos por cobrar a corto plazo | AF19: =Balanza!G16 -> 35000 | AG19: =Balanza!C16 -> 0 | AH19: 21210 | AI19: Documentos comerciales por pagar a corto plazo | BM19: =Balanza!H114 -> 0 | BN19: =Balanza!D114 -> 0
A20: 11240 | B20: Ingresos por recuperar a corto plazo | AF20: =Balanza!G17 -> 0 | AG20: =Balanza!C17 -> 0 | AH20: 21220 | AI20: Documentos con contratistas por obras públicas por pagar a corto plazo | BM20: =Balanza!H115 -> 0 | BN20: =Balanza!D115 -> 0
A21: 11250 | B21: Deudores por anticipos de la tesorería a corto plazo | AF21: =Balanza!G18 -> 0 | AG21: =Balanza!C18 -> 0 | AH21: 21290 | AI21: Otros documentos por pagar a corto plazo | BM21: =Balanza!H116 -> 0 | BN21: =Balanza!D116 -> 0
A22: 11260 | B22: Préstamos otorgados a corto plazo | AF22: =Balanza!G19 -> 20000 | AG22: =Balanza!C19 -> 0 | AH22: 21300 | AI22: PORCIÓN A CORTO PLAZO DE LA DEUDA PÚBLICA A LARGO PLAZO | BM22: =SUM(BM23:BM25) -> 0 | BN22: =SUM(BN23:BN25) -> 0
A23: 11290 | B23: Otros derechos a recibir efectivo o equivalentes a corto plazo | AF23: =Balanza!G20 -> 0 | AG23: =Balanza!C20 -> 0 | AH23: 21310 | AI23: Porción a corto plazo de la deuda pública interna | BM23: =Balanza!H118 -> 0 | BN23: =Balanza!D118 -> 0
A24: 11300 | B24: DERECHOS A RECIBIR BIENES O SERVICIOS | AF24: =SUM(AF25:AF29) -> 0 | AG24: =SUM(AG25:AG29) -> 0 | AH24: 21320 | AI24: Porción a corto plazo de la deuda pública externa | BM24: =Balanza!H119 -> 0 | BN24: =Balanza!D119 -> 0
A25: 11310 | B25: Anticipo a proveedores por adquisición de bienes y prestación de servicios a corto plazo | AF25: =Balanza!G22 -> 0 | AG25: =Balanza!C22 -> 0 | AH25: 21330 | AI25: Porción a corto plazo de arrendamiento financiero | BM25: =Balanza!H120 -> 0 | BN25: =Balanza!D120 -> 0
A26: 11320 | B26: Anticipo a proveedores por adquisición de bienes inmuebles y muebles a corto plazo | AF26: =Balanza!G23 -> 0 | AG26: =Balanza!C23 -> 0 | AH26: 21400 | AI26: TÍTULOS Y VALORES A CORTO PLAZO | BM26: =SUM(BM27:BM28) -> 0 | BN26: =SUM(BN27:BN28) -> 0
A27: 11330 | B27: Anticipo a proveedores por adquisición de bienes intangibles a corto plazo | AF27: =Balanza!G24 -> 0 | AG27: =Balanza!C24 -> 0 | AH27: 21410 | AI27: Títulos y valores de la deuda pública interna a corto plazo | BM27: =Balanza!H122 -> 0 | BN27: =Balanza!D122 -> 0
A28: 11340 | B28: Anticipo a contratistas por obras públicas a corto plazo | AF28: =Balanza!G25 -> 0 | AG28: =Balanza!C25 -> 0 | AH28: 21420 | AI28: Títulos y valores de la deuda pública externa a corto plazo | BM28: =Balanza!H123 -> 0 | BN28: =Balanza!D123 -> 0
A29: 11390 | B29: Otros derechos a recibir bienes o servicios a corto plazo | AF29: =Balanza!G26 -> 0 | AG29: =Balanza!C26 -> 0 | AH29: 21500 | AI29: PASIVOS DIFERIDOS A CORTO PLAZO | BM29: =SUM(BM30:BM32) -> 0 | BN29: =SUM(BN30:BN32) -> 0
A30: 11400 | B30: INVENTARIOS | AF30: =SUM(AF31:AF35) -> 0 | AG30: =SUM(AG31:AG35) -> 0 | AH30: 21510 | AI30: Ingresos cobrados por adelantado a corto plazo | BM30: =Balanza!H125 -> 0 | BN30: =Balanza!D125 -> 0
A31: 11410 | B31: Inventario de mercancías para venta | AF31: =Balanza!G28 -> 0 | AG31: =Balanza!C28 -> 0 | AH31: 21520 | AI31: Intereses cobrados por adelantado a corto plazo | BM31: =Balanza!H126 -> 0 | BN31: =Balanza!D126 -> 0
A32: 11420 | B32: Inventario de mercancías terminadas | AF32: =Balanza!G29 -> 0 | AG32: =Balanza!C29 -> 0 | AH32: 21590 | AI32: Otros pasivos diferidos a corto plazo | BM32: =Balanza!H127 -> 0 | BN32: =Balanza!D127 -> 0
A33: 11430 | B33: Inventario de mercancías en proceso de elaboración | AF33: =Balanza!G30 -> 0 | AG33: =Balanza!C30 -> 0 | AH33: 21600 | AI33: FONDOS Y BIENES DE TERCEROS EN GARANTÍA Y/O ADMINISTRACIÓN A CORTO PLAZO | BM33: =SUM(BM34:BM39) -> 0 | BN33: =SUM(BN34:BN39) -> 0
A34: 11440 | B34: Inventario de materias primas, materiales y suministros para producción | AF34: =Balanza!G31 -> 0 | AG34: =Balanza!C31 -> 0 | AH34: 21610 | AI34: Fondos en garantía a corto plazo | BM34: =Balanza!H129 -> 0 | BN34: =Balanza!D129 -> 0
A35: 11450 | B35: Bienes en tránsito | AF35: =Balanza!G32 -> 0 | AG35: =Balanza!C32 -> 0 | AH35: 21620 | AI35: Fondos en administración a corto plazo | BM35: =Balanza!H130 -> 0 | BN35: =Balanza!D130 -> 0
A36: 11500 | B36: ALMACENES | AF36: =AF37 -> 0 | AG36: =AG37 -> 0 | AH36: 21630 | AI36: Fondos contingentes a corto plazo | BM36: =Balanza!H131 -> 0 | BN36: =Balanza!D131 -> 0
A37: 11510 | B37: Almacén de materiales y suministro para el consumo | AF37: =Balanza!G34 -> 0 | AG37: =Balanza!C34 -> 0 | AH37: 21640 | AI37: Fondos de fideicomisos, mandatos y contratos análogos a corto plazo | BM37: =Balanza!H132 -> 0 | BN37: =Balanza!D132 -> 0
A38: 11600 | B38: ESTIMACIÓN POR PÉRDIDA O DETERIORO DE ACTIVOS CIRCULANTES | AF38: =SUM(AF39:AF40) -> 0 | AG38: =SUM(AG39:AG40) -> 0 | AH38: 21650 | AI38: Otros fondos de terceros en garantía y/o administración a corto plazo | BM38: =Balanza!H133 -> 0 | BN38: =Balanza!D133 -> 0
A39: 11610 | B39: Estimaciones para cuentas incobrables por derechos a recibir efectivo o equivalentes | AF39: =Balanza!G36 -> 0 | AG39: =Balanza!C36 -> 0 | AH39: 21660 | AI39: Valores y bienes en garantía a corto plazo | BM39: =Balanza!H134 -> 0 | BN39: =Balanza!D134 -> 0
A40: 11620 | B40: Estimación por deterioro de inventarios | AF40: =Balanza!G37 -> 0 | AG40: =Balanza!C37 -> 0 | AH40: 21700 | AI40: PROVISIONES A CORTO PLAZO | BM40: =SUM(BM41:BM43) -> 0 | BN40: =SUM(BN41:BN43) -> 0
A41: 11900 | B41: OTROS ACTIVOS CIRCULANTES | AF41: =SUM(AF42:AF45) -> 0 | AG41: =SUM(AG42:AG45) -> 0 | AH41: 21710 | AI41: Provisión para demandas y juicios a corto plazo | BM41: =Balanza!H136 -> 0 | BN41: =Balanza!D136 -> 0
A42: 11910 | B42: Valores en garantía | AF42: =Balanza!G39 -> 0 | AG42: =Balanza!C39 -> 0 | AH42: 21720 | AI42: Provisión para contingencias a corto plazo | BM42: =Balanza!H137 -> 0 | BN42: =Balanza!D137 -> 0
A43: 11920 | B43: Bienes en garantía (excluye depósitos de fondos) | AF43: =Balanza!G40 -> 0 | AG43: =Balanza!C40 -> 0 | AH43: 21790 | AI43: Otras provisiones a corto plazo | BM43: =Balanza!H138 -> 0 | BN43: =Balanza!D138 -> 0
A44: 11930 | B44: Bienes derivados de embargos, decomisos, aseguramientos y dación en pago | AF44: =Balanza!G41 -> 0 | AG44: =Balanza!C41 -> 0 | AH44: 21900 | AI44: OTROS PASIVOS A CORTO PLAZO | BM44: =SUM(BM45:BM47) -> -474934.74 | BN44: =SUM(BN45:BN47) -> 0
A45: 11940 | B45: Adquisición con fondos de terceros | AF45: =Balanza!G42 -> 0 | AG45: =Balanza!C42 -> 0 | AH45: 21910 | AI45: Ingresos por clasificar | BM45: =Balanza!H140 -> -474934.74 | BN45: =Balanza!D140 -> 0
B46: ACTIVOS CIRCULANTES | AF46: =AF8+AF16+AF24+AF30+AF36+AF38+AF41 -> 1578297.66 | AG46: =AG8+AG16+AG24+AG30+AG36+AG38+AG41 -> 2353597.53 | AH46: 21920 | AI46: Recaudación por participar | BM46: =Balanza!H141 -> 0 | BN46: =Balanza!D141 -> 0
A47: 12000 | B47: ACTIVO NO CIRCULANTE | AH47: 21990 | AI47: Otros pasivos circulantes | BM47: =Balanza!H142 -> 0 | BN47: =Balanza!D142 -> 0
A48: 12100 | B48: INVERSIONES FINANCIERAS A LARGO PLAZO | AF48: =SUM(AF49:AF52) -> 0 | AG48: =SUM(AG49:AG52) -> 0 | AI48: PASIVOS CIRCULANTES | BM48: =BM8+BM18+BM22+BM26+BM29+BM33+BM40+BM44 -> 377482.34 | BN48: =BN8+BN18+BN22+BN26+BN29+BN33+BN40+BN44 -> 2480776.88
A49: 12110 | B49: Inversiones a largo plazo | AF49: =Balanza!G45 -> 0 | AG49: =Balanza!C45 -> 0 | AH49: 22000 | AI49: PASIVO NO CIRCULANTE
A50: 12120 | B50: Títulos y valores a largo plazo | AF50: =Balanza!G46 -> 0 | AG50: =Balanza!C46 -> 0 | AH50: 22100 | AI50: CUENTAS POR PAGAR A LARGO PLAZO | BM50: =SUM(BM51:BM52) -> 0 | BN50: =SUM(BN51:BN52) -> 0
A51: 12130 | B51: Fideicomisos, mandatos y contratos análogos | AF51: =Balanza!G47 -> 0 | AG51: =Balanza!C47 -> 0 | AH51: 22110 | AI51: Proveedores por pagar a largo plazo | BM51: =Balanza!H145 -> 0 | BN51: =Balanza!D145 -> 0
A52: 12140 | B52: Participaciones y aportaciones de capital | AF52: =Balanza!G48 -> 0 | AG52: =Balanza!C48 -> 0 | AH52: 22120 | AI52: Contratistas por obras públicas por pagar a largo plazo | BM52: =Balanza!H146 -> 0 | BN52: =Balanza!D146 -> 0
A53: 12200 | B53: DERECHOS A RECIBIR EFECTIVO O EQUIVALENTES A LARGO PLAZO | AF53: =SUM(AF54:AF58) -> 0 | AG53: =SUM(AG54:AG58) -> 0 | AH53: 22200 | AI53: DOCUMENTOS POR PAGAR A LARGO PLAZO | BM53: =SUM(BM54:BM56) -> 0 | BN53: =SUM(BN54:BN56) -> 0
A54: 12210 | B54: Documentos por cobrar a largo plazo | AF54: =Balanza!G50 -> 0 | AG54: =Balanza!C50 -> 0 | AH54: 22210 | AI54: Documentos comerciales por pagar a largo plazo | BM54: =Balanza!H148 -> 0 | BN54: =Balanza!D148 -> 0
A55: 12220 | B55: Deudores diversos a largo plazo | AF55: =Balanza!G51 -> 0 | AG55: =Balanza!C51 -> 0 | AH55: 22220 | AI55: Documentos con contratistas por obras públicas por pagar a largo plazo | BM55: =Balanza!H149 -> 0 | BN55: =Balanza!D149 -> 0
A56: 12230 | B56: Ingresos por recuperar a largo plazo | AF56: =Balanza!G52 -> 0 | AG56: =Balanza!C52 -> 0 | AH56: 22290 | AI56: Otros documentos por pagar a largo plazo | BM56: =Balanza!H150 -> 0 | BN56: =Balanza!D150 -> 0
A57: 12240 | B57: Préstamos otorgados a largo plazo | AF57: =Balanza!G53 -> 0 | AG57: =Balanza!C53 -> 0 | AH57: 22300 | AI57: DEUDA PÚBLICA A LARGO PLAZO | BM57: =SUM(BM58:BM62) -> 0 | BN57: =SUM(BN58:BN62) -> 0
A58: 12290 | B58: Otros derechos a recibir efectivo o equivalentes a largo plazo | AF58: =Balanza!G54 -> 0 | AG58: =Balanza!C54 -> 0 | AH58: 22310 | AI58: Títulos y valores de la deuda pública interna a largo plazo | BM58: =Balanza!H152 -> 0 | BN58: =Balanza!D152 -> 0
A59: 12300 | B59: BIENES INMUEBLES, INFRAESTRUCTURA Y CONSTRUCCIONES EN PROCESO | AF59: =SUM(AF60:AF66) -> 74885331.58 | AG59: =SUM(AG60:AG66) -> 62749951.52 | AH59: 22320 | AI59: Títulos y valores de la deuda pública externa a largo plazo | BM59: =Balanza!H153 -> 0 | BN59: =Balanza!D153 -> 0
A60: 12310 | B60: Terrenos | AF60: =Balanza!G56 -> 0 | AG60: =Balanza!C56 -> 0 | AH60: 22330 | AI60: Préstamos de la deuda pública interna por pagar a largo plazo | BM60: =Balanza!H154 -> 0 | BN60: =Balanza!D154 -> 0
A61: 12320 | B61: Viviendas | AF61: =Balanza!G57 -> 0 | AG61: =Balanza!C57 -> 0 | AH61: 22340 | AI61: Préstamos de la deuda pública externa por pagar a largo plazo | BM61: =Balanza!H155 -> 0 | BN61: =Balanza!D155 -> 0
A62: 12330 | B62: Edificios no habitacionales | AF62: =Balanza!G58 -> 0 | AG62: =Balanza!C58 -> 0 | AH62: 22350 | AI62: Arrendamiento financiero por pagar a largo plazo | BM62: =Balanza!H156 -> 0 | BN62: =Balanza!D156 -> 0
A63: 12340 | B63: Infraestructura | AF63: =Balanza!G59 -> 45117376.58 | AG63: =Balanza!C59 -> 45117376.58 | AH63: 22400 | AI63: PASIVOS DIFERIDOS A LARGO PLAZO | BM63: =SUM(BM64:BM66) -> 0 | BN63: =SUM(BN64:BN66) -> 0
A64: 12350 | B64: Construcciones en proceso en bienes de dominio público | AF64: =Balanza!G60 -> 28639595.2 | AG64: =Balanza!C60 -> 16504215.14 | AH64: 22410 | AI64: Créditos diferidos a largo plazo | BM64: =Balanza!H158 -> 0 | BN64: =Balanza!D158 -> 0
A65: 12360 | B65: Construcciones en proceso en bienes propios | AF65: =Balanza!G61 -> 1128359.8 | AG65: =Balanza!C61 -> 1128359.8 | AH65: 22420 | AI65: Intereses cobrados por adelantado a largo plazo | BM65: =Balanza!H159 -> 0 | BN65: =Balanza!D159 -> 0
A66: 12390 | B66: Otros bienes inmuebles | AF66: =Balanza!G62 -> 0 | AG66: =Balanza!C62 -> 0 | AH66: 22490 | AI66: Otros pasivos diferidos a largo plazo | BM66: =Balanza!H160 -> 0 | BN66: =Balanza!D160 -> 0
A67: 12400 | B67: BIENES MUEBLES | AF67: =SUM(AF68:AF75) -> 7444655.41 | AG67: =SUM(AG68:AG75) -> 3849664.76 | AH67: 22500 | AI67: FONDOS Y BIENES DE TERCEROS EN GARANTÍA Y/O ADMINISTRACIÓN A LARGO PLAZO | BM67: =SUM(BM68:BM73) -> 0 | BN67: =SUM(BN68:BN73) -> 0
A68: 12410 | B68: Mobiliario y equipo de administración | AF68: =Balanza!G64 -> 563683.34 | AG68: =Balanza!C64 -> 286232.26 | AH68: 22510 | AI68: Fondos en garantía a largo plazo | BM68: =Balanza!H162 -> 0 | BN68: =Balanza!D162 -> 0
A69: 12420 | B69: Mobiliario y equipo educacional y recreativo | AF69: =Balanza!G65 -> 146500.07 | AG69: =Balanza!C65 -> 16436.27 | AH69: 22520 | AI69: Fondos en administración a largo plazo | BM69: =Balanza!H163 -> 0 | BN69: =Balanza!D163 -> 0
A70: 12430 | B70: Equipo e instrumental médico y de laboratorio | AF70: =Balanza!G66 -> 0 | AG70: =Balanza!C66 -> 0 | AH70: 22530 | AI70: Fondos contingentes a largo plazo | BM70: =Balanza!H164 -> 0 | BN70: =Balanza!D164 -> 0
A71: 12440 | B71: Vehículos y equipo de transporte | AF71: =Balanza!G67 -> 6185896.23 | AG71: =Balanza!C67 -> 3546996.23 | AH71: 22540 | AI71: Fondos de fideicomisos, mandatos y contratos análogos a largo plazo | BM71: =Balanza!H165 -> 0 | BN71: =Balanza!D165 -> 0
A72: 12450 | B72: Equipo de defensa y seguridad | AF72: =Balanza!G68 -> 0 | AG72: =Balanza!C68 -> 0 | AH72: 22550 | AI72: Otros fondos de terceros en garantía y/o administración a largo plazo | BM72: =Balanza!H166 -> 0 | BN72: =Balanza!D166 -> 0
A73: 12460 | B73: Maquinaria, otros equipos y herramientas | AF73: =Balanza!G69 -> 548575.77 | AG73: =Balanza!C69 -> 0 | AH73: 22560 | AI73: Valores y bienes en garantía a largo plazo | BM73: =Balanza!H167 -> 0 | BN73: =Balanza!D167 -> 0
A74: 12470 | B74: Colecciones, obras de arte y objetos valiosos | AF74: =Balanza!G70 -> 0 | AG74: =Balanza!C70 -> 0 | AH74: 22600 | AI74: PROVISIONES A LARGO PLAZO | BM74: =SUM(BM75:BM78) -> 0 | BN74: =SUM(BN75:BN78) -> 0
A75: 12480 | B75: Activos biológicos | AF75: =Balanza!G71 -> 0 | AG75: =Balanza!C71 -> 0 | AH75: 22610 | AI75: Provisión para demandas y juicios a largo plazo | BM75: =Balanza!H169 -> 0 | BN75: =Balanza!D169 -> 0
A76: 12500 | B76: ACTIVOS INTANGIBLES | AF76: =SUM(AF77:AF81) -> 0 | AG76: =SUM(AG77:AG81) -> 0 | AH76: 22620 | AI76: Provisión para pensiones a largo plazo | BM76: =Balanza!H170 -> 0 | BN76: =Balanza!D170 -> 0
A77: 12510 | B77: Software | AF77: =Balanza!G73 -> 0 | AG77: =Balanza!C73 -> 0 | AH77: 22630 | AI77: Provisión para contingencias a largo plazo | BM77: =Balanza!H171 -> 0 | BN77: =Balanza!D171 -> 0
A78: 12520 | B78: Patentes, marcas y derechos | AF78: =Balanza!G74 -> 0 | AG78: =Balanza!C74 -> 0 | AH78: 22690 | AI78: Otras provisiones a largo plazo | BM78: =Balanza!H172 -> 0 | BN78: =Balanza!D172 -> 0
A79: 12530 | B79: Concesiones y franquicias | AF79: =Balanza!G75 -> 0 | AG79: =Balanza!C75 -> 0 | AI79: PASIVOS NO CIRCULANTES | BM79: =BM50+BM53+BM57+BM63+BM67+BM74 -> 0 | BN79: =BN50+BN53+BN57+BN63+BN67+BN74 -> 0
A80: 12540 | B80: Licencias | AF80: =Balanza!G76 -> 0 | AG80: =Balanza!C76 -> 0 | AI80: TOTAL DE PASIVOS | BM80: =BM48+BM79 -> 377482.34 | BN80: =BN48+BN79 -> 2480776.88
A81: 12590 | B81: Otros activos intangibles | AF81: =Balanza!G77 -> 0 | AG81: =Balanza!C77 -> 0 | AH81: 30000 | AI81: HACIENDA PÚBLICA/ PATRIMONIO
A82: 12600 | B82: DEPRECIACIÓN, DETERIORO Y AMORTIZACIÓN ACUMULADA DE BIENES | AF82: =SUM(AF83:AF87) -> 0 | AG82: =SUM(AG83:AG87) -> 0 | AH82: 31000 | AI82: HACIENDA PÚBLICA/ PATRIMONIO CONTRIBUIDO | BM82: =SUM(BM83:BM85) -> 0 | BN82: =SUM(BN83:BN85) -> 0
A83: 12610 | B83: Depreciación acumulada de bienes inmuebles | AF83: =(Balanza!H79)*-1 -> 0 | AG83: =(Balanza!D79)*-1 -> 0 | AH83: 31100 | AI83: Aportaciones | BM83: =Balanza!H175 -> 0 | BN83: =Balanza!D175 -> 0
A84: 12620 | B84: Depreciación acumulada de infraestructura | AF84: =(Balanza!H80)*-1 -> 0 | AG84: =(Balanza!D80)*-1 -> 0 | AH84: 31200 | AI84: Donaciones de capítal | BM84: =Balanza!H176 -> 0 | BN84: =Balanza!D176 -> 0
A85: 12630 | B85: Depreciación acumulada de bienes muebles | AF85: =(Balanza!H81)*-1 -> 0 | AG85: =(Balanza!D81)*-1 -> 0 | AH85: 31300 | AI85: Actualización de la hacienda pública/patrimonio | BM85: =Balanza!H177 -> 0 | BN85: =Balanza!D177 -> 0
A86: 12640 | B86: Deterioro acumulado de bienes | AF86: =(Balanza!H82)*-1 -> 0 | AG86: =(Balanza!D82)*-1 -> 0 | AH86: 32000 | AI86: HACIENDA PÚBLICA/PATRIMONIO GENERADO | BM86: =BM87+BM88+BM89+BM94+BM98 -> 83530802.31 | BN86: =BN87+BN88+BN89+BN94+BN98 -> 66472436.93
A87: 12650 | B87: Amortización acumulada de activos intangibles | AF87: =(Balanza!H83)*-1 -> 0 | AG87: =(Balanza!D83)*-1 -> 0 | AH87: 32100 | AI87: Resultado del ejercicio (ahorro/desahorro) | BM87: =Balanza!H179 -> 17058365.38 | BN87: =Balanza!D179 -> 19040695.96
A88: 12700 | B88: ACTIVOS DIFERIDOS | AF88: =SUM(AF89:AF94) -> 0 | AG88: =SUM(AG89:AG94) -> 0 | AH88: 32200 | AI88: Resultados de ejercicios anteriores | BM88: =Balanza!H180 -> 66472436.93 | BN88: =Balanza!D180 -> 47431740.97
A89: 12710 | B89: Estudios, formulación y evaluación de proyectos | AF89: =Balanza!G85 -> 0 | AG89: =Balanza!C85 -> 0 | AH89: 32300 | AI89: REVALÚOS | BM89: =SUM(BM90:BM93) -> 0 | BN89: =SUM(BN90:BN93) -> 0
A90: 12720 | B90: Derechos sobre bienes en régimen de arrendamiento financiero | AF90: =Balanza!G86 -> 0 | AG90: =Balanza!C86 -> 0 | AH90: 32310 | AI90: Revalúo de bienes inmuebles | BM90: =Balanza!H182 -> 0 | BN90: =Balanza!D182 -> 0
A91: 12730 | B91: Gastos pagados por adelantado a largo plazo | AF91: =Balanza!G87 -> 0 | AG91: =Balanza!C87 -> 0 | AH91: 32320 | AI91: Revalúo de bienes muebles | BM91: =Balanza!H183 -> 0 | BN91: =Balanza!D183 -> 0
A92: 12740 | B92: Anticipos a largo plazo | AF92: =Balanza!G88 -> 0 | AG92: =Balanza!C88 -> 0 | AH92: 32330 | AI92: Revalúo de bienes intangibles | BM92: =Balanza!H184 -> 0 | BN92: =Balanza!D184 -> 0
A93: 12750 | B93: Beneficios al retiro de empleados pagados por adelantado | AF93: =Balanza!G89 -> 0 | AG93: =Balanza!C89 -> 0 | AH93: 32390 | AI93: Otros revalúos | BM93: =Balanza!H185 -> 0 | BN93: =Balanza!D185 -> 0
A94: 12790 | B94: Otros activos diferidos | AF94: =Balanza!G90 -> 0 | AG94: =Balanza!C90 -> 0 | AH94: 32400 | AI94: RESERVAS | BM94: =SUM(BM95:BM97) -> 0 | BN94: =SUM(BN95:BN97) -> 0
A95: 12800 | B95: ESTIMACIÓN POR PÉRDIDA O DETERIORO DE ACTIVOS NO CIRCULANTES | AF95: =SUM(AF96:AF100) -> 0 | AG95: =SUM(AG96:AG100) -> 0 | AH95: 32410 | AI95: Reservas de patrimonio | BM95: =Balanza!H187 -> 0 | BN95: =Balanza!D187 -> 0
A96: 12810 | B96: Estimaciones por pérdida de cuentas incobrables de documentos por cobrar a largo plazo | AF96: =(Balanza!H92)*-1 -> 0 | AG96: =(Balanza!D92)*-1 -> 0 | AH96: 32420 | AI96: Reservas territoriales | BM96: =Balanza!H188 -> 0 | BN96: =Balanza!D188 -> 0
A97: 12820 | B97: Estimaciones por pérdida de cuentas incobrables de deudores diversos por cobrar a largo plazo | AF97: =(Balanza!H93)*-1 -> 0 | AG97: =(Balanza!D93)*-1 -> 0 | AH97: 32430 | AI97: Reservas por contingencias | BM97: =Balanza!H189 -> 0 | BN97: =Balanza!D189 -> 0
A98: 12830 | B98: Estimaciones por pérdida de cuentas incobrables de ingresos por cobrar a largo plazo | AF98: =(Balanza!H94)*-1 -> 0 | AG98: =(Balanza!D94)*-1 -> 0 | AH98: 32500 | AI98: RECTIFICACIONES DE RESULTADOS DE EJERCICIOS ANTERIORES | BM98: =SUM(BM99:BM101) -> 0 | BN98: =SUM(BN99:BN101) -> 0
A99: 12840 | B99: Estimaciones por pérdida de cuentas incobrables de préstamos otorgados a largo plazo | AF99: =(Balanza!H95)*-1 -> 0 | AG99: =(Balanza!D95)*-1 -> 0 | AH99: 32510 | AI99: Cambios en políticas contables | BM99: =Balanza!H191 -> 0 | BN99: =Balanza!D191 -> 0
A100: 12890 | B100: Estimaciones por pérdida de otras cuentas incobrables a largo plazo | AF100: =(Balanza!H96)*-1 -> 0 | AG100: =(Balanza!D96)*-1 -> 0 | AH100: 32520 | AI100: Cambios por errores contables | BM100: =Balanza!H192 -> 0 | BN100: =Balanza!D192 -> 0
A101: 12900 | B101: OTROS ACTIVOS NO CIRCULANTES | AF101: =SUM(AF102:AF104) -> 0 | AG101: =SUM(AG102:AG104) -> 0 | AH101: 32530 | AI101: Cambios en estimaciones contables | BM101: =Balanza!H193 -> 0 | BN101: =Balanza!D193 -> 0
A102: 12910 | B102: Bienes en concesión | AF102: =Balanza!G98 -> 0 | AG102: =Balanza!C98 -> 0 | AH102: 33000 | AI102: EXCESO O INSUFICIENCIA EN LA ACTUALIZACIÓN DE LA HACIENDA PÚBLICA / PATRIMONIO | BM102: =SUM(BM103:BM104) -> 0 | BN102: =SUM(BN103:BN104) -> 0
A103: 12920 | B103: Bienes en arrendamiento financiero | AF103: =Balanza!G99 -> 0 | AG103: =Balanza!C99 -> 0 | AH103: 33100 | AI103: Resultado por posición monetaria | BM103: =Balanza!H195 -> 0 | BN103: =Balanza!D195 -> 0
A104: 12930 | B104: Bienes en comodato | AF104: =Balanza!G100 -> 0 | AG104: =Balanza!C100 -> 0 | AH104: 33200 | AI104: Resultado por tenencia de activos no monetarios | BM104: =Balanza!H196 -> 0 | BN104: =Balanza!D196 -> 0
B105: ACTIVOS NO CIRCULANTES | AF105: =AF48+AF53+AF59+AF67+AF76+AF82+AF88+AF95+AF101 -> 82329986.99 | AG105: =AG48+AG53+AG59+AG67+AG76+AG82+AG88+AG95+AG101 -> 66599616.28 | BL105: TOTAL HACIENDA PUBLICA / PATRIMONIO | BM105: =BM82+BM86+BM102 -> 83530802.31 | BN105: =BN82+BN86+BN102 -> 66472436.93
B106: TOTAL DEL ACTIVO | AF106: =AF46+AF105 -> 83908284.65 | AG106: =AG46+AG105 -> 68953213.81 | AI106: SUMA DE PASIVO Y PATRIMONIO / HACIENDA PÚBLICA | BM106: =BM80+BM105 -> 83908284.65 | BN106: =BN80+BN105 -> 68953213.81
B109: Bajo protesta de decir verdad declaramos que los estados financieros y sus notas, son razonablemente correctos y son responsabilidad del emisor.
Q118: VICTOR MANUEL VAZQUEZ BEAS | AW118: JOSUE ARTURO REYNOSO NAVA
Q120: PRESIDENTE MUNICIPAL | AW120: ENCARGADO DE LAS HACIENDA
AG122: ASEJ2025-17-12-06-2026-1

Sheet F1A
B1: CUENTA PÚBLICA - MUNICIPIO ATEMAJAC DE BRIZUELA
B2: Estado de Situación Financiera
B3: AL 31 DE DICIEMBRE DE 2025
B4: (Cifras en pesos)
B5: Concepto | AF5: =Validacion!F185 -> 2025 | AG5: =Validacion!F186 -> 2024 | AI5: Concepto | BM5: =Validacion!F185 -> 2025 | BN5: =Validacion!F186 -> 2024
B6: ACTIVO | AI6: PASIVO
B7: Activo Circulante | AI7: Pasivo Circulante
B8: Efectivo y Equivalentes | AF8: =Balanza!G5 -> 1523297.66 | AG8: =Balanza!C5 -> 2353597.53 | AI8: Cuentas por Pagar a Corto Plazo | BM8: =Balanza!H103 -> 852417.08 | BN8: =Balanza!D103 -> 2480776.88
B9: Derechos a Recibir Efectivo o Equivalentes | AF9: =Balanza!G13 -> 55000 | AG9: =Balanza!C13 -> 0 | AI9: Documentos por Pagar a Corto Plazo | BM9: =Balanza!H113 -> 0 | BN9: =Balanza!D113 -> 0
B10: Derechos a Recibir Bienes o Servicios | AF10: =Balanza!G21 -> 0 | AG10: =Balanza!C21 -> 0 | AI10: Porción a Corto Plazo de la Deuda Pública a Largo Plazo | BM10: =Balanza!H117 -> 0 | BN10: =Balanza!D117 -> 0
B11: Inventarios | AF11: =Balanza!G27 -> 0 | AG11: =Balanza!C27 -> 0 | AI11: Títulos y Valores a Corto Plazo | BM11: =Balanza!H121 -> 0 | BN11: =Balanza!D121 -> 0
B12: Almacenes | AF12: =Balanza!G33 -> 0 | AG12: =Balanza!C33 -> 0 | AI12: Pasivos Diferidos a Corto Plazo | BM12: =Balanza!H124 -> 0 | BN12: =Balanza!D124 -> 0
B13: Estimación por Pérdida o Deterioro de Activos Circulantes | AF13: =Balanza!G35 -> 0 | AG13: =Balanza!C35 -> 0 | AI13: Fondos y Bienes de Terceros en Garantía y/o Administración a Corto Plazo | BM13: =Balanza!H128 -> 0 | BN13: =Balanza!D128 -> 0
B14: Otros Activos Circulantes | AF14: =Balanza!G38 -> 0 | AG14: =Balanza!C38 -> 0 | AI14: Provisiones a Corto Plazo | BM14: =Balanza!H135 -> 0 | BN14: =Balanza!D135 -> 0
B15: Total de Activos Circulantes | AF15: =AF8+AF9+AF10+AF11+AF12+AF13+AF14 -> 1578297.66 | AG15: =AG8+AG9+AG10+AG11+AG12+AG13+AG14 -> 2353597.53 | AI15: Otros Pasivos a Corto Plazo | BM15: =Balanza!H139 -> -474934.74 | BN15: =Balanza!D139 -> 0
B16: Activo No Circulantes | AI16: Total de Pasivos Circulante | BM16: =BM8+BM9+BM10+BM11+BM12+BM13+BM14+BM15 -> 377482.34 | BN16: =BN8+BN9+BN10+BN11+BN12+BN13+BN14+BN15 -> 2480776.88
B17: Inversiones Financieras a Largo Plazo | AF17: =Balanza!G44 -> 0 | AG17: =Balanza!C44 -> 0 | AI17: Pasivos No Circulante
B18: Derechos a Recibir Efectivo o Equivalentes a Largo Plazo | AF18: =Balanza!G49 -> 0 | AG18: =Balanza!C49 -> 0 | AI18: Cuentas por Pagar a Largo Plazo | BM18: =Balanza!H144 -> 0 | BN18: =Balanza!D144 -> 0
B19: Bienes Inmuebles, Infraestructura y Construcciones en Proceso | AF19: =Balanza!G55 -> 74885331.58 | AG19: =Balanza!C55 -> 62749951.52 | AI19: Documentos por Pagar a Largo Plazo | BM19: =Balanza!H147 -> 0 | BN19: =Balanza!D147 -> 0
B20: Bienes Muebles | AF20: =Balanza!G63 -> 7444655.41 | AG20: =Balanza!C63 -> 3849664.76 | AI20: Deuda Pública a Largo Plazo | BM20: =Balanza!H151 -> 0 | BN20: =Balanza!D151 -> 0
B21: Activos Intangibles | AF21: =Balanza!G72 -> 0 | AG21: =Balanza!C72 -> 0 | AI21: Pasivos Diferidos a Largo Plazo | BM21: =Balanza!H157 -> 0 | BN21: =Balanza!D157 -> 0
B22: Depreciación, Deterioro y Amortización Acumulada de Bienes | AF22: =(Balanza!H78)*-1 -> 0 | AG22: =(Balanza!D78)*-1 -> 0 | AI22: Fondos y Bienes de Terceros en Garantía y/o Administración a Largo Plazo | BM22: =Balanza!H161 -> 0 | BN22: =Balanza!D161 -> 0
B23: Activos Diferidos | AF23: =Balanza!G84 -> 0 | AG23: =Balanza!C84 -> 0 | AI23: Provisiones a Largo Plazo | BM23: =Balanza!H168 -> 0 | BN23: =Balanza!D168 -> 0
B24: Estimación por Pérdida o Deterioro de Activos no Circulantes | AF24: =(Balanza!H91)*-1 -> 0 | AG24: =(Balanza!D91)*-1 -> 0 | AI24: Total de Pasivos No Circulantes | BM24: =BM18+BM19+BM20+BM21+BM22+BM23 -> 0 | BN24: =BN18+BN19+BN20+BN21+BN22+BN23 -> 0
B25: Otros Activos no Circulantes | AF25: =Balanza!G97 -> 0 | AG25: =Balanza!C97 -> 0 | AI25: Total del Pasivo | BM25: =BM16+BM24 -> 377482.34 | BN25: =BN16+BN24 -> 2480776.88
B26: Total de Activos No Circulantes | AF26: =AF17+AF18+AF19+AF20+AF21+AF22+AF23+AF24+AF25 -> 82329986.99 | AG26: =AG17+AG18+AG19+AG20+AG21+AG22+AG23+AG24+AG25 -> 66599616.28 | AI26: HACIENDA PÚBLICA/PATRIMONIO
B27: Total del Activo | AF27: =AF15+AF26 -> 83908284.65 | AG27: =AG15+AG26 -> 68953213.81 | AI27: Hacienda Pública/Patrimonio Contribuido | BM27: =SUM(BM28:BM30) -> 0 | BN27: =SUM(BN28:BN30) -> 0
AI28: Aportaciones | BM28: =Balanza!H175 -> 0 | BN28: =Balanza!D175 -> 0
AI29: Donaciones de Capital | BM29: =Balanza!H176 -> 0 | BN29: =Balanza!D176 -> 0
AI30: Actualización de la Hacienda Pública/Patrimonio | BM30: =Balanza!H177 -> 0 | BN30: =Balanza!D177 -> 0
AI31: Hacienda Pública/Patrimonio Generado | BM31: =BM32+BM33+BM34+BM35+BM36 -> 83530802.31 | BN31: =BN32+BN33+BN34+BN35+BN36 -> 66472436.93
AI32: Resultado del Ejercicio (Ahorro/Desahorro) | BM32: =Balanza!H179 -> 17058365.38 | BN32: =Balanza!D179 -> 19040695.96
AI33: Resultados de Ejercicios Anteriores | BM33: =Balanza!H180 -> 66472436.93 | BN33: =Balanza!D180 -> 47431740.97
AI34: Revalúos | BM34: =Balanza!H181 -> 0 | BN34: =Balanza!D181 -> 0
AI35: Reservas | BM35: =Balanza!H186 -> 0 | BN35: =Balanza!D186 -> 0
AI36: Rectificaciones de Resultados de Ejercicios Anteriores | BM36: =Balanza!H190 -> 0 | BN36: =Balanza!D190 -> 0
AI37: Exceso o Insuficiencia en la Actualización de la Hacienda Pública/Patrimonio | BM37: =SUM(BM38:BM39) -> 0 | BN37: =SUM(BN38:BN39) -> 0
AI38: Resultado por Posición Monetaria | BM38: =Balanza!H195 -> 0 | BN38: =Balanza!D195 -> 0
AI39: Resultado por Tenencia de Activos no Monetarios | BM39: =Balanza!H196 -> 0 | BN39: =Balanza!D196 -> 0
AI40: Total Hacienda Pública/Patrimonio | BM40: =BM27+BM31+BM37 -> 83530802.31 | BN40: =BN27+BN31+BN37 -> 66472436.93
AI41: Total del Pasivo y Hacienda Pública/Patrimonio | BM41: =BM25+BM40 -> 83908284.65 | BN41: =BN25+BN40 -> 68953213.81
B44: Bajo protesta de decir verdad declaramos que los Estados Financieros y sus notas, son razonablemente correctos y son responsabilidad del emisor.
Q48: VICTOR MANUEL VAZQUEZ BEAS | AW48: JOSUE ARTURO REYNOSO NAVA
Q50: PRESIDENTE MUNICIPAL | AW50: ENCARGADO DE LAS HACIENDA
AG53: ASEJ2025-17-12-06-2026-1

Sheet F1LDF
B1: CUENTA PÚBLICA - MUNICIPIO ATEMAJAC DE BRIZUELA
B2: Estado de Situación Financiera Detallado - LDF
B3: AL 31 DE DICIEMBRE DE 2025
B4: (PESOS)
B5: Concepto | AF5: =Validacion!F185 -> 2025 | AG5: ="31 DE DICIEMBRE DE "&Validacion!F186 -> 31 DE DICIEMBRE DE 2024 | AI5: Concepto | BM5: =Validacion!F185 -> 2025 | BN5: ="31 DE DICIEMBRE DE "&Validacion!F186 -> 31 DE DICIEMBRE DE 2024
B6: ACTIVO | AI6: PASIVO
B7: Activo Circulante | AI7: Pasivo Circulante
B8: a. Efectivo y Equivalentes | AF8: =SUM(AF9:AF15) -> 1523297.66 | AG8: =SUM(AG9:AG15) -> 2353597.53 | AI8: a. Cuentas por Pagar a Corto Plazo | BM8: =SUM(BM9:BM17) -> 852417.08 | BN8: =SUM(BN9:BN17) -> 2480776.88
B9: a1) Efectivo | AF9: =Balanza!G6 -> -64427.59 | AG9: =Balanza!C6 -> -114.13 | AI9: a1) Servicios Personales por Pagar a Corto Plazo | BM9: =Balanza!H104 -> 0 | BN9: =Balanza!D104 -> 0
B10: a2) Bancos/Tesorería | AF10: =Balanza!G7 -> 1587734.68 | AG10: =Balanza!C7 -> 2353711.66 | AI10: a2) Proveedores por Pagar a Corto Plazo | BM10: =Balanza!H105 -> 0 | BN10: =Balanza!D105 -> 0
B11: a3) Bancos/Dependencias y Otros | AF11: =Balanza!G8 -> -9.43 | AG11: =Balanza!C8 -> 0 | AI11: a3) Contratistas por Obras Públicas por Pagar a Corto Plazo | BM11: =Balanza!H106 -> 0 | BN11: =Balanza!D106 -> 1128359.8
B12: a4) Inversiones Temporales (Hasta 3 meses) | AF12: =Balanza!G9 -> 0 | AG12: =Balanza!C9 -> 0 | AI12: a4) Participaciones y Aportaciones por Pagar a Corto Plazo | BM12: =Balanza!H107 -> 0 | BN12: =Balanza!D107 -> 0
B13: a5) Fondos con Afectación Específica | AF13: =Balanza!G10 -> 0 | AG13: =Balanza!C10 -> 0 | AI13: a5) Transferencias Otorgadas por Pagar a Corto Plazo | BM13: =Balanza!H108 -> 0 | BN13: =Balanza!D108 -> 0
B14: a6) Depósitos de Fondos de Terceros en Garantía y/o Administración | AF14: =Balanza!G11 -> 0 | AG14: =Balanza!C11 -> 0 | AI14: a6) Intereses, Comisiones y Otros Gastos de la Deuda Pública por Pagar a Corto Plazo | BM14: =Balanza!H109 -> 0 | BN14: =Balanza!D109 -> 0
B15: a7) Otros Efectivos y Equivalentes | AF15: =Balanza!G12 -> 0 | AG15: =Balanza!C12 -> 0 | AI15: a7) Retenciones y Contribuciones por Pagar a Corto Plazo | BM15: =Balanza!H110 -> 152417.08 | BN15: =Balanza!D110 -> 152417.08
B16: b. Derechos a Recibir Efectivo o Equivalentes | AF16: =SUM(AF17:AF23) -> 55000 | AG16: =SUM(AG17:AG23) -> 0 | AI16: a8) Devoluciones de la Ley de Ingresos por Pagar a Corto Plazo | BM16: =Balanza!H111 -> 0 | BN16: =Balanza!D111 -> 0
B17: b1) Inversiones Financieras de Corto Plazo | AF17: =Balanza!G14 -> 0 | AG17: =Balanza!C14 -> 0 | AI17: a9) Otras Cuentas por Pagar a Corto Plazo | BM17: =Balanza!H112 -> 700000 | BN17: =Balanza!D112 -> 1200000
B18: b2) Cuentas por Cobrar a Corto Plazo | AF18: =Balanza!G15 -> 0 | AG18: =Balanza!C15 -> 0 | AI18: b. Documentos por Pagar a Corto Plazo | BM18: =SUM(BM19:BM21) -> 0 | BN18: =SUM(BN19:BN21) -> 0
B19: b3) Deudores Diversos por Cobrar a Corto Plazo | AF19: =Balanza!G16 -> 35000 | AG19: =Balanza!C16 -> 0 | AI19: b1) Documentos Comerciales por Pagar a Corto Plazo | BM19: =Balanza!H114 -> 0 | BN19: =Balanza!D114 -> 0
B20: b4) Ingresos por Recuperar a Corto Plazo | AF20: =Balanza!G17 -> 0 | AG20: =Balanza!C17 -> 0 | AI20: b2) Documentos con Contratistas por Obras Públicas por Pagar a Corto Plazo | BM20: =Balanza!H115 -> 0 | BN20: =Balanza!D115 -> 0
B21: b5) Deudores por Anticipos de la Tesorería a Corto Plazo | AF21: =Balanza!G18 -> 0 | AG21: =Balanza!C18 -> 0 | AI21: b3) Otros Documentos por Pagar a Corto Plazo | BM21: =Balanza!H116 -> 0 | BN21: =Balanza!D116 -> 0
B22: b6) Préstamos Otorgados a Corto Plazo | AF22: =Balanza!G19 -> 20000 | AG22: =Balanza!C19 -> 0 | AI22: c. Porción a Corto Plazo de la Deuda Pública a Largo Plazo | BM22: =SUM(BM23:BM24) -> 0 | BN22: =SUM(BN23:BN24) -> 0
B23: b7) Otros Derechos a Recibir Efectivo o Equivalentes a Corto Plazo | AF23: =Balanza!G20 -> 0 | AG23: =Balanza!C20 -> 0 | AI23: c1) Porción a Corto Plazo de la Deuda Pública | BM23: =Balanza!H118 -> 0 | BN23: =Balanza!D118 -> 0
B24: c. Derechos a Recibir Bienes o Servicios | AF24: =SUM(AF25:AF29) -> 0 | AG24: =SUM(AG25:AG29) -> 0 | AI24: c2) Porción a Corto Plazo de Arrendamiento Financiero | BM24: =Balanza!H120 -> 0 | BN24: =Balanza!D120 -> 0
B25: c1) Anticipo a Proveedores por Adquisición de Bienes y Prestación de Servicios a Corto Plazo | AF25: =Balanza!G22 -> 0 | AG25: =Balanza!C22 -> 0 | AI25: d. Títulos y Valores a Corto Plazo | BM25: =Balanza!H121 -> 0 | BN25: =Balanza!D121 -> 0
B26: c2) Anticipo a Proveedores por Adquisición de Bienes Inmuebles y Muebles a Corto Plazo | AF26: =Balanza!G23 -> 0 | AG26: =Balanza!C23 -> 0 | AI26: e. Pasivos Diferidos a Corto Plazo | BM26: =SUM(BM27:BM29) -> 0 | BN26: =SUM(BN27:BN29) -> 0
B27: c3) Anticipo a Proveedores por Adquisición de Bienes Intangibles a Corto Plazo | AF27: =Balanza!G24 -> 0 | AG27: =Balanza!C24 -> 0 | AI27: e1) Ingresos Cobrados por Adelantado a Corto Plazo | BM27: =Balanza!H125 -> 0 | BN27: =Balanza!D125 -> 0
B28: c4) Anticipo a Contratistas por Obras Públicas a Corto Plazo | AF28: =Balanza!G25 -> 0 | AG28: =Balanza!C25 -> 0 | AI28: e2) Intereses Cobrados por Adelantado a Corto Plazo | BM28: =Balanza!H126 -> 0 | BN28: =Balanza!D126 -> 0
B29: c5) Otros Derechos a Recibir Bienes o Servicios a Corto Plazo | AF29: =Balanza!G26 -> 0 | AG29: =Balanza!C26 -> 0 | AI29: e3) Otros Pasivos Diferidos a Corto Plazo | BM29: =Balanza!H127 -> 0 | BN29: =Balanza!D127 -> 0
B30: d. Inventarios | AF30: =SUM(AF31:AF35) -> 0 | AG30: =SUM(AG31:AG35) -> 0 | AI30: f. Fondos y Bienes de Terceros en Garantía y/o Administración a Corto Plazo | BM30: =SUM(BM31:BM36) -> 0 | BN30: =SUM(BN31:BN36) -> 0
B31: d1) Inventario de Mercancías para Venta | AF31: =Balanza!G28 -> 0 | AG31: =Balanza!C28 -> 0 | AI31: f1) Fondos en Garantía a Corto Plazo | BM31: =Balanza!H129 -> 0 | BN31: =Balanza!D129 -> 0
B32: d2) Inventario de Mercancías Terminadas | AF32: =Balanza!G29 -> 0 | AG32: =Balanza!C29 -> 0 | AI32: f2) Fondos en Administración a Corto Plazo | BM32: =Balanza!H130 -> 0 | BN32: =Balanza!D130 -> 0
B33: d3) Inventario de Mercancías en Proceso de Elaboración | AF33: =Balanza!G30 -> 0 | AG33: =Balanza!C30 -> 0 | AI33: f3) Fondos Contingentes a Corto Plazo | BM33: =Balanza!H131 -> 0 | BN33: =Balanza!D131 -> 0
B34: d4) Inventario de Materias Primas, Materiales y Suministros para Producción | AF34: =Balanza!G31 -> 0 | AG34: =Balanza!C31 -> 0 | AI34: f4) Fondos de Fideicomisos, Mandatos y Contratos Análogos a Corto Plazo | BM34: =Balanza!H132 -> 0 | BN34: =Balanza!D132 -> 0
B35: d5) Bienes en Tránsito | AF35: =Balanza!G32 -> 0 | AG35: =Balanza!C32 -> 0 | AI35: f5) Otros Fondos de Terceros en Garantía y/o Administración a Corto Plazo | BM35: =Balanza!H133 -> 0 | BN35: =Balanza!D133 -> 0
B36: e. Almacenes | AF36: =Balanza!G34 -> 0 | AG36: =Balanza!C34 -> 0 | AI36: f6) Valores y Bienes en Garantía a Corto Plazo | BM36: =Balanza!H134 -> 0 | BN36: =Balanza!D134 -> 0
B37: f. Estimación por Pérdida o Deterioro de Activos Circulantes | AF37: =SUM(AF38:AF39) -> 0 | AG37: =SUM(AG38:AG39) -> 0 | AI37: g. Provisiones a Corto Plazo | BM37: =SUM(BM38:BM40) -> 0 | BN37: =SUM(BN38:BN40) -> 0
B38: f1) Estimaciones para Cuentas Incobrables por Derechos a Recibir Efectivo o Equivalentes | AF38: =Balanza!G36 -> 0 | AG38: =Balanza!C36 -> 0 | AI38: g1) Provisión para Demandas y Juicios a Corto Plazo | BM38: =Balanza!H136 -> 0 | BN38: =Balanza!D136 -> 0
B39: f2) Estimación por Deterioro de Inventarios | AF39: =Balanza!G37 -> 0 | AG39: =Balanza!C37 -> 0 | AI39: g2) Provisión para Contingencias a Corto Plazo | BM39: =Balanza!H137 -> 0 | BN39: =Balanza!D137 -> 0
B40: g. Otros Activos Circulantes | AF40: =SUM(AF41:AF44) -> 0 | AG40: =SUM(AG41:AG44) -> 0 | AI40: g3) Otras Provisiones a Corto Plazo | BM40: =Balanza!H138 -> 0 | BN40: =Balanza!D138 -> 0
B41: g1) Valores en Garantía | AF41: =Balanza!G39 -> 0 | AG41: =Balanza!C39 -> 0 | AI41: h. Otros Pasivos a Corto Plazo | BM41: =SUM(BM42:BM44) -> -474934.74 | BN41: =SUM(BN42:BN44) -> 0
B42: g2) Bienes en Garantía (excluye depósitos de fondos) | AF42: =Balanza!G40 -> 0 | AG42: =Balanza!C40 -> 0 | AI42: h1) Ingresos por Clasificar | BM42: =Balanza!H140 -> -474934.74 | BN42: =Balanza!D140 -> 0
B43: g3) Bienes Derivados de Embargos, Decomisos, Aseguramientos y Dación en Pago | AF43: =Balanza!G41 -> 0 | AG43: =Balanza!C41 -> 0 | AI43: h2) Recaudación por Participar | BM43: =Balanza!H141 -> 0 | BN43: =Balanza!D141 -> 0
B44: g4) Adquisición con Fondos de Terceros | AF44: =Balanza!G42 -> 0 | AG44: =Balanza!C42 -> 0 | AI44: h3) Otros Pasivos Circulantes | BM44: =Balanza!H142 -> 0 | BN44: =Balanza!D142 -> 0
B45: IA. Total de Activos Circulantes | AF45: =AF8+AF16+AF24+AF30+AF36+AF37+AF40 -> 1578297.66 | AG45: =AG8+AG16+AG24+AG30+AG36+AG37+AG40 -> 2353597.53 | AI45: IIA. Total de Pasivos Circulantes | BM45: =BM8+BM18+BM22+BM25+BM26+BM30+BM37+BM41 -> 377482.34 | BN45: =BN8+BN18+BN22+BN25+BN26+BN30+BN37+BN41 -> 2480776.88
B46: Activo No Circulantes | AI46: Pasivo No Circulante
B47: a. Inversiones Financieras a Largo Plazo | AF47: =Balanza!G44 -> 0 | AG47: =Balanza!C44 -> 0 | AI47: a. Cuentas por Pagar a Largo Plazo | BM47: =Balanza!H144 -> 0 | BN47: =Balanza!D144 -> 0
B48: b. Derechos a Recibir Efectivo o Equivalentes a Largo Plazo | AF48: =Balanza!G49 -> 0 | AG48: =Balanza!C49 -> 0 | AI48: b. Documentos por Pagar a Largo Plazo | BM48: =Balanza!H147 -> 0 | BN48: =Balanza!D147 -> 0
B49: c. Bienes Inmuebles, Infraestructura y Construcciones en Proceso | AF49: =Balanza!G55 -> 74885331.58 | AG49: =Balanza!C55 -> 62749951.52 | AI49: c. Deuda Pública a Largo Plazo | BM49: =Balanza!H151 -> 0 | BN49: =Balanza!D151 -> 0
B50: d. Bienes Muebles | AF50: =Balanza!G63 -> 7444655.41 | AG50: =Balanza!C63 -> 3849664.76 | AI50: d. Pasivos Diferidos a Largo Plazo | BM50: =Balanza!H157 -> 0 | BN50: =Balanza!D157 -> 0
B51: e. Activos Intangibles | AF51: =Balanza!G72 -> 0 | AG51: =Balanza!C72 -> 0 | AI51: e. Fondos y Bienes de Terceros en Garantía y/o Administración a Largo Plazo | BM51: =Balanza!H161 -> 0 | BN51: =Balanza!D161 -> 0
B52: f. Depreciación, Deterioro y Amortización Acumulada de Bienes | AF52: =(Balanza!H78)*-1 -> 0 | AG52: =(Balanza!D78)*-1 -> 0 | AI52: f. Provisiones a Largo Plazo | BM52: =Balanza!H168 -> 0 | BN52: =Balanza!D168 -> 0
B53: g. Activos Diferidos | AF53: =Balanza!G84 -> 0 | AG53: =Balanza!C84 -> 0 | AI53: IIB. Total de Pasivos No Circulantes | BM53: =BM47+BM48+BM49+BM50+BM51+BM52 -> 0 | BN53: =BN47+BN48+BN49+BN50+BN51+BN52 -> 0
B54: h. Estimación por Pérdida o Deterioro de Activos no Circulantes | AF54: =(Balanza!H91)*-1 -> 0 | AG54: =(Balanza!D91)*-1 -> 0 | AI54: II. Total del Pasivo | BM54: =BM45+BM53 -> 377482.34 | BN54: =BN45+BN53 -> 2480776.88
B55: i. Otros Activos no Circulantes | AF55: =Balanza!G97 -> 0 | AG55: =Balanza!C97 -> 0 | AI55: HACIENDA PÚBLICA/PATRIMONIO
B56: IB. Total de Activos No Circulantes | AF56: =AF47+AF48+AF49+AF50+AF51+AF52+AF53+AF54+AF55 -> 82329986.99 | AG56: =AG47+AG48+AG49+AG50+AG51+AG52+AG53+AG54+AG55 -> 66599616.28 | AI56: IIIA. Hacienda Pública/Patrimonio Contribuido | BM56: =SUM(BM57:BM59) -> 0 | BN56: =SUM(BN57:BN59) -> 0
B57: I. Total del Activo | AF57: =AF45+AF56 -> 83908284.65 | AG57: =AG45+AG56 -> 68953213.81 | AI57: a. Aportaciones | BM57: =Balanza!H175 -> 0 | BN57: =Balanza!D175 -> 0
AI58: b. Donaciones de Capital | BM58: =Balanza!H176 -> 0 | BN58: =Balanza!D176 -> 0
AI59: c. Actualización de la Hacienda Pública/Patrimonio | BM59: =Balanza!H177 -> 0 | BN59: =Balanza!D177 -> 0
AI60: IIIB. Hacienda Pública/Patrimonio Generado | BM60: =BM61+BM62+BM63+BM64+BM65 -> 83530802.31 | BN60: =BN61+BN62+BN63+BN64+BN65 -> 66472436.93
AI61: a. Resultado del Ejercicio (Ahorro/Desahorro) | BM61: =Balanza!H179 -> 17058365.38 | BN61: =Balanza!D179 -> 19040695.96
AI62: b. Resultados de Ejercicios Anteriores | BM62: =Balanza!H180 -> 66472436.93 | BN62: =Balanza!D180 -> 47431740.97
AI63: c. Revalúos | BM63: =Balanza!H181 -> 0 | BN63: =Balanza!D181 -> 0
AI64: d. Reservas | BM64: =Balanza!H186 -> 0 | BN64: =Balanza!D186 -> 0
AI65: e. Rectificaciones de Resultados de Ejercicios Anteriores | BM65: =Balanza!H190 -> 0 | BN65: =Balanza!D190 -> 0
AI66: IIIC. Exceso o Insuficiencia en la Actualización de la Hacienda Pública/Patrimonio | BM66: =SUM(BM67:BM68) -> 0 | BN66: =SUM(BN67:BN68) -> 0
AI67: a. Resultado por Posición Monetaria | BM67: =Balanza!H195 -> 0 | BN67: =Balanza!D195 -> 0
AI68: b. Resultado por Tenencia de Activos no Monetarios | BM68: =Balanza!H196 -> 0 | BN68: =Balanza!D196 -> 0
AI69: III. Total Hacienda Pública/Patrimonio | BM69: =BM56+BM60+BM66 -> 83530802.31 | BN69: =BN56+BN60+BN66 -> 66472436.93
AI70: IV. Total del Pasivo y Hacienda Pública/Patrimonio | BM70: =BM54+BM69 -> 83908284.65 | BN70: =BN54+BN69 -> 68953213.81
B72: Bajo protesta de decir verdad declaramos que los Estados Financieros y sus notas, son razonablemente correctos y son responsabilidad del emisor.
Q76: VICTOR MANUEL VAZQUEZ BEAS | AW76: JOSUE ARTURO REYNOSO NAVA
Q78: PRESIDENTE MUNICIPAL | AW78: ENCARGADO DE LAS HACIENDA
AG81: ASEJ2025-17-12-06-2026-1

Sheet F6
A1: CUENTA PÚBLICA - MUNICIPIO ATEMAJAC DE BRIZUELA
A2: Estado Analítico del Actividades
A3: DEL 1° DE ENERO AL 31 DE DICIEMBRE DE 2025
A4: (Cifras en pesos)
A5: CTA | B5: Concepto | AX5: =Validacion!F185 -> 2025 | AY5: =Validacion!F186 -> 2024
A6: 40000 | B6: INGRESOS Y OTROS BENEFICIOS
A7: 41000 | B7: INGRESOS DE GESTIÓN | AX7: =AX8+AX29+AX35+AX40+AX72+AX81+AX102 -> 14134231.07 | AY7: =AY8+AY29+AY35+AY40+AY72+AY81+AY102 -> 17958862.29
A8: 41100 | B8: IMPUESTOS | AX8: =AX9+AX11+AX15+AX16+AX17+AX18+AX19+AX25+AX27 -> 5313248.11 | AY8: =AY9+AY11+AY15+AY16+AY17+AY18+AY19+AY25+AY27 -> 5605373.1
A9: 41110 | B9: Impuestos sobre los ingresos | AX9: =SUM(AX10) -> 0 | AY9: =SUM(AY10) -> 0
A10: 41110-1 | B10: Impuestos sobre espectáculos públicos | AX10: =Balanza!H201 -> 0 | AY10: =Balanza!D201 -> 0
A11: 41120 | B11: Impuestos sobre el patrimonio | AX11: =SUM(AX12:AX14) -> 5159936.32 | AY11: =SUM(AY12:AY14) -> 5457536.58
A12: 41120-1 | B12: Impuesto predial | AX12: =Balanza!H203 -> 4696619.5 | AY12: =Balanza!D203 -> 3383193.15
A13: 41120-2 | B13: Impuestos sobre transmisiones patrimoniales | AX13: =Balanza!H204 -> 163363.25 | AY13: =Balanza!D204 -> 1936802
A14: 41120-3 | B14: Impuestos sobre negocios jurídicos | AX14: =Balanza!H205 -> 299953.57 | AY14: =Balanza!D205 -> 137541.43
A15: 41130 | B15: Impuestos sobre la producción, el consumo y las transacciones | AX15: 0 | AY15: 0
A16: 41140 | B16: Impuestos al comercio exterior | AX16: 0 | AY16: 0
A17: 41150 | B17: Impuestos sobre nóminas y asimilables | AX17: 0 | AY17: 0
A18: 41160 | B18: Impuestos ecológicos | AX18: 0 | AY18: 0
A19: 41170 | B19: Accesorios de impuestos | AX19: =SUM(AX20:AX24) -> 153311.79 | AY19: =SUM(AY20:AY24) -> 147836.52
A20: 41170-1 | B20: Recargos | AX20: =Balanza!H211 -> 153311.79 | AY20: =Balanza!D211 -> 138444.03
A21: 41170-2 | B21: Actualizaciones | AX21: =Balanza!H212 -> 0 | AY21: =Balanza!D212 -> 0
A22: 41170-3 | B22: Multas | AX22: =Balanza!H213 -> 0 | AY22: =Balanza!D213 -> 9392.49
A23: 41170-4 | B23: Gastos de ejecución | AX23: =Balanza!H214 -> 0 | AY23: =Balanza!D214 -> 0
A24: 41170-5 | B24: Otros no especificados | AX24: =Balanza!H215 -> 0 | AY24: =Balanza!D215 -> 0
A25: 41180 | B25: Impuestos no comprendidos en la ley de ingresos vigente, causados en ejercicio fiscales anteriores pendientes de liquidar o pago | AX25: =SUM(AX26) -> 0 | AY25: =SUM(AY26) -> 0
A26: 41180-1 | B26: Impuestos no comprendidos en la ley de ingresos vigente, causados en ejercicio fiscales anteriores pendientes de liquidar o pago | AX26: =Balanza!H217 -> 0 | AY26: =Balanza!D217 -> 0
A27: 41190 | B27: Otros Impuestos | AX27: =SUM(AX28) -> 0 | AY27: =SUM(AY28) -> 0
A28: 41190-1 | B28: Otros impuestos | AX28: =Balanza!H219 -> 0 | AY28: =Balanza!D219 -> 0
A29: 41200 | B29: CUOTAS Y APORTACIONES DE SEGURIDAD SOCIAL | AX29: =SUM(AX30:AX34) -> 0 | AY29: =SUM(AY30:AY34) -> 0
A30: 41210 | B30: Aportaciones para fondos de vivienda | AX30: 0 | AY30: 0
A31: 41220 | B31: Cuotas para la seguridad social | AX31: 0 | AY31: 0
A32: 41230 | B32: Cuotas de ahorro para el retiro | AX32: 0 | AY32: 0
A33: 41240 | B33: Accesorios de cuotas y aportaciones de seguridad social | AX33: 0 | AY33: 0
A34: 41290 | B34: Otras cuotas y aportaciones para la seguridad social | AX34: 0 | AY34: 0
A35: 41300 | B35: CONTRIBUCIONES DE MEJORAS | AX35: =AX36+AX38 -> 0 | AY35: =AY36+AY38 -> 0
A36: 41310 | B36: Contribuciones de mejoras por obras públicas | AX36: =SUM(AX37) -> 0 | AY36: =SUM(AY37) -> 0
A37: 41310-1 | B37: Contribuciones de mejoras por obras públicas | AX37: =Balanza!H228 -> 0 | AY37: =Balanza!D228 -> 0
A38: 41320 | B38: Contribuciones de mejoras no comprendidas en la ley de ing. vigente, causadas en ejercicios fiscales anteriores pendientes de liq. o pago | AX38: =SUM(AX39) -> 0 | AY38: =SUM(AY39) -> 0
A39: 41320-1 | B39: Contribuciones de mejoras no comprendidas en la ley de ing. vigente, causadas en ejercicios fiscales anteriores pendientes de liq. o pago | AX39: =Balanza!H230 -> 0 | AY39: =Balanza!D230 -> 0
A40: 41400 | B40: DERECHOS | AX40: =AX41+AX46+AX47+AX62+AX68+AX70 -> 8516911.39 | AY40: =AY41+AY46+AY47+AY62+AY68+AY70 -> 11367246.92
A41: 41410 | B41: Derechos por el uso, goce, aprovechamiento o explotación de bienes de dominio público | AX41: =SUM(AX42:AX45) -> 303332.07 | AY41: =SUM(AY42:AY45) -> 51892.23
A42: 41410-1 | B42: Derechos por el uso del piso | AX42: =Balanza!H233 -> 281014 | AY42: =Balanza!D233 -> 32081
A43: 41410-2 | B43: Derechos por el uso de los estacionamientos | AX43: =Balanza!H234 -> 0 | AY43: =Balanza!D234 -> 0
A44: 41410-3 | B44: Derechos de uso de cementerios y panteones municipales | AX44: =Balanza!H235 -> 22318.07 | AY44: =Balanza!D235 -> 19811.23
A45: 41410-4 | B45: Derechos de concesiones y demás inmuebles de propiedad municipal | AX45: =Balanza!H236 -> 0 | AY45: =Balanza!D236 -> 0
A46: 41420 | B46: Derechos a los hidrocarburos (derogada) | AX46: 0 | AY46: 0
A47: 41430 | B47: Derechos por prestación de servicios | AX47: =SUM(AX48:AX61) -> 7446971.02 | AY47: =SUM(AY48:AY61) -> 10386580.9
A48: 41430-1 | B48: Derechos de licencias y permisos de giros | AX48: =Balanza!H239 -> 777370.56 | AY48: =Balanza!D239 -> 152801.29
A49: 41430-2 | B49: Derechos de licencias y permisos de anuncios | AX49: =Balanza!H240 -> 65915.95 | AY49: =Balanza!D240 -> 11321.86
A50: 41430-3 | B50: Derechos de licencias de construcción, reconstrucción, reparación o demolición de obras | AX50: =Balanza!H241 -> 75528.85 | AY50: =Balanza!D241 -> 948.48
A51: 41430-4 | B51: Derechos de regularizaciones de los registros de obra | AX51: =Balanza!H242 -> 0 | AY51: =Balanza!D242 -> 0
A52: 41430-5 | B52: Derechos de alineamiento, designación de número oficial e inspección | AX52: =Balanza!H243 -> 0 | AY52: =Balanza!D243 -> 147981.98
A53: 41430-6 | B53: Derechos de licencias de cambio de régimen de propiedad y urbanización | AX53: =Balanza!H244 -> 44742.37 | AY53: =Balanza!D244 -> 367.5
A54: 41430-7 | B54: Derechos de servicios de obra | AX54: =Balanza!H245 -> 513555.88 | AY54: =Balanza!D245 -> 102242.45
A55: 41430-8 | B55: Derechos de servicios de sanidad | AX55: =Balanza!H246 -> 0 | AY55: =Balanza!D246 -> 3886
A56: 41430-9 | B56: Derechos de servicio de limpieza, recolección, traslado, tratamiento y disposición final de residuos | AX56: =Balanza!H247 -> 0 | AY56: =Balanza!D247 -> 2031647.65
A57: 41430-10 | B57: Derechos de agua potable, drenaje, alcantarillado, tratamiento y disposición final de aguas residuales | AX57: =Balanza!H248 -> 1331640.94 | AY57: =Balanza!D248 -> 0
A58: 41430-11 | B58: Derechos del rastro | AX58: =Balanza!H249 -> 272200.98 | AY58: =Balanza!D249 -> 328569
A59: 41430-12 | B59: Derechos del registro civil | AX59: =Balanza!H250 -> 63391.53 | AY59: =Balanza!D250 -> 38745.69
A60: 41430-13 | B60: Derechos de las certificaciones | AX60: =Balanza!H251 -> 71070.65 | AY60: =Balanza!D251 -> 6084532.25
A61: 41430-14 | B61: Derechos de los servicios de catastro | AX61: =Balanza!H252 -> 4231553.31 | AY61: =Balanza!D252 -> 1483536.75
A62: 41440 | B62: Accesorios de derecho | AX62: =SUM(AX63:AX67) -> 551114.62 | AY62: =SUM(AY63:AY67) -> 879075.8
A63: 41440-1 | B63: Recargos | AX63: =Balanza!H254 -> 42463.65 | AY63: =Balanza!D254 -> 83351.45
A64: 41440-2 | B64: Actualizaciones | AX64: =Balanza!H255 -> 0 | AY64: =Balanza!D255 -> 0
A65: 41440-3 | B65: Multas | AX65: =Balanza!H256 -> 14603.94 | AY65: =Balanza!D256 -> 0
A66: 41440-4 | B66: Gastos de ejecución | AX66: =Balanza!H257 -> 0 | AY66: =Balanza!D257 -> 0
A67: 41440-5 | B67: Otros no especificados | AX67: =Balanza!H258 -> 494047.03 | AY67: =Balanza!D258 -> 795724.35
A68: 41450 | B68: Derechos no comprendidos en la ley de ingresos vigente, causados en ejercicios fiscales anteriores pendientes de liquidación o pago | AX68: =SUM(AX69) -> 0 | AY68: =SUM(AY69) -> 0
A69: 41450-1 | B69: Derechos no comprendidos en la ley de ingresos vigente, causados en ejercicios fiscales anteriores pendientes de liquidación o pago | AX69: =Balanza!H260 -> 0 | AY69: =Balanza!D260 -> 0
A70: 41490 | B70: Otros derechos | AX70: =SUM(AX71) -> 215493.68 | AY70: =SUM(AY71) -> 49697.99
A71: 41490-1 | B71: Otros derechos | AX71: =Balanza!H262 -> 215493.68 | AY71: =Balanza!D262 -> 49697.99
A72: 41500 | B72: PRODUCTOS | AX72: =AX73+AX76+AX77+AX78+AX80 -> 304071.57 | AY72: =AY73+AY76+AY77+AY78+AY80 -> 947904.86
A73: 41510 | B73: Productos | AX73: =SUM(AX74:AX75) -> 304071.57 | AY73: =SUM(AY74:AY75) -> 947904.86
A74: 41510-1 | B74: Uso, goce, aprovechamiento o explotación de bienes de dominio privado | AX74: =Balanza!H265 -> 0 | AY74: =Balanza!D265 -> 0
A75: 41510-2 | B75: Productos diversos | AX75: =Balanza!H266 -> 304071.57 | AY75: =Balanza!D266 -> 947904.86
A76: 41520 | B76: Enajenación de bienes muebles no sujetos a ser inventariados (derogada) | AX76: 0 | AY76: 0
A77: 41530 | B77: Accesorios de productos (derogada) | AX77: 0 | AY77: 0
A78: 41540 | B78: Productos no comprendidos en la ley de ingresos vigente, causados en ejercicios fiscales anteriores pendientes de liquidación o pago | AX78: =SUM(AX79) -> 0 | AY78: =SUM(AY79) -> 0
A79: 41540-1 | B79: Productos no comprendidos en la ley de ingresos vigente, causadas en ejercicios fiscales anteriores pendientes de liquidación o pago | AX79: =Balanza!H270 -> 0 | AY79: =Balanza!D270 -> 0
A80: 41590 | B80: Otros productos que generan ingresos corrientes (derogada) | AX80: 0 | AY80: 0
A81: 41600 | B81: APROVECHAMIENTOS | AX81: =AX82+AX83+AX85+AX87+AX89+AX91+AX93+AX94+AX100 -> 0 | AY81: =AY82+AY83+AY85+AY87+AY89+AY91+AY93+AY94+AY100 -> 38337.41
A82: 41610 | B82: Incentivos derivados de la colaboración fiscal (derogada) | AX82: 0 | AY82: 0
A83: 41620 | B83: Multas | AX83: =SUM(AX84) -> 0 | AY83: =SUM(AY84) -> 0
A84: 41620-1 | B84: Multas | AX84: =Balanza!H275 -> 0 | AY84: =Balanza!D275 -> 0
A85: 41630 | B85: Indemnizaciones | AX85: =SUM(AX86) -> 0 | AY85: =SUM(AY86) -> 0
A86: 41630-1 | B86: Indemnizaciones | AX86: =Balanza!H277 -> 0 | AY86: =Balanza!D277 -> 0
A87: 41640 | B87: Reintegros | AX87: =SUM(AX88) -> 0 | AY87: =SUM(AY88) -> 34652.71
A88: 41640-1 | B88: Reintegros | AX88: =Balanza!H279 -> 0 | AY88: =Balanza!D279 -> 34652.71
A89: 41650 | B89: Aprovechamientos provenientes de obras públicas | AX89: =SUM(AX90) -> 0 | AY89: =SUM(AY90) -> 0
A90: 41650-1 | B90: Aprovechamientos provenientes de obras públicas | AX90: =Balanza!H281 -> 0 | AY90: =Balanza!D281 -> 0
A91: 41660 | B91: Aprovechamientos no comprendidos en la ley de ing. vigente, causados en ejercicios fiscales anteriores pendientes de liquidación o pago | AX91: =SUM(AX92) -> 0 | AY91: =SUM(AY92) -> 0
A92: 41660-1 | B92: Aprovechamientos no comprendidos en la ley de ing. vigente, causados en ejercicios fiscales anteriores pendientes de liquidación o pago | AX92: =Balanza!H283 -> 0 | AY92: =Balanza!D283 -> 0
A93: 41670 | B93: Aprovechamientos por aportaciones y cooperaciones (derogada) | AX93: 0 | AY93: 0
A94: 41680 | B94: Accesorios de aprovechamiento | AX94: =SUM(AX95:AX99) -> 0 | AY94: =SUM(AY95:AY99) -> 3684.7
A95: 41680-1 | B95: Recargos | AX95: =Balanza!H286 -> 0 | AY95: =Balanza!D286 -> 0
A96: 41680-2 | B96: Actualizaciones | AX96: =Balanza!H287 -> 0 | AY96: =Balanza!D287 -> 0
A97: 41680-3 | B97: Multas | AX97: =Balanza!H288 -> 0 | AY97: =Balanza!D288 -> 850
A98: 41680-4 | B98: Gastos de ejecución | AX98: =Balanza!H289 -> 0 | AY98: =Balanza!D289 -> 0
A99: 41680-5 | B99: Otros no especificados | AX99: =Balanza!H290 -> 0 | AY99: =Balanza!D290 -> 2834.7
A100: 41690 | B100: Otros aprovechamientos | AX100: =SUM(AX101) -> 0 | AY100: =SUM(AY101) -> 0
A101: 41690-1 | B101: Otros aprovechamientos | AX101: =Balanza!H292 -> 0 | AY101: =Balanza!D292 -> 0
A102: 41700 | B102: INGRESOS POR VENTAS DE BIENES Y PRESTACIÓN DE SERVICIOS | AX102: =AX103+AX105+AX106+AX108+AX109+AX110+AX111+AX113 -> 0 | AY102: =AY103+AY105+AY106+AY108+AY109+AY110+AY111+AY113 -> 0
A103: 41710 | B103: Ingresos por venta de bienes y prestación de servicios de instituciones públicas de seguridad social | AX103: =SUM(AX104) -> 0 | AY103: =SUM(AY104) -> 0
A104: 41710-1 | B104: Ingresos por venta de bienes y prestación de servicios de instituciones públicas de seguridad social | AX104: =Balanza!H295 -> 0 | AY104: =Balanza!D295 -> 0
A105: 41720 | B105: Ingresos por venta de bienes y prestación de servicios de empresas públicas del estado | AX105: 0 | AY105: 0
A106: 41730 | B106: Ingresos por venta de bienes y prestación de servicios de entidades paraestatales y fideicomisos no empresariales y no financieros | AX106: =SUM(AX107) -> 0 | AY106: =SUM(AY107) -> 0
A107: 41730-1 | B107: Ingresos por venta de bienes y prestación de servicios de entidades paraestatales y fideicomisos no empresariales y no financieros | AX107: =Balanza!H298 -> 0 | AY107: =Balanza!D298 -> 0
A108: 41740 | B108: Ingresos por venta de bienes y prestación de servicios de entidades paraestatales empresariales no financieras con participación estatal mayoritaria | AX108: 0 | AY108: 0
A109: 41750 | B109: Ing. por vta. de bienes y prestación de servicios de entidades paraestatales empresariales financieras monetarias con participación estatal mayoritaria | AX109: 0 | AY109: 0
A110: 41760 | B110: Ing. por vta. de bienes y prestación de servicios de entidades paraestatales empresariales financieras no monetarias con participación estatal mayoritaria | AX110: 0 | AY110: 0
A111: 41770 | B111: Ingresos por venta de bienes y prestación de servicios de fideicomisos financieros públicos con participación estatal mayoritaria | AX111: =SUM(AX112) -> 0 | AY111: =SUM(AY112) -> 0
A112: 41770-1 | B112: Ingresos por venta de bienes y prestación de servicios de fideicomisos financieros públicos con participación estatal mayoritaria | AX112: =Balanza!H303 -> 0 | AY112: =Balanza!D303 -> 0
A113: 41780 | B113: Ingresos por venta de bienes y prestación de servicios de los poderes legislativo y judicial, y de los órganos autónomos | AX113: 0 | AY113: 0
A114: 41900 | B114: ING. NO COMPRENDIDOS EN LAS FRACC. DE LA LEY DE ING. CAUSADAS EN EJERCICIOS FISCALES ANTERIORES PENDIENTES DE LIQUIDACIÓN O PAGO (DEROGADA) | AX114: =AX115+AX116 -> 0 | AY114: =AY115+AY116 -> 0 | AZ114: =AZ115+AZ117+AZ118+AZ120+AZ121+AZ122+AZ123+AZ125 -> 0
A115: 41910 | B115: Ingresos no comprendidos en las fracciones de la ley de ingresos causadas en ejercicios fiscales anteriores pendientes de liquidación o pago (Derogada) | AX115: 0 | AY115: 0
A116: 41920 | B116: Cont. de mejoras, derechos, productos, y aprovechamientos no compren. en las fracc. de la ley de ing. caus. en ejer. fisc. ant. pen. de liqui. o pago (Derogada) | AX116: 0 | AY116: 0
A117: 42000 | B117: PART, APORT, CONV, INCEN. DERIV. DE LA COLAB. FISC, FONDOS DISTINTOS DE APORT, TRANSF, ASIG, SUB Y SUBVE, Y PENS. Y JUB. | AX117: =AX118+AX149 -> 71880329.36 | AY117: =AY118+AY149 -> 64213384.01
A118: 42100 | B118: PARTIC. APORT. CONVENIOS, INCENTIVOS DERIVADOS DE LA COLABORACIÓN FISCAL Y FONDOS DISTINTOS DE APORTACIONES. | AX118: =AX119+AX132+AX135+AX140+AX146 -> 71880329.36 | AY118: =AY119+AY132+AY135+AY140+AY146 -> 64213384.01
A119: 42110 | B119: Participaciones | AX119: =SUM(AX120:AX131) -> 51807540.41 | AY119: =SUM(AY120:AY131) -> 46566283.25
A120: 42110-1 | B120: Fondo general de participaciones (federal) | AX120: =Balanza!H311 -> 28542465.19 | AY120: =Balanza!D311 -> 28339198.02
A121: 42110-2 | B121: Fondo de fomento municipal (federal) | AX121: =Balanza!H312 -> 20492566.08 | AY121: =Balanza!D312 -> 14589654.69
A122: 42110-3 | B122: Fondo de fiscalización y recaudación (federal) | AX122: =Balanza!H313 -> 427900.28 | AY122: =Balanza!D313 -> 351962.88
A123: 42110-4 | B123: Fondo de compensación (federal) | AX123: =Balanza!H314 -> 8454.93 | AY123: =Balanza!D314 -> 0
A124: 42110-5 | B124: Fondo de extracción de hidrocarburos (federal) | AX124: =Balanza!H315 -> 0 | AY124: =Balanza!D315 -> 0
A125: 42110-6 | B125: Impuesto especial sobre producción y servicios (federal) | AX125: =Balanza!H316 -> 1500378.98 | AY125: =Balanza!D316 -> 637935.67
A126: 42110-7 | B126: 0.136% de la recaudación federal participable (federal) | AX126: =Balanza!H317 -> 0 | AY126: =Balanza!D317 -> 0
A127: 42110-8 | B127: 3.17% sobre extracción de petróleo (federal) | AX127: =Balanza!H318 -> 0 | AY127: =Balanza!D318 -> 0
A128: 42110-9 | B128: Gasolinas y diésel (federal) | AX128: =Balanza!H319 -> 186330.91 | AY128: =Balanza!D319 -> 852872.7
A129: 42110-10 | B129: Fondo del impuesto sobre la renta (federal) | AX129: =Balanza!H320 -> 307256.41 | AY129: =Balanza!D320 -> 1646423.14
A130: 42110-11 | B130: Fondo de estabilización de los ingresos de las entidades federativas (federal) | AX130: =Balanza!H321 -> 53568.25 | AY130: =Balanza!D321 -> 0
A131: 42110-12 | B131: Participaciones del estado | AX131: =Balanza!H322 -> 288619.38 | AY131: =Balanza!D322 -> 148236.15
A132: 42120 | B132: Aportaciones | AX132: =SUM(AX133:AX134) -> 16201248.44 | AY132: =SUM(AY133:AY134) -> 17015635.81
A133: 42120-1 | B133: Fondo de aportaciones para la infraestructura social municipal | AX133: =Balanza!H324 -> 8492182.52 | AY133: =Balanza!D324 -> 9889557
A134: 42120-2 | B134: Fondo de aportaciones para el fortalecimiento municipal | AX134: =Balanza!H325 -> 7709065.92 | AY134: =Balanza!D325 -> 7126078.81
A135: 42130 | B135: Convenios | AX135: =SUM(AX136:AX139) -> 2207280 | AY135: =SUM(AY136:AY139) -> 0
A136: 42130-1 | B136: Convenios de protección social en salud | AX136: =Balanza!H327 -> 0 | AY136: =Balanza!D327 -> 0
A137: 42130-2 | B137: Convenios de descentralizados | AX137: =Balanza!H328 -> 1000000 | AY137: =Balanza!D328 -> 0
A138: 42130-3 | B138: Convenio de reasignación | AX138: =Balanza!H329 -> 0 | AY138: =Balanza!D329 -> 0
A139: 42130-456 | B139: Otros convenios y subsidios | AX139: =Balanza!H330+Balanza!H331+Balanza!H332 -> 1207280 | AY139: =Balanza!D330+Balanza!D331+Balanza!D332 -> 0
A140: 42140 | B140: Incentivos derivados de la colaboración fiscal | AX140: =SUM(AX141:AX145) -> 1664260.51 | AY140: =SUM(AY141:AY145) -> 631464.95
A141: 42140-1 | B141: Tenencia o uso de vehículos | AX141: =Balanza!H334 -> 938641.27 | AY141: =Balanza!D334 -> 50227.23
A142: 42140-2 | B142: Fondo de compensación ISAN | AX142: =Balanza!H335 -> 185087.54 | AY142: =Balanza!D335 -> 87153.99
A143: 42140-3 | B143: Impuesto sobre automóviles nuevos | AX143: =Balanza!H336 -> 540531.7 | AY143: =Balanza!D336 -> 494083.73
A144: 42140-4 | B144: Fondo de compensación de repecos-intermedios | AX144: =Balanza!H337 -> 0 | AY144: =Balanza!D337 -> 0
A145: 42140-5 | B145: Otros incentivos económicos | AX145: =Balanza!H338 -> 0 | AY145: =Balanza!D338 -> 0
A146: 42150 | B146: Fondos distintos de aportaciones | AX146: =SUM(AX147:AX148) -> 0 | AY146: =SUM(AY147:AY148) -> 0
A147: 42150-1 | B147: Fondo para entidades federativas y municipios productores de hidrocarburos | AX147: =Balanza!H340 -> 0 | AY147: =Balanza!D340 -> 0
A148: 42150-2 | B148: Fondo minero | AX148: =Balanza!H341 -> 0 | AY148: =Balanza!D341 -> 0
A149: 42200 | B149: TRANSFERENCIAS, ASIGNACIONES, SUBSIDIOS Y SUBVENCIONES, PENSIONES Y JUBILACIONES | AX149: =AX150+AX152+AX153+AX155+AX156+AX158+AX159 -> 0 | AY149: =AY150+AY152+AY153+AY155+AY156+AY158+AY159 -> 0
A150: 42210 | B150: Transferencias y asignaciones | AX150: =SUM(AX151) -> 0 | AY150: =SUM(AY151) -> 0
A151: 42210-12 | B151: Transferencias y asignaciones | AX151: =Balanza!H344+Balanza!H345 -> 0 | AY151: =Balanza!D344+Balanza!D345 -> 0
A152: 42220 | B152: Transferencias del sector público (derogada) | AX152: 0 | AY152: 0
A153: 42230 | B153: Subsidios y subvenciones | AX153: =SUM(AX154) -> 0 | AY153: =SUM(AY154) -> 0
A154: 42230-12 | B154: Subsidios y subvenciones | AX154: =Balanza!H348+Balanza!H349 -> 0 | AY154: =Balanza!D348+Balanza!D349 -> 0
A155: 42240 | B155: Ayudas sociales (derogada) | AX155: 0 | AY155: 0
A156: 42250 | B156: Pensiones y jubilaciones | AX156: =SUM(AX157) -> 0 | AY156: =SUM(AY157) -> 0
A157: 42250-1 | B157: Pensiones y jubilaciones | AX157: =Balanza!H352 -> 0 | AY157: =Balanza!D352 -> 0
A158: 42260 | B158: Transferencias del exterior (derogada) | AX158: 0 | AY158: 0
A159: 42270 | B159: Transferencias del fondo mexicano del petróleo para la estabilización y el desarrollo | AX159: =SUM(AX160) -> 0 | AY159: =SUM(AY160) -> 0
A160: 42270-1 | B160: Transferencias del fondo mexicano del petróleo para la estabilización y el desarrollo | AX160: =Balanza!H355 -> 0 | AY160: =Balanza!D355 -> 0
A161: 43000 | B161: OTROS INGRESOS Y BENEFICIOS | AX161: =AX162+AX165+AX171+AX173+AX175 -> 32795.62 | AY161: =AY162+AY165+AY171+AY173+AY175 -> 749.55
A162: 43100 | B162: INGRESOS FINANCIEROS | AX162: =SUM(AX163:AX164) -> 32795.62 | AY162: =SUM(AY163:AY164) -> 749.55
A163: 43110 | B163: Intereses ganados de títulos, valores y demás instrumentos financieros | AX163: =Balanza!H359 -> 32795.62 | AY163: =Balanza!D359 -> 749.55
A164: 43190 | B164: Otros ingresos financieros | AX164: =Balanza!H361 -> 0 | AY164: =Balanza!D361 -> 0
A165: 43200 | B165: INCREMENTO POR VARIACIÓN DE INVENTARIOS | AX165: =SUM(AX166:AX170) -> 0 | AY165: =SUM(AY166:AY170) -> 0
A166: 43210 | B166: Incremento por varación de inventarios de mercancías para venta | AX166: 0 | AY166: 0
A167: 43220 | B167: Incremento por variación de inventarios de mercancías terminadas | AX167: 0 | AY167: 0
A168: 43230 | B168: Incremento por variación de inventarios de mercancías en proceso de elaboración | AX168: 0 | AY168: 0
A169: 43240 | B169: Incremento por variación de inventarios de materias primas, materiales y suministros para producción | AX169: 0 | AY169: 0
A170: 43250 | B170: Incremento por variación de almacén de mercancías primas, materiales y suministros de consumo | AX170: 0 | AY170: 0
A171: 43300 | B171: DISMINUCIÓN DEL EXCESO DE ESTIMACIONES POR PÉRDIDA O DETERIORO U OBSOLESCENCIA | AX171: =SUM(AX172) -> 0 | AY171: =SUM(AY172) -> 0
A172: 43310 | B172: Disminución del Exceso de Estimaciones por Pérdida o Deterioro u Obsolescencia | AX172: =Balanza!H370 -> 0 | AY172: =Balanza!D370 -> 0
A173: 43400 | B173: DISMINUCIÓN DEL EXCESO DE PROVISIONES | AX173: =AX174 -> 0 | AY173: =AY174 -> 0
A174: 43410 | B174: Disminución del exceso de provisiones | AX174: =Balanza!H373 -> 0 | AY174: =Balanza!D373 -> 0
A175: 43900 | B175: OTROS INGRESOS Y BENEFICIOS VARIOS | AX175: =SUM(AX176:AX183) -> 0 | AY175: =SUM(AY176:AY183) -> 0
